Workbook

Sheet Front Cover

Sheet Contents
B2: Labour Market Information Toolkit Data Matrix - Residents
B4: Indicators | P4: Composition of Lancashire Travel to Work Areas
B5: The following indicators are included in this workbook: | P5: Lancaster and Morecambe | Q5: Lancaster
B6: LS1: Total Population | F6: LS13: Hours Worked Weekly | J6: LS25: Households by Activity | P6: Blackpool, Fylde and Wyre | Q6: Blackpool
B7: LS2: Population (Age, Gender, Ethnicity, Disability) | F7: LS14: Non-Permanent Employment | J7: LS26: Workless Household Characteristics | Q7: Fylde
B8: LS3: Population Change by Age | F8: LS15: Zero-Hour Contracts | J8: LS27: Resident Occupations | Q8: Wyre
B9: LS4: Working Age Population | F9: LS16: Unemployment | J9: LS28: Occupations by Gender | P9: Blackburn with Darwen, Hyndburn, Rossendale and Ribble Valley | Q9: Blackburn with Darwen
B10: LS5: Population Aged 65+ | F10: LS17: Unemployment (Age, Gender, Ethnicity) | J10: LS29: Qualifications by NVQ | Q10: Hyndburn
B11: LS6: Components of Pop Change | F11: LS18: Claimant Count | J11: LS30: Qualifications (Age & Gender) | Q11: Rossendale
B12: LS7: Population Projections | F12: LS19: Claimant Count (Age & Gender) | J12: LS31: Qualifications of those Employed | Q12: Ribble Valley
B13: LS8: Population Projections 16-64 | F13: LS20: Economic Inactivity | J13: LS32: Travel to Work, Method | P13: Preston, Chorley, South Ribble | Q13: Preston
B14: LS9: Population Projections 65+ | F14: LS21: Economic Inactivity (Age, Gender, Ethnicity) | J14: LS33: Travel to Work, Distance | Q14: Chorley
B15: LS10: Resident Employment | F15: LS22: Economic Activity | J15: LS34: Travel to Work, Destination | Q15: South Ribble
B16: LS11: Employment (Age, Gender, Ethnicity) | F16: LS23: Reason for Inactivity | J16: LS35: Workplace Earnings | P16: Burnley and Pendle | Q16: Burnley
B17: LS12: Self-Employment | F17: LS24: Activity of those with Health Conditions | J17: LS36: Resident Earnings | Q17: Pendle
P18: West Lancashire | Q18: West Lancashire
B19: Matrix Data The data was the most up to date available data at the time of writing. The data matrix workbook contains data from the Mid-Year Population Estimates, the Annual Population Survey, the 2011 Census and the Annual Survey of Hours and Earnings. All data sources are stated. Please note the data matrix does not reflect any updates to indicators that have been released after February 2018. Please check with the original sources for any updated data releases.
B25: How to use the Matrix The matrix contains summary pages for the Travel to Work Areas (TTWA) and Local Authority regions. The two summary pages include a drop-down menu (shaded blue at the top of the sheet) for selecting the geography for which summary data will be provided. The relevant indicators can then be selected by clicking the corresponding indicator button. When selecting a geography from the drop-down menu in the Local Authority summary page, the corresponding TTWA will automatically be selected as a comparator geography. To access a more comprehensive dataset, click the link above each data table to view the full datasheet for that selected indicator. Links can be used to navigate between each summary tab and datasheet. Please note that to use the summary features of the matrix, macros must be enabled. You can enable macros by selecting ‘Enable content’ if prompted to do so in the notification box or banner at the top of the sheet. If you are not prompted to enable macros, you may need to change the spreadsheet’s macro settings. You can do this in Excel 2013 by accessing the following menu options: File \ Options \ Trust Centre \ Trust Centre Settings… \ Macro Settings and selecting ‘Disable all macros with notification’. When you reopen this spreadsheet you will receive a notification stating that Macros have been disabled and will be given the option to accept macros within the spreadsheet. It is not recommended that ‘Enable all macros’ is selected as this will enable macros in all spreadsheets, not just the Lancashire LMI Toolkit.

Sheet TTWA Summary
A1: Blackburn with Darwen, Hyndburn, Rossendale and Ribble Valley | C1: Residents Indicators: Travel to Work Area Summary
A2: Blackpool, Fylde and Wyre
A3: Burnley and Pendle | C3: Summary Statistics for: | D3: Blackburn with Darwen, Hyndburn, Rossendale and Ribble Valley
A4: Lancaster and Morecambe
A5: Preston, Chorley and South Ribble | C5: Population | D5: Total Population | F5: Population by Age Band | H5: Population Change by Age | J5: Working Age Population | L5: Population Aged 65+ | N5: Components of Population Change | P5: Projection Populations | R5: Population Projections, 16-64 | T5: Population Projections, 65+
A6: West Lancashire
C7: Labour Market (1) | D7: Resident Employment | F7: Self Employment | H7: Hours Worked Weekly | J7: Non-Permanent Employment | L7: Zero Hour Contracts | N7: Workless Households
C9: Labour Market (2) | D9: Unemployment | F9: Claimant Count | H9: Economic Inactivity | J9: Economic Activity | L9: Travel to Work, Method | N9: Travel to Work, Distance | P9: Travel to Work, Destination
C11: Occupations and Qualifications | D11: Resident Occupations | F11: Qualifications by NVQ | H11: Qualifications of those Employed | J11: Workplace Earnings | L11: Resident Earnings
C12: Back to top
C59: LS1. Total Population, 2006-16
D60: =D$3 -> Blackburn with Darwen, Hyndburn, Rossendale and Ribble Valley | E60: Lancashire | F60: England Minus London
C61: 2006 | D61: =INDEX('LS1. Total Population'!$B4:$Z4,MATCH(D$3,'LS1. Total Population'!$B$2:$Z$2,0)) -> 347464 | E61: =INDEX('LS1. Total Population'!$B4:$Z4,MATCH(E$60,'LS1. Total Population'!$B$2:$Z$2,0)) -> 1445983 | F61: =INDEX('LS1. Total Population'!$B4:$Z4,MATCH(F$60,'LS1. Total Population'!$B$2:$Z$2,0)) -> 43367361
C62: 2007 | D62: =INDEX('LS1. Total Population'!$B5:$Z5,MATCH(D$3,'LS1. Total Population'!$B$2:$Z$2,0)) -> 349004 | E62: =INDEX('LS1. Total Population'!$B5:$Z5,MATCH(E$60,'LS1. Total Population'!$B$2:$Z$2,0)) -> 1449418 | F62: =INDEX('LS1. Total Population'!$B5:$Z5,MATCH(F$60,'LS1. Total Population'!$B$2:$Z$2,0)) -> 43687620
C63: 2008 | D63: =INDEX('LS1. Total Population'!$B6:$Z6,MATCH(D$3,'LS1. Total Population'!$B$2:$Z$2,0)) -> 350299 | E63: =INDEX('LS1. Total Population'!$B6:$Z6,MATCH(E$60,'LS1. Total Population'!$B$2:$Z$2,0)) -> 1451175 | F63: =INDEX('LS1. Total Population'!$B6:$Z6,MATCH(F$60,'LS1. Total Population'!$B$2:$Z$2,0)) -> 44003692
C64: 2009 | D64: =INDEX('LS1. Total Population'!$B7:$Z7,MATCH(D$3,'LS1. Total Population'!$B$2:$Z$2,0)) -> 351683 | E64: =INDEX('LS1. Total Population'!$B7:$Z7,MATCH(E$60,'LS1. Total Population'!$B$2:$Z$2,0)) -> 1452916 | F64: =INDEX('LS1. Total Population'!$B7:$Z7,MATCH(F$60,'LS1. Total Population'!$B$2:$Z$2,0)) -> 44253787
C65: 2010 | D65: =INDEX('LS1. Total Population'!$B8:$Z8,MATCH(D$3,'LS1. Total Population'!$B$2:$Z$2,0)) -> 352884 | E65: =INDEX('LS1. Total Population'!$B8:$Z8,MATCH(E$60,'LS1. Total Population'!$B$2:$Z$2,0)) -> 1457298 | F65: =INDEX('LS1. Total Population'!$B8:$Z8,MATCH(F$60,'LS1. Total Population'!$B$2:$Z$2,0)) -> 44580957
C66: 2011 | D66: =INDEX('LS1. Total Population'!$B9:$Z9,MATCH(D$3,'LS1. Total Population'!$B$2:$Z$2,0)) -> 353551 | E66: =INDEX('LS1. Total Population'!$B9:$Z9,MATCH(E$60,'LS1. Total Population'!$B$2:$Z$2,0)) -> 1461295 | F66: =INDEX('LS1. Total Population'!$B9:$Z9,MATCH(F$60,'LS1. Total Population'!$B$2:$Z$2,0)) -> 44902762
C67: 2012 | D67: =INDEX('LS1. Total Population'!$B10:$Z10,MATCH(D$3,'LS1. Total Population'!$B$2:$Z$2,0)) -> 353865 | E67: =INDEX('LS1. Total Population'!$B10:$Z10,MATCH(E$60,'LS1. Total Population'!$B$2:$Z$2,0)) -> 1465668 | F67: =INDEX('LS1. Total Population'!$B10:$Z10,MATCH(F$60,'LS1. Total Population'!$B$2:$Z$2,0)) -> 45185360
C68: 2013 | D68: =INDEX('LS1. Total Population'!$B11:$Z11,MATCH(D$3,'LS1. Total Population'!$B$2:$Z$2,0)) -> 354017 | E68: =INDEX('LS1. Total Population'!$B11:$Z11,MATCH(E$60,'LS1. Total Population'!$B$2:$Z$2,0)) -> 1468846 | F68: =INDEX('LS1. Total Population'!$B11:$Z11,MATCH(F$60,'LS1. Total Population'!$B$2:$Z$2,0)) -> 45449274
C69: 2014 | D69: =INDEX('LS1. Total Population'!$B12:$Z12,MATCH(D$3,'LS1. Total Population'!$B$2:$Z$2,0)) -> 354210 | E69: =INDEX('LS1. Total Population'!$B12:$Z12,MATCH(E$60,'LS1. Total Population'!$B$2:$Z$2,0)) -> 1471979 | F69: =INDEX('LS1. Total Population'!$B12:$Z12,MATCH(F$60,'LS1. Total Population'!$B$2:$Z$2,0)) -> 45777929
C70: 2015 | D70: =INDEX('LS1. Total Population'!$B13:$Z13,MATCH(D$3,'LS1. Total Population'!$B$2:$Z$2,0)) -> 355041 | E70: =INDEX('LS1. Total Population'!$B13:$Z13,MATCH(E$60,'LS1. Total Population'!$B$2:$Z$2,0)) -> 1478115 | F70: =INDEX('LS1. Total Population'!$B13:$Z13,MATCH(F$60,'LS1. Total Population'!$B$2:$Z$2,0)) -> 46112614
C71: 2016 | D71: =INDEX('LS1. Total Population'!$B14:$Z14,MATCH(D$3,'LS1. Total Population'!$B$2:$Z$2,0)) -> 356298 | E71: =INDEX('LS1. Total Population'!$B14:$Z14,MATCH(E$60,'LS1. Total Population'!$B$2:$Z$2,0)) -> 1485042 | F71: =INDEX('LS1. Total Population'!$B14:$Z14,MATCH(F$60,'LS1. Total Population'!$B$2:$Z$2,0)) -> 46480175
C72: Change 2006-16 | D72: =D71-D61 -> 8834 | E72: 39059 | F72: 3112814
C73: % Change 2006-16 | D73: =D72/D61 -> 0.02542421661 | E73: =E72/E61 -> 0.02701207414 | F73: 0.07177780543
C75: LS1. Index of Population, 2006-16
D76: =D$3 -> Blackburn with Darwen, Hyndburn, Rossendale and Ribble Valley | E76: Lancashire | F76: England Minus London
C77: 2006 | D77: =INDEX('LS1. Total Population'!$B20:$Z20,MATCH(D$3,'LS1. Total Population'!$B$2:$Z$2,0)) -> 100 | E77: =INDEX('LS1. Total Population'!$B20:$Z20,MATCH(E$76,'LS1. Total Population'!$B$2:$Z$2,0)) -> 100 | F77: =INDEX('LS1. Total Population'!$B20:$Z20,MATCH(F$76,'LS1. Total Population'!$B$2:$Z$2,0)) -> 100
C78: 2007 | D78: =INDEX('LS1. Total Population'!$B21:$Z21,MATCH(D$3,'LS1. Total Population'!$B$2:$Z$2,0)) -> 100.4432114 | E78: =INDEX('LS1. Total Population'!$B21:$Z21,MATCH(E$76,'LS1. Total Population'!$B$2:$Z$2,0)) -> 100.2375547 | F78: =INDEX('LS1. Total Population'!$B21:$Z21,MATCH(F$76,'LS1. Total Population'!$B$2:$Z$2,0)) -> 100.7384793
C79: 2008 | D79: =INDEX('LS1. Total Population'!$B22:$Z22,MATCH(D$3,'LS1. Total Population'!$B$2:$Z$2,0)) -> 100.8159119 | E79: =INDEX('LS1. Total Population'!$B22:$Z22,MATCH(E$76,'LS1. Total Population'!$B$2:$Z$2,0)) -> 100.3590637 | F79: =INDEX('LS1. Total Population'!$B22:$Z22,MATCH(F$76,'LS1. Total Population'!$B$2:$Z$2,0)) -> 101.4673039
C80: 2009 | D80: =INDEX('LS1. Total Population'!$B23:$Z23,MATCH(D$3,'LS1. Total Population'!$B$2:$Z$2,0)) -> 101.2142265 | E80: =INDEX('LS1. Total Population'!$B23:$Z23,MATCH(E$76,'LS1. Total Population'!$B$2:$Z$2,0)) -> 100.4794662 | F80: =INDEX('LS1. Total Population'!$B23:$Z23,MATCH(F$76,'LS1. Total Population'!$B$2:$Z$2,0)) -> 102.0439934
C81: 2010 | D81: =INDEX('LS1. Total Population'!$B24:$Z24,MATCH(D$3,'LS1. Total Population'!$B$2:$Z$2,0)) -> 101.5598738 | E81: =INDEX('LS1. Total Population'!$B24:$Z24,MATCH(E$76,'LS1. Total Population'!$B$2:$Z$2,0)) -> 100.7825127 | F81: =INDEX('LS1. Total Population'!$B24:$Z24,MATCH(F$76,'LS1. Total Population'!$B$2:$Z$2,0)) -> 102.7984087
C82: 2011 | D82: =INDEX('LS1. Total Population'!$B25:$Z25,MATCH(D$3,'LS1. Total Population'!$B$2:$Z$2,0)) -> 101.7518362 | E82: =INDEX('LS1. Total Population'!$B25:$Z25,MATCH(E$76,'LS1. Total Population'!$B$2:$Z$2,0)) -> 101.0589336 | F82: =INDEX('LS1. Total Population'!$B25:$Z25,MATCH(F$76,'LS1. Total Population'!$B$2:$Z$2,0)) -> 103.5404529
C83: 2012 | D83: =INDEX('LS1. Total Population'!$B26:$Z26,MATCH(D$3,'LS1. Total Population'!$B$2:$Z$2,0)) -> 101.8422052 | E83: =INDEX('LS1. Total Population'!$B26:$Z26,MATCH(E$76,'LS1. Total Population'!$B$2:$Z$2,0)) -> 101.3613576 | F83: =INDEX('LS1. Total Population'!$B26:$Z26,MATCH(F$76,'LS1. Total Population'!$B$2:$Z$2,0)) -> 104.1920905
C84: 2013 | D84: =INDEX('LS1. Total Population'!$B27:$Z27,MATCH(D$3,'LS1. Total Population'!$B$2:$Z$2,0)) -> 101.8859508 | E84: =INDEX('LS1. Total Population'!$B27:$Z27,MATCH(E$76,'LS1. Total Population'!$B$2:$Z$2,0)) -> 101.5811389 | F84: =INDEX('LS1. Total Population'!$B27:$Z27,MATCH(F$76,'LS1. Total Population'!$B$2:$Z$2,0)) -> 104.8006449
C85: 2014 | D85: =INDEX('LS1. Total Population'!$B28:$Z28,MATCH(D$3,'LS1. Total Population'!$B$2:$Z$2,0)) -> 101.9414961 | E85: =INDEX('LS1. Total Population'!$B28:$Z28,MATCH(E$76,'LS1. Total Population'!$B$2:$Z$2,0)) -> 101.7978081 | F85: =INDEX('LS1. Total Population'!$B28:$Z28,MATCH(F$76,'LS1. Total Population'!$B$2:$Z$2,0)) -> 105.5584844
C86: 2015 | D86: =INDEX('LS1. Total Population'!$B29:$Z29,MATCH(D$3,'LS1. Total Population'!$B$2:$Z$2,0)) -> 102.1806576 | E86: =INDEX('LS1. Total Population'!$B29:$Z29,MATCH(E$76,'LS1. Total Population'!$B$2:$Z$2,0)) -> 102.2221561 | F86: =INDEX('LS1. Total Population'!$B29:$Z29,MATCH(F$76,'LS1. Total Population'!$B$2:$Z$2,0)) -> 106.3302284
C87: 2016 | D87: =INDEX('LS1. Total Population'!$B30:$Z30,MATCH(D$3,'LS1. Total Population'!$B$2:$Z$2,0)) -> 102.5424217 | E87: =INDEX('LS1. Total Population'!$B30:$Z30,MATCH(E$76,'LS1. Total Population'!$B$2:$Z$2,0)) -> 102.7012074 | F87: =INDEX('LS1. Total Population'!$B30:$Z30,MATCH(F$76,'LS1. Total Population'!$B$2:$Z$2,0)) -> 107.1777805
C130: LS2. Population by Age Band, 2016
D131: =D$3 -> Blackburn with Darwen, Hyndburn, Rossendale and Ribble Valley | F131: Lancashire | G131: England Minus London
C132: Aged under 1 year | D132: =INDEX('LS2. Population Split'!$B70:$Z70,MATCH(D$3,'LS2. Population Split'!$B$2:$Z$2,0)) -> 4500 | E132: =INDEX('LS2. Population Split'!$B103:$Z103,MATCH(D$3,'LS2. Population Split'!$B$2:$Z$2,0)) -> 0.01262980634 | F132: =INDEX('LS2. Population Split'!$B103:$Z103,MATCH(F$131,'LS2. Population Split'!$B$2:$Z$2,0)) -> 0.01144781145 | G132: =INDEX('LS2. Population Split'!$B103:$Z103,MATCH(G$131,'LS2. Population Split'!$B$2:$Z$2,0)) -> 0.01162215309
C133: Aged 1 - 4 years | D133: =INDEX('LS2. Population Split'!$B71:$Z71,MATCH(D$3,'LS2. Population Split'!$B$2:$Z$2,0)) -> 18800 | E133: =INDEX('LS2. Population Split'!$B104:$Z104,MATCH(D$3,'LS2. Population Split'!$B$2:$Z$2,0)) -> 0.05276452428 | F133: =INDEX('LS2. Population Split'!$B104:$Z104,MATCH(F$131,'LS2. Population Split'!$B$2:$Z$2,0)) -> 0.04774410774 | G133: =INDEX('LS2. Population Split'!$B104:$Z104,MATCH(G$131,'LS2. Population Split'!$B$2:$Z$2,0)) -> 0.04847870706
C134: Aged 5 - 9 years | D134: =INDEX('LS2. Population Split'!$B72:$Z72,MATCH(D$3,'LS2. Population Split'!$B$2:$Z$2,0)) -> 24200 | E134: =INDEX('LS2. Population Split'!$B105:$Z105,MATCH(D$3,'LS2. Population Split'!$B$2:$Z$2,0)) -> 0.06792029189 | F134: =INDEX('LS2. Population Split'!$B105:$Z105,MATCH(F$131,'LS2. Population Split'!$B$2:$Z$2,0)) -> 0.06101010101 | G134: =INDEX('LS2. Population Split'!$B105:$Z105,MATCH(G$131,'LS2. Population Split'!$B$2:$Z$2,0)) -> 0.06128631116
C135: Aged 10 - 14 years | D135: =INDEX('LS2. Population Split'!$B73:$Z73,MATCH(D$3,'LS2. Population Split'!$B$2:$Z$2,0)) -> 22900 | E135: =INDEX('LS2. Population Split'!$B106:$Z106,MATCH(D$3,'LS2. Population Split'!$B$2:$Z$2,0)) -> 0.06427168117 | F135: =INDEX('LS2. Population Split'!$B106:$Z106,MATCH(F$131,'LS2. Population Split'!$B$2:$Z$2,0)) -> 0.05643097643 | G135: =INDEX('LS2. Population Split'!$B106:$Z106,MATCH(G$131,'LS2. Population Split'!$B$2:$Z$2,0)) -> 0.05556559567
C136: Aged 15 - 19 years | D136: =INDEX('LS2. Population Split'!$B74:$Z74,MATCH(D$3,'LS2. Population Split'!$B$2:$Z$2,0)) -> 22000 | E136: =INDEX('LS2. Population Split'!$B107:$Z107,MATCH(D$3,'LS2. Population Split'!$B$2:$Z$2,0)) -> 0.0617457199 | F136: =INDEX('LS2. Population Split'!$B107:$Z107,MATCH(F$131,'LS2. Population Split'!$B$2:$Z$2,0)) -> 0.05966329966 | G136: =INDEX('LS2. Population Split'!$B107:$Z107,MATCH(G$131,'LS2. Population Split'!$B$2:$Z$2,0)) -> 0.05832160791
C137: Aged 20 - 24 years | D137: =INDEX('LS2. Population Split'!$B75:$Z75,MATCH(D$3,'LS2. Population Split'!$B$2:$Z$2,0)) -> 19700 | E137: =INDEX('LS2. Population Split'!$B108:$Z108,MATCH(D$3,'LS2. Population Split'!$B$2:$Z$2,0)) -> 0.05529048555 | F137: =INDEX('LS2. Population Split'!$B108:$Z108,MATCH(F$131,'LS2. Population Split'!$B$2:$Z$2,0)) -> 0.06430976431 | G137: =INDEX('LS2. Population Split'!$B108:$Z108,MATCH(G$131,'LS2. Population Split'!$B$2:$Z$2,0)) -> 0.06434567837
C138: Aged 25 - 29 years | D138: =INDEX('LS2. Population Split'!$B76:$Z76,MATCH(D$3,'LS2. Population Split'!$B$2:$Z$2,0)) -> 22000 | E138: =INDEX('LS2. Population Split'!$B109:$Z109,MATCH(D$3,'LS2. Population Split'!$B$2:$Z$2,0)) -> 0.0617457199 | F138: =INDEX('LS2. Population Split'!$B109:$Z109,MATCH(F$131,'LS2. Population Split'!$B$2:$Z$2,0)) -> 0.06175084175 | G138: =INDEX('LS2. Population Split'!$B109:$Z109,MATCH(G$131,'LS2. Population Split'!$B$2:$Z$2,0)) -> 0.06422949987
C139: Aged 30 - 34 years | D139: =INDEX('LS2. Population Split'!$B77:$Z77,MATCH(D$3,'LS2. Population Split'!$B$2:$Z$2,0)) -> 22300 | E139: =INDEX('LS2. Population Split'!$B110:$Z110,MATCH(D$3,'LS2. Population Split'!$B$2:$Z$2,0)) -> 0.06258770699 | F139: =INDEX('LS2. Population Split'!$B110:$Z110,MATCH(F$131,'LS2. Population Split'!$B$2:$Z$2,0)) -> 0.05905723906 | G139: =INDEX('LS2. Population Split'!$B110:$Z110,MATCH(G$131,'LS2. Population Split'!$B$2:$Z$2,0)) -> 0.06209525777
C140: Aged 35 - 39 years | D140: =INDEX('LS2. Population Split'!$B78:$Z78,MATCH(D$3,'LS2. Population Split'!$B$2:$Z$2,0)) -> 21200 | E140: =INDEX('LS2. Population Split'!$B111:$Z111,MATCH(D$3,'LS2. Population Split'!$B$2:$Z$2,0)) -> 0.05950042099 | F140: =INDEX('LS2. Population Split'!$B111:$Z111,MATCH(F$131,'LS2. Population Split'!$B$2:$Z$2,0)) -> 0.05595959596 | G140: =INDEX('LS2. Population Split'!$B111:$Z111,MATCH(G$131,'LS2. Population Split'!$B$2:$Z$2,0)) -> 0.06019122121
C141: Aged 40 - 44 years | D141: =INDEX('LS2. Population Split'!$B79:$Z79,MATCH(D$3,'LS2. Population Split'!$B$2:$Z$2,0)) -> 22900 | E141: =INDEX('LS2. Population Split'!$B112:$Z112,MATCH(D$3,'LS2. Population Split'!$B$2:$Z$2,0)) -> 0.06427168117 | F141: =INDEX('LS2. Population Split'!$B112:$Z112,MATCH(F$131,'LS2. Population Split'!$B$2:$Z$2,0)) -> 0.06067340067 | G141: =INDEX('LS2. Population Split'!$B112:$Z112,MATCH(G$131,'LS2. Population Split'!$B$2:$Z$2,0)) -> 0.06243088455
C142: Aged 45 - 49 years | D142: =INDEX('LS2. Population Split'!$B80:$Z80,MATCH(D$3,'LS2. Population Split'!$B$2:$Z$2,0)) -> 26500 | E142: =INDEX('LS2. Population Split'!$B113:$Z113,MATCH(D$3,'LS2. Population Split'!$B$2:$Z$2,0)) -> 0.07437552624 | F142: =INDEX('LS2. Population Split'!$B113:$Z113,MATCH(F$131,'LS2. Population Split'!$B$2:$Z$2,0)) -> 0.07158249158 | G142: =INDEX('LS2. Population Split'!$B113:$Z113,MATCH(G$131,'LS2. Population Split'!$B$2:$Z$2,0)) -> 0.07078713086
C143: Aged 50 - 54 years | D143: =INDEX('LS2. Population Split'!$B81:$Z81,MATCH(D$3,'LS2. Population Split'!$B$2:$Z$2,0)) -> 25300 | E143: =INDEX('LS2. Population Split'!$B114:$Z114,MATCH(D$3,'LS2. Population Split'!$B$2:$Z$2,0)) -> 0.07100757788 | F143: =INDEX('LS2. Population Split'!$B114:$Z114,MATCH(F$131,'LS2. Population Split'!$B$2:$Z$2,0)) -> 0.07239057239 | G143: =INDEX('LS2. Population Split'!$B114:$Z114,MATCH(G$131,'LS2. Population Split'!$B$2:$Z$2,0)) -> 0.07154874549
C144: Aged 55 - 59 years | D144: =INDEX('LS2. Population Split'!$B82:$Z82,MATCH(D$3,'LS2. Population Split'!$B$2:$Z$2,0)) -> 22400 | E144: =INDEX('LS2. Population Split'!$B115:$Z115,MATCH(D$3,'LS2. Population Split'!$B$2:$Z$2,0)) -> 0.06286836935 | F144: =INDEX('LS2. Population Split'!$B115:$Z115,MATCH(F$131,'LS2. Population Split'!$B$2:$Z$2,0)) -> 0.06471380471 | G144: =INDEX('LS2. Population Split'!$B115:$Z115,MATCH(G$131,'LS2. Population Split'!$B$2:$Z$2,0)) -> 0.06303114014
C145: Aged 60 - 64 years | D145: =INDEX('LS2. Population Split'!$B83:$Z83,MATCH(D$3,'LS2. Population Split'!$B$2:$Z$2,0)) -> 19800 | E145: =INDEX('LS2. Population Split'!$B116:$Z116,MATCH(D$3,'LS2. Population Split'!$B$2:$Z$2,0)) -> 0.05557114791 | F145: =INDEX('LS2. Population Split'!$B116:$Z116,MATCH(F$131,'LS2. Population Split'!$B$2:$Z$2,0)) -> 0.0571043771 | G145: =INDEX('LS2. Population Split'!$B116:$Z116,MATCH(G$131,'LS2. Population Split'!$B$2:$Z$2,0)) -> 0.05541284246
C146: Aged 65 - 69 years | D146: =INDEX('LS2. Population Split'!$B84:$Z84,MATCH(D$3,'LS2. Population Split'!$B$2:$Z$2,0)) -> 20400 | E146: =INDEX('LS2. Population Split'!$B117:$Z117,MATCH(D$3,'LS2. Population Split'!$B$2:$Z$2,0)) -> 0.05725512209 | F146: =INDEX('LS2. Population Split'!$B117:$Z117,MATCH(F$131,'LS2. Population Split'!$B$2:$Z$2,0)) -> 0.06148148148 | G146: =INDEX('LS2. Population Split'!$B117:$Z117,MATCH(G$131,'LS2. Population Split'!$B$2:$Z$2,0)) -> 0.05844639223
C147: Aged 70 - 74 years | D147: =INDEX('LS2. Population Split'!$B85:$Z85,MATCH(D$3,'LS2. Population Split'!$B$2:$Z$2,0)) -> 15200 | E147: =INDEX('LS2. Population Split'!$B118:$Z118,MATCH(D$3,'LS2. Population Split'!$B$2:$Z$2,0)) -> 0.0426606792 | F147: =INDEX('LS2. Population Split'!$B118:$Z118,MATCH(F$131,'LS2. Population Split'!$B$2:$Z$2,0)) -> 0.04787878788 | G147: =INDEX('LS2. Population Split'!$B118:$Z118,MATCH(G$131,'LS2. Population Split'!$B$2:$Z$2,0)) -> 0.04615083412
C148: Aged 75 - 79 years | D148: =INDEX('LS2. Population Split'!$B86:$Z86,MATCH(D$3,'LS2. Population Split'!$B$2:$Z$2,0)) -> 10900 | E148: =INDEX('LS2. Population Split'!$B119:$Z119,MATCH(D$3,'LS2. Population Split'!$B$2:$Z$2,0)) -> 0.03059219759 | F148: =INDEX('LS2. Population Split'!$B119:$Z119,MATCH(F$131,'LS2. Population Split'!$B$2:$Z$2,0)) -> 0.03609427609 | G148: =INDEX('LS2. Population Split'!$B119:$Z119,MATCH(G$131,'LS2. Population Split'!$B$2:$Z$2,0)) -> 0.03461043627
C149: Aged 80 - 84 years | D149: =INDEX('LS2. Population Split'!$B87:$Z87,MATCH(D$3,'LS2. Population Split'!$B$2:$Z$2,0)) -> 8000 | E149: =INDEX('LS2. Population Split'!$B120:$Z120,MATCH(D$3,'LS2. Population Split'!$B$2:$Z$2,0)) -> 0.02245298905 | F149: =INDEX('LS2. Population Split'!$B120:$Z120,MATCH(F$131,'LS2. Population Split'!$B$2:$Z$2,0)) -> 0.02612794613 | G149: =INDEX('LS2. Population Split'!$B120:$Z120,MATCH(G$131,'LS2. Population Split'!$B$2:$Z$2,0)) -> 0.02589274573
C150: Aged 85 and over | D150: =INDEX('LS2. Population Split'!$B88:$Z88,MATCH(D$3,'LS2. Population Split'!$B$2:$Z$2,0)) -> 7400 | E150: =INDEX('LS2. Population Split'!$B121:$Z121,MATCH(D$3,'LS2. Population Split'!$B$2:$Z$2,0)) -> 0.02076901488 | F150: =INDEX('LS2. Population Split'!$B121:$Z121,MATCH(F$131,'LS2. Population Split'!$B$2:$Z$2,0)) -> 0.02471380471 | G150: =INDEX('LS2. Population Split'!$B121:$Z121,MATCH(G$131,'LS2. Population Split'!$B$2:$Z$2,0)) -> 0.02555496749
C151: Total | D151: =INDEX('LS2. Population Split'!$B89:$Z89,MATCH(D$3,'LS2. Population Split'!$B$2:$Z$2,0)) -> 356300 | E151: =INDEX('LS2. Population Split'!$B122:$Z122,MATCH(D$3,'LS2. Population Split'!$B$2:$Z$2,0)) -> 1 | F151: =INDEX('LS2. Population Split'!$B122:$Z122,MATCH(F$131,'LS2. Population Split'!$B$2:$Z$2,0)) -> 1 | G151: =INDEX('LS2. Population Split'!$B122:$Z122,MATCH(G$131,'LS2. Population Split'!$B$2:$Z$2,0)) -> 1
C153: For details on Population by gender, ethnicity and disability, please click here
C203: LS3. Population Change by Age, 2006-2016
D204: =D$3 -> Blackburn with Darwen, Hyndburn, Rossendale and Ribble Valley | E204: Lancashire | F204: England Minus London
C205: 0-15 | D205: =INDEX('LS3. Population Change by Age'!$B61:$AB61,MATCH(D$3,'LS3. Population Change by Age'!$B$2:$AB$2,0)) -> -0.008450704225 | E205: =INDEX('LS3. Population Change by Age'!$B61:$AB61,MATCH(E$204,'LS3. Population Change by Age'!$B$2:$AB$2,0)) -> 0.006523407521 | F205: =INDEX('LS3. Population Change by Age'!$B61:$AB61,MATCH(F$204,'LS3. Population Change by Age'!$B$2:$AB$2,0)) -> 0.06527820951
C206: 16-19 | D206: =INDEX('LS3. Population Change by Age'!$B62:$AB62,MATCH(D$3,'LS3. Population Change by Age'!$B$2:$AB$2,0)) -> -0.09836065574 | E206: =INDEX('LS3. Population Change by Age'!$B62:$AB62,MATCH(E$204,'LS3. Population Change by Age'!$B$2:$AB$2,0)) -> -0.09591836735 | F206: =INDEX('LS3. Population Change by Age'!$B62:$AB62,MATCH(F$204,'LS3. Population Change by Age'!$B$2:$AB$2,0)) -> -0.04465198238
C207: 20-24 | D207: =INDEX('LS3. Population Change by Age'!$B63:$AB63,MATCH(D$3,'LS3. Population Change by Age'!$B$2:$AB$2,0)) -> 0 | E207: =INDEX('LS3. Population Change by Age'!$B63:$AB63,MATCH(E$204,'LS3. Population Change by Age'!$B$2:$AB$2,0)) -> 0.02798708288 | F207: =INDEX('LS3. Population Change by Age'!$B63:$AB63,MATCH(F$204,'LS3. Population Change by Age'!$B$2:$AB$2,0)) -> 0.07547916142
C208: 25-34 | D208: =INDEX('LS3. Population Change by Age'!$B64:$AB64,MATCH(D$3,'LS3. Population Change by Age'!$B$2:$AB$2,0)) -> 0.037470726 | E208: =INDEX('LS3. Population Change by Age'!$B64:$AB64,MATCH(E$204,'LS3. Population Change by Age'!$B$2:$AB$2,0)) -> 0.0621669627 | F208: =INDEX('LS3. Population Change by Age'!$B64:$AB64,MATCH(F$204,'LS3. Population Change by Age'!$B$2:$AB$2,0)) -> 0.09973591055
C209: 35-44 | D209: =INDEX('LS3. Population Change by Age'!$B65:$AB65,MATCH(D$3,'LS3. Population Change by Age'!$B$2:$AB$2,0)) -> -0.1694915254 | E209: =INDEX('LS3. Population Change by Age'!$B65:$AB65,MATCH(E$204,'LS3. Population Change by Age'!$B$2:$AB$2,0)) -> -0.1917872142 | F209: =INDEX('LS3. Population Change by Age'!$B65:$AB65,MATCH(F$204,'LS3. Population Change by Age'!$B$2:$AB$2,0)) -> -0.1297410371
C210: 45-54 | D210: =INDEX('LS3. Population Change by Age'!$B66:$AB66,MATCH(D$3,'LS3. Population Change by Age'!$B$2:$AB$2,0)) -> 0.1485587583 | E210: =INDEX('LS3. Population Change by Age'!$B66:$AB66,MATCH(E$204,'LS3. Population Change by Age'!$B$2:$AB$2,0)) -> 0.1336161188 | F210: =INDEX('LS3. Population Change by Age'!$B66:$AB66,MATCH(F$204,'LS3. Population Change by Age'!$B$2:$AB$2,0)) -> 0.1705237084
C211: 55-64 | D211: =INDEX('LS3. Population Change by Age'!$B67:$AB67,MATCH(D$3,'LS3. Population Change by Age'!$B$2:$AB$2,0)) -> 0.02926829268 | E211: =INDEX('LS3. Population Change by Age'!$B67:$AB67,MATCH(E$204,'LS3. Population Change by Age'!$B$2:$AB$2,0)) -> 0.0005530973451 | F211: =INDEX('LS3. Population Change by Age'!$B67:$AB67,MATCH(F$204,'LS3. Population Change by Age'!$B$2:$AB$2,0)) -> 0.03691635432
C212: 65+ | D212: =INDEX('LS3. Population Change by Age'!$B68:$AB68,MATCH(D$3,'LS3. Population Change by Age'!$B$2:$AB$2,0)) -> 0.2257425743 | E212: =INDEX('LS3. Population Change by Age'!$B68:$AB68,MATCH(E$204,'LS3. Population Change by Age'!$B$2:$AB$2,0)) -> 0.2050434064 | F212: =INDEX('LS3. Population Change by Age'!$B68:$AB68,MATCH(F$204,'LS3. Population Change by Age'!$B$2:$AB$2,0)) -> 0.2344263665
C254: LS4. Working Age Population, 2006-2016
D255: =D$3 -> Blackburn with Darwen, Hyndburn, Rossendale and Ribble Valley | E255: Lancashire | F255: England Minus London
C256: 2006 | D256: =INDEX('LS4. Working Age Population'!$B4:$Z4,MATCH(D$3,'LS4. Working Age Population'!$B$2:$Z$2,0)) -> 220800 | E256: =INDEX('LS4. Working Age Population'!$B4:$Z4,MATCH(E$255,'LS4. Working Age Population'!$B$2:$Z$2,0)) -> 923500 | F256: =INDEX('LS4. Working Age Population'!$B4:$Z4,MATCH(F$255,'LS4. Working Age Population'!$B$2:$Z$2,0)) -> 27886700
C257: 2007 | D257: =INDEX('LS4. Working Age Population'!$B5:$Z5,MATCH(D$3,'LS4. Working Age Population'!$B$2:$Z$2,0)) -> 222500 | E257: =INDEX('LS4. Working Age Population'!$B5:$Z5,MATCH(E$255,'LS4. Working Age Population'!$B$2:$Z$2,0)) -> 927600 | F257: =INDEX('LS4. Working Age Population'!$B5:$Z5,MATCH(F$255,'LS4. Working Age Population'!$B$2:$Z$2,0)) -> 28142300
C258: 2008 | D258: =INDEX('LS4. Working Age Population'!$B6:$Z6,MATCH(D$3,'LS4. Working Age Population'!$B$2:$Z$2,0)) -> 223700 | E258: =INDEX('LS4. Working Age Population'!$B6:$Z6,MATCH(E$255,'LS4. Working Age Population'!$B$2:$Z$2,0)) -> 928500 | F258: =INDEX('LS4. Working Age Population'!$B6:$Z6,MATCH(F$255,'LS4. Working Age Population'!$B$2:$Z$2,0)) -> 28325800
C259: 2009 | D259: =INDEX('LS4. Working Age Population'!$B7:$Z7,MATCH(D$3,'LS4. Working Age Population'!$B$2:$Z$2,0)) -> 224300 | E259: =INDEX('LS4. Working Age Population'!$B7:$Z7,MATCH(E$255,'LS4. Working Age Population'!$B$2:$Z$2,0)) -> 927600 | F259: =INDEX('LS4. Working Age Population'!$B7:$Z7,MATCH(F$255,'LS4. Working Age Population'!$B$2:$Z$2,0)) -> 28413600
C260: 2010 | D260: =INDEX('LS4. Working Age Population'!$B8:$Z8,MATCH(D$3,'LS4. Working Age Population'!$B$2:$Z$2,0)) -> 224700 | E260: =INDEX('LS4. Working Age Population'!$B8:$Z8,MATCH(E$255,'LS4. Working Age Population'!$B$2:$Z$2,0)) -> 928500 | F260: =INDEX('LS4. Working Age Population'!$B8:$Z8,MATCH(F$255,'LS4. Working Age Population'!$B$2:$Z$2,0)) -> 28559600
C261: 2011 | D261: =INDEX('LS4. Working Age Population'!$B9:$Z9,MATCH(D$3,'LS4. Working Age Population'!$B$2:$Z$2,0)) -> 224700 | E261: =INDEX('LS4. Working Age Population'!$B9:$Z9,MATCH(E$255,'LS4. Working Age Population'!$B$2:$Z$2,0)) -> 928000 | F261: =INDEX('LS4. Working Age Population'!$B9:$Z9,MATCH(F$255,'LS4. Working Age Population'!$B$2:$Z$2,0)) -> 28683000
C262: 2012 | D262: =INDEX('LS4. Working Age Population'!$B10:$Z10,MATCH(D$3,'LS4. Working Age Population'!$B$2:$Z$2,0)) -> 222900 | E262: =INDEX('LS4. Working Age Population'!$B10:$Z10,MATCH(E$255,'LS4. Working Age Population'!$B$2:$Z$2,0)) -> 922200 | F262: =INDEX('LS4. Working Age Population'!$B10:$Z10,MATCH(F$255,'LS4. Working Age Population'!$B$2:$Z$2,0)) -> 28603200
C263: 2013 | D263: =INDEX('LS4. Working Age Population'!$B11:$Z11,MATCH(D$3,'LS4. Working Age Population'!$B$2:$Z$2,0)) -> 221500 | E263: =INDEX('LS4. Working Age Population'!$B11:$Z11,MATCH(E$255,'LS4. Working Age Population'!$B$2:$Z$2,0)) -> 918400 | F263: =INDEX('LS4. Working Age Population'!$B11:$Z11,MATCH(F$255,'LS4. Working Age Population'!$B$2:$Z$2,0)) -> 28595200
C264: 2014 | D264: =INDEX('LS4. Working Age Population'!$B12:$Z12,MATCH(D$3,'LS4. Working Age Population'!$B$2:$Z$2,0)) -> 220300 | E264: =INDEX('LS4. Working Age Population'!$B12:$Z12,MATCH(E$255,'LS4. Working Age Population'!$B$2:$Z$2,0)) -> 914400 | F264: =INDEX('LS4. Working Age Population'!$B12:$Z12,MATCH(F$255,'LS4. Working Age Population'!$B$2:$Z$2,0)) -> 28651900
C265: 2015 | D265: =INDEX('LS4. Working Age Population'!$B13:$Z13,MATCH(D$3,'LS4. Working Age Population'!$B$2:$Z$2,0)) -> 219700 | E265: =INDEX('LS4. Working Age Population'!$B13:$Z13,MATCH(E$255,'LS4. Working Age Population'!$B$2:$Z$2,0)) -> 914200 | F265: =INDEX('LS4. Working Age Population'!$B13:$Z13,MATCH(F$255,'LS4. Working Age Population'!$B$2:$Z$2,0)) -> 28761900
C266: 2016 | D266: =INDEX('LS4. Working Age Population'!$B14:$Z14,MATCH(D$3,'LS4. Working Age Population'!$B$2:$Z$2,0)) -> 219700 | E266: =INDEX('LS4. Working Age Population'!$B14:$Z14,MATCH(E$255,'LS4. Working Age Population'!$B$2:$Z$2,0)) -> 914500 | F266: =INDEX('LS4. Working Age Population'!$B14:$Z14,MATCH(F$255,'LS4. Working Age Population'!$B$2:$Z$2,0)) -> 28885000
C267: Change 2006-16 | D267: =D266-D256 -> -1100 | E267: =E266-E256 -> -9000 | F267: 998300
C268: % Change 2006-16 | D268: =D267/D256 -> -0.004981884058 | E268: =E267/E256 -> -0.009745533297 | F268: 0.03579842721
C270: LS4. Index of Working Age Population, 2006-16
D271: =D$3 -> Blackburn with Darwen, Hyndburn, Rossendale and Ribble Valley | E271: Lancashire | F271: England Minus London
C272: 2006 | D272: 100 | E272: 100 | F272: 100
C273: 2007 | D273: =D257/D$256*100 -> 100.7699275 | E273: =E257/E$256*100 -> 100.4439632 | F273: 100.916566
C274: 2008 | D274: =D258/D$256*100 -> 101.3134058 | E274: 100.5414185 | F274: 101.5745857
C275: 2009 | D275: =D259/D$256*100 -> 101.5851449 | E275: 100.4439632 | F275: 101.8894312
C276: 2010 | D276: =D260/D$256*100 -> 101.7663043 | E276: 100.5414185 | F276: 102.4129782
C277: 2011 | D277: =D261/D$256*100 -> 101.7663043 | E277: 100.4872767 | F277: 102.8554831
C278: 2012 | D278: =D262/D$256*100 -> 100.951087 | E278: 99.85923119 | F278: 102.5693252
C279: 2013 | D279: =D263/D$256*100 -> 100.317029 | E279: 99.44775311 | F279: 102.5406377
C280: 2014 | D280: =D264/D$256*100 -> 99.77355072 | E280: 99.0146183 | F280: 102.7439604
C281: 2015 | D281: =D265/D$256*100 -> 99.50181159 | E281: 98.99296156 | F281: 103.1384137
C282: 2016 | D282: =D266/D$256*100 -> 99.50181159 | E282: 99.02544667 | F282: 103.5798427
C309: LS5. Population Aged 65+, 2006-16
D310: =D$3 -> Blackburn with Darwen, Hyndburn, Rossendale and Ribble Valley | E310: Lancashire | F310: England Minus London
C311: 2006 | D311: =INDEX('LS5. Population Aged 65+'!$B4:$Z4,MATCH(D$3,'LS5. Population Aged 65+'!$B$2:$Z$2,0)) -> 50400 | E311: =INDEX('LS5. Population Aged 65+'!$B4:$Z4,MATCH(E$310,'LS5. Population Aged 65+'!$B$2:$Z$2,0)) -> 241800 | F311: =INDEX('LS5. Population Aged 65+'!$B4:$Z4,MATCH(F$310,'LS5. Population Aged 65+'!$B$2:$Z$2,0)) -> 7178800
C312: 2007 | D312: =INDEX('LS5. Population Aged 65+'!$B5:$Z5,MATCH(D$3,'LS5. Population Aged 65+'!$B$2:$Z$2,0)) -> 50800 | E312: =INDEX('LS5. Population Aged 65+'!$B5:$Z5,MATCH(E$310,'LS5. Population Aged 65+'!$B$2:$Z$2,0)) -> 243700 | F312: =INDEX('LS5. Population Aged 65+'!$B5:$Z5,MATCH(F$310,'LS5. Population Aged 65+'!$B$2:$Z$2,0)) -> 7251700
C313: 2008 | D313: =INDEX('LS5. Population Aged 65+'!$B6:$Z6,MATCH(D$3,'LS5. Population Aged 65+'!$B$2:$Z$2,0)) -> 51500 | E313: =INDEX('LS5. Population Aged 65+'!$B6:$Z6,MATCH(E$310,'LS5. Population Aged 65+'!$B$2:$Z$2,0)) -> 247100 | F313: =INDEX('LS5. Population Aged 65+'!$B6:$Z6,MATCH(F$310,'LS5. Population Aged 65+'!$B$2:$Z$2,0)) -> 7371700
C314: 2009 | D314: =INDEX('LS5. Population Aged 65+'!$B7:$Z7,MATCH(D$3,'LS5. Population Aged 65+'!$B$2:$Z$2,0)) -> 52300 | E314: =INDEX('LS5. Population Aged 65+'!$B7:$Z7,MATCH(E$310,'LS5. Population Aged 65+'!$B$2:$Z$2,0)) -> 250700 | F314: =INDEX('LS5. Population Aged 65+'!$B7:$Z7,MATCH(F$310,'LS5. Population Aged 65+'!$B$2:$Z$2,0)) -> 7513000
C315: 2010 | D315: =INDEX('LS5. Population Aged 65+'!$B8:$Z8,MATCH(D$3,'LS5. Population Aged 65+'!$B$2:$Z$2,0)) -> 53300 | E315: =INDEX('LS5. Population Aged 65+'!$B8:$Z8,MATCH(E$310,'LS5. Population Aged 65+'!$B$2:$Z$2,0)) -> 255000 | F315: =INDEX('LS5. Population Aged 65+'!$B8:$Z8,MATCH(F$310,'LS5. Population Aged 65+'!$B$2:$Z$2,0)) -> 7666500
C316: 2011 | D316: =INDEX('LS5. Population Aged 65+'!$B9:$Z9,MATCH(D$3,'LS5. Population Aged 65+'!$B$2:$Z$2,0)) -> 54300 | E316: =INDEX('LS5. Population Aged 65+'!$B9:$Z9,MATCH(E$310,'LS5. Population Aged 65+'!$B$2:$Z$2,0)) -> 259400 | F316: =INDEX('LS5. Population Aged 65+'!$B9:$Z9,MATCH(F$310,'LS5. Population Aged 65+'!$B$2:$Z$2,0)) -> 7819500
C317: 2012 | D317: =INDEX('LS5. Population Aged 65+'!$B10:$Z10,MATCH(D$3,'LS5. Population Aged 65+'!$B$2:$Z$2,0)) -> 56500 | E317: =INDEX('LS5. Population Aged 65+'!$B10:$Z10,MATCH(E$310,'LS5. Population Aged 65+'!$B$2:$Z$2,0)) -> 268800 | F317: =INDEX('LS5. Population Aged 65+'!$B10:$Z10,MATCH(F$310,'LS5. Population Aged 65+'!$B$2:$Z$2,0)) -> 8119100
C318: 2013 | D318: =INDEX('LS5. Population Aged 65+'!$B11:$Z11,MATCH(D$3,'LS5. Population Aged 65+'!$B$2:$Z$2,0)) -> 58200 | E318: =INDEX('LS5. Population Aged 65+'!$B11:$Z11,MATCH(E$310,'LS5. Population Aged 65+'!$B$2:$Z$2,0)) -> 275600 | F318: =INDEX('LS5. Population Aged 65+'!$B11:$Z11,MATCH(F$310,'LS5. Population Aged 65+'!$B$2:$Z$2,0)) -> 8344800
C319: 2014 | D319: =INDEX('LS5. Population Aged 65+'!$B12:$Z12,MATCH(D$3,'LS5. Population Aged 65+'!$B$2:$Z$2,0)) -> 59700 | E319: =INDEX('LS5. Population Aged 65+'!$B12:$Z12,MATCH(E$310,'LS5. Population Aged 65+'!$B$2:$Z$2,0)) -> 282000 | F319: =INDEX('LS5. Population Aged 65+'!$B12:$Z12,MATCH(F$310,'LS5. Population Aged 65+'!$B$2:$Z$2,0)) -> 8554800
C320: 2015 | D320: =INDEX('LS5. Population Aged 65+'!$B13:$Z13,MATCH(D$3,'LS5. Population Aged 65+'!$B$2:$Z$2,0)) -> 60800 | E320: =INDEX('LS5. Population Aged 65+'!$B13:$Z13,MATCH(E$310,'LS5. Population Aged 65+'!$B$2:$Z$2,0)) -> 286700 | F320: =INDEX('LS5. Population Aged 65+'!$B13:$Z13,MATCH(F$310,'LS5. Population Aged 65+'!$B$2:$Z$2,0)) -> 8710200
C321: 2016 | D321: =INDEX('LS5. Population Aged 65+'!$B14:$Z14,MATCH(D$3,'LS5. Population Aged 65+'!$B$2:$Z$2,0)) -> 61900 | E321: =INDEX('LS5. Population Aged 65+'!$B14:$Z14,MATCH(E$310,'LS5. Population Aged 65+'!$B$2:$Z$2,0)) -> 291400 | F321: =INDEX('LS5. Population Aged 65+'!$B14:$Z14,MATCH(F$310,'LS5. Population Aged 65+'!$B$2:$Z$2,0)) -> 8861700
C322: Change 2006-16 | D322: =D321-D311 -> 11500 | E322: =E321-E311 -> 49600 | F322: 1682900
C323: % Change 2006-16 | D323: =D322/D311 -> 0.2281746032 | E323: =E322/E311 -> 0.2051282051 | F323: 0.2344263665
C325: LS5. Index of Population Aged 65+, 2006-16
D326: =D$3 -> Blackburn with Darwen, Hyndburn, Rossendale and Ribble Valley | E326: Lancashire | F326: England Minus London
C327: 2006 | D327: 100 | E327: 100 | F327: 100
C328: 2007 | D328: =D312/D$311*100 -> 100.7936508 | E328: =E312/E$311*100 -> 100.7857734 | F328: 101.0154901
C329: 2008 | D329: =D313/D$311*100 -> 102.1825397 | E329: 102.1918941 | F329: 102.6870786
C330: 2009 | D330: =D314/D$311*100 -> 103.7698413 | E330: 103.6807279 | F330: 104.6553742
C331: 2010 | D331: =D315/D$311*100 -> 105.7539683 | E331: 105.4590571 | F331: 106.7936145
C332: 2011 | D332: =D316/D$311*100 -> 107.7380952 | E332: 107.2787428 | F332: 108.92489
C333: 2012 | D333: =D317/D$311*100 -> 112.1031746 | E333: 111.1662531 | F333: 113.0982894
C334: 2013 | D334: =D318/D$311*100 -> 115.4761905 | E334: 113.9784946 | F334: 116.2422689
C335: 2014 | D335: =D319/D$311*100 -> 118.452381 | E335: 116.6253102 | F335: 119.1675489
C336: 2015 | D336: =D320/D$311*100 -> 120.6349206 | E336: 118.5690653 | F336: 121.3322561
C337: 2016 | D337: =D321/D$311*100 -> 122.8174603 | E337: 120.5128205 | F337: 123.4426367
C360: LS6. Components of Population Change, 2016
D361: =D$3 -> Blackburn with Darwen, Hyndburn, Rossendale and Ribble Valley | E361: Lancashire | F361: England Minus London
C362: Long-Term International Migration | D362: =IFERROR(INDEX('LS6. Components of Pop Change'!$B5:$Z5,MATCH(D$3,'LS6. Components of Pop Change'!$B$2:$Z$2,0)),"n/a") -> 524 | E362: =IFERROR(INDEX('LS6. Components of Pop Change'!$B5:$Z5,MATCH(E$361,'LS6. Components of Pop Change'!$B$2:$Z$2,0)),"n/a") -> 3574 | F362: =IFERROR(INDEX('LS6. Components of Pop Change'!$B5:$Z5,MATCH(F$361,'LS6. Components of Pop Change'!$B$2:$Z$2,0)),"n/a") -> 175538
C363: Internal Migration (within UK) | D363: =IFERROR(INDEX('LS6. Components of Pop Change'!$B6:$Z6,MATCH(D$3,'LS6. Components of Pop Change'!$B$2:$Z$2,0)),"n/a") -> -510 | E363: =IFERROR(INDEX('LS6. Components of Pop Change'!$B6:$Z6,MATCH(E$361,'LS6. Components of Pop Change'!$B$2:$Z$2,0)),"n/a") -> 2146 | F363: =IFERROR(INDEX('LS6. Components of Pop Change'!$B6:$Z6,MATCH(F$361,'LS6. Components of Pop Change'!$B$2:$Z$2,0)),"n/a") -> 81117
C365: LS6. Components of Population Change as a % of Total Population, 2016
D366: =D$3 -> Blackburn with Darwen, Hyndburn, Rossendale and Ribble Valley | E366: Lancashire | F366: England Minus London
C367: Long-Term International Migration | D367: =IFERROR(INDEX('LS6. Components of Pop Change'!$B10:$Z10,MATCH(D$3,'LS6. Components of Pop Change'!$B$2:$Z$2,0)),"n/a") -> 0.001470679038 | E367: =IFERROR(INDEX('LS6. Components of Pop Change'!$B10:$Z10,MATCH(E$361,'LS6. Components of Pop Change'!$B$2:$Z$2,0)),"n/a") -> 0.002981319622 | F367: =IFERROR(INDEX('LS6. Components of Pop Change'!$B10:$Z10,MATCH(F$361,'LS6. Components of Pop Change'!$B$2:$Z$2,0)),"n/a") -> 0.003776620893
C368: Internal Migration (within UK) | D368: =IFERROR(INDEX('LS6. Components of Pop Change'!$B11:$Z11,MATCH(D$3,'LS6. Components of Pop Change'!$B$2:$Z$2,0)),"n/a") -> -0.001431386087 | E368: =IFERROR(INDEX('LS6. Components of Pop Change'!$B11:$Z11,MATCH(E$361,'LS6. Components of Pop Change'!$B$2:$Z$2,0)),"n/a") -> 0.001790126443 | F368: =IFERROR(INDEX('LS6. Components of Pop Change'!$B11:$Z11,MATCH(F$361,'LS6. Components of Pop Change'!$B$2:$Z$2,0)),"n/a") -> 0.001745195667
C400: LS7. Total Projected Population, 2018-28
D401: =D$3 -> Blackburn with Darwen, Hyndburn, Rossendale and Ribble Valley | E401: Lancashire | F401: England Minus London
C402: 2018 | D402: =INDEX('LS7. Population Projections'!$B4:$Z4,MATCH(D$3,'LS7. Population Projections'!$B$2:$Z$2,0)) -> 355039 | E402: =INDEX('LS7. Population Projections'!$B4:$Z4,MATCH(E$401,'LS7. Population Projections'!$B$2:$Z$2,0)) -> 1485312 | F402: =INDEX('LS7. Population Projections'!$B4:$Z4,MATCH(F$401,'LS7. Population Projections'!$B$2:$Z$2,0)) -> 46980139
C403: 2019 | D403: =INDEX('LS7. Population Projections'!$B5:$Z5,MATCH(D$3,'LS7. Population Projections'!$B$2:$Z$2,0)) -> 355396 | E403: =INDEX('LS7. Population Projections'!$B5:$Z5,MATCH(E$401,'LS7. Population Projections'!$B$2:$Z$2,0)) -> 1488534 | F403: =INDEX('LS7. Population Projections'!$B5:$Z5,MATCH(F$401,'LS7. Population Projections'!$B$2:$Z$2,0)) -> 47269814
C404: 2020 | D404: =INDEX('LS7. Population Projections'!$B6:$Z6,MATCH(D$3,'LS7. Population Projections'!$B$2:$Z$2,0)) -> 355772 | E404: =INDEX('LS7. Population Projections'!$B6:$Z6,MATCH(E$401,'LS7. Population Projections'!$B$2:$Z$2,0)) -> 1491672 | F404: =INDEX('LS7. Population Projections'!$B6:$Z6,MATCH(F$401,'LS7. Population Projections'!$B$2:$Z$2,0)) -> 47555883
C405: 2021 | D405: =INDEX('LS7. Population Projections'!$B7:$Z7,MATCH(D$3,'LS7. Population Projections'!$B$2:$Z$2,0)) -> 356175 | E405: =INDEX('LS7. Population Projections'!$B7:$Z7,MATCH(E$401,'LS7. Population Projections'!$B$2:$Z$2,0)) -> 1494798 | F405: =INDEX('LS7. Population Projections'!$B7:$Z7,MATCH(F$401,'LS7. Population Projections'!$B$2:$Z$2,0)) -> 47837833
C406: 2022 | D406: =INDEX('LS7. Population Projections'!$B8:$Z8,MATCH(D$3,'LS7. Population Projections'!$B$2:$Z$2,0)) -> 356518 | E406: =INDEX('LS7. Population Projections'!$B8:$Z8,MATCH(E$401,'LS7. Population Projections'!$B$2:$Z$2,0)) -> 1498017 | F406: =INDEX('LS7. Population Projections'!$B8:$Z8,MATCH(F$401,'LS7. Population Projections'!$B$2:$Z$2,0)) -> 48121588
C407: 2023 | D407: =INDEX('LS7. Population Projections'!$B9:$Z9,MATCH(D$3,'LS7. Population Projections'!$B$2:$Z$2,0)) -> 356836 | E407: =INDEX('LS7. Population Projections'!$B9:$Z9,MATCH(E$401,'LS7. Population Projections'!$B$2:$Z$2,0)) -> 1501295 | F407: =INDEX('LS7. Population Projections'!$B9:$Z9,MATCH(F$401,'LS7. Population Projections'!$B$2:$Z$2,0)) -> 48405637
C408: 2024 | D408: =INDEX('LS7. Population Projections'!$B10:$Z10,MATCH(D$3,'LS7. Population Projections'!$B$2:$Z$2,0)) -> 357086 | E408: =INDEX('LS7. Population Projections'!$B10:$Z10,MATCH(E$401,'LS7. Population Projections'!$B$2:$Z$2,0)) -> 1504519 | F408: =INDEX('LS7. Population Projections'!$B10:$Z10,MATCH(F$401,'LS7. Population Projections'!$B$2:$Z$2,0)) -> 48688326
C409: 2025 | D409: =INDEX('LS7. Population Projections'!$B11:$Z11,MATCH(D$3,'LS7. Population Projections'!$B$2:$Z$2,0)) -> 357266 | E409: =INDEX('LS7. Population Projections'!$B11:$Z11,MATCH(E$401,'LS7. Population Projections'!$B$2:$Z$2,0)) -> 1507703 | F409: =INDEX('LS7. Population Projections'!$B11:$Z11,MATCH(F$401,'LS7. Population Projections'!$B$2:$Z$2,0)) -> 48967834
C410: 2026 | D410: =INDEX('LS7. Population Projections'!$B12:$Z12,MATCH(D$3,'LS7. Population Projections'!$B$2:$Z$2,0)) -> 357400 | E410: =INDEX('LS7. Population Projections'!$B12:$Z12,MATCH(E$401,'LS7. Population Projections'!$B$2:$Z$2,0)) -> 1510768 | F410: =INDEX('LS7. Population Projections'!$B12:$Z12,MATCH(F$401,'LS7. Population Projections'!$B$2:$Z$2,0)) -> 49242497
C411: 2027 | D411: =INDEX('LS7. Population Projections'!$B13:$Z13,MATCH(D$3,'LS7. Population Projections'!$B$2:$Z$2,0)) -> 357500 | E411: =INDEX('LS7. Population Projections'!$B13:$Z13,MATCH(E$401,'LS7. Population Projections'!$B$2:$Z$2,0)) -> 1513664 | F411: =INDEX('LS7. Population Projections'!$B13:$Z13,MATCH(F$401,'LS7. Population Projections'!$B$2:$Z$2,0)) -> 49511497
C412: 2028 | D412: =INDEX('LS7. Population Projections'!$B14:$Z14,MATCH(D$3,'LS7. Population Projections'!$B$2:$Z$2,0)) -> 357586 | E412: =INDEX('LS7. Population Projections'!$B14:$Z14,MATCH(E$401,'LS7. Population Projections'!$B$2:$Z$2,0)) -> 1516364 | F412: =INDEX('LS7. Population Projections'!$B14:$Z14,MATCH(F$401,'LS7. Population Projections'!$B$2:$Z$2,0)) -> 49774372
C413: Change 2018-2028 | D413: =INDEX('LS7. Population Projections'!$B15:$Z15,MATCH(D$3,'LS7. Population Projections'!$B$2:$Z$2,0)) -> 2547 | E413: =INDEX('LS7. Population Projections'!$B15:$Z15,MATCH(E$401,'LS7. Population Projections'!$B$2:$Z$2,0)) -> 31052 | F413: =INDEX('LS7. Population Projections'!$B15:$Z15,MATCH(F$401,'LS7. Population Projections'!$B$2:$Z$2,0)) -> 2794233
C414: % Change 2018-2028 | D414: =D413/D402 -> 0.007173859773 | E414: =E413/E402 -> 0.02090604533 | F414: =F413/F402 -> 0.05947689938
C416: LS7. Index of Projected Population, 2018-28
D417: =D$3 -> Blackburn with Darwen, Hyndburn, Rossendale and Ribble Valley | E417: Lancashire | F417: England Minus London
C418: 2018 | D418: =INDEX('LS7. Population Projections'!$B20:$Z20,MATCH(D$3,'LS7. Population Projections'!$B$2:$Z$2,0)) -> 100 | E418: =INDEX('LS7. Population Projections'!$B20:$Z20,MATCH(E$401,'LS7. Population Projections'!$B$2:$Z$2,0)) -> 100 | F418: =INDEX('LS7. Population Projections'!$B20:$Z20,MATCH(F$401,'LS7. Population Projections'!$B$2:$Z$2,0)) -> 100
C419: 2019 | D419: =INDEX('LS7. Population Projections'!$B21:$Z21,MATCH(D$3,'LS7. Population Projections'!$B$2:$Z$2,0)) -> 100.1005523 | E419: =INDEX('LS7. Population Projections'!$B21:$Z21,MATCH(E$401,'LS7. Population Projections'!$B$2:$Z$2,0)) -> 100.2169241 | F419: =INDEX('LS7. Population Projections'!$B21:$Z21,MATCH(F$401,'LS7. Population Projections'!$B$2:$Z$2,0)) -> 100.6165903
C420: 2020 | D420: =INDEX('LS7. Population Projections'!$B22:$Z22,MATCH(D$3,'LS7. Population Projections'!$B$2:$Z$2,0)) -> 100.2064562 | E420: =INDEX('LS7. Population Projections'!$B22:$Z22,MATCH(E$401,'LS7. Population Projections'!$B$2:$Z$2,0)) -> 100.4281929 | F420: =INDEX('LS7. Population Projections'!$B22:$Z22,MATCH(F$401,'LS7. Population Projections'!$B$2:$Z$2,0)) -> 101.2255051
C421: 2021 | D421: =INDEX('LS7. Population Projections'!$B23:$Z23,MATCH(D$3,'LS7. Population Projections'!$B$2:$Z$2,0)) -> 100.3199648 | E421: =INDEX('LS7. Population Projections'!$B23:$Z23,MATCH(E$401,'LS7. Population Projections'!$B$2:$Z$2,0)) -> 100.6386537 | F421: =INDEX('LS7. Population Projections'!$B23:$Z23,MATCH(F$401,'LS7. Population Projections'!$B$2:$Z$2,0)) -> 101.8256523
C422: 2022 | D422: =INDEX('LS7. Population Projections'!$B24:$Z24,MATCH(D$3,'LS7. Population Projections'!$B$2:$Z$2,0)) -> 100.416574 | E422: =INDEX('LS7. Population Projections'!$B24:$Z24,MATCH(E$401,'LS7. Population Projections'!$B$2:$Z$2,0)) -> 100.8553758 | F422: =INDEX('LS7. Population Projections'!$B24:$Z24,MATCH(F$401,'LS7. Population Projections'!$B$2:$Z$2,0)) -> 102.4296416
C423: 2023 | D423: =INDEX('LS7. Population Projections'!$B25:$Z25,MATCH(D$3,'LS7. Population Projections'!$B$2:$Z$2,0)) -> 100.5061416 | E423: =INDEX('LS7. Population Projections'!$B25:$Z25,MATCH(E$401,'LS7. Population Projections'!$B$2:$Z$2,0)) -> 101.0760702 | F423: =INDEX('LS7. Population Projections'!$B25:$Z25,MATCH(F$401,'LS7. Population Projections'!$B$2:$Z$2,0)) -> 103.0342567
C424: 2024 | D424: =INDEX('LS7. Population Projections'!$B26:$Z26,MATCH(D$3,'LS7. Population Projections'!$B$2:$Z$2,0)) -> 100.5765564 | E424: =INDEX('LS7. Population Projections'!$B26:$Z26,MATCH(E$401,'LS7. Population Projections'!$B$2:$Z$2,0)) -> 101.293129 | F424: =INDEX('LS7. Population Projections'!$B26:$Z26,MATCH(F$401,'LS7. Population Projections'!$B$2:$Z$2,0)) -> 103.6359769
C425: 2025 | D425: =INDEX('LS7. Population Projections'!$B27:$Z27,MATCH(D$3,'LS7. Population Projections'!$B$2:$Z$2,0)) -> 100.627255 | E425: =INDEX('LS7. Population Projections'!$B27:$Z27,MATCH(E$401,'LS7. Population Projections'!$B$2:$Z$2,0)) -> 101.5074947 | F425: =INDEX('LS7. Population Projections'!$B27:$Z27,MATCH(F$401,'LS7. Population Projections'!$B$2:$Z$2,0)) -> 104.2309262
C426: 2026 | D426: =INDEX('LS7. Population Projections'!$B28:$Z28,MATCH(D$3,'LS7. Population Projections'!$B$2:$Z$2,0)) -> 100.6649974 | E426: =INDEX('LS7. Population Projections'!$B28:$Z28,MATCH(E$401,'LS7. Population Projections'!$B$2:$Z$2,0)) -> 101.7138487 | F426: =INDEX('LS7. Population Projections'!$B28:$Z28,MATCH(F$401,'LS7. Population Projections'!$B$2:$Z$2,0)) -> 104.8155626
C427: 2027 | D427: =INDEX('LS7. Population Projections'!$B29:$Z29,MATCH(D$3,'LS7. Population Projections'!$B$2:$Z$2,0)) -> 100.6931633 | E427: =INDEX('LS7. Population Projections'!$B29:$Z29,MATCH(E$401,'LS7. Population Projections'!$B$2:$Z$2,0)) -> 101.9088245 | F427: =INDEX('LS7. Population Projections'!$B29:$Z29,MATCH(F$401,'LS7. Population Projections'!$B$2:$Z$2,0)) -> 105.388145
C428: 2028 | D428: =INDEX('LS7. Population Projections'!$B30:$Z30,MATCH(D$3,'LS7. Population Projections'!$B$2:$Z$2,0)) -> 100.717386 | E428: =INDEX('LS7. Population Projections'!$B30:$Z30,MATCH(E$401,'LS7. Population Projections'!$B$2:$Z$2,0)) -> 102.0906045 | F428: =INDEX('LS7. Population Projections'!$B30:$Z30,MATCH(F$401,'LS7. Population Projections'!$B$2:$Z$2,0)) -> 105.9476899
C461: LS8. Population Projections, 16-64, 2018-28
D462: =D$3 -> Blackburn with Darwen, Hyndburn, Rossendale and Ribble Valley | E462: Lancashire | F462: England Minus London
C463: 2018 | D463: =INDEX('LS8. Pop Projections 16-64'!$B4:$Z4,MATCH(D$3,'LS8. Pop Projections 16-64'!$B$2:$Z$2,0)) -> 216812 | E463: =INDEX('LS8. Pop Projections 16-64'!$B4:$Z4,MATCH(E$462,'LS8. Pop Projections 16-64'!$B$2:$Z$2,0)) -> 906288 | F463: =INDEX('LS8. Pop Projections 16-64'!$B4:$Z4,MATCH(F$462,'LS8. Pop Projections 16-64'!$B$2:$Z$2,0)) -> 28916187
C464: 2019 | D464: =INDEX('LS8. Pop Projections 16-64'!$B5:$Z5,MATCH(D$3,'LS8. Pop Projections 16-64'!$B$2:$Z$2,0)) -> 216220 | E464: =INDEX('LS8. Pop Projections 16-64'!$B5:$Z5,MATCH(E$462,'LS8. Pop Projections 16-64'!$B$2:$Z$2,0)) -> 903746 | F464: =INDEX('LS8. Pop Projections 16-64'!$B5:$Z5,MATCH(F$462,'LS8. Pop Projections 16-64'!$B$2:$Z$2,0)) -> 28949602
C465: 2020 | D465: =INDEX('LS8. Pop Projections 16-64'!$B6:$Z6,MATCH(D$3,'LS8. Pop Projections 16-64'!$B$2:$Z$2,0)) -> 215514 | E465: =INDEX('LS8. Pop Projections 16-64'!$B6:$Z6,MATCH(E$462,'LS8. Pop Projections 16-64'!$B$2:$Z$2,0)) -> 901615 | F465: =INDEX('LS8. Pop Projections 16-64'!$B6:$Z6,MATCH(F$462,'LS8. Pop Projections 16-64'!$B$2:$Z$2,0)) -> 29003349
C466: 2021 | D466: =INDEX('LS8. Pop Projections 16-64'!$B7:$Z7,MATCH(D$3,'LS8. Pop Projections 16-64'!$B$2:$Z$2,0)) -> 214933 | E466: =INDEX('LS8. Pop Projections 16-64'!$B7:$Z7,MATCH(E$462,'LS8. Pop Projections 16-64'!$B$2:$Z$2,0)) -> 899642 | F466: =INDEX('LS8. Pop Projections 16-64'!$B7:$Z7,MATCH(F$462,'LS8. Pop Projections 16-64'!$B$2:$Z$2,0)) -> 29046808
C467: 2022 | D467: =INDEX('LS8. Pop Projections 16-64'!$B8:$Z8,MATCH(D$3,'LS8. Pop Projections 16-64'!$B$2:$Z$2,0)) -> 214305 | E467: =INDEX('LS8. Pop Projections 16-64'!$B8:$Z8,MATCH(E$462,'LS8. Pop Projections 16-64'!$B$2:$Z$2,0)) -> 897629 | F467: =INDEX('LS8. Pop Projections 16-64'!$B8:$Z8,MATCH(F$462,'LS8. Pop Projections 16-64'!$B$2:$Z$2,0)) -> 29099836
C468: 2023 | D468: =INDEX('LS8. Pop Projections 16-64'!$B9:$Z9,MATCH(D$3,'LS8. Pop Projections 16-64'!$B$2:$Z$2,0)) -> 213795 | E468: =INDEX('LS8. Pop Projections 16-64'!$B9:$Z9,MATCH(E$462,'LS8. Pop Projections 16-64'!$B$2:$Z$2,0)) -> 895671 | F468: =INDEX('LS8. Pop Projections 16-64'!$B9:$Z9,MATCH(F$462,'LS8. Pop Projections 16-64'!$B$2:$Z$2,0)) -> 29147643
C469: 2024 | D469: =INDEX('LS8. Pop Projections 16-64'!$B10:$Z10,MATCH(D$3,'LS8. Pop Projections 16-64'!$B$2:$Z$2,0)) -> 213249 | E469: =INDEX('LS8. Pop Projections 16-64'!$B10:$Z10,MATCH(E$462,'LS8. Pop Projections 16-64'!$B$2:$Z$2,0)) -> 894432 | F469: =INDEX('LS8. Pop Projections 16-64'!$B10:$Z10,MATCH(F$462,'LS8. Pop Projections 16-64'!$B$2:$Z$2,0)) -> 29208351
C470: 2025 | D470: =INDEX('LS8. Pop Projections 16-64'!$B11:$Z11,MATCH(D$3,'LS8. Pop Projections 16-64'!$B$2:$Z$2,0)) -> 212516 | E470: =INDEX('LS8. Pop Projections 16-64'!$B11:$Z11,MATCH(E$462,'LS8. Pop Projections 16-64'!$B$2:$Z$2,0)) -> 892553 | F470: =INDEX('LS8. Pop Projections 16-64'!$B11:$Z11,MATCH(F$462,'LS8. Pop Projections 16-64'!$B$2:$Z$2,0)) -> 29257962
C471: 2026 | D471: =INDEX('LS8. Pop Projections 16-64'!$B12:$Z12,MATCH(D$3,'LS8. Pop Projections 16-64'!$B$2:$Z$2,0)) -> 211718 | E471: =INDEX('LS8. Pop Projections 16-64'!$B12:$Z12,MATCH(E$462,'LS8. Pop Projections 16-64'!$B$2:$Z$2,0)) -> 890260 | F471: =INDEX('LS8. Pop Projections 16-64'!$B12:$Z12,MATCH(F$462,'LS8. Pop Projections 16-64'!$B$2:$Z$2,0)) -> 29294745
C472: 2027 | D472: =INDEX('LS8. Pop Projections 16-64'!$B13:$Z13,MATCH(D$3,'LS8. Pop Projections 16-64'!$B$2:$Z$2,0)) -> 210638 | E472: =INDEX('LS8. Pop Projections 16-64'!$B13:$Z13,MATCH(E$462,'LS8. Pop Projections 16-64'!$B$2:$Z$2,0)) -> 887477 | F472: =INDEX('LS8. Pop Projections 16-64'!$B13:$Z13,MATCH(F$462,'LS8. Pop Projections 16-64'!$B$2:$Z$2,0)) -> 29323462
C473: 2028 | D473: =INDEX('LS8. Pop Projections 16-64'!$B14:$Z14,MATCH(D$3,'LS8. Pop Projections 16-64'!$B$2:$Z$2,0)) -> 209760 | E473: =INDEX('LS8. Pop Projections 16-64'!$B14:$Z14,MATCH(E$462,'LS8. Pop Projections 16-64'!$B$2:$Z$2,0)) -> 884605 | F473: =INDEX('LS8. Pop Projections 16-64'!$B14:$Z14,MATCH(F$462,'LS8. Pop Projections 16-64'!$B$2:$Z$2,0)) -> 29351753
C474: Change 2018-2028 | D474: =INDEX('LS8. Pop Projections 16-64'!$B15:$Z15,MATCH(D$3,'LS8. Pop Projections 16-64'!$B$2:$Z$2,0)) -> -7052 | E474: =INDEX('LS8. Pop Projections 16-64'!$B15:$Z15,MATCH(E$462,'LS8. Pop Projections 16-64'!$B$2:$Z$2,0)) -> -21683 | F474: =INDEX('LS8. Pop Projections 16-64'!$B15:$Z15,MATCH(F$462,'LS8. Pop Projections 16-64'!$B$2:$Z$2,0)) -> 435566
C475: % Change 2018-2028 | D475: =D474/D463 -> -0.03252587495 | E475: =E474/E463 -> -0.02392506576 | F475: =F474/F463 -> 0.01506305102
C477: LS8. Index of Population Projections, 16-64, 2018-28
D478: =D$3 -> Blackburn with Darwen, Hyndburn, Rossendale and Ribble Valley | E478: Lancashire | F478: England Minus London
C479: 2018 | D479: =INDEX('LS8. Pop Projections 16-64'!$B20:$Z20,MATCH(D$3,'LS8. Pop Projections 16-64'!$B$2:$Z$2,0)) -> 100 | E479: =INDEX('LS8. Pop Projections 16-64'!$B20:$Z20,MATCH(E$462,'LS8. Pop Projections 16-64'!$B$2:$Z$2,0)) -> 100 | F479: =INDEX('LS8. Pop Projections 16-64'!$B20:$Z20,MATCH(F$462,'LS8. Pop Projections 16-64'!$B$2:$Z$2,0)) -> 100
C480: 2019 | D480: =INDEX('LS8. Pop Projections 16-64'!$B21:$Z21,MATCH(D$3,'LS8. Pop Projections 16-64'!$B$2:$Z$2,0)) -> 99.72695238 | E480: =INDEX('LS8. Pop Projections 16-64'!$B21:$Z21,MATCH(E$462,'LS8. Pop Projections 16-64'!$B$2:$Z$2,0)) -> 99.71951521 | F480: =INDEX('LS8. Pop Projections 16-64'!$B21:$Z21,MATCH(F$462,'LS8. Pop Projections 16-64'!$B$2:$Z$2,0)) -> 100.1155581
C481: 2020 | D481: =INDEX('LS8. Pop Projections 16-64'!$B22:$Z22,MATCH(D$3,'LS8. Pop Projections 16-64'!$B$2:$Z$2,0)) -> 99.40132465 | E481: =INDEX('LS8. Pop Projections 16-64'!$B22:$Z22,MATCH(E$462,'LS8. Pop Projections 16-64'!$B$2:$Z$2,0)) -> 99.48438024 | F481: =INDEX('LS8. Pop Projections 16-64'!$B22:$Z22,MATCH(F$462,'LS8. Pop Projections 16-64'!$B$2:$Z$2,0)) -> 100.3014298
C482: 2021 | D482: =INDEX('LS8. Pop Projections 16-64'!$B23:$Z23,MATCH(D$3,'LS8. Pop Projections 16-64'!$B$2:$Z$2,0)) -> 99.13335055 | E482: =INDEX('LS8. Pop Projections 16-64'!$B23:$Z23,MATCH(E$462,'LS8. Pop Projections 16-64'!$B$2:$Z$2,0)) -> 99.26667902 | F482: =INDEX('LS8. Pop Projections 16-64'!$B23:$Z23,MATCH(F$462,'LS8. Pop Projections 16-64'!$B$2:$Z$2,0)) -> 100.4517228
C483: 2022 | D483: =INDEX('LS8. Pop Projections 16-64'!$B24:$Z24,MATCH(D$3,'LS8. Pop Projections 16-64'!$B$2:$Z$2,0)) -> 98.84369869 | E483: =INDEX('LS8. Pop Projections 16-64'!$B24:$Z24,MATCH(E$462,'LS8. Pop Projections 16-64'!$B$2:$Z$2,0)) -> 99.0445642 | F483: =INDEX('LS8. Pop Projections 16-64'!$B24:$Z24,MATCH(F$462,'LS8. Pop Projections 16-64'!$B$2:$Z$2,0)) -> 100.6351079
C484: 2023 | D484: =INDEX('LS8. Pop Projections 16-64'!$B25:$Z25,MATCH(D$3,'LS8. Pop Projections 16-64'!$B$2:$Z$2,0)) -> 98.60847186 | E484: =INDEX('LS8. Pop Projections 16-64'!$B25:$Z25,MATCH(E$462,'LS8. Pop Projections 16-64'!$B$2:$Z$2,0)) -> 98.82851809 | F484: =INDEX('LS8. Pop Projections 16-64'!$B25:$Z25,MATCH(F$462,'LS8. Pop Projections 16-64'!$B$2:$Z$2,0)) -> 100.8004375
C485: 2024 | D485: =INDEX('LS8. Pop Projections 16-64'!$B26:$Z26,MATCH(D$3,'LS8. Pop Projections 16-64'!$B$2:$Z$2,0)) -> 98.35664078 | E485: =INDEX('LS8. Pop Projections 16-64'!$B26:$Z26,MATCH(E$462,'LS8. Pop Projections 16-64'!$B$2:$Z$2,0)) -> 98.69180658 | F485: =INDEX('LS8. Pop Projections 16-64'!$B26:$Z26,MATCH(F$462,'LS8. Pop Projections 16-64'!$B$2:$Z$2,0)) -> 101.0103822
C486: 2025 | D486: =INDEX('LS8. Pop Projections 16-64'!$B27:$Z27,MATCH(D$3,'LS8. Pop Projections 16-64'!$B$2:$Z$2,0)) -> 98.01855986 | E486: =INDEX('LS8. Pop Projections 16-64'!$B27:$Z27,MATCH(E$462,'LS8. Pop Projections 16-64'!$B$2:$Z$2,0)) -> 98.48447734 | F486: =INDEX('LS8. Pop Projections 16-64'!$B27:$Z27,MATCH(F$462,'LS8. Pop Projections 16-64'!$B$2:$Z$2,0)) -> 101.1819504
C487: 2026 | D487: =INDEX('LS8. Pop Projections 16-64'!$B28:$Z28,MATCH(D$3,'LS8. Pop Projections 16-64'!$B$2:$Z$2,0)) -> 97.65049905 | E487: =INDEX('LS8. Pop Projections 16-64'!$B28:$Z28,MATCH(E$462,'LS8. Pop Projections 16-64'!$B$2:$Z$2,0)) -> 98.23146726 | F487: =INDEX('LS8. Pop Projections 16-64'!$B28:$Z28,MATCH(F$462,'LS8. Pop Projections 16-64'!$B$2:$Z$2,0)) -> 101.309156
C488: 2027 | D488: =INDEX('LS8. Pop Projections 16-64'!$B29:$Z29,MATCH(D$3,'LS8. Pop Projections 16-64'!$B$2:$Z$2,0)) -> 97.15237164 | E488: =INDEX('LS8. Pop Projections 16-64'!$B29:$Z29,MATCH(E$462,'LS8. Pop Projections 16-64'!$B$2:$Z$2,0)) -> 97.92439048 | F488: =INDEX('LS8. Pop Projections 16-64'!$B29:$Z29,MATCH(F$462,'LS8. Pop Projections 16-64'!$B$2:$Z$2,0)) -> 101.4084672
C489: 2028 | D489: =INDEX('LS8. Pop Projections 16-64'!$B30:$Z30,MATCH(D$3,'LS8. Pop Projections 16-64'!$B$2:$Z$2,0)) -> 96.7474125 | E489: =INDEX('LS8. Pop Projections 16-64'!$B30:$Z30,MATCH(E$462,'LS8. Pop Projections 16-64'!$B$2:$Z$2,0)) -> 97.60749342 | F489: =INDEX('LS8. Pop Projections 16-64'!$B30:$Z30,MATCH(F$462,'LS8. Pop Projections 16-64'!$B$2:$Z$2,0)) -> 101.5063051
C540: LS9. Population Projections, 65+, 2018-28
D541: =D$3 -> Blackburn with Darwen, Hyndburn, Rossendale and Ribble Valley | E541: Lancashire | F541: England Minus London
C542: 2018 | D542: =INDEX('LS9. Pop Projections 65+'!$B4:$Z4,MATCH(D$3,'LS9. Pop Projections 65+'!$B$2:$Z$2,0)) -> 63806 | E542: =INDEX('LS9. Pop Projections 65+'!$B4:$Z4,MATCH(E$541,'LS9. Pop Projections 65+'!$B$2:$Z$2,0)) -> 298848 | F542: =INDEX('LS9. Pop Projections 65+'!$B4:$Z4,MATCH(F$541,'LS9. Pop Projections 65+'!$B$2:$Z$2,0)) -> 9187643
C543: 2019 | D543: =INDEX('LS9. Pop Projections 65+'!$B5:$Z5,MATCH(D$3,'LS9. Pop Projections 65+'!$B$2:$Z$2,0)) -> 64779 | E543: =INDEX('LS9. Pop Projections 65+'!$B5:$Z5,MATCH(E$541,'LS9. Pop Projections 65+'!$B$2:$Z$2,0)) -> 302934 | F543: =INDEX('LS9. Pop Projections 65+'!$B5:$Z5,MATCH(F$541,'LS9. Pop Projections 65+'!$B$2:$Z$2,0)) -> 9351043
C544: 2020 | D544: =INDEX('LS9. Pop Projections 65+'!$B6:$Z6,MATCH(D$3,'LS9. Pop Projections 65+'!$B$2:$Z$2,0)) -> 65823 | E544: =INDEX('LS9. Pop Projections 65+'!$B6:$Z6,MATCH(E$541,'LS9. Pop Projections 65+'!$B$2:$Z$2,0)) -> 307140 | F544: =INDEX('LS9. Pop Projections 65+'!$B6:$Z6,MATCH(F$541,'LS9. Pop Projections 65+'!$B$2:$Z$2,0)) -> 9506582
C545: 2021 | D545: =INDEX('LS9. Pop Projections 65+'!$B7:$Z7,MATCH(D$3,'LS9. Pop Projections 65+'!$B$2:$Z$2,0)) -> 66917 | E545: =INDEX('LS9. Pop Projections 65+'!$B7:$Z7,MATCH(E$541,'LS9. Pop Projections 65+'!$B$2:$Z$2,0)) -> 311766 | F545: =INDEX('LS9. Pop Projections 65+'!$B7:$Z7,MATCH(F$541,'LS9. Pop Projections 65+'!$B$2:$Z$2,0)) -> 9675754
C546: 2022 | D546: =INDEX('LS9. Pop Projections 65+'!$B8:$Z8,MATCH(D$3,'LS9. Pop Projections 65+'!$B$2:$Z$2,0)) -> 68150 | E546: =INDEX('LS9. Pop Projections 65+'!$B8:$Z8,MATCH(E$541,'LS9. Pop Projections 65+'!$B$2:$Z$2,0)) -> 316991 | F546: =INDEX('LS9. Pop Projections 65+'!$B8:$Z8,MATCH(F$541,'LS9. Pop Projections 65+'!$B$2:$Z$2,0)) -> 9859904
C547: 2023 | D547: =INDEX('LS9. Pop Projections 65+'!$B9:$Z9,MATCH(D$3,'LS9. Pop Projections 65+'!$B$2:$Z$2,0)) -> 69308 | E547: =INDEX('LS9. Pop Projections 65+'!$B9:$Z9,MATCH(E$541,'LS9. Pop Projections 65+'!$B$2:$Z$2,0)) -> 322395 | F547: =INDEX('LS9. Pop Projections 65+'!$B9:$Z9,MATCH(F$541,'LS9. Pop Projections 65+'!$B$2:$Z$2,0)) -> 10059887
C548: 2024 | D548: =INDEX('LS9. Pop Projections 65+'!$B10:$Z10,MATCH(D$3,'LS9. Pop Projections 65+'!$B$2:$Z$2,0)) -> 70545 | E548: =INDEX('LS9. Pop Projections 65+'!$B10:$Z10,MATCH(E$541,'LS9. Pop Projections 65+'!$B$2:$Z$2,0)) -> 327835 | F548: =INDEX('LS9. Pop Projections 65+'!$B10:$Z10,MATCH(F$541,'LS9. Pop Projections 65+'!$B$2:$Z$2,0)) -> 10266089
... 358 more rows

Sheet LA Summary
A1: Blackburn with Darwen | C1: Residents Indicators: Local Authority Summary
A2: Blackpool
A3: Burnley | C3: Summary Statistics for: | D3: Blackburn with Darwen
A4: Chorley | C4: Corresponding TTWA: | D4: =INDEX('ONS LA Codes'!F4:F17,MATCH(D3,'ONS LA Codes'!E4:E17,0)) -> Blackburn with Darwen, Hyndburn, Rossendale and Ribble Valley
A5: Fylde
A6: Hyndburn
A7: Lancaster | C7: Population | D7: Total Population | F7: Population by Age Band | H7: Population Change by Age | J7: Working Age Population | L7: Population Aged 65+ | N7: Components of Population Change | P7: Projection Populations | R7: Population Projections, 16-64 | T7: Population Projections, 65+
A8: Pendle
A9: Preston | C9: Labour Market (1) | D9: Resident Employment | F9: Self Employment | H9: Hours Worked Weekly | J9: Non-Permanent Employment | L9: Zero Hour Contracts | N9: Workless Households
A10: Ribble Valley
A11: Rossendale | C11: Labour Market (2) | D11: Unemployment | F11: Claimant Count | H11: Economic Inactivity | J11: Economic Activity | L11: Travel to Work, Method | N11: Travel to Work, Distance | P11: Travel to Work, Destination
A12: South Ribble
A13: West Lancashire | C13: Occupations and Qualifications | D13: Resident Occupations | F13: Qualifications by NVQ | H13: Qualifications of those Employed | J13: Workplace Earnings | L13: Resident Earnings
A14: Wrye | C14: Back to top
C59: LS1. Total Population, 2006-16
D60: =D$3 -> Blackburn with Darwen | E60: =D$4 -> Blackburn with Darwen, Hyndburn, Rossendale and Ribble Valley | F60: Lancashire | G60: England Minus London
C61: 2006 | D61: =INDEX('LS1. Total Population'!$B4:$Z4,MATCH(D$3,'LS1. Total Population'!$B$2:$Z$2,0)) -> 143110 | E61: =INDEX('LS1. Total Population'!$B4:$Z4,MATCH(E$60,'LS1. Total Population'!$B$2:$Z$2,0)) -> 347464 | F61: =INDEX('LS1. Total Population'!$B4:$Z4,MATCH(F$60,'LS1. Total Population'!$B$2:$Z$2,0)) -> 1445983 | G61: =INDEX('LS1. Total Population'!$B4:$Z4,MATCH(G$60,'LS1. Total Population'!$B$2:$Z$2,0)) -> 43367361
C62: 2007 | D62: =INDEX('LS1. Total Population'!$B5:$Z5,MATCH(D$3,'LS1. Total Population'!$B$2:$Z$2,0)) -> 143942 | E62: =INDEX('LS1. Total Population'!$B5:$Z5,MATCH(E$60,'LS1. Total Population'!$B$2:$Z$2,0)) -> 349004 | F62: =INDEX('LS1. Total Population'!$B5:$Z5,MATCH(F$60,'LS1. Total Population'!$B$2:$Z$2,0)) -> 1449418 | G62: =INDEX('LS1. Total Population'!$B5:$Z5,MATCH(G$60,'LS1. Total Population'!$B$2:$Z$2,0)) -> 43687620
C63: 2008 | D63: =INDEX('LS1. Total Population'!$B6:$Z6,MATCH(D$3,'LS1. Total Population'!$B$2:$Z$2,0)) -> 144902 | E63: =INDEX('LS1. Total Population'!$B6:$Z6,MATCH(E$60,'LS1. Total Population'!$B$2:$Z$2,0)) -> 350299 | F63: =INDEX('LS1. Total Population'!$B6:$Z6,MATCH(F$60,'LS1. Total Population'!$B$2:$Z$2,0)) -> 1451175 | G63: =INDEX('LS1. Total Population'!$B6:$Z6,MATCH(G$60,'LS1. Total Population'!$B$2:$Z$2,0)) -> 44003692
C64: 2009 | D64: =INDEX('LS1. Total Population'!$B7:$Z7,MATCH(D$3,'LS1. Total Population'!$B$2:$Z$2,0)) -> 146197 | E64: =INDEX('LS1. Total Population'!$B7:$Z7,MATCH(E$60,'LS1. Total Population'!$B$2:$Z$2,0)) -> 351683 | F64: =INDEX('LS1. Total Population'!$B7:$Z7,MATCH(F$60,'LS1. Total Population'!$B$2:$Z$2,0)) -> 1452916 | G64: =INDEX('LS1. Total Population'!$B7:$Z7,MATCH(G$60,'LS1. Total Population'!$B$2:$Z$2,0)) -> 44253787
C65: 2010 | D65: =INDEX('LS1. Total Population'!$B8:$Z8,MATCH(D$3,'LS1. Total Population'!$B$2:$Z$2,0)) -> 146966 | E65: =INDEX('LS1. Total Population'!$B8:$Z8,MATCH(E$60,'LS1. Total Population'!$B$2:$Z$2,0)) -> 352884 | F65: =INDEX('LS1. Total Population'!$B8:$Z8,MATCH(F$60,'LS1. Total Population'!$B$2:$Z$2,0)) -> 1457298 | G65: =INDEX('LS1. Total Population'!$B8:$Z8,MATCH(G$60,'LS1. Total Population'!$B$2:$Z$2,0)) -> 44580957
C66: 2011 | D66: =INDEX('LS1. Total Population'!$B9:$Z9,MATCH(D$3,'LS1. Total Population'!$B$2:$Z$2,0)) -> 147657 | E66: =INDEX('LS1. Total Population'!$B9:$Z9,MATCH(E$60,'LS1. Total Population'!$B$2:$Z$2,0)) -> 353551 | F66: =INDEX('LS1. Total Population'!$B9:$Z9,MATCH(F$60,'LS1. Total Population'!$B$2:$Z$2,0)) -> 1461295 | G66: =INDEX('LS1. Total Population'!$B9:$Z9,MATCH(G$60,'LS1. Total Population'!$B$2:$Z$2,0)) -> 44902762
C67: 2012 | D67: =INDEX('LS1. Total Population'!$B10:$Z10,MATCH(D$3,'LS1. Total Population'!$B$2:$Z$2,0)) -> 147713 | E67: =INDEX('LS1. Total Population'!$B10:$Z10,MATCH(E$60,'LS1. Total Population'!$B$2:$Z$2,0)) -> 353865 | F67: =INDEX('LS1. Total Population'!$B10:$Z10,MATCH(F$60,'LS1. Total Population'!$B$2:$Z$2,0)) -> 1465668 | G67: =INDEX('LS1. Total Population'!$B10:$Z10,MATCH(G$60,'LS1. Total Population'!$B$2:$Z$2,0)) -> 45185360
C68: 2013 | D68: =INDEX('LS1. Total Population'!$B11:$Z11,MATCH(D$3,'LS1. Total Population'!$B$2:$Z$2,0)) -> 147369 | E68: =INDEX('LS1. Total Population'!$B11:$Z11,MATCH(E$60,'LS1. Total Population'!$B$2:$Z$2,0)) -> 354017 | F68: =INDEX('LS1. Total Population'!$B11:$Z11,MATCH(F$60,'LS1. Total Population'!$B$2:$Z$2,0)) -> 1468846 | G68: =INDEX('LS1. Total Population'!$B11:$Z11,MATCH(G$60,'LS1. Total Population'!$B$2:$Z$2,0)) -> 45449274
C69: 2014 | D69: =INDEX('LS1. Total Population'!$B12:$Z12,MATCH(D$3,'LS1. Total Population'!$B$2:$Z$2,0)) -> 146743 | E69: =INDEX('LS1. Total Population'!$B12:$Z12,MATCH(E$60,'LS1. Total Population'!$B$2:$Z$2,0)) -> 354210 | F69: =INDEX('LS1. Total Population'!$B12:$Z12,MATCH(F$60,'LS1. Total Population'!$B$2:$Z$2,0)) -> 1471979 | G69: =INDEX('LS1. Total Population'!$B12:$Z12,MATCH(G$60,'LS1. Total Population'!$B$2:$Z$2,0)) -> 45777929
C70: 2015 | D70: =INDEX('LS1. Total Population'!$B13:$Z13,MATCH(D$3,'LS1. Total Population'!$B$2:$Z$2,0)) -> 146846 | E70: =INDEX('LS1. Total Population'!$B13:$Z13,MATCH(E$60,'LS1. Total Population'!$B$2:$Z$2,0)) -> 355041 | F70: =INDEX('LS1. Total Population'!$B13:$Z13,MATCH(F$60,'LS1. Total Population'!$B$2:$Z$2,0)) -> 1478115 | G70: =INDEX('LS1. Total Population'!$B13:$Z13,MATCH(G$60,'LS1. Total Population'!$B$2:$Z$2,0)) -> 46112614
C71: 2016 | D71: =INDEX('LS1. Total Population'!$B14:$Z14,MATCH(D$3,'LS1. Total Population'!$B$2:$Z$2,0)) -> 147049 | E71: =INDEX('LS1. Total Population'!$B14:$Z14,MATCH(E$60,'LS1. Total Population'!$B$2:$Z$2,0)) -> 356298 | F71: =INDEX('LS1. Total Population'!$B14:$Z14,MATCH(F$60,'LS1. Total Population'!$B$2:$Z$2,0)) -> 1485042 | G71: =INDEX('LS1. Total Population'!$B14:$Z14,MATCH(G$60,'LS1. Total Population'!$B$2:$Z$2,0)) -> 46480175
C72: Change 2006-16 | D72: =D71-D61 -> 3939 | E72: 8834 | F72: =F71-F61 -> 39059 | G72: 3112814
C73: % Change 2006-16 | D73: =D72/D61 -> 0.02752428202 | E73: =E72/E61 -> 0.02542421661 | F73: =F72/F61 -> 0.02701207414 | G73: 0.07177780543
C75: LS1. Index of Population, 2006-16
D76: =D$3 -> Blackburn with Darwen | E76: =D$4 -> Blackburn with Darwen, Hyndburn, Rossendale and Ribble Valley | F76: Lancashire | G76: England Minus London
C77: 2006 | D77: =INDEX('LS1. Total Population'!$B20:$Z20,MATCH(D$3,'LS1. Total Population'!$B$2:$Z$2,0)) -> 100 | E77: =INDEX('LS1. Total Population'!$B20:$Z20,MATCH(E$76,'LS1. Total Population'!$B$2:$Z$2,0)) -> 100 | F77: =INDEX('LS1. Total Population'!$B20:$Z20,MATCH(F$76,'LS1. Total Population'!$B$2:$Z$2,0)) -> 100 | G77: =INDEX('LS1. Total Population'!$B20:$Z20,MATCH(G$76,'LS1. Total Population'!$B$2:$Z$2,0)) -> 100
C78: 2007 | D78: =INDEX('LS1. Total Population'!$B21:$Z21,MATCH(D$3,'LS1. Total Population'!$B$2:$Z$2,0)) -> 100.581371 | E78: =INDEX('LS1. Total Population'!$B21:$Z21,MATCH(E$76,'LS1. Total Population'!$B$2:$Z$2,0)) -> 100.4432114 | F78: =INDEX('LS1. Total Population'!$B21:$Z21,MATCH(F$76,'LS1. Total Population'!$B$2:$Z$2,0)) -> 100.2375547 | G78: =INDEX('LS1. Total Population'!$B21:$Z21,MATCH(G$76,'LS1. Total Population'!$B$2:$Z$2,0)) -> 100.7384793
C79: 2008 | D79: =INDEX('LS1. Total Population'!$B22:$Z22,MATCH(D$3,'LS1. Total Population'!$B$2:$Z$2,0)) -> 101.2521836 | E79: =INDEX('LS1. Total Population'!$B22:$Z22,MATCH(E$76,'LS1. Total Population'!$B$2:$Z$2,0)) -> 100.8159119 | F79: =INDEX('LS1. Total Population'!$B22:$Z22,MATCH(F$76,'LS1. Total Population'!$B$2:$Z$2,0)) -> 100.3590637 | G79: =INDEX('LS1. Total Population'!$B22:$Z22,MATCH(G$76,'LS1. Total Population'!$B$2:$Z$2,0)) -> 101.4673039
C80: 2009 | D80: =INDEX('LS1. Total Population'!$B23:$Z23,MATCH(D$3,'LS1. Total Population'!$B$2:$Z$2,0)) -> 102.157082 | E80: =INDEX('LS1. Total Population'!$B23:$Z23,MATCH(E$76,'LS1. Total Population'!$B$2:$Z$2,0)) -> 101.2142265 | F80: =INDEX('LS1. Total Population'!$B23:$Z23,MATCH(F$76,'LS1. Total Population'!$B$2:$Z$2,0)) -> 100.4794662 | G80: =INDEX('LS1. Total Population'!$B23:$Z23,MATCH(G$76,'LS1. Total Population'!$B$2:$Z$2,0)) -> 102.0439934
C81: 2010 | D81: =INDEX('LS1. Total Population'!$B24:$Z24,MATCH(D$3,'LS1. Total Population'!$B$2:$Z$2,0)) -> 102.6944309 | E81: =INDEX('LS1. Total Population'!$B24:$Z24,MATCH(E$76,'LS1. Total Population'!$B$2:$Z$2,0)) -> 101.5598738 | F81: =INDEX('LS1. Total Population'!$B24:$Z24,MATCH(F$76,'LS1. Total Population'!$B$2:$Z$2,0)) -> 100.7825127 | G81: =INDEX('LS1. Total Population'!$B24:$Z24,MATCH(G$76,'LS1. Total Population'!$B$2:$Z$2,0)) -> 102.7984087
C82: 2011 | D82: =INDEX('LS1. Total Population'!$B25:$Z25,MATCH(D$3,'LS1. Total Population'!$B$2:$Z$2,0)) -> 103.1772762 | E82: =INDEX('LS1. Total Population'!$B25:$Z25,MATCH(E$76,'LS1. Total Population'!$B$2:$Z$2,0)) -> 101.7518362 | F82: =INDEX('LS1. Total Population'!$B25:$Z25,MATCH(F$76,'LS1. Total Population'!$B$2:$Z$2,0)) -> 101.0589336 | G82: =INDEX('LS1. Total Population'!$B25:$Z25,MATCH(G$76,'LS1. Total Population'!$B$2:$Z$2,0)) -> 103.5404529
C83: 2012 | D83: =INDEX('LS1. Total Population'!$B26:$Z26,MATCH(D$3,'LS1. Total Population'!$B$2:$Z$2,0)) -> 103.216407 | E83: =INDEX('LS1. Total Population'!$B26:$Z26,MATCH(E$76,'LS1. Total Population'!$B$2:$Z$2,0)) -> 101.8422052 | F83: =INDEX('LS1. Total Population'!$B26:$Z26,MATCH(F$76,'LS1. Total Population'!$B$2:$Z$2,0)) -> 101.3613576 | G83: =INDEX('LS1. Total Population'!$B26:$Z26,MATCH(G$76,'LS1. Total Population'!$B$2:$Z$2,0)) -> 104.1920905
C84: 2013 | D84: =INDEX('LS1. Total Population'!$B27:$Z27,MATCH(D$3,'LS1. Total Population'!$B$2:$Z$2,0)) -> 102.9760324 | E84: =INDEX('LS1. Total Population'!$B27:$Z27,MATCH(E$76,'LS1. Total Population'!$B$2:$Z$2,0)) -> 101.8859508 | F84: =INDEX('LS1. Total Population'!$B27:$Z27,MATCH(F$76,'LS1. Total Population'!$B$2:$Z$2,0)) -> 101.5811389 | G84: =INDEX('LS1. Total Population'!$B27:$Z27,MATCH(G$76,'LS1. Total Population'!$B$2:$Z$2,0)) -> 104.8006449
C85: 2014 | D85: =INDEX('LS1. Total Population'!$B28:$Z28,MATCH(D$3,'LS1. Total Population'!$B$2:$Z$2,0)) -> 102.5386067 | E85: =INDEX('LS1. Total Population'!$B28:$Z28,MATCH(E$76,'LS1. Total Population'!$B$2:$Z$2,0)) -> 101.9414961 | F85: =INDEX('LS1. Total Population'!$B28:$Z28,MATCH(F$76,'LS1. Total Population'!$B$2:$Z$2,0)) -> 101.7978081 | G85: =INDEX('LS1. Total Population'!$B28:$Z28,MATCH(G$76,'LS1. Total Population'!$B$2:$Z$2,0)) -> 105.5584844
C86: 2015 | D86: =INDEX('LS1. Total Population'!$B29:$Z29,MATCH(D$3,'LS1. Total Population'!$B$2:$Z$2,0)) -> 102.6105793 | E86: =INDEX('LS1. Total Population'!$B29:$Z29,MATCH(E$76,'LS1. Total Population'!$B$2:$Z$2,0)) -> 102.1806576 | F86: =INDEX('LS1. Total Population'!$B29:$Z29,MATCH(F$76,'LS1. Total Population'!$B$2:$Z$2,0)) -> 102.2221561 | G86: =INDEX('LS1. Total Population'!$B29:$Z29,MATCH(G$76,'LS1. Total Population'!$B$2:$Z$2,0)) -> 106.3302284
C87: 2016 | D87: =INDEX('LS1. Total Population'!$B30:$Z30,MATCH(D$3,'LS1. Total Population'!$B$2:$Z$2,0)) -> 102.7524282 | E87: =INDEX('LS1. Total Population'!$B30:$Z30,MATCH(E$76,'LS1. Total Population'!$B$2:$Z$2,0)) -> 102.5424217 | F87: =INDEX('LS1. Total Population'!$B30:$Z30,MATCH(F$76,'LS1. Total Population'!$B$2:$Z$2,0)) -> 102.7012074 | G87: =INDEX('LS1. Total Population'!$B30:$Z30,MATCH(G$76,'LS1. Total Population'!$B$2:$Z$2,0)) -> 107.1777805
C130: LS2. Population by Age Band, 2016
D131: =D$3 -> Blackburn with Darwen | F131: =D$4 -> Blackburn with Darwen, Hyndburn, Rossendale and Ribble Valley | G131: Lancashire | H131: England Minus London
C132: Aged under 1 year | D132: =INDEX('LS2. Population Split'!$B70:$Z70,MATCH(D$3,'LS2. Population Split'!$B$2:$Z$2,0)) -> 2200 | E132: =INDEX('LS2. Population Split'!$B103:$Z103,MATCH(D$3,'LS2. Population Split'!$B$2:$Z$2,0)) -> 0.01496598639 | F132: =INDEX('LS2. Population Split'!$B103:$Z103,MATCH(D$4,'LS2. Population Split'!$B$2:$Z$2,0)) -> 0.01262980634 | G132: =INDEX('LS2. Population Split'!$B103:$Z103,MATCH(G$131,'LS2. Population Split'!$B$2:$Z$2,0)) -> 0.01144781145 | H132: =INDEX('LS2. Population Split'!$B103:$Z103,MATCH(H$131,'LS2. Population Split'!$B$2:$Z$2,0)) -> 0.01162215309
C133: Aged 1 - 4 years | D133: =INDEX('LS2. Population Split'!$B71:$Z71,MATCH(D$3,'LS2. Population Split'!$B$2:$Z$2,0)) -> 8800 | E133: =INDEX('LS2. Population Split'!$B104:$Z104,MATCH(D$3,'LS2. Population Split'!$B$2:$Z$2,0)) -> 0.05986394558 | F133: =INDEX('LS2. Population Split'!$B104:$Z104,MATCH(D$4,'LS2. Population Split'!$B$2:$Z$2,0)) -> 0.05276452428 | G133: =INDEX('LS2. Population Split'!$B104:$Z104,MATCH(G$131,'LS2. Population Split'!$B$2:$Z$2,0)) -> 0.04774410774 | H133: =INDEX('LS2. Population Split'!$B104:$Z104,MATCH(H$131,'LS2. Population Split'!$B$2:$Z$2,0)) -> 0.04847870706
C134: Aged 5 - 9 years | D134: =INDEX('LS2. Population Split'!$B72:$Z72,MATCH(D$3,'LS2. Population Split'!$B$2:$Z$2,0)) -> 11000 | E134: =INDEX('LS2. Population Split'!$B105:$Z105,MATCH(D$3,'LS2. Population Split'!$B$2:$Z$2,0)) -> 0.07482993197 | F134: =INDEX('LS2. Population Split'!$B105:$Z105,MATCH(D$4,'LS2. Population Split'!$B$2:$Z$2,0)) -> 0.06792029189 | G134: =INDEX('LS2. Population Split'!$B105:$Z105,MATCH(G$131,'LS2. Population Split'!$B$2:$Z$2,0)) -> 0.06101010101 | H134: =INDEX('LS2. Population Split'!$B105:$Z105,MATCH(H$131,'LS2. Population Split'!$B$2:$Z$2,0)) -> 0.06128631116
C135: Aged 10 - 14 years | D135: =INDEX('LS2. Population Split'!$B73:$Z73,MATCH(D$3,'LS2. Population Split'!$B$2:$Z$2,0)) -> 10300 | E135: =INDEX('LS2. Population Split'!$B106:$Z106,MATCH(D$3,'LS2. Population Split'!$B$2:$Z$2,0)) -> 0.07006802721 | F135: =INDEX('LS2. Population Split'!$B106:$Z106,MATCH(D$4,'LS2. Population Split'!$B$2:$Z$2,0)) -> 0.06427168117 | G135: =INDEX('LS2. Population Split'!$B106:$Z106,MATCH(G$131,'LS2. Population Split'!$B$2:$Z$2,0)) -> 0.05643097643 | H135: =INDEX('LS2. Population Split'!$B106:$Z106,MATCH(H$131,'LS2. Population Split'!$B$2:$Z$2,0)) -> 0.05556559567
C136: Aged 15 - 19 years | D136: =INDEX('LS2. Population Split'!$B74:$Z74,MATCH(D$3,'LS2. Population Split'!$B$2:$Z$2,0)) -> 9800 | E136: =INDEX('LS2. Population Split'!$B107:$Z107,MATCH(D$3,'LS2. Population Split'!$B$2:$Z$2,0)) -> 0.06666666667 | F136: =INDEX('LS2. Population Split'!$B107:$Z107,MATCH(D$4,'LS2. Population Split'!$B$2:$Z$2,0)) -> 0.0617457199 | G136: =INDEX('LS2. Population Split'!$B107:$Z107,MATCH(G$131,'LS2. Population Split'!$B$2:$Z$2,0)) -> 0.05966329966 | H136: =INDEX('LS2. Population Split'!$B107:$Z107,MATCH(H$131,'LS2. Population Split'!$B$2:$Z$2,0)) -> 0.05832160791
C137: Aged 20 - 24 years | D137: =INDEX('LS2. Population Split'!$B75:$Z75,MATCH(D$3,'LS2. Population Split'!$B$2:$Z$2,0)) -> 9000 | E137: =INDEX('LS2. Population Split'!$B108:$Z108,MATCH(D$3,'LS2. Population Split'!$B$2:$Z$2,0)) -> 0.0612244898 | F137: =INDEX('LS2. Population Split'!$B108:$Z108,MATCH(D$4,'LS2. Population Split'!$B$2:$Z$2,0)) -> 0.05529048555 | G137: =INDEX('LS2. Population Split'!$B108:$Z108,MATCH(G$131,'LS2. Population Split'!$B$2:$Z$2,0)) -> 0.06430976431 | H137: =INDEX('LS2. Population Split'!$B108:$Z108,MATCH(H$131,'LS2. Population Split'!$B$2:$Z$2,0)) -> 0.06434567837
C138: Aged 25 - 29 years | D138: =INDEX('LS2. Population Split'!$B76:$Z76,MATCH(D$3,'LS2. Population Split'!$B$2:$Z$2,0)) -> 9600 | E138: =INDEX('LS2. Population Split'!$B109:$Z109,MATCH(D$3,'LS2. Population Split'!$B$2:$Z$2,0)) -> 0.06530612245 | F138: =INDEX('LS2. Population Split'!$B109:$Z109,MATCH(D$4,'LS2. Population Split'!$B$2:$Z$2,0)) -> 0.0617457199 | G138: =INDEX('LS2. Population Split'!$B109:$Z109,MATCH(G$131,'LS2. Population Split'!$B$2:$Z$2,0)) -> 0.06175084175 | H138: =INDEX('LS2. Population Split'!$B109:$Z109,MATCH(H$131,'LS2. Population Split'!$B$2:$Z$2,0)) -> 0.06422949987
C139: Aged 30 - 34 years | D139: =INDEX('LS2. Population Split'!$B77:$Z77,MATCH(D$3,'LS2. Population Split'!$B$2:$Z$2,0)) -> 10300 | E139: =INDEX('LS2. Population Split'!$B110:$Z110,MATCH(D$3,'LS2. Population Split'!$B$2:$Z$2,0)) -> 0.07006802721 | F139: =INDEX('LS2. Population Split'!$B110:$Z110,MATCH(D$4,'LS2. Population Split'!$B$2:$Z$2,0)) -> 0.06258770699 | G139: =INDEX('LS2. Population Split'!$B110:$Z110,MATCH(G$131,'LS2. Population Split'!$B$2:$Z$2,0)) -> 0.05905723906 | H139: =INDEX('LS2. Population Split'!$B110:$Z110,MATCH(H$131,'LS2. Population Split'!$B$2:$Z$2,0)) -> 0.06209525777
C140: Aged 35 - 39 years | D140: =INDEX('LS2. Population Split'!$B78:$Z78,MATCH(D$3,'LS2. Population Split'!$B$2:$Z$2,0)) -> 9500 | E140: =INDEX('LS2. Population Split'!$B111:$Z111,MATCH(D$3,'LS2. Population Split'!$B$2:$Z$2,0)) -> 0.06462585034 | F140: =INDEX('LS2. Population Split'!$B111:$Z111,MATCH(D$4,'LS2. Population Split'!$B$2:$Z$2,0)) -> 0.05950042099 | G140: =INDEX('LS2. Population Split'!$B111:$Z111,MATCH(G$131,'LS2. Population Split'!$B$2:$Z$2,0)) -> 0.05595959596 | H140: =INDEX('LS2. Population Split'!$B111:$Z111,MATCH(H$131,'LS2. Population Split'!$B$2:$Z$2,0)) -> 0.06019122121
C141: Aged 40 - 44 years | D141: =INDEX('LS2. Population Split'!$B79:$Z79,MATCH(D$3,'LS2. Population Split'!$B$2:$Z$2,0)) -> 9500 | E141: =INDEX('LS2. Population Split'!$B112:$Z112,MATCH(D$3,'LS2. Population Split'!$B$2:$Z$2,0)) -> 0.06462585034 | F141: =INDEX('LS2. Population Split'!$B112:$Z112,MATCH(D$4,'LS2. Population Split'!$B$2:$Z$2,0)) -> 0.06427168117 | G141: =INDEX('LS2. Population Split'!$B112:$Z112,MATCH(G$131,'LS2. Population Split'!$B$2:$Z$2,0)) -> 0.06067340067 | H141: =INDEX('LS2. Population Split'!$B112:$Z112,MATCH(H$131,'LS2. Population Split'!$B$2:$Z$2,0)) -> 0.06243088455
C142: Aged 45 - 49 years | D142: =INDEX('LS2. Population Split'!$B80:$Z80,MATCH(D$3,'LS2. Population Split'!$B$2:$Z$2,0)) -> 10400 | E142: =INDEX('LS2. Population Split'!$B113:$Z113,MATCH(D$3,'LS2. Population Split'!$B$2:$Z$2,0)) -> 0.07074829932 | F142: =INDEX('LS2. Population Split'!$B113:$Z113,MATCH(D$4,'LS2. Population Split'!$B$2:$Z$2,0)) -> 0.07437552624 | G142: =INDEX('LS2. Population Split'!$B113:$Z113,MATCH(G$131,'LS2. Population Split'!$B$2:$Z$2,0)) -> 0.07158249158 | H142: =INDEX('LS2. Population Split'!$B113:$Z113,MATCH(H$131,'LS2. Population Split'!$B$2:$Z$2,0)) -> 0.07078713086
C143: Aged 50 - 54 years | D143: =INDEX('LS2. Population Split'!$B81:$Z81,MATCH(D$3,'LS2. Population Split'!$B$2:$Z$2,0)) -> 9500 | E143: =INDEX('LS2. Population Split'!$B114:$Z114,MATCH(D$3,'LS2. Population Split'!$B$2:$Z$2,0)) -> 0.06462585034 | F143: =INDEX('LS2. Population Split'!$B114:$Z114,MATCH(D$4,'LS2. Population Split'!$B$2:$Z$2,0)) -> 0.07100757788 | G143: =INDEX('LS2. Population Split'!$B114:$Z114,MATCH(G$131,'LS2. Population Split'!$B$2:$Z$2,0)) -> 0.07239057239 | H143: =INDEX('LS2. Population Split'!$B114:$Z114,MATCH(H$131,'LS2. Population Split'!$B$2:$Z$2,0)) -> 0.07154874549
C144: Aged 55 - 59 years | D144: =INDEX('LS2. Population Split'!$B82:$Z82,MATCH(D$3,'LS2. Population Split'!$B$2:$Z$2,0)) -> 8500 | E144: =INDEX('LS2. Population Split'!$B115:$Z115,MATCH(D$3,'LS2. Population Split'!$B$2:$Z$2,0)) -> 0.05782312925 | F144: =INDEX('LS2. Population Split'!$B115:$Z115,MATCH(D$4,'LS2. Population Split'!$B$2:$Z$2,0)) -> 0.06286836935 | G144: =INDEX('LS2. Population Split'!$B115:$Z115,MATCH(G$131,'LS2. Population Split'!$B$2:$Z$2,0)) -> 0.06471380471 | H144: =INDEX('LS2. Population Split'!$B115:$Z115,MATCH(H$131,'LS2. Population Split'!$B$2:$Z$2,0)) -> 0.06303114014
C145: Aged 60 - 64 years | D145: =INDEX('LS2. Population Split'!$B83:$Z83,MATCH(D$3,'LS2. Population Split'!$B$2:$Z$2,0)) -> 7400 | E145: =INDEX('LS2. Population Split'!$B116:$Z116,MATCH(D$3,'LS2. Population Split'!$B$2:$Z$2,0)) -> 0.05034013605 | F145: =INDEX('LS2. Population Split'!$B116:$Z116,MATCH(D$4,'LS2. Population Split'!$B$2:$Z$2,0)) -> 0.05557114791 | G145: =INDEX('LS2. Population Split'!$B116:$Z116,MATCH(G$131,'LS2. Population Split'!$B$2:$Z$2,0)) -> 0.0571043771 | H145: =INDEX('LS2. Population Split'!$B116:$Z116,MATCH(H$131,'LS2. Population Split'!$B$2:$Z$2,0)) -> 0.05541284246
C146: Aged 65 - 69 years | D146: =INDEX('LS2. Population Split'!$B84:$Z84,MATCH(D$3,'LS2. Population Split'!$B$2:$Z$2,0)) -> 7100 | E146: =INDEX('LS2. Population Split'!$B117:$Z117,MATCH(D$3,'LS2. Population Split'!$B$2:$Z$2,0)) -> 0.04829931973 | F146: =INDEX('LS2. Population Split'!$B117:$Z117,MATCH(D$4,'LS2. Population Split'!$B$2:$Z$2,0)) -> 0.05725512209 | G146: =INDEX('LS2. Population Split'!$B117:$Z117,MATCH(G$131,'LS2. Population Split'!$B$2:$Z$2,0)) -> 0.06148148148 | H146: =INDEX('LS2. Population Split'!$B117:$Z117,MATCH(H$131,'LS2. Population Split'!$B$2:$Z$2,0)) -> 0.05844639223
C147: Aged 70 - 74 years | D147: =INDEX('LS2. Population Split'!$B85:$Z85,MATCH(D$3,'LS2. Population Split'!$B$2:$Z$2,0)) -> 5000 | E147: =INDEX('LS2. Population Split'!$B118:$Z118,MATCH(D$3,'LS2. Population Split'!$B$2:$Z$2,0)) -> 0.03401360544 | F147: =INDEX('LS2. Population Split'!$B118:$Z118,MATCH(D$4,'LS2. Population Split'!$B$2:$Z$2,0)) -> 0.0426606792 | G147: =INDEX('LS2. Population Split'!$B118:$Z118,MATCH(G$131,'LS2. Population Split'!$B$2:$Z$2,0)) -> 0.04787878788 | H147: =INDEX('LS2. Population Split'!$B118:$Z118,MATCH(H$131,'LS2. Population Split'!$B$2:$Z$2,0)) -> 0.04615083412
C148: Aged 75 - 79 years | D148: =INDEX('LS2. Population Split'!$B86:$Z86,MATCH(D$3,'LS2. Population Split'!$B$2:$Z$2,0)) -> 3800 | E148: =INDEX('LS2. Population Split'!$B119:$Z119,MATCH(D$3,'LS2. Population Split'!$B$2:$Z$2,0)) -> 0.02585034014 | F148: =INDEX('LS2. Population Split'!$B119:$Z119,MATCH(D$4,'LS2. Population Split'!$B$2:$Z$2,0)) -> 0.03059219759 | G148: =INDEX('LS2. Population Split'!$B119:$Z119,MATCH(G$131,'LS2. Population Split'!$B$2:$Z$2,0)) -> 0.03609427609 | H148: =INDEX('LS2. Population Split'!$B119:$Z119,MATCH(H$131,'LS2. Population Split'!$B$2:$Z$2,0)) -> 0.03461043627
C149: Aged 80 - 84 years | D149: =INDEX('LS2. Population Split'!$B87:$Z87,MATCH(D$3,'LS2. Population Split'!$B$2:$Z$2,0)) -> 2700 | E149: =INDEX('LS2. Population Split'!$B120:$Z120,MATCH(D$3,'LS2. Population Split'!$B$2:$Z$2,0)) -> 0.01836734694 | F149: =INDEX('LS2. Population Split'!$B120:$Z120,MATCH(D$4,'LS2. Population Split'!$B$2:$Z$2,0)) -> 0.02245298905 | G149: =INDEX('LS2. Population Split'!$B120:$Z120,MATCH(G$131,'LS2. Population Split'!$B$2:$Z$2,0)) -> 0.02612794613 | H149: =INDEX('LS2. Population Split'!$B120:$Z120,MATCH(H$131,'LS2. Population Split'!$B$2:$Z$2,0)) -> 0.02589274573
C150: Aged 85 and over | D150: =INDEX('LS2. Population Split'!$B88:$Z88,MATCH(D$3,'LS2. Population Split'!$B$2:$Z$2,0)) -> 2400 | E150: =INDEX('LS2. Population Split'!$B121:$Z121,MATCH(D$3,'LS2. Population Split'!$B$2:$Z$2,0)) -> 0.01632653061 | F150: =INDEX('LS2. Population Split'!$B121:$Z121,MATCH(D$4,'LS2. Population Split'!$B$2:$Z$2,0)) -> 0.02076901488 | G150: =INDEX('LS2. Population Split'!$B121:$Z121,MATCH(G$131,'LS2. Population Split'!$B$2:$Z$2,0)) -> 0.02471380471 | H150: =INDEX('LS2. Population Split'!$B121:$Z121,MATCH(H$131,'LS2. Population Split'!$B$2:$Z$2,0)) -> 0.02555496749
C151: Total | D151: =INDEX('LS2. Population Split'!$B89:$Z89,MATCH(D$3,'LS2. Population Split'!$B$2:$Z$2,0)) -> 147000 | E151: =INDEX('LS2. Population Split'!$B122:$Z122,MATCH(D$3,'LS2. Population Split'!$B$2:$Z$2,0)) -> 1 | F151: =INDEX('LS2. Population Split'!$B122:$Z122,MATCH(D$4,'LS2. Population Split'!$B$2:$Z$2,0)) -> 1 | G151: =INDEX('LS2. Population Split'!$B122:$Z122,MATCH(G$131,'LS2. Population Split'!$B$2:$Z$2,0)) -> 1 | H151: =INDEX('LS2. Population Split'!$B122:$Z122,MATCH(H$131,'LS2. Population Split'!$B$2:$Z$2,0)) -> 1
C153: For details on Population by gender, ethnicity and disability, please click here
C203: LS3. Population Change by Age, 2006-2016
D204: =D$3 -> Blackburn with Darwen | E204: =D$4 -> Blackburn with Darwen, Hyndburn, Rossendale and Ribble Valley | F204: Lancashire | G204: England Minus London
C205: 0-15 | D205: =INDEX('LS3. Population Change by Age'!$B61:$AB61,MATCH(D$3,'LS3. Population Change by Age'!$B$2:$AB$2,0)) -> 0.006230529595 | E205: =INDEX('LS3. Population Change by Age'!$B61:$AB61,MATCH(E$204,'LS3. Population Change by Age'!$B$2:$AB$2,0)) -> -0.008450704225 | F205: =INDEX('LS3. Population Change by Age'!$B61:$AB61,MATCH(F$204,'LS3. Population Change by Age'!$B$2:$AB$2,0)) -> 0.006523407521 | G205: =INDEX('LS3. Population Change by Age'!$B61:$AB61,MATCH(G$204,'LS3. Population Change by Age'!$B$2:$AB$2,0)) -> 0.06527820951
C206: 16-19 | D206: =INDEX('LS3. Population Change by Age'!$B62:$AB62,MATCH(D$3,'LS3. Population Change by Age'!$B$2:$AB$2,0)) -> -0.05769230769 | E206: =INDEX('LS3. Population Change by Age'!$B62:$AB62,MATCH(E$204,'LS3. Population Change by Age'!$B$2:$AB$2,0)) -> -0.09836065574 | F206: =INDEX('LS3. Population Change by Age'!$B62:$AB62,MATCH(F$204,'LS3. Population Change by Age'!$B$2:$AB$2,0)) -> -0.09591836735 | G206: =INDEX('LS3. Population Change by Age'!$B62:$AB62,MATCH(G$204,'LS3. Population Change by Age'!$B$2:$AB$2,0)) -> -0.04465198238
C207: 20-24 | D207: =INDEX('LS3. Population Change by Age'!$B63:$AB63,MATCH(D$3,'LS3. Population Change by Age'!$B$2:$AB$2,0)) -> -0.04255319149 | E207: =INDEX('LS3. Population Change by Age'!$B63:$AB63,MATCH(E$204,'LS3. Population Change by Age'!$B$2:$AB$2,0)) -> 0 | F207: =INDEX('LS3. Population Change by Age'!$B63:$AB63,MATCH(F$204,'LS3. Population Change by Age'!$B$2:$AB$2,0)) -> 0.02798708288 | G207: =INDEX('LS3. Population Change by Age'!$B63:$AB63,MATCH(G$204,'LS3. Population Change by Age'!$B$2:$AB$2,0)) -> 0.07547916142
C208: 25-34 | D208: =INDEX('LS3. Population Change by Age'!$B64:$AB64,MATCH(D$3,'LS3. Population Change by Age'!$B$2:$AB$2,0)) -> 0.01530612245 | E208: =INDEX('LS3. Population Change by Age'!$B64:$AB64,MATCH(E$204,'LS3. Population Change by Age'!$B$2:$AB$2,0)) -> 0.037470726 | F208: =INDEX('LS3. Population Change by Age'!$B64:$AB64,MATCH(F$204,'LS3. Population Change by Age'!$B$2:$AB$2,0)) -> 0.0621669627 | G208: =INDEX('LS3. Population Change by Age'!$B64:$AB64,MATCH(G$204,'LS3. Population Change by Age'!$B$2:$AB$2,0)) -> 0.09973591055
C209: 35-44 | D209: =INDEX('LS3. Population Change by Age'!$B65:$AB65,MATCH(D$3,'LS3. Population Change by Age'!$B$2:$AB$2,0)) -> -0.1079812207 | E209: =INDEX('LS3. Population Change by Age'!$B65:$AB65,MATCH(E$204,'LS3. Population Change by Age'!$B$2:$AB$2,0)) -> -0.1694915254 | F209: =INDEX('LS3. Population Change by Age'!$B65:$AB65,MATCH(F$204,'LS3. Population Change by Age'!$B$2:$AB$2,0)) -> -0.1917872142 | G209: =INDEX('LS3. Population Change by Age'!$B65:$AB65,MATCH(G$204,'LS3. Population Change by Age'!$B$2:$AB$2,0)) -> -0.1297410371
C210: 45-54 | D210: =INDEX('LS3. Population Change by Age'!$B66:$AB66,MATCH(D$3,'LS3. Population Change by Age'!$B$2:$AB$2,0)) -> 0.1436781609 | E210: =INDEX('LS3. Population Change by Age'!$B66:$AB66,MATCH(E$204,'LS3. Population Change by Age'!$B$2:$AB$2,0)) -> 0.1485587583 | F210: =INDEX('LS3. Population Change by Age'!$B66:$AB66,MATCH(F$204,'LS3. Population Change by Age'!$B$2:$AB$2,0)) -> 0.1336161188 | G210: =INDEX('LS3. Population Change by Age'!$B66:$AB66,MATCH(G$204,'LS3. Population Change by Age'!$B$2:$AB$2,0)) -> 0.1705237084
C211: 55-64 | D211: =INDEX('LS3. Population Change by Age'!$B67:$AB67,MATCH(D$3,'LS3. Population Change by Age'!$B$2:$AB$2,0)) -> 0.08904109589 | E211: =INDEX('LS3. Population Change by Age'!$B67:$AB67,MATCH(E$204,'LS3. Population Change by Age'!$B$2:$AB$2,0)) -> 0.02926829268 | F211: =INDEX('LS3. Population Change by Age'!$B67:$AB67,MATCH(F$204,'LS3. Population Change by Age'!$B$2:$AB$2,0)) -> 0.0005530973451 | G211: =INDEX('LS3. Population Change by Age'!$B67:$AB67,MATCH(G$204,'LS3. Population Change by Age'!$B$2:$AB$2,0)) -> 0.03691635432
C212: 65+ | D212: =INDEX('LS3. Population Change by Age'!$B68:$AB68,MATCH(D$3,'LS3. Population Change by Age'!$B$2:$AB$2,0)) -> 0.1475409836 | E212: =INDEX('LS3. Population Change by Age'!$B68:$AB68,MATCH(E$204,'LS3. Population Change by Age'!$B$2:$AB$2,0)) -> 0.2257425743 | F212: =INDEX('LS3. Population Change by Age'!$B68:$AB68,MATCH(F$204,'LS3. Population Change by Age'!$B$2:$AB$2,0)) -> 0.2050434064 | G212: =INDEX('LS3. Population Change by Age'!$B68:$AB68,MATCH(G$204,'LS3. Population Change by Age'!$B$2:$AB$2,0)) -> 0.2344263665
C254: LS4. Working Age Population, 2006-2016
D255: =D$3 -> Blackburn with Darwen | E255: =D$4 -> Blackburn with Darwen, Hyndburn, Rossendale and Ribble Valley | F255: Lancashire | G255: England Minus London
C256: 2006 | D256: =INDEX('LS4. Working Age Population'!$B4:$Z4,MATCH(D$3,'LS4. Working Age Population'!$B$2:$Z$2,0)) -> 90500 | E256: =INDEX('LS4. Working Age Population'!$B4:$Z4,MATCH(E$255,'LS4. Working Age Population'!$B$2:$Z$2,0)) -> 220800 | F256: =INDEX('LS4. Working Age Population'!$B4:$Z4,MATCH(F$255,'LS4. Working Age Population'!$B$2:$Z$2,0)) -> 923500 | G256: =INDEX('LS4. Working Age Population'!$B4:$Z4,MATCH(G$255,'LS4. Working Age Population'!$B$2:$Z$2,0)) -> 27886700
C257: 2007 | D257: =INDEX('LS4. Working Age Population'!$B5:$Z5,MATCH(D$3,'LS4. Working Age Population'!$B$2:$Z$2,0)) -> 91400 | E257: =INDEX('LS4. Working Age Population'!$B5:$Z5,MATCH(E$255,'LS4. Working Age Population'!$B$2:$Z$2,0)) -> 222500 | F257: =INDEX('LS4. Working Age Population'!$B5:$Z5,MATCH(F$255,'LS4. Working Age Population'!$B$2:$Z$2,0)) -> 927600 | G257: =INDEX('LS4. Working Age Population'!$B5:$Z5,MATCH(G$255,'LS4. Working Age Population'!$B$2:$Z$2,0)) -> 28142300
C258: 2008 | D258: =INDEX('LS4. Working Age Population'!$B6:$Z6,MATCH(D$3,'LS4. Working Age Population'!$B$2:$Z$2,0)) -> 92200 | E258: =INDEX('LS4. Working Age Population'!$B6:$Z6,MATCH(E$255,'LS4. Working Age Population'!$B$2:$Z$2,0)) -> 223700 | F258: =INDEX('LS4. Working Age Population'!$B6:$Z6,MATCH(F$255,'LS4. Working Age Population'!$B$2:$Z$2,0)) -> 928500 | G258: =INDEX('LS4. Working Age Population'!$B6:$Z6,MATCH(G$255,'LS4. Working Age Population'!$B$2:$Z$2,0)) -> 28325800
C259: 2009 | D259: =INDEX('LS4. Working Age Population'!$B7:$Z7,MATCH(D$3,'LS4. Working Age Population'!$B$2:$Z$2,0)) -> 93100 | E259: =INDEX('LS4. Working Age Population'!$B7:$Z7,MATCH(E$255,'LS4. Working Age Population'!$B$2:$Z$2,0)) -> 224300 | F259: =INDEX('LS4. Working Age Population'!$B7:$Z7,MATCH(F$255,'LS4. Working Age Population'!$B$2:$Z$2,0)) -> 927600 | G259: =INDEX('LS4. Working Age Population'!$B7:$Z7,MATCH(G$255,'LS4. Working Age Population'!$B$2:$Z$2,0)) -> 28413600
C260: 2010 | D260: =INDEX('LS4. Working Age Population'!$B8:$Z8,MATCH(D$3,'LS4. Working Age Population'!$B$2:$Z$2,0)) -> 93700 | E260: =INDEX('LS4. Working Age Population'!$B8:$Z8,MATCH(E$255,'LS4. Working Age Population'!$B$2:$Z$2,0)) -> 224700 | F260: =INDEX('LS4. Working Age Population'!$B8:$Z8,MATCH(F$255,'LS4. Working Age Population'!$B$2:$Z$2,0)) -> 928500 | G260: =INDEX('LS4. Working Age Population'!$B8:$Z8,MATCH(G$255,'LS4. Working Age Population'!$B$2:$Z$2,0)) -> 28559600
C261: 2011 | D261: =INDEX('LS4. Working Age Population'!$B9:$Z9,MATCH(D$3,'LS4. Working Age Population'!$B$2:$Z$2,0)) -> 94200 | E261: =INDEX('LS4. Working Age Population'!$B9:$Z9,MATCH(E$255,'LS4. Working Age Population'!$B$2:$Z$2,0)) -> 224700 | F261: =INDEX('LS4. Working Age Population'!$B9:$Z9,MATCH(F$255,'LS4. Working Age Population'!$B$2:$Z$2,0)) -> 928000 | G261: =INDEX('LS4. Working Age Population'!$B9:$Z9,MATCH(G$255,'LS4. Working Age Population'!$B$2:$Z$2,0)) -> 28683000
C262: 2012 | D262: =INDEX('LS4. Working Age Population'!$B10:$Z10,MATCH(D$3,'LS4. Working Age Population'!$B$2:$Z$2,0)) -> 93600 | E262: =INDEX('LS4. Working Age Population'!$B10:$Z10,MATCH(E$255,'LS4. Working Age Population'!$B$2:$Z$2,0)) -> 222900 | F262: =INDEX('LS4. Working Age Population'!$B10:$Z10,MATCH(F$255,'LS4. Working Age Population'!$B$2:$Z$2,0)) -> 922200 | G262: =INDEX('LS4. Working Age Population'!$B10:$Z10,MATCH(G$255,'LS4. Working Age Population'!$B$2:$Z$2,0)) -> 28603200
C263: 2013 | D263: =INDEX('LS4. Working Age Population'!$B11:$Z11,MATCH(D$3,'LS4. Working Age Population'!$B$2:$Z$2,0)) -> 93000 | E263: =INDEX('LS4. Working Age Population'!$B11:$Z11,MATCH(E$255,'LS4. Working Age Population'!$B$2:$Z$2,0)) -> 221500 | F263: =INDEX('LS4. Working Age Population'!$B11:$Z11,MATCH(F$255,'LS4. Working Age Population'!$B$2:$Z$2,0)) -> 918400 | G263: =INDEX('LS4. Working Age Population'!$B11:$Z11,MATCH(G$255,'LS4. Working Age Population'!$B$2:$Z$2,0)) -> 28595200
C264: 2014 | D264: =INDEX('LS4. Working Age Population'!$B12:$Z12,MATCH(D$3,'LS4. Working Age Population'!$B$2:$Z$2,0)) -> 92200 | E264: =INDEX('LS4. Working Age Population'!$B12:$Z12,MATCH(E$255,'LS4. Working Age Population'!$B$2:$Z$2,0)) -> 220300 | F264: =INDEX('LS4. Working Age Population'!$B12:$Z12,MATCH(F$255,'LS4. Working Age Population'!$B$2:$Z$2,0)) -> 914400 | G264: =INDEX('LS4. Working Age Population'!$B12:$Z12,MATCH(G$255,'LS4. Working Age Population'!$B$2:$Z$2,0)) -> 28651900
C265: 2015 | D265: =INDEX('LS4. Working Age Population'!$B13:$Z13,MATCH(D$3,'LS4. Working Age Population'!$B$2:$Z$2,0)) -> 91800 | E265: =INDEX('LS4. Working Age Population'!$B13:$Z13,MATCH(E$255,'LS4. Working Age Population'!$B$2:$Z$2,0)) -> 219700 | F265: =INDEX('LS4. Working Age Population'!$B13:$Z13,MATCH(F$255,'LS4. Working Age Population'!$B$2:$Z$2,0)) -> 914200 | G265: =INDEX('LS4. Working Age Population'!$B13:$Z13,MATCH(G$255,'LS4. Working Age Population'!$B$2:$Z$2,0)) -> 28761900
C266: 2016 | D266: =INDEX('LS4. Working Age Population'!$B14:$Z14,MATCH(D$3,'LS4. Working Age Population'!$B$2:$Z$2,0)) -> 91700 | E266: =INDEX('LS4. Working Age Population'!$B14:$Z14,MATCH(E$255,'LS4. Working Age Population'!$B$2:$Z$2,0)) -> 219700 | F266: =INDEX('LS4. Working Age Population'!$B14:$Z14,MATCH(F$255,'LS4. Working Age Population'!$B$2:$Z$2,0)) -> 914500 | G266: =INDEX('LS4. Working Age Population'!$B14:$Z14,MATCH(G$255,'LS4. Working Age Population'!$B$2:$Z$2,0)) -> 28885000
C267: Change 2006-16 | D267: =D266-D256 -> 1200 | E267: -1100 | F267: -9000 | G267: =G266-G256 -> 998300
C268: % Change 2006-16 | D268: =D267/D256 -> 0.01325966851 | E268: =E267/E256 -> -0.004981884058 | F268: -0.009745533297 | G268: =G267/G256 -> 0.03579842721
C270: LS4. Index of Working Age Population, 2006-16
D271: =D$3 -> Blackburn with Darwen | E271: =D$4 -> Blackburn with Darwen, Hyndburn, Rossendale and Ribble Valley | F271: Lancashire | G271: England Minus London
C272: 2006 | D272: 100 | E272: 100 | F272: 100 | G272: 100
C273: 2007 | D273: =D257/D$256*100 -> 100.9944751 | E273: =E257/E$256*100 -> 100.7699275 | F273: 100.4439632 | G273: 100.916566
C274: 2008 | D274: =D258/D$256*100 -> 101.878453 | E274: 101.3134058 | F274: 100.5414185 | G274: 101.5745857
C275: 2009 | D275: =D259/D$256*100 -> 102.8729282 | E275: 101.5851449 | F275: 100.4439632 | G275: 101.8894312
C276: 2010 | D276: =D260/D$256*100 -> 103.5359116 | E276: 101.7663043 | F276: 100.5414185 | G276: 102.4129782
C277: 2011 | D277: =D261/D$256*100 -> 104.0883978 | E277: 101.7663043 | F277: 100.4872767 | G277: 102.8554831
C278: 2012 | D278: =D262/D$256*100 -> 103.4254144 | E278: 100.951087 | F278: 99.85923119 | G278: 102.5693252
C279: 2013 | D279: =D263/D$256*100 -> 102.7624309 | E279: 100.317029 | F279: 99.44775311 | G279: 102.5406377
C280: 2014 | D280: =D264/D$256*100 -> 101.878453 | E280: 99.77355072 | F280: 99.0146183 | G280: 102.7439604
C281: 2015 | D281: =D265/D$256*100 -> 101.4364641 | E281: 99.50181159 | F281: 98.99296156 | G281: 103.1384137
C282: 2016 | D282: =D266/D$256*100 -> 101.3259669 | E282: 99.50181159 | F282: 99.02544667 | G282: 103.5798427
C309: LS5. Population Aged 65+, 2006-16
D310: =D$3 -> Blackburn with Darwen | E310: =D$4 -> Blackburn with Darwen, Hyndburn, Rossendale and Ribble Valley | F310: Lancashire | G310: England Minus London
C311: 2006 | D311: =INDEX('LS5. Population Aged 65+'!$B4:$Z4,MATCH(D$3,'LS5. Population Aged 65+'!$B$2:$Z$2,0)) -> 18300 | E311: =INDEX('LS5. Population Aged 65+'!$B4:$Z4,MATCH(E$310,'LS5. Population Aged 65+'!$B$2:$Z$2,0)) -> 50400 | F311: =INDEX('LS5. Population Aged 65+'!$B4:$Z4,MATCH(F$310,'LS5. Population Aged 65+'!$B$2:$Z$2,0)) -> 241800 | G311: =INDEX('LS5. Population Aged 65+'!$B4:$Z4,MATCH(G$310,'LS5. Population Aged 65+'!$B$2:$Z$2,0)) -> 7178800
C312: 2007 | D312: =INDEX('LS5. Population Aged 65+'!$B5:$Z5,MATCH(D$3,'LS5. Population Aged 65+'!$B$2:$Z$2,0)) -> 18300 | E312: =INDEX('LS5. Population Aged 65+'!$B5:$Z5,MATCH(E$310,'LS5. Population Aged 65+'!$B$2:$Z$2,0)) -> 50800 | F312: =INDEX('LS5. Population Aged 65+'!$B5:$Z5,MATCH(F$310,'LS5. Population Aged 65+'!$B$2:$Z$2,0)) -> 243700 | G312: =INDEX('LS5. Population Aged 65+'!$B5:$Z5,MATCH(G$310,'LS5. Population Aged 65+'!$B$2:$Z$2,0)) -> 7251700
C313: 2008 | D313: =INDEX('LS5. Population Aged 65+'!$B6:$Z6,MATCH(D$3,'LS5. Population Aged 65+'!$B$2:$Z$2,0)) -> 18500 | E313: =INDEX('LS5. Population Aged 65+'!$B6:$Z6,MATCH(E$310,'LS5. Population Aged 65+'!$B$2:$Z$2,0)) -> 51500 | F313: =INDEX('LS5. Population Aged 65+'!$B6:$Z6,MATCH(F$310,'LS5. Population Aged 65+'!$B$2:$Z$2,0)) -> 247100 | G313: =INDEX('LS5. Population Aged 65+'!$B6:$Z6,MATCH(G$310,'LS5. Population Aged 65+'!$B$2:$Z$2,0)) -> 7371700
C314: 2009 | D314: =INDEX('LS5. Population Aged 65+'!$B7:$Z7,MATCH(D$3,'LS5. Population Aged 65+'!$B$2:$Z$2,0)) -> 18700 | E314: =INDEX('LS5. Population Aged 65+'!$B7:$Z7,MATCH(E$310,'LS5. Population Aged 65+'!$B$2:$Z$2,0)) -> 52300 | F314: =INDEX('LS5. Population Aged 65+'!$B7:$Z7,MATCH(F$310,'LS5. Population Aged 65+'!$B$2:$Z$2,0)) -> 250700 | G314: =INDEX('LS5. Population Aged 65+'!$B7:$Z7,MATCH(G$310,'LS5. Population Aged 65+'!$B$2:$Z$2,0)) -> 7513000
C315: 2010 | D315: =INDEX('LS5. Population Aged 65+'!$B8:$Z8,MATCH(D$3,'LS5. Population Aged 65+'!$B$2:$Z$2,0)) -> 18900 | E315: =INDEX('LS5. Population Aged 65+'!$B8:$Z8,MATCH(E$310,'LS5. Population Aged 65+'!$B$2:$Z$2,0)) -> 53300 | F315: =INDEX('LS5. Population Aged 65+'!$B8:$Z8,MATCH(F$310,'LS5. Population Aged 65+'!$B$2:$Z$2,0)) -> 255000 | G315: =INDEX('LS5. Population Aged 65+'!$B8:$Z8,MATCH(G$310,'LS5. Population Aged 65+'!$B$2:$Z$2,0)) -> 7666500
C316: 2011 | D316: =INDEX('LS5. Population Aged 65+'!$B9:$Z9,MATCH(D$3,'LS5. Population Aged 65+'!$B$2:$Z$2,0)) -> 19200 | E316: =INDEX('LS5. Population Aged 65+'!$B9:$Z9,MATCH(E$310,'LS5. Population Aged 65+'!$B$2:$Z$2,0)) -> 54300 | F316: =INDEX('LS5. Population Aged 65+'!$B9:$Z9,MATCH(F$310,'LS5. Population Aged 65+'!$B$2:$Z$2,0)) -> 259400 | G316: =INDEX('LS5. Population Aged 65+'!$B9:$Z9,MATCH(G$310,'LS5. Population Aged 65+'!$B$2:$Z$2,0)) -> 7819500
C317: 2012 | D317: =INDEX('LS5. Population Aged 65+'!$B10:$Z10,MATCH(D$3,'LS5. Population Aged 65+'!$B$2:$Z$2,0)) -> 19800 | E317: =INDEX('LS5. Population Aged 65+'!$B10:$Z10,MATCH(E$310,'LS5. Population Aged 65+'!$B$2:$Z$2,0)) -> 56500 | F317: =INDEX('LS5. Population Aged 65+'!$B10:$Z10,MATCH(F$310,'LS5. Population Aged 65+'!$B$2:$Z$2,0)) -> 268800 | G317: =INDEX('LS5. Population Aged 65+'!$B10:$Z10,MATCH(G$310,'LS5. Population Aged 65+'!$B$2:$Z$2,0)) -> 8119100
C318: 2013 | D318: =INDEX('LS5. Population Aged 65+'!$B11:$Z11,MATCH(D$3,'LS5. Population Aged 65+'!$B$2:$Z$2,0)) -> 20200 | E318: =INDEX('LS5. Population Aged 65+'!$B11:$Z11,MATCH(E$310,'LS5. Population Aged 65+'!$B$2:$Z$2,0)) -> 58200 | F318: =INDEX('LS5. Population Aged 65+'!$B11:$Z11,MATCH(F$310,'LS5. Population Aged 65+'!$B$2:$Z$2,0)) -> 275600 | G318: =INDEX('LS5. Population Aged 65+'!$B11:$Z11,MATCH(G$310,'LS5. Population Aged 65+'!$B$2:$Z$2,0)) -> 8344800
C319: 2014 | D319: =INDEX('LS5. Population Aged 65+'!$B12:$Z12,MATCH(D$3,'LS5. Population Aged 65+'!$B$2:$Z$2,0)) -> 20600 | E319: =INDEX('LS5. Population Aged 65+'!$B12:$Z12,MATCH(E$310,'LS5. Population Aged 65+'!$B$2:$Z$2,0)) -> 59700 | F319: =INDEX('LS5. Population Aged 65+'!$B12:$Z12,MATCH(F$310,'LS5. Population Aged 65+'!$B$2:$Z$2,0)) -> 282000 | G319: =INDEX('LS5. Population Aged 65+'!$B12:$Z12,MATCH(G$310,'LS5. Population Aged 65+'!$B$2:$Z$2,0)) -> 8554800
C320: 2015 | D320: =INDEX('LS5. Population Aged 65+'!$B13:$Z13,MATCH(D$3,'LS5. Population Aged 65+'!$B$2:$Z$2,0)) -> 20900 | E320: =INDEX('LS5. Population Aged 65+'!$B13:$Z13,MATCH(E$310,'LS5. Population Aged 65+'!$B$2:$Z$2,0)) -> 60800 | F320: =INDEX('LS5. Population Aged 65+'!$B13:$Z13,MATCH(F$310,'LS5. Population Aged 65+'!$B$2:$Z$2,0)) -> 286700 | G320: =INDEX('LS5. Population Aged 65+'!$B13:$Z13,MATCH(G$310,'LS5. Population Aged 65+'!$B$2:$Z$2,0)) -> 8710200
C321: 2016 | D321: =INDEX('LS5. Population Aged 65+'!$B14:$Z14,MATCH(D$3,'LS5. Population Aged 65+'!$B$2:$Z$2,0)) -> 21100 | E321: =INDEX('LS5. Population Aged 65+'!$B14:$Z14,MATCH(E$310,'LS5. Population Aged 65+'!$B$2:$Z$2,0)) -> 61900 | F321: =INDEX('LS5. Population Aged 65+'!$B14:$Z14,MATCH(F$310,'LS5. Population Aged 65+'!$B$2:$Z$2,0)) -> 291400 | G321: =INDEX('LS5. Population Aged 65+'!$B14:$Z14,MATCH(G$310,'LS5. Population Aged 65+'!$B$2:$Z$2,0)) -> 8861700
C322: Change 2006-16 | D322: =D321-D311 -> 2800 | E322: 11500 | F322: 49600 | G322: 1682900
C323: % Change 2006-16 | D323: =D322/D311 -> 0.1530054645 | E323: =E322/E311 -> 0.2281746032 | F323: 0.2051282051 | G323: 0.2344263665
C325: LS5. Index of Population Aged 65+, 2006-16
D326: =D$3 -> Blackburn with Darwen | E326: =D$4 -> Blackburn with Darwen, Hyndburn, Rossendale and Ribble Valley | F326: Lancashire | G326: England Minus London
C327: 2006 | D327: 100 | E327: 100 | F327: 100 | G327: 100
C328: 2007 | D328: =D312/D$311*100 -> 100 | E328: =E312/E$311*100 -> 100.7936508 | F328: 100.7857734 | G328: 101.0154901
C329: 2008 | D329: =D313/D$311*100 -> 101.0928962 | E329: 102.1825397 | F329: 102.1918941 | G329: 102.6870786
C330: 2009 | D330: =D314/D$311*100 -> 102.1857923 | E330: 103.7698413 | F330: 103.6807279 | G330: 104.6553742
C331: 2010 | D331: =D315/D$311*100 -> 103.2786885 | E331: 105.7539683 | F331: 105.4590571 | G331: 106.7936145
C332: 2011 | D332: =D316/D$311*100 -> 104.9180328 | E332: 107.7380952 | F332: 107.2787428 | G332: 108.92489
C333: 2012 | D333: =D317/D$311*100 -> 108.1967213 | E333: 112.1031746 | F333: 111.1662531 | G333: 113.0982894
C334: 2013 | D334: =D318/D$311*100 -> 110.3825137 | E334: 115.4761905 | F334: 113.9784946 | G334: 116.2422689
C335: 2014 | D335: =D319/D$311*100 -> 112.568306 | E335: 118.452381 | F335: 116.6253102 | G335: 119.1675489
C336: 2015 | D336: =D320/D$311*100 -> 114.2076503 | E336: 120.6349206 | F336: 118.5690653 | G336: 121.3322561
C337: 2016 | D337: =D321/D$311*100 -> 115.3005464 | E337: 122.8174603 | F337: 120.5128205 | G337: 123.4426367
C360: LS6. Components of Population Change, 2016
D361: =D$3 -> Blackburn with Darwen | E361: =D$4 -> Blackburn with Darwen, Hyndburn, Rossendale and Ribble Valley | F361: Lancashire | G361: England Minus London
C362: Long-Term International Migration | D362: =IFERROR(INDEX('LS6. Components of Pop Change'!$B5:$Z5,MATCH(D$3,'LS6. Components of Pop Change'!$B$2:$Z$2,0)),"n/a") -> 302 | E362: =IFERROR(INDEX('LS6. Components of Pop Change'!$B5:$Z5,MATCH(E$361,'LS6. Components of Pop Change'!$B$2:$Z$2,0)),"n/a") -> 524 | F362: =IFERROR(INDEX('LS6. Components of Pop Change'!$B5:$Z5,MATCH(F$361,'LS6. Components of Pop Change'!$B$2:$Z$2,0)),"n/a") -> 3574 | G362: =IFERROR(INDEX('LS6. Components of Pop Change'!$B5:$Z5,MATCH(G$361,'LS6. Components of Pop Change'!$B$2:$Z$2,0)),"n/a") -> 175538
C363: Internal Migration (within UK) | D363: =IFERROR(INDEX('LS6. Components of Pop Change'!$B6:$Z6,MATCH(D$3,'LS6. Components of Pop Change'!$B$2:$Z$2,0)),"n/a") -> -1036 | E363: =IFERROR(INDEX('LS6. Components of Pop Change'!$B6:$Z6,MATCH(E$361,'LS6. Components of Pop Change'!$B$2:$Z$2,0)),"n/a") -> -510 | F363: =IFERROR(INDEX('LS6. Components of Pop Change'!$B6:$Z6,MATCH(F$361,'LS6. Components of Pop Change'!$B$2:$Z$2,0)),"n/a") -> 2146 | G363: =IFERROR(INDEX('LS6. Components of Pop Change'!$B6:$Z6,MATCH(G$361,'LS6. Components of Pop Change'!$B$2:$Z$2,0)),"n/a") -> 81117
C365: LS6. Components of Population Change as a % of Total Population, 2016
D366: =D$3 -> Blackburn with Darwen | E366: =D$4 -> Blackburn with Darwen, Hyndburn, Rossendale and Ribble Valley | F366: Lancashire | G366: England Minus London
C367: Long-Term International Migration | D367: =IFERROR(INDEX('LS6. Components of Pop Change'!$B10:$Z10,MATCH(D$3,'LS6. Components of Pop Change'!$B$2:$Z$2,0)),"n/a") -> 0.00205373719 | E367: =IFERROR(INDEX('LS6. Components of Pop Change'!$B10:$Z10,MATCH(E$361,'LS6. Components of Pop Change'!$B$2:$Z$2,0)),"n/a") -> 0.001470679038 | F367: =IFERROR(INDEX('LS6. Components of Pop Change'!$B10:$Z10,MATCH(F$361,'LS6. Components of Pop Change'!$B$2:$Z$2,0)),"n/a") -> 0.002981319622 | G367: =IFERROR(INDEX('LS6. Components of Pop Change'!$B10:$Z10,MATCH(G$361,'LS6. Components of Pop Change'!$B$2:$Z$2,0)),"n/a") -> 0.003776620893
C368: Internal Migration (within UK) | D368: =IFERROR(INDEX('LS6. Components of Pop Change'!$B11:$Z11,MATCH(D$3,'LS6. Components of Pop Change'!$B$2:$Z$2,0)),"n/a") -> -0.007045270624 | E368: =IFERROR(INDEX('LS6. Components of Pop Change'!$B11:$Z11,MATCH(E$361,'LS6. Components of Pop Change'!$B$2:$Z$2,0)),"n/a") -> -0.001431386087 | F368: =IFERROR(INDEX('LS6. Components of Pop Change'!$B11:$Z11,MATCH(F$361,'LS6. Components of Pop Change'!$B$2:$Z$2,0)),"n/a") -> 0.001790126443 | G368: =IFERROR(INDEX('LS6. Components of Pop Change'!$B11:$Z11,MATCH(G$361,'LS6. Components of Pop Change'!$B$2:$Z$2,0)),"n/a") -> 0.001745195667
C400: LS7. Total Projected Population, 2018-28
D401: =D$3 -> Blackburn with Darwen | E401: =D$4 -> Blackburn with Darwen, Hyndburn, Rossendale and Ribble Valley | F401: Lancashire | G401: England Minus London
C402: 2018 | D402: =INDEX('LS7. Population Projections'!$B4:$Z4,MATCH(D$3,'LS7. Population Projections'!$B$2:$Z$2,0)) -> 146245 | E402: =INDEX('LS7. Population Projections'!$B4:$Z4,MATCH(E$401,'LS7. Population Projections'!$B$2:$Z$2,0)) -> 355039 | F402: =INDEX('LS7. Population Projections'!$B4:$Z4,MATCH(F$401,'LS7. Population Projections'!$B$2:$Z$2,0)) -> 1485312 | G402: =INDEX('LS7. Population Projections'!$B4:$Z4,MATCH(G$401,'LS7. Population Projections'!$B$2:$Z$2,0)) -> 46980139
C403: 2019 | D403: =INDEX('LS7. Population Projections'!$B5:$Z5,MATCH(D$3,'LS7. Population Projections'!$B$2:$Z$2,0)) -> 146162 | E403: =INDEX('LS7. Population Projections'!$B5:$Z5,MATCH(E$401,'LS7. Population Projections'!$B$2:$Z$2,0)) -> 355396 | F403: =INDEX('LS7. Population Projections'!$B5:$Z5,MATCH(F$401,'LS7. Population Projections'!$B$2:$Z$2,0)) -> 1488534 | G403: =INDEX('LS7. Population Projections'!$B5:$Z5,MATCH(G$401,'LS7. Population Projections'!$B$2:$Z$2,0)) -> 47269814
C404: 2020 | D404: =INDEX('LS7. Population Projections'!$B6:$Z6,MATCH(D$3,'LS7. Population Projections'!$B$2:$Z$2,0)) -> 146082 | E404: =INDEX('LS7. Population Projections'!$B6:$Z6,MATCH(E$401,'LS7. Population Projections'!$B$2:$Z$2,0)) -> 355772 | F404: =INDEX('LS7. Population Projections'!$B6:$Z6,MATCH(F$401,'LS7. Population Projections'!$B$2:$Z$2,0)) -> 1491672 | G404: =INDEX('LS7. Population Projections'!$B6:$Z6,MATCH(G$401,'LS7. Population Projections'!$B$2:$Z$2,0)) -> 47555883
C405: 2021 | D405: =INDEX('LS7. Population Projections'!$B7:$Z7,MATCH(D$3,'LS7. Population Projections'!$B$2:$Z$2,0)) -> 145989 | E405: =INDEX('LS7. Population Projections'!$B7:$Z7,MATCH(E$401,'LS7. Population Projections'!$B$2:$Z$2,0)) -> 356175 | F405: =INDEX('LS7. Population Projections'!$B7:$Z7,MATCH(F$401,'LS7. Population Projections'!$B$2:$Z$2,0)) -> 1494798 | G405: =INDEX('LS7. Population Projections'!$B7:$Z7,MATCH(G$401,'LS7. Population Projections'!$B$2:$Z$2,0)) -> 47837833
C406: 2022 | D406: =INDEX('LS7. Population Projections'!$B8:$Z8,MATCH(D$3,'LS7. Population Projections'!$B$2:$Z$2,0)) -> 145892 | E406: =INDEX('LS7. Population Projections'!$B8:$Z8,MATCH(E$401,'LS7. Population Projections'!$B$2:$Z$2,0)) -> 356518 | F406: =INDEX('LS7. Population Projections'!$B8:$Z8,MATCH(F$401,'LS7. Population Projections'!$B$2:$Z$2,0)) -> 1498017 | G406: =INDEX('LS7. Population Projections'!$B8:$Z8,MATCH(G$401,'LS7. Population Projections'!$B$2:$Z$2,0)) -> 48121588
C407: 2023 | D407: =INDEX('LS7. Population Projections'!$B9:$Z9,MATCH(D$3,'LS7. Population Projections'!$B$2:$Z$2,0)) -> 145789 | E407: =INDEX('LS7. Population Projections'!$B9:$Z9,MATCH(E$401,'LS7. Population Projections'!$B$2:$Z$2,0)) -> 356836 | F407: =INDEX('LS7. Population Projections'!$B9:$Z9,MATCH(F$401,'LS7. Population Projections'!$B$2:$Z$2,0)) -> 1501295 | G407: =INDEX('LS7. Population Projections'!$B9:$Z9,MATCH(G$401,'LS7. Population Projections'!$B$2:$Z$2,0)) -> 48405637
C408: 2024 | D408: =INDEX('LS7. Population Projections'!$B10:$Z10,MATCH(D$3,'LS7. Population Projections'!$B$2:$Z$2,0)) -> 145675 | E408: =INDEX('LS7. Population Projections'!$B10:$Z10,MATCH(E$401,'LS7. Population Projections'!$B$2:$Z$2,0)) -> 357086 | F408: =INDEX('LS7. Population Projections'!$B10:$Z10,MATCH(F$401,'LS7. Population Projections'!$B$2:$Z$2,0)) -> 1504519 | G408: =INDEX('LS7. Population Projections'!$B10:$Z10,MATCH(G$401,'LS7. Population Projections'!$B$2:$Z$2,0)) -> 48688326
C409: 2025 | D409: =INDEX('LS7. Population Projections'!$B11:$Z11,MATCH(D$3,'LS7. Population Projections'!$B$2:$Z$2,0)) -> 145544 | E409: =INDEX('LS7. Population Projections'!$B11:$Z11,MATCH(E$401,'LS7. Population Projections'!$B$2:$Z$2,0)) -> 357266 | F409: =INDEX('LS7. Population Projections'!$B11:$Z11,MATCH(F$401,'LS7. Population Projections'!$B$2:$Z$2,0)) -> 1507703 | G409: =INDEX('LS7. Population Projections'!$B11:$Z11,MATCH(G$401,'LS7. Population Projections'!$B$2:$Z$2,0)) -> 48967834
C410: 2026 | D410: =INDEX('LS7. Population Projections'!$B12:$Z12,MATCH(D$3,'LS7. Population Projections'!$B$2:$Z$2,0)) -> 145398 | E410: =INDEX('LS7. Population Projections'!$B12:$Z12,MATCH(E$401,'LS7. Population Projections'!$B$2:$Z$2,0)) -> 357400 | F410: =INDEX('LS7. Population Projections'!$B12:$Z12,MATCH(F$401,'LS7. Population Projections'!$B$2:$Z$2,0)) -> 1510768 | G410: =INDEX('LS7. Population Projections'!$B12:$Z12,MATCH(G$401,'LS7. Population Projections'!$B$2:$Z$2,0)) -> 49242497
C411: 2027 | D411: =INDEX('LS7. Population Projections'!$B13:$Z13,MATCH(D$3,'LS7. Population Projections'!$B$2:$Z$2,0)) -> 145241 | E411: =INDEX('LS7. Population Projections'!$B13:$Z13,MATCH(E$401,'LS7. Population Projections'!$B$2:$Z$2,0)) -> 357500 | F411: =INDEX('LS7. Population Projections'!$B13:$Z13,MATCH(F$401,'LS7. Population Projections'!$B$2:$Z$2,0)) -> 1513664 | G411: =INDEX('LS7. Population Projections'!$B13:$Z13,MATCH(G$401,'LS7. Population Projections'!$B$2:$Z$2,0)) -> 49511497
C412: 2028 | D412: =INDEX('LS7. Population Projections'!$B14:$Z14,MATCH(D$3,'LS7. Population Projections'!$B$2:$Z$2,0)) -> 145088 | E412: =INDEX('LS7. Population Projections'!$B14:$Z14,MATCH(E$401,'LS7. Population Projections'!$B$2:$Z$2,0)) -> 357586 | F412: =INDEX('LS7. Population Projections'!$B14:$Z14,MATCH(F$401,'LS7. Population Projections'!$B$2:$Z$2,0)) -> 1516364 | G412: =INDEX('LS7. Population Projections'!$B14:$Z14,MATCH(G$401,'LS7. Population Projections'!$B$2:$Z$2,0)) -> 49774372
C413: Change 2018-2028 | D413: =INDEX('LS7. Population Projections'!$B15:$Z15,MATCH(D$3,'LS7. Population Projections'!$B$2:$Z$2,0)) -> -1157 | E413: =INDEX('LS7. Population Projections'!$B15:$Z15,MATCH(E$401,'LS7. Population Projections'!$B$2:$Z$2,0)) -> 2547 | F413: =INDEX('LS7. Population Projections'!$B15:$Z15,MATCH(F$401,'LS7. Population Projections'!$B$2:$Z$2,0)) -> 31052 | G413: =INDEX('LS7. Population Projections'!$B15:$Z15,MATCH(G$401,'LS7. Population Projections'!$B$2:$Z$2,0)) -> 2794233
C414: % Change 2018-2028 | D414: =D413/D402 -> -0.007911381586 | E414: =E413/E402 -> 0.007173859773 | F414: =F413/F402 -> 0.02090604533 | G414: =G413/G402 -> 0.05947689938
C416: LS7. Index of Projected Population, 2018-28
D417: =D$3 -> Blackburn with Darwen | E417: =D$4 -> Blackburn with Darwen, Hyndburn, Rossendale and Ribble Valley | F417: Lancashire | G417: England Minus London
C418: 2018 | D418: =INDEX('LS7. Population Projections'!$B20:$Z20,MATCH(D$3,'LS7. Population Projections'!$B$2:$Z$2,0)) -> 100 | E418: =INDEX('LS7. Population Projections'!$B20:$Z20,MATCH(E$401,'LS7. Population Projections'!$B$2:$Z$2,0)) -> 100 | F418: =INDEX('LS7. Population Projections'!$B20:$Z20,MATCH(F$401,'LS7. Population Projections'!$B$2:$Z$2,0)) -> 100 | G418: =INDEX('LS7. Population Projections'!$B20:$Z20,MATCH(G$401,'LS7. Population Projections'!$B$2:$Z$2,0)) -> 100
C419: 2019 | D419: =INDEX('LS7. Population Projections'!$B21:$Z21,MATCH(D$3,'LS7. Population Projections'!$B$2:$Z$2,0)) -> 99.94324592 | E419: =INDEX('LS7. Population Projections'!$B21:$Z21,MATCH(E$401,'LS7. Population Projections'!$B$2:$Z$2,0)) -> 100.1005523 | F419: =INDEX('LS7. Population Projections'!$B21:$Z21,MATCH(F$401,'LS7. Population Projections'!$B$2:$Z$2,0)) -> 100.2169241 | G419: =INDEX('LS7. Population Projections'!$B21:$Z21,MATCH(G$401,'LS7. Population Projections'!$B$2:$Z$2,0)) -> 100.6165903
C420: 2020 | D420: =INDEX('LS7. Population Projections'!$B22:$Z22,MATCH(D$3,'LS7. Population Projections'!$B$2:$Z$2,0)) -> 99.8885432 | E420: =INDEX('LS7. Population Projections'!$B22:$Z22,MATCH(E$401,'LS7. Population Projections'!$B$2:$Z$2,0)) -> 100.2064562 | F420: =INDEX('LS7. Population Projections'!$B22:$Z22,MATCH(F$401,'LS7. Population Projections'!$B$2:$Z$2,0)) -> 100.4281929 | G420: =INDEX('LS7. Population Projections'!$B22:$Z22,MATCH(G$401,'LS7. Population Projections'!$B$2:$Z$2,0)) -> 101.2255051
C421: 2021 | D421: =INDEX('LS7. Population Projections'!$B23:$Z23,MATCH(D$3,'LS7. Population Projections'!$B$2:$Z$2,0)) -> 99.82495128 | E421: =INDEX('LS7. Population Projections'!$B23:$Z23,MATCH(E$401,'LS7. Population Projections'!$B$2:$Z$2,0)) -> 100.3199648 | F421: =INDEX('LS7. Population Projections'!$B23:$Z23,MATCH(F$401,'LS7. Population Projections'!$B$2:$Z$2,0)) -> 100.6386537 | G421: =INDEX('LS7. Population Projections'!$B23:$Z23,MATCH(G$401,'LS7. Population Projections'!$B$2:$Z$2,0)) -> 101.8256523
C422: 2022 | D422: =INDEX('LS7. Population Projections'!$B24:$Z24,MATCH(D$3,'LS7. Population Projections'!$B$2:$Z$2,0)) -> 99.75862423 | E422: =INDEX('LS7. Population Projections'!$B24:$Z24,MATCH(E$401,'LS7. Population Projections'!$B$2:$Z$2,0)) -> 100.416574 | F422: =INDEX('LS7. Population Projections'!$B24:$Z24,MATCH(F$401,'LS7. Population Projections'!$B$2:$Z$2,0)) -> 100.8553758 | G422: =INDEX('LS7. Population Projections'!$B24:$Z24,MATCH(G$401,'LS7. Population Projections'!$B$2:$Z$2,0)) -> 102.4296416
C423: 2023 | D423: =INDEX('LS7. Population Projections'!$B25:$Z25,MATCH(D$3,'LS7. Population Projections'!$B$2:$Z$2,0)) -> 99.68819447 | E423: =INDEX('LS7. Population Projections'!$B25:$Z25,MATCH(E$401,'LS7. Population Projections'!$B$2:$Z$2,0)) -> 100.5061416 | F423: =INDEX('LS7. Population Projections'!$B25:$Z25,MATCH(F$401,'LS7. Population Projections'!$B$2:$Z$2,0)) -> 101.0760702 | G423: =INDEX('LS7. Population Projections'!$B25:$Z25,MATCH(G$401,'LS7. Population Projections'!$B$2:$Z$2,0)) -> 103.0342567
C424: 2024 | D424: =INDEX('LS7. Population Projections'!$B26:$Z26,MATCH(D$3,'LS7. Population Projections'!$B$2:$Z$2,0)) -> 99.61024309 | E424: =INDEX('LS7. Population Projections'!$B26:$Z26,MATCH(E$401,'LS7. Population Projections'!$B$2:$Z$2,0)) -> 100.5765564 | F424: =INDEX('LS7. Population Projections'!$B26:$Z26,MATCH(F$401,'LS7. Population Projections'!$B$2:$Z$2,0)) -> 101.293129 | G424: =INDEX('LS7. Population Projections'!$B26:$Z26,MATCH(G$401,'LS7. Population Projections'!$B$2:$Z$2,0)) -> 103.6359769
C425: 2025 | D425: =INDEX('LS7. Population Projections'!$B27:$Z27,MATCH(D$3,'LS7. Population Projections'!$B$2:$Z$2,0)) -> 99.52066737 | E425: =INDEX('LS7. Population Projections'!$B27:$Z27,MATCH(E$401,'LS7. Population Projections'!$B$2:$Z$2,0)) -> 100.627255 | F425: =INDEX('LS7. Population Projections'!$B27:$Z27,MATCH(F$401,'LS7. Population Projections'!$B$2:$Z$2,0)) -> 101.5074947 | G425: =INDEX('LS7. Population Projections'!$B27:$Z27,MATCH(G$401,'LS7. Population Projections'!$B$2:$Z$2,0)) -> 104.2309262
C426: 2026 | D426: =INDEX('LS7. Population Projections'!$B28:$Z28,MATCH(D$3,'LS7. Population Projections'!$B$2:$Z$2,0)) -> 99.4208349 | E426: =INDEX('LS7. Population Projections'!$B28:$Z28,MATCH(E$401,'LS7. Population Projections'!$B$2:$Z$2,0)) -> 100.6649974 | F426: =INDEX('LS7. Population Projections'!$B28:$Z28,MATCH(F$401,'LS7. Population Projections'!$B$2:$Z$2,0)) -> 101.7138487 | G426: =INDEX('LS7. Population Projections'!$B28:$Z28,MATCH(G$401,'LS7. Population Projections'!$B$2:$Z$2,0)) -> 104.8155626
C427: 2027 | D427: =INDEX('LS7. Population Projections'!$B29:$Z29,MATCH(D$3,'LS7. Population Projections'!$B$2:$Z$2,0)) -> 99.3134808 | E427: =INDEX('LS7. Population Projections'!$B29:$Z29,MATCH(E$401,'LS7. Population Projections'!$B$2:$Z$2,0)) -> 100.6931633 | F427: =INDEX('LS7. Population Projections'!$B29:$Z29,MATCH(F$401,'LS7. Population Projections'!$B$2:$Z$2,0)) -> 101.9088245 | G427: =INDEX('LS7. Population Projections'!$B29:$Z29,MATCH(G$401,'LS7. Population Projections'!$B$2:$Z$2,0)) -> 105.388145
C428: 2028 | D428: =INDEX('LS7. Population Projections'!$B30:$Z30,MATCH(D$3,'LS7. Population Projections'!$B$2:$Z$2,0)) -> 99.20886184 | E428: =INDEX('LS7. Population Projections'!$B30:$Z30,MATCH(E$401,'LS7. Population Projections'!$B$2:$Z$2,0)) -> 100.717386 | F428: =INDEX('LS7. Population Projections'!$B30:$Z30,MATCH(F$401,'LS7. Population Projections'!$B$2:$Z$2,0)) -> 102.0906045 | G428: =INDEX('LS7. Population Projections'!$B30:$Z30,MATCH(G$401,'LS7. Population Projections'!$B$2:$Z$2,0)) -> 105.9476899
C461: LS8. Population Projections, 16-64, 2018-28
D462: =D$3 -> Blackburn with Darwen | E462: =D$4 -> Blackburn with Darwen, Hyndburn, Rossendale and Ribble Valley | F462: Lancashire | G462: England Minus London
C463: 2018 | D463: =INDEX('LS8. Pop Projections 16-64'!$B4:$Z4,MATCH(D$3,'LS8. Pop Projections 16-64'!$B$2:$Z$2,0)) -> 90711 | E463: =INDEX('LS8. Pop Projections 16-64'!$B4:$Z4,MATCH(E$462,'LS8. Pop Projections 16-64'!$B$2:$Z$2,0)) -> 216812 | F463: =INDEX('LS8. Pop Projections 16-64'!$B4:$Z4,MATCH(F$462,'LS8. Pop Projections 16-64'!$B$2:$Z$2,0)) -> 906288 | G463: =INDEX('LS8. Pop Projections 16-64'!$B4:$Z4,MATCH(G$462,'LS8. Pop Projections 16-64'!$B$2:$Z$2,0)) -> 28916187
C464: 2019 | D464: =INDEX('LS8. Pop Projections 16-64'!$B5:$Z5,MATCH(D$3,'LS8. Pop Projections 16-64'!$B$2:$Z$2,0)) -> 90479 | E464: =INDEX('LS8. Pop Projections 16-64'!$B5:$Z5,MATCH(E$462,'LS8. Pop Projections 16-64'!$B$2:$Z$2,0)) -> 216220 | F464: =INDEX('LS8. Pop Projections 16-64'!$B5:$Z5,MATCH(F$462,'LS8. Pop Projections 16-64'!$B$2:$Z$2,0)) -> 903746 | G464: =INDEX('LS8. Pop Projections 16-64'!$B5:$Z5,MATCH(G$462,'LS8. Pop Projections 16-64'!$B$2:$Z$2,0)) -> 28949602
C465: 2020 | D465: =INDEX('LS8. Pop Projections 16-64'!$B6:$Z6,MATCH(D$3,'LS8. Pop Projections 16-64'!$B$2:$Z$2,0)) -> 90101 | E465: =INDEX('LS8. Pop Projections 16-64'!$B6:$Z6,MATCH(E$462,'LS8. Pop Projections 16-64'!$B$2:$Z$2,0)) -> 215514 | F465: =INDEX('LS8. Pop Projections 16-64'!$B6:$Z6,MATCH(F$462,'LS8. Pop Projections 16-64'!$B$2:$Z$2,0)) -> 901615 | G465: =INDEX('LS8. Pop Projections 16-64'!$B6:$Z6,MATCH(G$462,'LS8. Pop Projections 16-64'!$B$2:$Z$2,0)) -> 29003349
C466: 2021 | D466: =INDEX('LS8. Pop Projections 16-64'!$B7:$Z7,MATCH(D$3,'LS8. Pop Projections 16-64'!$B$2:$Z$2,0)) -> 89800 | E466: =INDEX('LS8. Pop Projections 16-64'!$B7:$Z7,MATCH(E$462,'LS8. Pop Projections 16-64'!$B$2:$Z$2,0)) -> 214933 | F466: =INDEX('LS8. Pop Projections 16-64'!$B7:$Z7,MATCH(F$462,'LS8. Pop Projections 16-64'!$B$2:$Z$2,0)) -> 899642 | G466: =INDEX('LS8. Pop Projections 16-64'!$B7:$Z7,MATCH(G$462,'LS8. Pop Projections 16-64'!$B$2:$Z$2,0)) -> 29046808
C467: 2022 | D467: =INDEX('LS8. Pop Projections 16-64'!$B8:$Z8,MATCH(D$3,'LS8. Pop Projections 16-64'!$B$2:$Z$2,0)) -> 89490 | E467: =INDEX('LS8. Pop Projections 16-64'!$B8:$Z8,MATCH(E$462,'LS8. Pop Projections 16-64'!$B$2:$Z$2,0)) -> 214305 | F467: =INDEX('LS8. Pop Projections 16-64'!$B8:$Z8,MATCH(F$462,'LS8. Pop Projections 16-64'!$B$2:$Z$2,0)) -> 897629 | G467: =INDEX('LS8. Pop Projections 16-64'!$B8:$Z8,MATCH(G$462,'LS8. Pop Projections 16-64'!$B$2:$Z$2,0)) -> 29099836
C468: 2023 | D468: =INDEX('LS8. Pop Projections 16-64'!$B9:$Z9,MATCH(D$3,'LS8. Pop Projections 16-64'!$B$2:$Z$2,0)) -> 89231 | E468: =INDEX('LS8. Pop Projections 16-64'!$B9:$Z9,MATCH(E$462,'LS8. Pop Projections 16-64'!$B$2:$Z$2,0)) -> 213795 | F468: =INDEX('LS8. Pop Projections 16-64'!$B9:$Z9,MATCH(F$462,'LS8. Pop Projections 16-64'!$B$2:$Z$2,0)) -> 895671 | G468: =INDEX('LS8. Pop Projections 16-64'!$B9:$Z9,MATCH(G$462,'LS8. Pop Projections 16-64'!$B$2:$Z$2,0)) -> 29147643
C469: 2024 | D469: =INDEX('LS8. Pop Projections 16-64'!$B10:$Z10,MATCH(D$3,'LS8. Pop Projections 16-64'!$B$2:$Z$2,0)) -> 88989 | E469: =INDEX('LS8. Pop Projections 16-64'!$B10:$Z10,MATCH(E$462,'LS8. Pop Projections 16-64'!$B$2:$Z$2,0)) -> 213249 | F469: =INDEX('LS8. Pop Projections 16-64'!$B10:$Z10,MATCH(F$462,'LS8. Pop Projections 16-64'!$B$2:$Z$2,0)) -> 894432 | G469: =INDEX('LS8. Pop Projections 16-64'!$B10:$Z10,MATCH(G$462,'LS8. Pop Projections 16-64'!$B$2:$Z$2,0)) -> 29208351
C470: 2025 | D470: =INDEX('LS8. Pop Projections 16-64'!$B11:$Z11,MATCH(D$3,'LS8. Pop Projections 16-64'!$B$2:$Z$2,0)) -> 88658 | E470: =INDEX('LS8. Pop Projections 16-64'!$B11:$Z11,MATCH(E$462,'LS8. Pop Projections 16-64'!$B$2:$Z$2,0)) -> 212516 | F470: =INDEX('LS8. Pop Projections 16-64'!$B11:$Z11,MATCH(F$462,'LS8. Pop Projections 16-64'!$B$2:$Z$2,0)) -> 892553 | G470: =INDEX('LS8. Pop Projections 16-64'!$B11:$Z11,MATCH(G$462,'LS8. Pop Projections 16-64'!$B$2:$Z$2,0)) -> 29257962
C471: 2026 | D471: =INDEX('LS8. Pop Projections 16-64'!$B12:$Z12,MATCH(D$3,'LS8. Pop Projections 16-64'!$B$2:$Z$2,0)) -> 88229 | E471: =INDEX('LS8. Pop Projections 16-64'!$B12:$Z12,MATCH(E$462,'LS8. Pop Projections 16-64'!$B$2:$Z$2,0)) -> 211718 | F471: =INDEX('LS8. Pop Projections 16-64'!$B12:$Z12,MATCH(F$462,'LS8. Pop Projections 16-64'!$B$2:$Z$2,0)) -> 890260 | G471: =INDEX('LS8. Pop Projections 16-64'!$B12:$Z12,MATCH(G$462,'LS8. Pop Projections 16-64'!$B$2:$Z$2,0)) -> 29294745
C472: 2027 | D472: =INDEX('LS8. Pop Projections 16-64'!$B13:$Z13,MATCH(D$3,'LS8. Pop Projections 16-64'!$B$2:$Z$2,0)) -> 87750 | E472: =INDEX('LS8. Pop Projections 16-64'!$B13:$Z13,MATCH(E$462,'LS8. Pop Projections 16-64'!$B$2:$Z$2,0)) -> 210638 | F472: =INDEX('LS8. Pop Projections 16-64'!$B13:$Z13,MATCH(F$462,'LS8. Pop Projections 16-64'!$B$2:$Z$2,0)) -> 887477 | G472: =INDEX('LS8. Pop Projections 16-64'!$B13:$Z13,MATCH(G$462,'LS8. Pop Projections 16-64'!$B$2:$Z$2,0)) -> 29323462
C473: 2028 | D473: =INDEX('LS8. Pop Projections 16-64'!$B14:$Z14,MATCH(D$3,'LS8. Pop Projections 16-64'!$B$2:$Z$2,0)) -> 87415 | E473: =INDEX('LS8. Pop Projections 16-64'!$B14:$Z14,MATCH(E$462,'LS8. Pop Projections 16-64'!$B$2:$Z$2,0)) -> 209760 | F473: =INDEX('LS8. Pop Projections 16-64'!$B14:$Z14,MATCH(F$462,'LS8. Pop Projections 16-64'!$B$2:$Z$2,0)) -> 884605 | G473: =INDEX('LS8. Pop Projections 16-64'!$B14:$Z14,MATCH(G$462,'LS8. Pop Projections 16-64'!$B$2:$Z$2,0)) -> 29351753
C474: Change 2018-2028 | D474: =INDEX('LS8. Pop Projections 16-64'!$B15:$Z15,MATCH(D$3,'LS8. Pop Projections 16-64'!$B$2:$Z$2,0)) -> -3296 | E474: =INDEX('LS8. Pop Projections 16-64'!$B15:$Z15,MATCH(E$462,'LS8. Pop Projections 16-64'!$B$2:$Z$2,0)) -> -7052 | F474: =INDEX('LS8. Pop Projections 16-64'!$B15:$Z15,MATCH(F$462,'LS8. Pop Projections 16-64'!$B$2:$Z$2,0)) -> -21683 | G474: =INDEX('LS8. Pop Projections 16-64'!$B15:$Z15,MATCH(G$462,'LS8. Pop Projections 16-64'!$B$2:$Z$2,0)) -> 435566
C475: % Change 2018-2028 | D475: =D474/D463 -> -0.03633517434 | E475: =E474/E463 -> -0.03252587495 | F475: =F474/F463 -> -0.02392506576 | G475: =G474/G463 -> 0.01506305102
C477: LS8. Index of Population Projections, 16-64, 2018-28
D478: =D$3 -> Blackburn with Darwen | E478: =D$4 -> Blackburn with Darwen, Hyndburn, Rossendale and Ribble Valley | F478: Lancashire | G478: England Minus London
C479: 2018 | D479: =INDEX('LS8. Pop Projections 16-64'!$B20:$Z20,MATCH(D$3,'LS8. Pop Projections 16-64'!$B$2:$Z$2,0)) -> 100 | E479: =INDEX('LS8. Pop Projections 16-64'!$B20:$Z20,MATCH(E$462,'LS8. Pop Projections 16-64'!$B$2:$Z$2,0)) -> 100 | F479: =INDEX('LS8. Pop Projections 16-64'!$B20:$Z20,MATCH(F$462,'LS8. Pop Projections 16-64'!$B$2:$Z$2,0)) -> 100 | G479: =INDEX('LS8. Pop Projections 16-64'!$B20:$Z20,MATCH(G$462,'LS8. Pop Projections 16-64'!$B$2:$Z$2,0)) -> 100
C480: 2019 | D480: =INDEX('LS8. Pop Projections 16-64'!$B21:$Z21,MATCH(D$3,'LS8. Pop Projections 16-64'!$B$2:$Z$2,0)) -> 99.7442427 | E480: =INDEX('LS8. Pop Projections 16-64'!$B21:$Z21,MATCH(E$462,'LS8. Pop Projections 16-64'!$B$2:$Z$2,0)) -> 99.72695238 | F480: =INDEX('LS8. Pop Projections 16-64'!$B21:$Z21,MATCH(F$462,'LS8. Pop Projections 16-64'!$B$2:$Z$2,0)) -> 99.71951521 | G480: =INDEX('LS8. Pop Projections 16-64'!$B21:$Z21,MATCH(G$462,'LS8. Pop Projections 16-64'!$B$2:$Z$2,0)) -> 100.1155581
C481: 2020 | D481: =INDEX('LS8. Pop Projections 16-64'!$B22:$Z22,MATCH(D$3,'LS8. Pop Projections 16-64'!$B$2:$Z$2,0)) -> 99.3275347 | E481: =INDEX('LS8. Pop Projections 16-64'!$B22:$Z22,MATCH(E$462,'LS8. Pop Projections 16-64'!$B$2:$Z$2,0)) -> 99.40132465 | F481: =INDEX('LS8. Pop Projections 16-64'!$B22:$Z22,MATCH(F$462,'LS8. Pop Projections 16-64'!$B$2:$Z$2,0)) -> 99.48438024 | G481: =INDEX('LS8. Pop Projections 16-64'!$B22:$Z22,MATCH(G$462,'LS8. Pop Projections 16-64'!$B$2:$Z$2,0)) -> 100.3014298
C482: 2021 | D482: =INDEX('LS8. Pop Projections 16-64'!$B23:$Z23,MATCH(D$3,'LS8. Pop Projections 16-64'!$B$2:$Z$2,0)) -> 98.99571166 | E482: =INDEX('LS8. Pop Projections 16-64'!$B23:$Z23,MATCH(E$462,'LS8. Pop Projections 16-64'!$B$2:$Z$2,0)) -> 99.13335055 | F482: =INDEX('LS8. Pop Projections 16-64'!$B23:$Z23,MATCH(F$462,'LS8. Pop Projections 16-64'!$B$2:$Z$2,0)) -> 99.26667902 | G482: =INDEX('LS8. Pop Projections 16-64'!$B23:$Z23,MATCH(G$462,'LS8. Pop Projections 16-64'!$B$2:$Z$2,0)) -> 100.4517228
C483: 2022 | D483: =INDEX('LS8. Pop Projections 16-64'!$B24:$Z24,MATCH(D$3,'LS8. Pop Projections 16-64'!$B$2:$Z$2,0)) -> 98.65396699 | E483: =INDEX('LS8. Pop Projections 16-64'!$B24:$Z24,MATCH(E$462,'LS8. Pop Projections 16-64'!$B$2:$Z$2,0)) -> 98.84369869 | F483: =INDEX('LS8. Pop Projections 16-64'!$B24:$Z24,MATCH(F$462,'LS8. Pop Projections 16-64'!$B$2:$Z$2,0)) -> 99.0445642 | G483: =INDEX('LS8. Pop Projections 16-64'!$B24:$Z24,MATCH(G$462,'LS8. Pop Projections 16-64'!$B$2:$Z$2,0)) -> 100.6351079
C484: 2023 | D484: =INDEX('LS8. Pop Projections 16-64'!$B25:$Z25,MATCH(D$3,'LS8. Pop Projections 16-64'!$B$2:$Z$2,0)) -> 98.36844484 | E484: =INDEX('LS8. Pop Projections 16-64'!$B25:$Z25,MATCH(E$462,'LS8. Pop Projections 16-64'!$B$2:$Z$2,0)) -> 98.60847186 | F484: =INDEX('LS8. Pop Projections 16-64'!$B25:$Z25,MATCH(F$462,'LS8. Pop Projections 16-64'!$B$2:$Z$2,0)) -> 98.82851809 | G484: =INDEX('LS8. Pop Projections 16-64'!$B25:$Z25,MATCH(G$462,'LS8. Pop Projections 16-64'!$B$2:$Z$2,0)) -> 100.8004375
C485: 2024 | D485: =INDEX('LS8. Pop Projections 16-64'!$B26:$Z26,MATCH(D$3,'LS8. Pop Projections 16-64'!$B$2:$Z$2,0)) -> 98.10166352 | E485: =INDEX('LS8. Pop Projections 16-64'!$B26:$Z26,MATCH(E$462,'LS8. Pop Projections 16-64'!$B$2:$Z$2,0)) -> 98.35664078 | F485: =INDEX('LS8. Pop Projections 16-64'!$B26:$Z26,MATCH(F$462,'LS8. Pop Projections 16-64'!$B$2:$Z$2,0)) -> 98.69180658 | G485: =INDEX('LS8. Pop Projections 16-64'!$B26:$Z26,MATCH(G$462,'LS8. Pop Projections 16-64'!$B$2:$Z$2,0)) -> 101.0103822
C486: 2025 | D486: =INDEX('LS8. Pop Projections 16-64'!$B27:$Z27,MATCH(D$3,'LS8. Pop Projections 16-64'!$B$2:$Z$2,0)) -> 97.73676842 | E486: =INDEX('LS8. Pop Projections 16-64'!$B27:$Z27,MATCH(E$462,'LS8. Pop Projections 16-64'!$B$2:$Z$2,0)) -> 98.01855986 | F486: =INDEX('LS8. Pop Projections 16-64'!$B27:$Z27,MATCH(F$462,'LS8. Pop Projections 16-64'!$B$2:$Z$2,0)) -> 98.48447734 | G486: =INDEX('LS8. Pop Projections 16-64'!$B27:$Z27,MATCH(G$462,'LS8. Pop Projections 16-64'!$B$2:$Z$2,0)) -> 101.1819504
C487: 2026 | D487: =INDEX('LS8. Pop Projections 16-64'!$B28:$Z28,MATCH(D$3,'LS8. Pop Projections 16-64'!$B$2:$Z$2,0)) -> 97.2638379 | E487: =INDEX('LS8. Pop Projections 16-64'!$B28:$Z28,MATCH(E$462,'LS8. Pop Projections 16-64'!$B$2:$Z$2,0)) -> 97.65049905 | F487: =INDEX('LS8. Pop Projections 16-64'!$B28:$Z28,MATCH(F$462,'LS8. Pop Projections 16-64'!$B$2:$Z$2,0)) -> 98.23146726 | G487: =INDEX('LS8. Pop Projections 16-64'!$B28:$Z28,MATCH(G$462,'LS8. Pop Projections 16-64'!$B$2:$Z$2,0)) -> 101.309156
C488: 2027 | D488: =INDEX('LS8. Pop Projections 16-64'!$B29:$Z29,MATCH(D$3,'LS8. Pop Projections 16-64'!$B$2:$Z$2,0)) -> 96.73578728 | E488: =INDEX('LS8. Pop Projections 16-64'!$B29:$Z29,MATCH(E$462,'LS8. Pop Projections 16-64'!$B$2:$Z$2,0)) -> 97.15237164 | F488: =INDEX('LS8. Pop Projections 16-64'!$B29:$Z29,MATCH(F$462,'LS8. Pop Projections 16-64'!$B$2:$Z$2,0)) -> 97.92439048 | G488: =INDEX('LS8. Pop Projections 16-64'!$B29:$Z29,MATCH(G$462,'LS8. Pop Projections 16-64'!$B$2:$Z$2,0)) -> 101.4084672
C489: 2028 | D489: =INDEX('LS8. Pop Projections 16-64'!$B30:$Z30,MATCH(D$3,'LS8. Pop Projections 16-64'!$B$2:$Z$2,0)) -> 96.36648257 | E489: =INDEX('LS8. Pop Projections 16-64'!$B30:$Z30,MATCH(E$462,'LS8. Pop Projections 16-64'!$B$2:$Z$2,0)) -> 96.7474125 | F489: =INDEX('LS8. Pop Projections 16-64'!$B30:$Z30,MATCH(F$462,'LS8. Pop Projections 16-64'!$B$2:$Z$2,0)) -> 97.60749342 | G489: =INDEX('LS8. Pop Projections 16-64'!$B30:$Z30,MATCH(G$462,'LS8. Pop Projections 16-64'!$B$2:$Z$2,0)) -> 101.5063051
C540: LS9. Population Projections, 65+, 2018-28
D541: =D$3 -> Blackburn with Darwen | E541: =D$4 -> Blackburn with Darwen, Hyndburn, Rossendale and Ribble Valley | F541: Lancashire | G541: England Minus London
C542: 2018 | D542: =INDEX('LS9. Pop Projections 65+'!$B4:$Z4,MATCH(D$3,'LS9. Pop Projections 65+'!$B$2:$Z$2,0)) -> 21786 | E542: =INDEX('LS9. Pop Projections 65+'!$B4:$Z4,MATCH(E$541,'LS9. Pop Projections 65+'!$B$2:$Z$2,0)) -> 63806 | F542: =INDEX('LS9. Pop Projections 65+'!$B4:$Z4,MATCH(F$541,'LS9. Pop Projections 65+'!$B$2:$Z$2,0)) -> 298848 | G542: =INDEX('LS9. Pop Projections 65+'!$B4:$Z4,MATCH(G$541,'LS9. Pop Projections 65+'!$B$2:$Z$2,0)) -> 9187643
C543: 2019 | D543: =INDEX('LS9. Pop Projections 65+'!$B5:$Z5,MATCH(D$3,'LS9. Pop Projections 65+'!$B$2:$Z$2,0)) -> 22041 | E543: =INDEX('LS9. Pop Projections 65+'!$B5:$Z5,MATCH(E$541,'LS9. Pop Projections 65+'!$B$2:$Z$2,0)) -> 64779 | F543: =INDEX('LS9. Pop Projections 65+'!$B5:$Z5,MATCH(F$541,'LS9. Pop Projections 65+'!$B$2:$Z$2,0)) -> 302934 | G543: =INDEX('LS9. Pop Projections 65+'!$B5:$Z5,MATCH(G$541,'LS9. Pop Projections 65+'!$B$2:$Z$2,0)) -> 9351043
C544: 2020 | D544: =INDEX('LS9. Pop Projections 65+'!$B6:$Z6,MATCH(D$3,'LS9. Pop Projections 65+'!$B$2:$Z$2,0)) -> 22442 | E544: =INDEX('LS9. Pop Projections 65+'!$B6:$Z6,MATCH(E$541,'LS9. Pop Projections 65+'!$B$2:$Z$2,0)) -> 65823 | F544: =INDEX('LS9. Pop Projections 65+'!$B6:$Z6,MATCH(F$541,'LS9. Pop Projections 65+'!$B$2:$Z$2,0)) -> 307140 | G544: =INDEX('LS9. Pop Projections 65+'!$B6:$Z6,MATCH(G$541,'LS9. Pop Projections 65+'!$B$2:$Z$2,0)) -> 9506582
... 362 more rows

Sheet ONS LA Codes (hidden)
B1: ONS CODING
A3: Local Authority | B3: Nomis Code
A4: Aberdeen City | B4: S12000033 | E4: Blackburn with Darwen | F4: Blackburn with Darwen, Hyndburn, Rossendale and Ribble Valley
A5: Aberdeenshire | B5: S12000034 | E5: Blackpool | F5: Blackpool, Fylde and Wyre
A6: Angus | B6: S12000041 | E6: Burnley | F6: Burnley and Pendle
A7: Argyll and Bute | B7: S12000035 | E7: Chorley | F7: Preston, Chorley and South Ribble
A8: Clackmannanshire | B8: S12000005 | E8: Fylde | F8: Blackpool, Fylde and Wyre
A9: Dumfries and Galloway | B9: S12000006 | E9: Hyndburn | F9: Blackburn with Darwen, Hyndburn, Rossendale and Ribble Valley
A10: Dundee City | B10: S12000042 | E10: Lancaster | F10: Lancaster and Morecambe
A11: East Ayrshire | B11: S12000008 | E11: Pendle | F11: Burnley and Pendle
A12: East Dunbartonshire | B12: S12000045 | E12: Preston | F12: Preston, Chorley and South Ribble
A13: East Lothian | B13: S12000010 | E13: Ribble Valley | F13: Blackburn with Darwen, Hyndburn, Rossendale and Ribble Valley
A14: East Renfrewshire | B14: S12000011 | E14: Rossendale | F14: Blackburn with Darwen, Hyndburn, Rossendale and Ribble Valley
A15: Edinburgh, City of | B15: S12000036 | E15: South Ribble | F15: Preston, Chorley and South Ribble
A16: Eilean Siar | B16: S12000013 | E16: West Lancashire | F16: West Lancashire
A17: Falkirk | B17: S12000014 | E17: Wrye | F17: Blackpool, Fylde and Wyre
A18: Fife | B18: S12000015
A19: Glasgow City | B19: S12000046
A20: Highland | B20: S12000017
A21: Inverclyde | B21: S12000018
A22: Midlothian | B22: S12000019
A23: Moray | B23: S12000020
A24: North Ayrshire | B24: S12000021
A25: North Lanarkshire | B25: S12000044
A26: Orkney Islands | B26: S12000023
A27: Perth and Kinross | B27: S12000024
A28: Renfrewshire | B28: S12000038
A29: Scottish Borders | B29: S12000026
A30: Shetland Islands | B30: S12000027
A31: South Ayrshire | B31: S12000028
A32: South Lanarkshire | B32: S12000029
A33: Stirling | B33: S12000030
A34: West Dunbartonshire | B34: S12000039
A35: West Lothian | B35: S12000040
A36: SDS Region / Other | B36: ekosgen code
A37: New - South of Scotland (RSA) | B37: SS
A38: Aberdeen and Aberdeenshire (RSA) | B38: AA
A39: Ayrshire (RSA) | B39: AY
A40: Borders (RSA) | B40: BO
A41: Dumfries & Galloway (RSA) | B41: DG
A42: Edinburgh and Lothians (RSA) | B42: EL
A43: Fife (RSA) | B43: FI
A44: Forth Valley (RSA) | B44: FV
A45: Glasgow (RSA) | B45: GL
A46: Highlands and Islands (RSA) | B46: HI
A47: Lanarkshire (RSA) | B47: LR
A48: Tayside (RSA) | B48: TY
A49: West (RSA) | B49: WE
A50: West Lothian (RSA) | B50: WL
A51: Aberdeen and Aberdeenshire City Deal | B51: AACD
A52: Glasgow City Deal | B52: GCD
A53: Edinburgh and South East Scotland City Deal | B53: ESECD
A54: Tayside City Deal | B54: TCD
A55: Inverness and Highlands City Deal | B55: IHCD
A56: Scotland | B56: SC
A57: Great Britain | B57: GB
A58: United Kingdom | B58: UK

Sheet LS1. Total Population
A1: LS1. Total Population | B1: Return to Contents | D1: Return to TTWA Summary | I1: Return to LA Summary
B2: Blackburn with Darwen, Hyndburn, Rossendale and Ribble Valley | C2: Blackpool, Fylde and Wyre | D2: Burnley and Pendle | E2: Lancaster and Morecambe | F2: Preston, Chorley and South Ribble | G2: West Lancashire | H2: Preston and South Ribble City Deal | I2: Blackburn with Darwen | J2: Blackpool | K2: Burnley | L2: Chorley | M2: Fylde | N2: Hyndburn | O2: Lancaster | P2: Pendle | Q2: Preston | R2: Ribble Valley | S2: Rossendale | T2: South Ribble | U2: West Lancashire | V2: Wrye | W2: Lancashire | X2: North West | Y2: England Minus London | Z2: England
A3: Year
A4: 2006 | B4: 347464 | C4: 326992 | D4: 176434 | E4: 136682 | F4: 348103 | G4: 110308 | H4: =SUM(Q4,T4) -> 244296 | I4: 143110 | J4: 143733 | K4: 87646 | L4: 103807 | M4: 74824 | N4: 81491 | O4: 136682 | P4: 88788 | Q4: 137784 | R4: 56664 | S4: 66199 | T4: 106512 | U4: 110308 | V4: 108435 | W4: 1445983 | X4: 6901585 | Y4: 43367361 | Z4: 50965186
A5: 2007 | B5: 349004 | C5: 327424 | D5: 176075 | E5: 136235 | F5: 349960 | G5: 110720 | H5: =SUM(Q5,T5) -> 245598 | I5: 143942 | J5: 143644 | K5: 87256 | L5: 104362 | M5: 75305 | N5: 81453 | O5: 136235 | P5: 88819 | Q5: 138470 | R5: 56986 | S5: 66623 | T5: 107128 | U5: 110720 | V5: 108475 | W5: 1449418 | X5: 6929277 | Y5: 43687620 | Z5: 51381093
A6: 2008 | B6: 350299 | C6: 326396 | D6: 176333 | E6: 135812 | F6: 351669 | G6: 110666 | H6: 246273 | I6: 144902 | J6: 142921 | K6: 87328 | L6: 105396 | M6: 75230 | N6: 81176 | O6: 135812 | P6: 89005 | Q6: 138443 | R6: 57158 | S6: 67063 | T6: 107830 | U6: 110666 | V6: 108245 | W6: 1451175 | X6: 6958547 | Y6: 44003692 | Z6: 51815853
A7: 2009 | B7: 351683 | C7: 326076 | D7: 176314 | E7: 136013 | F7: 352247 | G7: 110583 | H7: 246565 | I7: 146197 | J7: 142578 | K7: 87027 | L7: 105682 | M7: 75441 | N7: 81003 | O7: 136013 | P7: 89287 | Q7: 137956 | R7: 57004 | S7: 67479 | T7: 108609 | U7: 110583 | V7: 108057 | W7: 1452916 | X7: 6986156 | Y7: 44253787 | Z7: 52196381
A8: 2010 | B8: 352884 | C8: 326275 | D8: 176136 | E8: 137120 | F8: 354120 | G8: 110763 | H8: 247677 | I8: 146966 | J8: 142753 | K8: 86902 | L8: 106443 | M8: 75610 | N8: 80876 | O8: 137120 | P8: 89234 | Q8: 138831 | R8: 57218 | S8: 67824 | T8: 108846 | U8: 110763 | V8: 107912 | W8: 1457298 | X8: 7019921 | Y8: 44580957 | Z8: 52642452
A9: 2011 | B9: 353551 | C9: 325870 | D9: 176608 | E9: 137823 | F9: 356826 | G9: 110617 | H9: 249235 | I9: 147657 | J9: 142080 | K9: 87032 | L9: 107591 | M9: 76098 | N9: 80549 | O9: 137823 | P9: 89576 | Q9: 140054 | R9: 57292 | S9: 68053 | T9: 109181 | U9: 110617 | V9: 107692 | W9: 1461295 | X9: 7055961 | Y9: 44902762 | Z9: 53107169
A10: 2012 | B10: 353865 | C10: 325885 | D10: 176740 | E10: 139665 | F10: 358588 | G10: 110925 | H10: 249511 | I10: 147713 | J10: 141976 | K10: 87127 | L10: 109077 | M10: 76020 | N10: 80190 | O10: 139665 | P10: 89613 | Q10: 140540 | R10: 57596 | S10: 68366 | T10: 108971 | U10: 110925 | V10: 107889 | W10: 1465668 | X10: 7084337 | Y10: 45185360 | Z10: 53493729
A11: 2013 | B11: 354017 | C11: 326078 | D11: 177025 | E11: 140575 | F11: 359837 | G11: 111314 | H11: 249332 | I11: 147369 | J11: 141400 | K11: 86894 | L11: 110505 | M11: 76442 | N11: 80046 | O11: 140575 | P11: 90131 | Q11: 140419 | R11: 57858 | S11: 68744 | T11: 108913 | U11: 111314 | V11: 108236 | W11: 1468846 | X11: 7103261 | Y11: 45449274 | Z11: 53865817
A12: 2014 | B12: 354210 | C12: 326285 | D12: 177131 | E12: 141277 | F12: 361136 | G12: 111940 | H12: 249529 | I12: 146743 | J12: 140501 | K12: 87291 | L12: 111607 | M12: 77042 | N12: 80208 | O12: 141277 | P12: 89840 | Q12: 140452 | R12: 58091 | S12: 69168 | T12: 109077 | U12: 111940 | V12: 108742 | W12: 1471979 | X12: 7132991 | Y12: 45777929 | Z12: 54316618
A13: 2015 | B13: 355041 | C13: 326645 | D13: 177482 | E13: 142283 | F13: 363922 | G13: 112742 | H13: 250953 | I13: 146846 | J13: 139578 | K13: 87371 | L13: 112969 | M13: 77322 | N13: 80228 | O13: 142283 | P13: 90111 | Q13: 141302 | R13: 58480 | S13: 69487 | T13: 109651 | U13: 112742 | V13: 109745 | W13: 1478115 | X13: 7173835 | Y13: 46112614 | Z13: 54786327
A14: 2016 | B14: 356298 | C14: 327446 | D14: 178110 | E14: 143517 | F14: 366270 | G14: 113401 | H14: 251919 | I14: 147049 | J14: 139195 | K14: 87522 | L14: 114351 | M14: 77990 | N14: 80537 | O14: 143517 | P14: 90588 | Q14: 141801 | R14: 58826 | S14: 69886 | T14: 110118 | U14: 113401 | V14: 110261 | W14: 1485042 | X14: 7219623 | Y14: 46480175 | Z14: 55268067
A15: Change 2006-16 | B15: =B14-B4 -> 8834 | C15: =C14-C4 -> 454 | D15: 1676 | E15: 6835 | F15: 18167 | G15: 3093 | H15: =H14-H4 -> 7623 | I15: 3939 | J15: -4538 | K15: -124 | L15: 10544 | M15: 3166 | N15: -954 | O15: 6835 | P15: 1800 | Q15: 4017 | R15: 2162 | S15: 3687 | T15: 3606 | U15: 3093 | V15: 1826 | W15: 39059 | X15: 318038 | Y15: 3112814 | Z15: 4302881
A16: % Change 2006-16 | B16: =(B14-B4)/B4 -> 0.02542421661 | C16: =(C14-C4)/C4 -> 0.001388413172 | D16: 0.009499302855 | E16: 0.05000658463 | F16: 0.05218857637 | G16: 0.02803967074 | H16: =(H14-H4)/H4 -> 0.03120394931 | I16: 0.02752428202 | J16: -0.03157242944 | K16: -0.001414782192 | L16: 0.1015731116 | M16: 0.04231262696 | N16: -0.01170681425 | O16: 0.05000658463 | P16: 0.02027300987 | Q16: 0.02915432851 | R16: 0.03815473669 | S16: 0.05569570537 | T16: 0.03385534024 | U16: 0.02803967074 | V16: 0.01683958132 | W16: 0.02701207414 | X16: 0.04608187829 | Y16: 0.07177780543 | Z16: 0.08442784845
A19: Index of popuation change (2006 = 100)
A20: 2006 | B20: 100 | C20: 100 | D20: 100 | E20: 100 | F20: 100 | G20: 100 | H20: 100 | I20: 100 | J20: 100 | K20: 100 | L20: 100 | M20: 100 | N20: 100 | O20: 100 | P20: 100 | Q20: 100 | R20: 100 | S20: 100 | T20: 100 | U20: 100 | V20: 100 | W20: 100 | X20: 100 | Y20: 100 | Z20: 100
A21: 2007 | B21: =(B5/B$4)*100 -> 100.4432114 | C21: =(C5/C$4)*100 -> 100.1321133 | D21: 99.79652448 | E21: 99.67296352 | F21: 100.5334628 | G21: 100.3734997 | H21: =(H5/H$4)*100 -> 100.53296 | I21: 100.581371 | J21: 99.93807963 | K21: 99.55502818 | L21: 100.534646 | M21: 100.6428419 | N21: 99.95336908 | O21: 99.67296352 | P21: 100.0349146 | Q21: 100.4978807 | R21: 100.568262 | S21: 100.6404931 | T21: 100.5783386 | U21: 100.3734997 | V21: 100.0368885 | W21: 100.2375547 | X21: 100.4012412 | Y21: 100.7384793 | Z21: 100.816061
A22: 2008 | B22: =(B6/B$4)*100 -> 100.8159119 | C22: 99.81773254 | D22: 99.9427548 | E22: 99.36348605 | F22: 101.0244094 | G22: 100.3245458 | H22: 100.8092642 | I22: 101.2521836 | J22: 99.43506362 | K22: 99.63717682 | L22: 101.5307253 | M22: 100.5426067 | N22: 99.61345425 | O22: 99.36348605 | P22: 100.2444024 | Q22: 100.4782849 | R22: 100.8718057 | S22: 101.3051557 | T22: 101.2374193 | U22: 100.3245458 | V22: 99.82477982 | W22: 100.3590637 | X22: 100.8253466 | Y22: 101.4673039 | Z22: 101.6691139
A23: 2009 | B23: =(B7/B$4)*100 -> 101.2142265 | C23: 99.71987082 | D23: 99.9319859 | E23: 99.51054272 | F23: 101.1904523 | G23: 100.249302 | H23: 100.9287913 | I23: 102.157082 | J23: 99.19642671 | K23: 99.29374986 | L23: 101.8062366 | M23: 100.8246017 | N23: 99.40116086 | O23: 99.51054272 | P23: 100.5620129 | Q23: 100.1248331 | R23: 100.6000282 | S23: 101.933564 | T23: 101.9687922 | U23: 100.249302 | V23: 99.65140407 | W23: 100.4794662 | X23: 101.2253852 | Y23: 102.0439934 | Z23: 102.4157569
A24: 2010 | B24: =(B8/B$4)*100 -> 101.5598738 | C24: 99.78072858 | D24: 99.83109831 | E24: 100.3204519 | F24: 101.7285114 | G24: 100.4124814 | H24: 101.3839768 | I24: 102.6944309 | J24: 99.31818024 | K24: 99.15113068 | L24: 102.5393278 | M24: 101.0504651 | N24: 99.24531543 | O24: 100.3204519 | P24: 100.5023201 | Q24: 100.759885 | R24: 100.9776931 | S24: 102.4547199 | T24: 102.1913024 | U24: 100.4124814 | V24: 99.5176834 | W24: 100.7825127 | X24: 101.7146206 | Y24: 102.7984087 | Z24: 103.2910034
A25: 2011 | B25: =(B9/B$4)*100 -> 101.7518362 | C25: 99.65687234 | D25: 100.0986204 | E25: 100.8347844 | F25: 102.5058675 | G25: 100.2801247 | H25: 102.0217277 | I25: 103.1772762 | J25: 98.84995095 | K25: 99.29945462 | L25: 103.6452262 | M25: 101.7026622 | N25: 98.84404413 | O25: 100.8347844 | P25: 100.8875073 | Q25: 101.6475062 | R25: 101.1082874 | S25: 102.8006465 | T25: 102.5058209 | U25: 100.2801247 | V25: 99.31479688 | W25: 101.0589336 | X25: 102.2368195 | Y25: 103.5404529 | Z25: 104.2028356
A26: 2012 | B26: =(B10/B$4)*100 -> 101.8422052 | C26: 99.66145961 | D26: 100.173436 | E26: 102.1824381 | F26: 103.0120395 | G26: 100.5593429 | H26: 102.1347054 | I26: 103.216407 | J26: 98.77759457 | K26: 99.4078452 | L26: 105.0767289 | M26: 101.5984176 | N26: 98.40350468 | O26: 102.1824381 | P26: 100.9291796 | Q26: 102.0002322 | R26: 101.6447833 | S26: 103.2734633 | T26: 102.3086601 | U26: 100.5593429 | V26: 99.49647254 | W26: 101.3613576 | X26: 102.6479714 | Y26: 104.1920905 | Z26: 104.9613142
A27: 2013 | B27: =(B11/B$4)*100 -> 101.8859508 | C27: 99.72048246 | D27: 100.3349695 | E27: 102.848217 | F27: 103.3708414 | G27: 100.9119919 | H27: 102.0614337 | I27: 102.9760324 | J27: 98.37685152 | K27: 99.14200306 | L27: 106.4523587 | M27: 102.1624078 | N27: 98.22679805 | O27: 102.848217 | P27: 101.5125918 | Q27: 101.9124136 | R27: 102.107158 | S27: 103.8444689 | T27: 102.2542061 | U27: 100.9119919 | V27: 99.81647992 | W27: 101.5811389 | X27: 102.9221693 | Y27: 104.8006449 | Z27: 105.6913969
A28: 2014 | B28: =(B12/B$4)*100 -> 101.9414961 | C28: 99.78378676 | D28: 100.3950486 | E28: 103.3618179 | F28: 103.7440068 | G28: 101.4794938 | H28: 102.1420736 | I28: 102.5386067 | J28: 97.75138625 | K28: 99.59496155 | L28: 107.5139441 | M28: 102.9642895 | N28: 98.42559301 | O28: 103.3618179 | P28: 101.1848448 | Q28: 101.9363642 | R28: 102.5183538 | S28: 104.484962 | T28: 102.4081794 | U28: 101.4794938 | V28: 100.2831189 | W28: 101.7978081 | X28: 103.3529399 | Y28: 105.5584844 | Z28: 106.5759242
A29: 2015 | B29: =(B13/B$4)*100 -> 102.1806576 | C29: 99.8938812 | D29: 100.5939898 | E29: 104.0978329 | F29: 104.5443446 | G29: 102.2065489 | H29: 102.724973 | I29: 102.6105793 | J29: 97.10922335 | K29: 99.68623782 | L29: 108.8259944 | M29: 103.338501 | N29: 98.4501356 | O29: 104.0978329 | P29: 101.4900662 | Q29: 102.5532718 | R29: 103.2048567 | S29: 104.9668424 | T29: 102.9470858 | U29: 102.2065489 | V29: 101.208097 | W29: 102.2221561 | X29: 103.944746 | Y29: 106.3302284 | Z29: 107.4975514
A30: 2016 | B30: =(B14/B$4)*100 -> 102.5424217 | C30: 100.1388413 | D30: 100.9499303 | E30: 105.0006585 | F30: 105.2188576 | G30: 102.8039671 | H30: 103.1203949 | I30: 102.7524282 | J30: 96.84275706 | K30: 99.85852178 | L30: 110.1573112 | M30: 104.2312627 | N30: 98.82931858 | O30: 105.0006585 | P30: 102.027301 | Q30: 102.9154329 | R30: 103.8154737 | S30: 105.5695705 | T30: 103.385534 | U30: 102.8039671 | V30: 101.6839581 | W30: 102.7012074 | X30: 104.6081878 | Y30: 107.1777805 | Z30: 108.4427848
A33: Source: Mid-Year Population Estimates
A34: Description: Total resident population, all ages
A35: Years: 2006-2016
A36: https://www.nomisweb.co.uk/

Sheet LS2. Population Split
A1: LS2. Total Population by Characteristic | C1: Return to Contents | E1: Return to TTWA Summary | I1: Return to LA Summary
B2: Blackburn with Darwen, Hyndburn, Rossendale and Ribble Valley | C2: Blackpool, Fylde and Wyre | D2: Burnley and Pendle | E2: Lancaster and Morecambe | F2: Preston, Chorley and South Ribble | G2: West Lancashire | H2: Preston and South Ribble City Deal | I2: Blackburn with Darwen | J2: Blackpool | K2: Burnley | L2: Chorley | M2: Fylde | N2: Hyndburn | O2: Lancaster | P2: Pendle | Q2: Preston | R2: Ribble Valley | S2: Rossendale | T2: South Ribble | U2: West Lancashire | V2: Wrye | W2: Lancashire | X2: North West | Y2: England Minus London | Z2: England
A3: Total Population, 2006
A4: Aged under 1 year | B4: 4700 | C4: 3200 | D4: 2400 | E4: 1400 | F4: 4300 | G4: 1200 | H4: =SUM(Q4,T4) -> 3000 | I4: 2300 | J4: 1600 | K4: 1200 | L4: 1200 | M4: 600 | N4: 1100 | O4: 1400 | P4: 1200 | Q4: 1800 | R4: 500 | S4: 800 | T4: 1200 | U4: 1200 | V4: 1000 | W4: 17100 | X4: 82900 | Y4: 507500 | Z4: 622800
A5: Aged 1 - 4 years | B5: 18000 | C5: 12600 | D5: 8700 | E5: 5100 | F5: 15600 | G5: 4700 | H5: =SUM(Q5,T5) -> 10900 | I5: 8500 | J5: 6100 | K5: 4300 | L5: 4600 | M5: 2500 | N5: 4200 | O5: 5100 | P5: 4400 | Q5: 6400 | R5: 2200 | S5: 3000 | T5: 4500 | U5: 4700 | V5: 4000 | W5: 64800 | X5: 311300 | Y5: 1938600 | Z5: 2340300
A6: Aged 5 - 9 years | B6: 23200 | C6: 17400 | D6: 11000 | E6: 7300 | F6: 19800 | G6: 6600 | H6: 13900 | I6: 10500 | J6: 7900 | K6: 5300 | L6: 5800 | M6: 3800 | N6: 5300 | O6: 7300 | P6: 5700 | Q6: 7800 | R6: 3400 | S6: 4000 | T6: 6100 | U6: 6600 | V6: 5700 | W6: 85200 | X6: 403400 | Y6: 2534100 | Z6: 2987100
A7: Aged 10 - 14 years | B7: 25100 | C7: 19500 | D7: 11900 | E7: 8000 | F7: 21700 | G7: 7300 | H7: 15200 | I7: 10800 | J7: 8600 | K7: 6000 | L7: 6500 | M7: 4300 | N7: 5900 | O7: 8000 | P7: 6000 | Q7: 8400 | R7: 3800 | S7: 4700 | T7: 6800 | U7: 7300 | V7: 6500 | W7: 93500 | X7: 442600 | Y7: 2740600 | Z7: 3182000
A8: Aged 15 - 19 years | B8: 24400 | C8: 20300 | D8: 12700 | E8: 9800 | F8: 23500 | G8: 7300 | H8: 17200 | I8: 10400 | J8: 9100 | K8: 6400 | L8: 6400 | M8: 4300 | N8: 5600 | O8: 9800 | P8: 6200 | Q8: 10100 | R8: 3700 | S8: 4600 | T8: 7100 | U8: 7300 | V8: 6900 | W8: 98000 | X8: 468900 | Y8: 2837500 | Z8: 3291000
A9: Aged 20 - 24 years | B9: 19700 | C9: 16300 | D9: 10700 | E9: 13100 | F9: 26400 | G9: 6700 | H9: 21000 | I9: 9400 | J9: 8200 | K9: 5300 | L9: 5400 | M9: 3100 | N9: 4800 | O9: 13100 | P9: 5400 | Q9: 15500 | R9: 2200 | S9: 3300 | T9: 5500 | U9: 6700 | V9: 5000 | W9: 92900 | X9: 467700 | Y9: 2780900 | Z9: 3355300
A10: Aged 25 - 29 years | B10: 20100 | C10: 15500 | D10: 10500 | E10: 7900 | F10: 21400 | G10: 5300 | H10: 15600 | I10: 9500 | J10: 7800 | K10: 5100 | L10: 5800 | M10: 3200 | N10: 4800 | O10: 7900 | P10: 5400 | Q10: 9900 | R10: 2300 | S10: 3500 | T10: 5700 | U10: 5300 | V10: 4600 | W10: 80700 | X10: 417900 | Y10: 2594500 | Z10: 3344500
A11: Aged 30 - 34 years | B11: 22600 | C11: 17300 | D11: 11000 | E11: 7700 | F11: 23300 | G11: 6200 | H11: 16200 | I11: 10100 | J11: 8500 | K11: 5400 | L11: 7000 | M11: 3700 | N11: 5300 | O11: 7700 | P11: 5600 | Q11: 9300 | R11: 2900 | S11: 4300 | T11: 6900 | U11: 6200 | V11: 5200 | W11: 88200 | X11: 437300 | Y11: 2744600 | Z11: 3470900
A12: Aged 35 - 39 years | B12: 26600 | C12: 23000 | D12: 12600 | E12: 9200 | F12: 26300 | G12: 7700 | H12: 18000 | I12: 11000 | J12: 10600 | K12: 6300 | L12: 8400 | M12: 5100 | N12: 6200 | O12: 9200 | P12: 6300 | Q12: 9800 | R12: 4300 | S12: 5200 | T12: 8200 | U12: 7700 | V12: 7300 | W12: 105400 | X12: 512900 | Y12: 3224300 | Z12: 3889400
A13: Aged 40 - 44 years | B13: 26500 | C13: 24700 | D13: 12700 | E13: 9600 | F13: 26800 | G13: 8500 | H13: 18400 | I13: 10300 | J13: 11100 | K13: 6400 | L13: 8400 | M13: 5800 | N13: 6100 | O13: 9600 | P13: 6300 | Q13: 9800 | R13: 4800 | S13: 5400 | T13: 8600 | U13: 8500 | V13: 7800 | W13: 108900 | X13: 526600 | Y13: 3324900 | Z13: 3917800
A14: Aged 45 - 49 years | B14: 23600 | C14: 22700 | D14: 12100 | E14: 8900 | F14: 23700 | G14: 7800 | H14: 16200 | I14: 9200 | J14: 9800 | K14: 6100 | L14: 7500 | M14: 5500 | N14: 5300 | O14: 8900 | P14: 6000 | Q14: 8700 | R14: 4300 | S14: 4800 | T14: 7500 | U14: 7800 | V14: 7500 | W14: 98800 | X14: 474200 | Y14: 2980800 | Z14: 3467900
A15: Aged 50 - 54 years | B15: 21500 | C15: 20700 | D15: 11300 | E15: 7900 | F15: 21300 | G15: 7100 | H15: 14400 | I15: 8200 | J15: 8900 | K15: 5500 | L15: 6900 | M15: 4900 | N15: 4900 | O15: 7900 | P15: 5800 | Q15: 7500 | R15: 3900 | S15: 4500 | T15: 6900 | U15: 7100 | V15: 6800 | W15: 89800 | X15: 422200 | Y15: 2671200 | Z15: 3067000
A16: Aged 55 - 59 years | B16: 22800 | C16: 23300 | D16: 12200 | E16: 8900 | F16: 23300 | G16: 8200 | H16: 15300 | I16: 8300 | J16: 9800 | K16: 6100 | L16: 8000 | M16: 5500 | N16: 5300 | O16: 8900 | P16: 6100 | Q16: 7600 | R16: 4400 | S16: 4900 | T16: 7700 | U16: 8200 | V16: 8000 | W16: 98800 | X16: 456700 | Y16: 2897500 | Z16: 3272300
A17: Aged 60 - 64 years | B17: 18200 | C17: 21000 | D17: 9400 | E17: 7600 | F17: 18800 | G17: 7000 | H17: 12300 | I17: 6300 | J17: 8500 | K17: 4700 | L17: 6400 | M17: 5100 | N17: 4400 | O17: 7600 | P17: 4700 | Q17: 5900 | R17: 3800 | S17: 3700 | T17: 6400 | U17: 7000 | V17: 7300 | W17: 82000 | X17: 371100 | Y17: 2411800 | Z17: 2702300
A18: Aged 65 - 69 years | B18: 14600 | C18: 18800 | D18: 7600 | E18: 6500 | F18: 15400 | G18: 5800 | H18: 10500 | I18: 5200 | J18: 7600 | K18: 3800 | L18: 4900 | M18: 4300 | N18: 3600 | O18: 6500 | P18: 3700 | Q18: 5300 | R18: 3000 | S18: 2700 | T18: 5200 | U18: 5800 | V18: 6900 | W18: 68700 | X18: 316400 | Y18: 1981700 | Z18: 2225000
A19: Aged 70 - 74 years | B19: 12200 | C19: 16500 | D19: 6500 | E19: 5900 | F19: 12900 | G19: 4800 | H19: 9100 | I19: 4500 | J19: 6400 | K19: 3200 | L19: 3800 | M19: 4000 | N19: 2900 | O19: 5900 | P19: 3300 | Q19: 4800 | R19: 2600 | S19: 2300 | T19: 4300 | U19: 4800 | V19: 6100 | W19: 58800 | X19: 271100 | Y19: 1728000 | Z19: 1939200
A20: Aged 75 - 79 years | B20: 10100 | C20: 14300 | D20: 5500 | E20: 4900 | F20: 10300 | G20: 3500 | H20: 7500 | I20: 3700 | J20: 5400 | K20: 2700 | L20: 2900 | M20: 3700 | N20: 2500 | O20: 4900 | P20: 2800 | Q20: 3900 | R20: 2000 | S20: 1900 | T20: 3600 | U20: 3500 | V20: 5200 | W20: 48600 | X20: 223400 | Y20: 1456700 | Z20: 1633200
A21: Aged 80 - 84 years | B21: 7500 | C21: 10600 | D21: 4200 | E21: 3600 | F21: 7600 | G21: 2500 | H21: 5300 | I21: 2700 | J21: 4100 | K21: 2100 | L21: 2200 | M21: 2700 | N21: 1800 | O21: 3600 | P21: 2100 | Q21: 2800 | R21: 1500 | S21: 1500 | T21: 2500 | U21: 2500 | V21: 3800 | W21: 36000 | X21: 162000 | Y21: 1086200 | Z21: 1217100
A22: Aged 85 and over | B22: 6100 | C22: 9000 | D22: 3500 | E22: 3300 | F22: 5900 | G22: 2100 | H22: 4100 | I22: 2200 | J22: 3600 | K22: 1700 | L22: 1800 | M22: 2400 | N22: 1500 | O22: 3300 | P22: 1700 | Q22: 2200 | R22: 1200 | S22: 1100 | T22: 1900 | U22: 2100 | V22: 2900 | W22: 29800 | X22: 133000 | Y22: 926200 | Z22: 1039900
A23: Total | B23: 347500 | C23: 327000 | D23: 176400 | E23: 136700 | F23: 348100 | G23: 110300 | H23: 244300 | I23: 143100 | J23: 143700 | K23: 87600 | L23: 103800 | M23: 74800 | N23: 81500 | O23: 136700 | P23: 88800 | Q23: 137800 | R23: 56700 | S23: 66200 | T23: 106500 | U23: 110300 | V23: 108400 | W23: 1446000 | X23: 6901600 | Y23: 43367400 | Z23: 50965200
A25: Age Group, 2006
A26: 0-14 | B26: =SUM(B4:B7) -> 71000 | C26: =SUM(C4:C7) -> 52700 | D26: 34000 | E26: 21800 | F26: 61400 | G26: 19800 | H26: =SUM(H4:H7) -> 43000 | I26: 32100 | J26: 24200 | K26: 16800 | L26: 18100 | M26: 11200 | N26: 16500 | O26: 21800 | P26: 17300 | Q26: 24400 | R26: 9900 | S26: 12500 | T26: 18600 | U26: 19800 | V26: 17200 | W26: 260600 | X26: 1240200 | Y26: 7720800 | Z26: 9132200
A27: 15-19 | B27: =SUM(B8) -> 24400 | C27: =SUM(C8) -> 20300 | D27: 12700 | E27: 9800 | F27: 23500 | G27: 7300 | H27: =SUM(H8) -> 17200 | I27: 10400 | J27: 9100 | K27: 6400 | L27: 6400 | M27: 4300 | N27: 5600 | O27: 9800 | P27: 6200 | Q27: 10100 | R27: 3700 | S27: 4600 | T27: 7100 | U27: 7300 | V27: 6900 | W27: 98000 | X27: 468900 | Y27: 2837500 | Z27: 3291000
A28: 20-24 | B28: =SUM(B9) -> 19700 | C28: =SUM(C9) -> 16300 | D28: 10700 | E28: 13100 | F28: 26400 | G28: 6700 | H28: =SUM(H9) -> 21000 | I28: 9400 | J28: 8200 | K28: 5300 | L28: 5400 | M28: 3100 | N28: 4800 | O28: 13100 | P28: 5400 | Q28: 15500 | R28: 2200 | S28: 3300 | T28: 5500 | U28: 6700 | V28: 5000 | W28: 92900 | X28: 467700 | Y28: 2780900 | Z28: 3355300
A29: 25-34 | B29: =SUM(B10:B11) -> 42700 | C29: =SUM(C10:C11) -> 32800 | D29: 21500 | E29: 15600 | F29: 44700 | G29: 11500 | H29: =SUM(H10:H11) -> 31800 | I29: 19600 | J29: 16300 | K29: 10500 | L29: 12800 | M29: 6900 | N29: 10100 | O29: 15600 | P29: 11000 | Q29: 19200 | R29: 5200 | S29: 7800 | T29: 12600 | U29: 11500 | V29: 9800 | W29: 168900 | X29: =SUM(X10:X11) -> 855200 | Y29: 5339100 | Z29: 6815400
A30: 35-44 | B30: =SUM(B12:B13) -> 53100 | C30: =SUM(C12:C13) -> 47700 | D30: 25300 | E30: 18800 | F30: 53100 | G30: 16200 | H30: =SUM(H12:H13) -> 36400 | I30: 21300 | J30: 21700 | K30: 12700 | L30: 16800 | M30: 10900 | N30: 12300 | O30: 18800 | P30: 12600 | Q30: 19600 | R30: 9100 | S30: 10600 | T30: 16800 | U30: 16200 | V30: 15100 | W30: 214300 | X30: 1039500 | Y30: 6549200 | Z30: 7807200
A31: 45-54 | B31: =SUM(B14:B15) -> 45100 | C31: =SUM(C14:C15) -> 43400 | D31: 23400 | E31: 16800 | F31: 45000 | G31: 14900 | H31: =SUM(H14:H15) -> 30600 | I31: 17400 | J31: 18700 | K31: 11600 | L31: 14400 | M31: 10400 | N31: 10200 | O31: 16800 | P31: 11800 | Q31: 16200 | R31: 8200 | S31: 9300 | T31: 14400 | U31: 14900 | V31: 14300 | W31: 188600 | X31: 896400 | Y31: 5652000 | Z31: 6534900
A32: 55-64 | B32: =SUM(B16:B17) -> 41000 | C32: =SUM(C16:C17) -> 44300 | D32: 21600 | E32: 16500 | F32: 42100 | G32: 15200 | H32: =SUM(H16:H17) -> 27600 | I32: 14600 | J32: 18300 | K32: 10800 | L32: 14400 | M32: 10600 | N32: 9700 | O32: 16500 | P32: 10800 | Q32: 13500 | R32: 8200 | S32: 8600 | T32: 14100 | U32: 15200 | V32: 15300 | W32: 180800 | X32: 827800 | Y32: 5309300 | Z32: 5974600
A33: 65+ | B33: =SUM(B18:B22) -> 50500 | C33: =SUM(C18:C22) -> 69200 | D33: 27300 | E33: 24200 | F33: 52100 | G33: 18700 | H33: =SUM(H18:H22) -> 36500 | I33: 18300 | J33: 27100 | K33: 13500 | L33: 15600 | M33: 17100 | N33: 12300 | O33: 24200 | P33: 13600 | Q33: 19000 | R33: 10300 | S33: 9500 | T33: 17500 | U33: 18700 | V33: 24900 | W33: 241900 | X33: 1105900 | Y33: 7178800 | Z33: 8054400
A36: Total Population, 2011
A37: Aged under 1 year | B37: 4600 | C37: 3400 | D37: 2500 | E37: 1600 | F37: 4500 | G37: 1100 | H37: =SUM(Q37,T37) -> 3200 | I37: 2200 | J37: 1600 | K37: 1200 | L37: 1300 | M37: 800 | N37: 1100 | O37: 1600 | P37: 1300 | Q37: 1900 | R37: 500 | S37: 900 | T37: 1300 | U37: 1100 | V37: 1000 | W37: 17700 | X37: 87900 | Y37: 552900 | Z37: 679100
A38: Aged 1 - 4 years | B38: 19200 | C38: 13500 | D38: 9800 | E38: 5700 | F38: 17500 | G38: 4800 | H38: 12500 | I38: 9100 | J38: 6600 | K38: 4700 | L38: 5000 | M38: 2900 | N38: 4300 | O38: 5700 | P38: 5000 | Q38: 7400 | R38: 2300 | S38: 3500 | T38: 5100 | U38: 4800 | V38: 4000 | W38: 70500 | X38: 345000 | Y38: 2181800 | Z38: 2649600
A39: Aged 5 - 9 years | B39: 22600 | C39: 16300 | D39: 10700 | E39: 6500 | F39: 19900 | G39: 6000 | H39: 13900 | I39: 10500 | J39: 7500 | K39: 5200 | L39: 6000 | M39: 3600 | N39: 5000 | O39: 6500 | P39: 5500 | Q39: 8000 | R39: 3100 | S39: 4000 | T39: 5900 | U39: 6000 | V39: 5200 | W39: 81900 | X39: 394500 | Y39: 2503200 | Z39: 2990100
A40: Aged 10 - 14 years | B40: 23100 | C40: 17700 | D40: 10400 | E40: 7600 | F40: 20300 | G40: 6600 | H40: 14200 | I40: 10300 | J40: 8000 | K40: 5000 | L40: 6100 | M40: 4000 | N40: 5000 | O40: 7600 | P40: 5300 | Q40: 7900 | R40: 3800 | S40: 4000 | T40: 6300 | U40: 6600 | V40: 5700 | W40: 85700 | X40: 409700 | Y40: 2611200 | Z40: 3067400
A41: Aged 15 - 19 years | B41: 23600 | C41: 19400 | D41: 11100 | E41: 10700 | F41: 22700 | G41: 7600 | H41: 16500 | I41: 10400 | J41: 8700 | K41: 5600 | L41: 6200 | M41: 4100 | N41: 5300 | O41: 10700 | P41: 5500 | Q41: 9900 | R41: 3600 | S41: 4300 | T41: 6600 | U41: 7600 | V41: 6600 | W41: 95000 | X41: 453100 | Y41: 2853000 | Z41: 3324300
A42: Aged 20 - 24 years | B42: 21000 | C42: 17400 | D42: 11100 | E42: 13400 | F42: 26600 | G42: 7300 | H42: 20600 | I42: 9600 | J42: 8500 | K42: 5500 | L42: 6000 | M42: 3500 | N42: 4900 | O42: 13400 | P42: 5600 | Q42: 14300 | R42: 2700 | S42: 3800 | T42: 6300 | U42: 7300 | V42: 5400 | W42: 96800 | X42: 490200 | Y42: 2972700 | Z42: 3596300
A43: Aged 25 - 29 years | B43: 22700 | C43: 17100 | D43: 12100 | E43: 8000 | F43: 23300 | G43: 5500 | H43: 17000 | I43: 11000 | J43: 8600 | K43: 5800 | L43: 6300 | M43: 3600 | N43: 5300 | O43: 8000 | P43: 6300 | Q43: 10700 | R43: 2500 | S43: 3900 | T43: 6300 | U43: 5500 | V43: 4800 | W43: 88600 | X43: 467000 | Y43: 2820400 | Z43: 3657200
A44: Aged 30 - 34 years | B44: 21300 | C44: 16100 | D44: 11000 | E44: 7300 | F44: 21800 | G44: 5000 | H44: 15400 | I44: 9900 | J44: 7800 | K44: 5300 | L44: 6300 | M44: 3500 | N44: 5000 | O44: 7300 | P44: 5700 | Q44: 9300 | R44: 2400 | S44: 4000 | T44: 6100 | U44: 5000 | V44: 4800 | W44: 82500 | X44: 431300 | Y44: 2724700 | Z44: 3529200
A45: Aged 35 - 39 years | B45: 23100 | C45: 17900 | D45: 11000 | E45: 7600 | F45: 23800 | G45: 6600 | H45: 16200 | I45: 10000 | J45: 8400 | K45: 5400 | L45: 7600 | M45: 4100 | N45: 5200 | O45: 7600 | P45: 5600 | Q45: 9000 | R45: 3300 | S45: 4600 | T45: 7200 | U45: 6600 | V45: 5400 | W45: 89900 | X45: 444500 | Y45: 2854900 | Z45: 3522400
A46: Aged 40 - 44 years | B46: 26600 | C46: 23100 | D46: 12400 | E46: 9200 | F46: 26500 | G46: 7900 | H46: 18100 | I46: 10800 | J46: 10400 | K46: 6200 | L46: 8400 | M46: 5300 | N46: 6100 | O46: 9200 | P46: 6200 | Q46: 9700 | R46: 4400 | S46: 5400 | T46: 8400 | U46: 7900 | V46: 7400 | W46: 105800 | X46: 513700 | Y46: 3271400 | Z46: 3881500
A47: Aged 45 - 49 years | B47: 25800 | C47: 25100 | D47: 12100 | E47: 9700 | F47: 26800 | G47: 8600 | H47: 18300 | I47: 9900 | J47: 11100 | K47: 6100 | L47: 8500 | M47: 6000 | N47: 5800 | O47: 9700 | P47: 6000 | Q47: 9700 | R47: 4800 | S47: 5300 | T47: 8600 | U47: 8600 | V47: 8000 | W47: 108100 | X47: 523100 | Y47: 3331000 | Z47: 3892100
A48: Aged 50 - 54 years | B48: 23000 | C48: 22800 | D48: 11600 | E48: 8700 | F48: 23200 | G48: 7800 | H48: 15700 | I48: 9000 | J48: 9700 | K48: 5800 | L48: 7400 | M48: 5600 | N48: 5000 | O48: 8700 | P48: 5800 | Q48: 8400 | R48: 4200 | S48: 4800 | T48: 7300 | U48: 7800 | V48: 7500 | W48: 97100 | X48: 467400 | Y48: 2957800 | Z48: 3422600
A49: Aged 55 - 59 years | B49: 20700 | C49: 20300 | D49: 10500 | E49: 7800 | F49: 20600 | G49: 6900 | H49: 14000 | I49: 8000 | J49: 8500 | K49: 5200 | L49: 6700 | M49: 4900 | N49: 4600 | O49: 7800 | P49: 5300 | Q49: 7200 | R49: 3800 | S49: 4400 | T49: 6800 | U49: 6900 | V49: 7000 | W49: 86900 | X49: 410600 | Y49: 2628400 | Z49: 3003500
A50: Aged 60 - 64 years | B50: 21800 | C50: 23100 | D50: 11800 | E50: 8700 | F50: 22200 | G50: 7800 | H50: 14500 | I50: 7900 | J50: 9300 | K50: 5800 | L50: 7700 | M50: 5700 | N50: 5000 | O50: 8700 | P50: 6000 | Q50: 7100 | R50: 4200 | S50: 4700 | T50: 7400 | U50: 7800 | V50: 8100 | W50: 95500 | X50: 438700 | Y50: 2820000 | Z50: 3162300
A51: Aged 65 - 69 years | B51: 16900 | C51: 20400 | D51: 8700 | E51: 7300 | F51: 17400 | G51: 6600 | H51: 11300 | I51: 5800 | J51: 7800 | K51: 4300 | L51: 6100 | M51: 5100 | N51: 4100 | O51: 7300 | P51: 4400 | Q51: 5300 | R51: 3600 | S51: 3400 | T51: 6000 | U51: 6600 | V51: 7400 | W51: 77200 | X51: 347400 | Y51: 2296100 | Z51: 2557600
A52: Aged 70 - 74 years | B52: 12800 | C52: 17200 | D52: 6700 | E52: 6000 | F52: 13900 | G52: 5300 | H52: 9400 | I52: 4600 | J52: 6600 | K52: 3400 | L52: 4500 | M52: 4100 | N52: 3100 | O52: 6000 | P52: 3300 | Q52: 4600 | R52: 2700 | S52: 2400 | T52: 4800 | U52: 5300 | V52: 6500 | W52: 61900 | X52: 284600 | Y52: 1820200 | Z52: 2034600
A53: Aged 75 - 79 years | B53: 10300 | C53: 14100 | D53: 5300 | E53: 5000 | F53: 10800 | G53: 4100 | H53: 7500 | I53: 3700 | J53: 5300 | K53: 2600 | L53: 3300 | M53: 3600 | N53: 2400 | O53: 5000 | P53: 2700 | Q53: 3900 | R53: 2300 | S53: 2000 | T53: 3600 | U53: 4100 | V53: 5300 | W53: 49700 | X53: 228700 | Y53: 1500600 | Z53: 1678300
A54: Aged 80 - 84 years | B54: 7500 | C54: 10900 | D54: 4100 | E54: 3700 | F54: 7800 | G54: 2800 | H54: 5700 | I54: 2700 | J54: 3900 | K54: 2000 | L54: 2200 | M54: 2900 | N54: 1800 | O54: 3700 | P54: 2100 | Q54: 2900 | R54: 1600 | S54: 1400 | T54: 2800 | U54: 2800 | V54: 4100 | W54: 36800 | X54: 168100 | Y54: 1133400 | Z54: 1265800
A55: Aged 85 and over | B55: 6800 | C55: 10100 | D55: 3900 | E55: 3600 | F55: 7200 | G55: 2400 | H55: 5000 | I55: 2400 | J55: 3800 | K55: 1900 | L55: 2200 | M55: 2700 | N55: 1600 | O55: 3600 | P55: 1900 | Q55: 2600 | R55: 1500 | S55: 1400 | T55: 2400 | U55: 2400 | V55: 3600 | W55: 33900 | X55: 150500 | Y55: 1069200 | Z55: 1193300
A56: =A23 -> Total | B56: 353600 | C56: 325900 | D56: 176600 | E56: 137800 | F56: 356800 | G56: 110600 | H56: 249300 | I56: 147700 | J56: 142100 | K56: 87000 | L56: 107600 | M56: 76100 | N56: 80500 | O56: 137800 | P56: 89600 | Q56: 140100 | R56: 57300 | S56: 68100 | T56: 109200 | U56: 110600 | V56: 107700 | W56: 1461300 | X56: 7056000 | Y56: 44902800 | Z56: 53107200
A58: Age Group, 2011
A59: 0-14 | B59: =SUM(B37:B40) -> 69500 | C59: =SUM(C37:C40) -> 50900 | D59: 33400 | E59: 21400 | F59: 62200 | G59: 18500 | H59: =SUM(H37:H40) -> 43800 | I59: 32100 | J59: 23700 | K59: 16100 | L59: 18400 | M59: 11300 | N59: 15400 | O59: 21400 | P59: 17100 | Q59: 25200 | R59: 9700 | S59: 12400 | T59: 18600 | U59: 18500 | V59: 15900 | W59: 255800 | X59: 1237100 | Y59: 7849100 | Z59: 9386200
A60: 15-19 | B60: =SUM(B41) -> 23600 | C60: =SUM(C41) -> 19400 | D60: 11100 | E60: 10700 | F60: 22700 | G60: 7600 | H60: =SUM(H41) -> 16500 | I60: 10400 | J60: 8700 | K60: 5600 | L60: 6200 | M60: 4100 | N60: 5300 | O60: 10700 | P60: 5500 | Q60: 9900 | R60: 3600 | S60: 4300 | T60: 6600 | U60: 7600 | V60: 6600 | W60: 95000 | X60: 453100 | Y60: 2853000 | Z60: 3324300
A61: 20-24 | B61: =SUM(B42) -> 21000 | C61: =SUM(C42) -> 17400 | D61: 11100 | E61: 13400 | F61: 26600 | G61: 7300 | H61: =SUM(H42) -> 20600 | I61: 9600 | J61: 8500 | K61: 5500 | L61: 6000 | M61: 3500 | N61: 4900 | O61: 13400 | P61: 5600 | Q61: 14300 | R61: 2700 | S61: 3800 | T61: 6300 | U61: 7300 | V61: 5400 | W61: 96800 | X61: 490200 | Y61: 2972700 | Z61: 3596300
A62: 25-34 | B62: =SUM(B43:B44) -> 44000 | C62: =SUM(C43:C44) -> 33200 | D62: 23100 | E62: 15300 | F62: 45100 | G62: 10500 | H62: =SUM(H43:H44) -> 32400 | I62: 20900 | J62: 16400 | K62: 11100 | L62: 12600 | M62: 7100 | N62: 10300 | O62: 15300 | P62: 12000 | Q62: 20000 | R62: 4900 | S62: 7900 | T62: 12400 | U62: 10500 | V62: 9600 | W62: 171100 | X62: =SUM(X43:X44) -> 898300 | Y62: =SUM(Y43:Y44) -> 5545100 | Z62: 7186400
A63: 35-44 | B63: =SUM(B45:B46) -> 49700 | C63: =SUM(C45:C46) -> 41000 | D63: 23400 | E63: 16800 | F63: 50300 | G63: 14500 | H63: =SUM(H45:H46) -> 34300 | I63: 20800 | J63: 18800 | K63: 11600 | L63: 16000 | M63: 9400 | N63: 11300 | O63: 16800 | P63: 11800 | Q63: 18700 | R63: 7700 | S63: 10000 | T63: 15600 | U63: 14500 | V63: 12800 | W63: 195700 | X63: 958200 | Y63: 6126300 | Z63: 7403900
A64: 45-54 | B64: =SUM(B47:B48) -> 48800 | C64: =SUM(C47:C48) -> 47900 | D64: 23700 | E64: 18400 | F64: 50000 | G64: 16400 | H64: =SUM(H47:H48) -> 34000 | I64: 18900 | J64: 20800 | K64: 11900 | L64: 15900 | M64: 11600 | N64: 10800 | O64: 18400 | P64: 11800 | Q64: 18100 | R64: 9000 | S64: 10100 | T64: 15900 | U64: 16400 | V64: 15500 | W64: 205200 | X64: 990500 | Y64: 6288800 | Z64: 7314700
A65: 55-64 | B65: =SUM(B49:B50) -> 42500 | C65: =SUM(C49:C50) -> 43400 | D65: 22300 | E65: 16500 | F65: 42800 | G65: 14700 | H65: =SUM(H49:H50) -> 28500 | I65: 15900 | J65: 17800 | K65: 11000 | L65: 14400 | M65: 10600 | N65: 9600 | O65: 16500 | P65: 11300 | Q65: 14300 | R65: 8000 | S65: 9100 | T65: 14200 | U65: 14700 | V65: 15100 | W65: 182400 | X65: 849300 | Y65: 5448400 | Z65: 6165800
A66: 65+ | B66: =SUM(B51:B55) -> 54300 | C66: =SUM(C51:C55) -> 72700 | D66: 28700 | E66: 25600 | F66: 57100 | G66: 21200 | H66: =SUM(H51:H55) -> 38900 | I66: 19200 | J66: 27400 | K66: 14200 | L66: 18300 | M66: 18400 | N66: 13000 | O66: 25600 | P66: 14400 | Q66: 19300 | R66: 11700 | S66: 10600 | T66: 19600 | U66: 21200 | V66: 26900 | W66: 259500 | X66: 1179300 | Y66: 7819500 | Z66: 8729600
A69: Total Population, 2016
A70: Aged under 1 year | B70: 4500 | C70: 3200 | D70: 2500 | E70: 1500 | F70: 4300 | G70: 1000 | H70: =SUM(Q70,T70) -> 3100 | I70: 2200 | J70: 1700 | K70: 1200 | L70: 1200 | M70: 600 | N70: 1000 | O70: 1500 | P70: 1300 | Q70: 1900 | R70: 500 | S70: 800 | T70: 1200 | U70: 1000 | V70: 900 | W70: 17000 | X70: 86700 | Y70: 540200 | Z70: 669100
A71: Aged 1 - 4 years | B71: 18800 | C71: 13700 | D71: 9800 | E71: 6300 | F71: 17600 | G71: 4700 | H71: 12300 | I71: 8800 | J71: 6900 | K71: 4700 | L71: 5300 | M71: 2800 | N71: 4400 | O71: 6300 | P71: 5100 | Q71: 7400 | R71: 2100 | S71: 3400 | T71: 4900 | U71: 4700 | V71: 4100 | W71: 70900 | X71: 356100 | Y71: 2253300 | Z71: 2759900
A72: Aged 5 - 9 years | B72: 24200 | C72: 17700 | D72: 12100 | E72: 7600 | F72: 22600 | G72: 6300 | H72: 15800 | I72: 11000 | J72: 7900 | K72: 5900 | L72: 6800 | M72: 4100 | N72: 5300 | O72: 7600 | P72: 6300 | Q72: 9200 | R72: 3300 | S72: 4500 | T72: 6600 | U72: 6300 | V72: 5600 | W72: 90600 | X72: 443200 | Y72: 2848600 | Z72: 3428300
A73: Aged 10 - 14 years | B73: 22900 | C73: 17000 | D73: 10500 | E73: 7000 | F73: 20300 | G73: 6200 | H73: 14000 | I73: 10300 | J73: 7500 | K73: 5100 | L73: 6300 | M73: 3900 | N73: 4900 | O73: 7000 | P73: 5400 | Q73: 7900 | R73: 3500 | S73: 4200 | T73: 6100 | U73: 6200 | V73: 5600 | W73: 83800 | X73: 402100 | Y73: 2582700 | Z73: 3070300
A74: Aged 15 - 19 years | B74: 22000 | C74: 17800 | D74: 10000 | E74: 9900 | F74: 21200 | G74: 7700 | H74: 15200 | I74: 9800 | J74: 7900 | K74: 5000 | L74: 6000 | M74: 3900 | N74: 4700 | O74: 9900 | P74: 5100 | Q74: 9200 | R74: 3600 | S74: 3800 | T74: 6000 | U74: 7700 | V74: 5900 | W74: 88600 | X74: 420400 | Y74: 2710800 | Z74: 3179400
A75: Aged 20 - 24 years | B75: 19700 | C75: 16600 | D75: 9800 | E75: 15200 | F75: 25500 | G75: 8600 | H75: 19700 | I75: 9000 | J75: 8100 | K75: 5100 | L75: 5700 | M75: 3100 | N75: 4700 | O75: 15200 | P75: 4700 | Q75: 14300 | R75: 2500 | S75: 3500 | T75: 5400 | U75: 8600 | V75: 5400 | W75: 95500 | X75: 476600 | Y75: 2990800 | Z75: 3560000
A76: Aged 25 - 29 years | B76: 22000 | C76: 17800 | D76: 11800 | E76: 9200 | F76: 24800 | G76: 6300 | H76: 17800 | I76: 9600 | J76: 8700 | K76: 5700 | L76: 7000 | M76: 3600 | N76: 5300 | O76: 9200 | P76: 6000 | Q76: 11200 | R76: 2800 | S76: 4200 | T76: 6600 | U76: 6300 | V76: 5500 | W76: 91700 | X76: 492200 | Y76: 2985400 | Z76: 3811600
A77: Aged 30 - 34 years | B77: 22300 | C77: 17000 | D77: 12200 | E77: 8000 | F77: 22900 | G77: 5300 | H77: 15800 | I77: 10300 | J77: 8000 | K77: 5800 | L77: 7100 | M77: 3800 | N77: 5200 | O77: 8000 | P77: 6400 | Q77: 9300 | R77: 2600 | S77: 4200 | T77: 6500 | U77: 5300 | V77: 5200 | W77: 87700 | X77: 467000 | Y77: 2886200 | Z77: 3749600
A78: Aged 35 - 39 years | B78: 21200 | C78: 16400 | D78: 10900 | E78: 7500 | F78: 21800 | G78: 5200 | H78: 14900 | I78: 9500 | J78: 7400 | K78: 5200 | L78: 7000 | M78: 3800 | N78: 4700 | O78: 7500 | P78: 5600 | Q78: 8700 | R78: 2800 | S78: 4200 | T78: 6200 | U78: 5200 | V78: 5300 | W78: 83100 | X78: 430700 | Y78: 2797700 | Z78: 3557000
A79: Aged 40 - 44 years | B79: 22900 | C79: 18400 | D79: 10700 | E79: 7700 | F79: 23800 | G79: 6600 | H79: 15900 | I79: 9500 | J79: 8100 | K79: 5200 | L79: 8000 | M79: 4400 | N79: 5000 | O79: 7700 | P79: 5500 | Q79: 8600 | R79: 3700 | S79: 4700 | T79: 7300 | U79: 6600 | V79: 5900 | W79: 90100 | X79: 442600 | Y79: 2901800 | Z79: 3535300
A80: Aged 45 - 49 years | B80: 26500 | C80: 23600 | D80: 12200 | E80: 9300 | F80: 26500 | G80: 8000 | H80: 17700 | I80: 10400 | J80: 10300 | K80: 6100 | L80: 8800 | M80: 5600 | N80: 5900 | O80: 9300 | P80: 6100 | Q80: 9500 | R80: 4700 | S80: 5500 | T80: 8200 | U80: 8000 | V80: 7700 | W80: 106300 | X80: 510200 | Y80: 3290200 | Z80: 3883100
A81: Aged 50 - 54 years | B81: 25300 | C81: 25400 | D81: 11800 | E81: 9700 | F81: 26600 | G81: 8600 | H81: 17800 | I81: 9500 | J81: 10900 | K81: 6000 | L81: 8700 | M81: 6200 | N81: 5600 | O81: 9700 | P81: 5900 | Q81: 9300 | R81: 4900 | S81: 5300 | T81: 8500 | U81: 8600 | V81: 8300 | W81: 107500 | X81: 516400 | Y81: 3325600 | Z81: 3873100
A82: Aged 55 - 59 years | B82: 22400 | C82: 23200 | D82: 11300 | E82: 8800 | F82: 22800 | G82: 7700 | H82: 15200 | I82: 8500 | J82: 9400 | K82: 5600 | L82: 7500 | M82: 5900 | N82: 4800 | O82: 8800 | P82: 5700 | Q82: 8000 | R82: 4400 | S82: 4700 | T82: 7200 | U82: 7700 | V82: 7900 | W82: 96100 | X82: 457300 | Y82: 2929700 | Z82: 3377700
A83: Aged 60 - 64 years | B83: 19800 | C83: 20600 | D83: 10000 | E83: 7800 | F83: 19900 | G83: 6800 | H83: 13300 | I83: 7400 | J83: 8000 | K83: 4900 | L83: 6600 | M83: 5300 | N83: 4400 | O83: 7800 | P83: 5100 | Q83: 6700 | R83: 3800 | S83: 4200 | T83: 6600 | U83: 6800 | V83: 7300 | W83: 84800 | X83: 396200 | Y83: 2575600 | Z83: 2931000
A84: Aged 65 - 69 years | B84: 20400 | C84: 23000 | D84: 10900 | E84: 8500 | F84: 21100 | G84: 7500 | H84: 13500 | I84: 7100 | J84: 8600 | K84: 5300 | L84: 7500 | M84: 6000 | N84: 4700 | O84: 8500 | P84: 5500 | Q84: 6400 | R84: 4200 | S84: 4400 | T84: 7100 | U84: 7500 | V84: 8400 | W84: 91300 | X84: 414700 | Y84: 2716600 | Z84: 3032100
A85: Aged 70 - 74 years | B85: 15200 | C85: 19100 | D85: 7900 | E85: 6800 | F85: 16000 | G85: 6100 | H85: 10300 | I85: 5000 | J85: 6800 | K85: 3900 | L85: 5700 | M85: 5100 | N85: 3700 | O85: 6800 | P85: 4000 | Q85: 4700 | R85: 3400 | S85: 3100 | T85: 5600 | U85: 6100 | V85: 7200 | W85: 71100 | X85: 317600 | Y85: 2145100 | Z85: 2381300
A86: Aged 75 - 79 years | B86: 10900 | C86: 15000 | D86: 5700 | E86: 5200 | F86: 12200 | G86: 4600 | H86: 8200 | I86: 3800 | J86: 5400 | K86: 2800 | L86: 4000 | M86: 3800 | N86: 2600 | O86: 5200 | P86: 2900 | Q86: 3900 | R86: 2400 | S86: 2000 | T86: 4300 | U86: 4600 | V86: 5800 | W86: 53600 | X86: 245600 | Y86: 1608700 | Z86: 1796000
A87: Aged 80 - 84 years | B87: 8000 | C87: 11100 | D87: 4000 | E87: 3900 | F87: 8600 | G87: 3300 | H87: 5900 | I87: 2700 | J87: 3900 | K87: 2000 | L87: 2600 | M87: 3000 | N87: 1900 | O87: 3900 | P87: 2100 | Q87: 3000 | R87: 1900 | S87: 1500 | T87: 2900 | U87: 3300 | V87: 4200 | W87: 38800 | X87: 177600 | Y87: 1203500 | Z87: 1345400
A88: Aged 85 and over | B88: 7400 | C88: 10800 | D88: 4100 | E88: 3700 | F88: 7800 | G88: 2900 | H88: 5500 | I88: 2400 | J88: 3700 | K88: 2000 | L88: 2300 | M88: 3000 | N88: 1700 | O88: 3700 | P88: 2100 | Q88: 2700 | R88: 1800 | S88: 1500 | T88: 2800 | U88: 2900 | V88: 4100 | W88: 36700 | X88: 166500 | Y88: 1187800 | Z88: 1328100
A89: =A56 -> Total | B89: 356300 | C89: 327400 | D89: 178100 | E89: 143500 | F89: 366300 | G89: 113400 | H89: 251900 | I89: 147000 | J89: 139200 | K89: 87500 | L89: 114400 | M89: 78000 | N89: 80500 | O89: 143500 | P89: 90600 | Q89: 141800 | R89: 58800 | S89: 69900 | T89: 110100 | U89: 113400 | V89: 110300 | W89: 1485000 | X89: 7219600 | Y89: 46480200 | Z89: 55268100
A91: Age Group, 2016
A92: 0-14 | B92: =SUM(B70:B73) -> 70400 | C92: =SUM(C70:C73) -> 51600 | D92: 34900 | E92: 22400 | F92: 64800 | G92: 18200 | H92: =SUM(H70:H73) -> 45200 | I92: 32300 | J92: 24000 | K92: 16900 | L92: 19600 | M92: 11400 | N92: 15600 | O92: 22400 | P92: 18100 | Q92: 26400 | R92: 9400 | S92: 12900 | T92: 18800 | U92: 18200 | V92: 16200 | W92: 262300 | X92: 1288100 | Y92: 8224800 | Z92: 9927600
A93: 15-19 | B93: =SUM(B74) -> 22000 | C93: =SUM(C74) -> 17800 | D93: 10000 | E93: 9900 | F93: 21200 | G93: 7700 | H93: =SUM(H74) -> 15200 | I93: 9800 | J93: 7900 | K93: 5000 | L93: 6000 | M93: 3900 | N93: 4700 | O93: 9900 | P93: 5100 | Q93: 9200 | R93: 3600 | S93: 3800 | T93: 6000 | U93: 7700 | V93: 5900 | W93: 88600 | X93: 420400 | Y93: 2710800 | Z93: 3179400
A94: 20-24 | B94: =SUM(B75) -> 19700 | C94: =SUM(C75) -> 16600 | D94: 9800 | E94: 15200 | F94: 25500 | G94: 8600 | H94: =SUM(H75) -> 19700 | I94: 9000 | J94: 8100 | K94: 5100 | L94: 5700 | M94: 3100 | N94: 4700 | O94: 15200 | P94: 4700 | Q94: 14300 | R94: 2500 | S94: 3500 | T94: 5400 | U94: 8600 | V94: 5400 | W94: 95500 | X94: 476600 | Y94: 2990800 | Z94: 3560000
A95: 25-34 | B95: =SUM(B76:B77) -> 44300 | C95: =SUM(C76:C77) -> 34800 | D95: 24000 | E95: 17200 | F95: 47700 | G95: 11600 | H95: =SUM(H76:H77) -> 33600 | I95: 19900 | J95: 16700 | K95: 11500 | L95: 14100 | M95: 7400 | N95: 10500 | O95: 17200 | P95: 12400 | Q95: 20500 | R95: 5400 | S95: 8400 | T95: 13100 | U95: 11600 | V95: 10700 | W95: 179400 | X95: =SUM(X76:X77) -> 959200 | Y95: =SUM(Y76:Y77) -> 5871600 | Z95: 7561200
A96: 35-44 | B96: =SUM(B78:B79) -> 44100 | C96: =SUM(C78:C79) -> 34800 | D96: 21600 | E96: 15200 | F96: 45600 | G96: 11800 | H96: =SUM(H78:H79) -> 30800 | I96: 19000 | J96: 15500 | K96: 10400 | L96: 15000 | M96: 8200 | N96: 9700 | O96: 15200 | P96: 11100 | Q96: 17300 | R96: 6500 | S96: 8900 | T96: 13500 | U96: 11800 | V96: 11200 | W96: 173200 | X96: 873300 | Y96: 5699500 | Z96: 7092300
A97: 45-54 | B97: =SUM(B80:B81) -> 51800 | C97: =SUM(C80:C81) -> 49000 | D97: 24000 | E97: 19000 | F97: 53100 | G97: 16600 | H97: =SUM(H80:H81) -> 35500 | I97: 19900 | J97: 21200 | K97: 12100 | L97: 17500 | M97: 11800 | N97: 11500 | O97: 19000 | P97: 12000 | Q97: 18800 | R97: 9600 | S97: 10800 | T97: 16700 | U97: 16600 | V97: 16000 | W97: 213800 | X97: 1026600 | Y97: 6615800 | Z97: 7756200
A98: 55-64 | B98: =SUM(B82:B83) -> 42200 | C98: =SUM(C82:C83) -> 43800 | D98: 21300 | E98: 16600 | F98: 42700 | G98: 14500 | H98: =SUM(H82:H83) -> 28500 | I98: 15900 | J98: 17400 | K98: 10500 | L98: 14100 | M98: 11200 | N98: 9200 | O98: 16600 | P98: 10800 | Q98: 14700 | R98: 8200 | S98: 8900 | T98: 13800 | U98: 14500 | V98: 15200 | W98: 180900 | X98: 853500 | Y98: 5505300 | Z98: 6308700
A99: 65+ | B99: =SUM(B84:B88) -> 61900 | C99: =SUM(C84:C88) -> 79000 | D99: 32600 | E99: 28100 | F99: 65700 | G99: 24400 | H99: =SUM(H84:H88) -> 43400 | I99: 21000 | J99: 28400 | K99: 16000 | L99: 22100 | M99: 20900 | N99: 14600 | O99: 28100 | P99: 16600 | Q99: 20700 | R99: 13700 | S99: 12500 | T99: 22700 | U99: 24400 | V99: 29700 | W99: 291500 | X99: 1322000 | Y99: 8861700 | Z99: 9882900
A102: Total Population, 2016, %
A103: Aged under 1 year | B103: =B70/B$89 -> 0.01262980634 | C103: 0.009773976787 | D103: 0.01403705783 | E103: 0.01045296167 | F103: 0.01173901174 | G103: 0.008818342152 | H103: =H70/H$89 -> 0.01230647082 | I103: 0.01496598639 | J103: 0.01221264368 | K103: 0.01371428571 | L103: 0.01048951049 | M103: 0.007692307692 | N103: 0.01242236025 | O103: 0.01045296167 | P103: 0.01434878587 | Q103: 0.01339915374 | R103: 0.008503401361 | S103: 0.01144492132 | T103: 0.01089918256 | U103: 0.008818342152 | V103: 0.008159564823 | W103: 0.01144781145 | X103: 0.01200897557 | Y103: 0.01162215309 | Z103: 0.01210644115
A104: Aged 1 - 4 years | B104: =B71/B$89 -> 0.05276452428 | C104: 0.04184483812 | D104: 0.0550252667 | E104: 0.04390243902 | F104: 0.04804804805 | G104: 0.04144620811 | H104: 0.04882890036 | I104: 0.05986394558 | J104: 0.04956896552 | K104: 0.05371428571 | L104: 0.04632867133 | M104: 0.0358974359 | N104: 0.05465838509 | O104: 0.04390243902 | P104: 0.05629139073 | Q104: 0.05218617772 | R104: 0.03571428571 | S104: 0.04864091559 | T104: 0.04450499546 | U104: 0.04144620811 | V104: 0.03717135086 | W104: 0.04774410774 | X104: 0.04932406227 | Y104: 0.04847870706 | Z104: 0.04993658186
A105: Aged 5 - 9 years | B105: =B72/B$89 -> 0.06792029189 | C105: 0.0540623091 | D105: 0.06793935991 | E105: 0.05296167247 | F105: 0.0616980617 | G105: 0.05555555556 | H105: 0.0627233029 | I105: 0.07482993197 | J105: 0.05675287356 | K105: 0.06742857143 | L105: 0.05944055944 | M105: 0.05256410256 | N105: 0.06583850932 | O105: 0.05296167247 | P105: 0.06953642384 | Q105: 0.06488011283 | R105: 0.05612244898 | S105: 0.0643776824 | T105: 0.05994550409 | U105: 0.05555555556 | V105: 0.05077062557 | W105: 0.06101010101 | X105: 0.06138844257 | Y105: 0.06128631116 | Z105: 0.06203035748
A106: Aged 10 - 14 years | B106: =B73/B$89 -> 0.06427168117 | C106: =C73/C$89 -> 0.05192425168 | D106: 0.0589556429 | E106: 0.0487804878 | F106: 0.05541905542 | G106: 0.05467372134 | H106: 0.05557761016 | I106: 0.07006802721 | J106: 0.05387931034 | K106: 0.05828571429 | L106: 0.05506993007 | M106: 0.05 | N106: 0.06086956522 | O106: 0.0487804878 | P106: 0.05960264901 | Q106: 0.0557122708 | R106: 0.05952380952 | S106: 0.06008583691 | T106: 0.05540417802 | U106: 0.05467372134 | V106: 0.05077062557 | W106: 0.05643097643 | X106: 0.0556956064 | Y106: 0.05556559567 | Z106: 0.05555284151
A107: Aged 15 - 19 years | B107: =B74/B$89 -> 0.0617457199 | C107: 0.05436774588 | D107: 0.05614823133 | E107: 0.06898954704 | F107: 0.05787605788 | G107: 0.06790123457 | H107: 0.06034140532 | I107: 0.06666666667 | J107: 0.05675287356 | K107: 0.05714285714 | L107: 0.05244755245 | M107: 0.05 | N107: 0.05838509317 | O107: 0.06898954704 | P107: 0.05629139073 | Q107: 0.06488011283 | R107: 0.0612244898 | S107: 0.05436337625 | T107: 0.05449591281 | U107: 0.06790123457 | V107: 0.05349048051 | W107: 0.05966329966 | X107: 0.05823037287 | Y107: 0.05832160791 | Z107: 0.05752685546
A108: Aged 20 - 24 years | B108: =B75/B$89 -> 0.05529048555 | C108: 0.05070250458 | D108: 0.0550252667 | E108: 0.1059233449 | F108: 0.06961506962 | G108: 0.0758377425 | H108: 0.07820563716 | I108: 0.0612244898 | J108: 0.05818965517 | K108: 0.05828571429 | L108: 0.04982517483 | M108: 0.03974358974 | N108: 0.05838509317 | O108: 0.1059233449 | P108: 0.05187637969 | Q108: 0.1008462623 | R108: 0.0425170068 | S108: 0.05007153076 | T108: 0.04904632153 | U108: 0.0758377425 | V108: 0.04895738894 | W108: 0.06430976431 | X108: 0.06601473766 | Y108: 0.06434567837 | Z108: 0.06441328723
A109: Aged 25 - 29 years | B109: =B76/B$89 -> 0.0617457199 | C109: 0.05436774588 | D109: 0.06625491297 | E109: 0.06411149826 | F109: 0.0677040677 | G109: 0.05555555556 | H109: 0.07066296149 | I109: 0.06530612245 | J109: 0.0625 | K109: 0.06514285714 | L109: 0.06118881119 | M109: 0.04615384615 | N109: 0.06583850932 | O109: 0.06411149826 | P109: 0.06622516556 | Q109: 0.07898448519 | R109: 0.04761904762 | S109: 0.06008583691 | T109: 0.05994550409 | U109: 0.05555555556 | V109: 0.04986400725 | W109: 0.06175084175 | X109: 0.06817552219 | Y109: 0.06422949987 | Z109: 0.06896564202
A110: Aged 30 - 34 years | B110: =B77/B$89 -> 0.06258770699 | C110: 0.05192425168 | D110: 0.06850084222 | E110: 0.05574912892 | F110: 0.06251706252 | G110: 0.0467372134 | H110: 0.0627233029 | I110: 0.07006802721 | J110: 0.05747126437 | K110: 0.06628571429 | L110: 0.06206293706 | M110: 0.04871794872 | N110: 0.06459627329 | O110: 0.05574912892 | P110: 0.0706401766 | Q110: 0.06558533145 | R110: 0.04421768707 | S110: 0.06008583691 | T110: 0.05903723887 | U110: 0.0467372134 | V110: 0.04714415231 | W110: 0.05905723906 | X110: 0.0646850241 | Y110: 0.06209525777 | Z110: 0.06784383758
A111: Aged 35 - 39 years | B111: =B78/B$89 -> 0.05950042099 | C111: 0.05009163103 | D111: 0.06120157215 | E111: 0.05226480836 | F111: 0.05951405951 | G111: 0.04585537919 | H111: 0.05915045653 | I111: 0.06462585034 | J111: 0.05316091954 | K111: 0.05942857143 | L111: 0.06118881119 | M111: 0.04871794872 | N111: 0.05838509317 | O111: 0.05226480836 | P111: 0.06181015453 | Q111: 0.06135401975 | R111: 0.04761904762 | S111: 0.06008583691 | T111: 0.05631244323 | U111: 0.04585537919 | V111: 0.04805077063 | W111: 0.05595959596 | X111: 0.05965704471 | Y111: 0.06019122121 | Z111: 0.06435900637
A112: Aged 40 - 44 years | B112: =B79/B$89 -> 0.06427168117 | C112: 0.05620036652 | D112: 0.06007860752 | E112: 0.05365853659 | F112: 0.06497406497 | G112: 0.0582010582 | H112: 0.06312028583 | I112: 0.06462585034 | J112: 0.05818965517 | K112: 0.05942857143 | L112: 0.06993006993 | M112: 0.05641025641 | N112: 0.06211180124 | O112: 0.05365853659 | P112: 0.06070640177 | Q112: 0.06064880113 | R112: 0.06292517007 | S112: 0.06723891273 | T112: 0.06630336058 | U112: 0.0582010582 | V112: 0.05349048051 | W112: 0.06067340067 | X112: 0.06130533548 | Y112: 0.06243088455 | Z112: 0.06396637482
A113: Aged 45 - 49 years | B113: =B80/B$89 -> 0.07437552624 | C113: 0.0720830788 | D113: 0.06850084222 | E113: 0.06480836237 | F113: 0.07234507235 | G113: 0.07054673721 | H113: 0.07026597856 | I113: 0.07074829932 | J113: 0.07399425287 | K113: 0.06971428571 | L113: 0.07692307692 | M113: 0.07179487179 | N113: 0.07329192547 | O113: 0.06480836237 | P113: 0.06732891832 | Q113: 0.06699576869 | R113: 0.07993197279 | S113: 0.07868383405 | T113: 0.0744777475 | U113: 0.07054673721 | V113: 0.06980961015 | W113: 0.07158249158 | X113: 0.07066873511 | Y113: 0.07078713086 | Z113: 0.07025933586
A114: Aged 50 - 54 years | B114: =B81/B$89 -> 0.07100757788 | C114: 0.07758094075 | D114: 0.06625491297 | E114: 0.06759581882 | F114: 0.07261807262 | G114: 0.0758377425 | H114: 0.07066296149 | I114: 0.06462585034 | J114: 0.0783045977 | K114: 0.06857142857 | L114: 0.07604895105 | M114: 0.07948717949 | N114: 0.06956521739 | O114: 0.06759581882 | P114: 0.0651214128 | Q114: 0.06558533145 | R114: 0.08333333333 | S114: 0.07582260372 | T114: 0.07720254314 | U114: 0.0758377425 | V114: 0.07524932004 | W114: 0.07239057239 | X114: 0.07152750845 | Y114: 0.07154874549 | Z114: 0.07007839966
A115: Aged 55 - 59 years | B115: =B82/B$89 -> 0.06286836935 | C115: 0.0708613317 | D115: 0.0634475014 | E115: 0.06132404181 | F115: 0.06224406224 | G115: 0.06790123457 | H115: 0.06034140532 | I115: 0.05782312925 | J115: 0.06752873563 | K115: 0.064 | L115: 0.06555944056 | M115: 0.07564102564 | N115: 0.05962732919 | O115: 0.06132404181 | P115: 0.06291390728 | Q115: 0.05641748942 | R115: 0.07482993197 | S115: 0.06723891273 | T115: 0.06539509537 | U115: 0.06790123457 | V115: 0.07162284678 | W115: 0.06471380471 | X115: 0.06334145936 | Y115: 0.06303114014 | Z115: 0.0611148203
A116: Aged 60 - 64 years | B116: =B83/B$89 -> 0.05557114791 | C116: 0.06291997557 | D116: 0.05614823133 | E116: 0.0543554007 | F116: 0.05432705433 | G116: 0.05996472663 | H116: 0.05279872965 | I116: 0.05034013605 | J116: 0.05747126437 | K116: 0.056 | L116: 0.05769230769 | M116: 0.06794871795 | N116: 0.05465838509 | O116: 0.0543554007 | P116: 0.05629139073 | Q116: 0.04724964739 | R116: 0.06462585034 | S116: 0.06008583691 | T116: 0.05994550409 | U116: 0.05996472663 | V116: 0.0661831369 | W116: 0.0571043771 | X116: 0.05487838661 | Y116: 0.05541284246 | Z116: 0.05303240025
A117: Aged 65 - 69 years | B117: =B84/B$89 -> 0.05725512209 | C117: 0.07025045816 | D117: 0.06120157215 | E117: 0.05923344948 | F117: 0.0576030576 | G117: 0.06613756614 | H117: 0.05359269551 | I117: 0.04829931973 | J117: 0.0617816092 | K117: 0.06057142857 | L117: 0.06555944056 | M117: 0.07692307692 | N117: 0.05838509317 | O117: 0.05923344948 | P117: 0.06070640177 | Q117: 0.04513399154 | R117: 0.07142857143 | S117: 0.06294706724 | T117: 0.06448683015 | U117: 0.06613756614 | V117: 0.07615593835 | W117: 0.06148148148 | X117: 0.05744085545 | Y117: 0.05844639223 | Z117: 0.05486166523
A118: Aged 70 - 74 years | B118: =B85/B$89 -> 0.0426606792 | C118: 0.05833842395 | D118: 0.04435710275 | E118: 0.04738675958 | F118: 0.04368004368 | G118: 0.05379188713 | H118: 0.04088924176 | I118: 0.03401360544 | J118: 0.04885057471 | K118: 0.04457142857 | L118: 0.04982517483 | M118: 0.06538461538 | N118: 0.04596273292 | O118: 0.04738675958 | P118: 0.04415011038 | Q118: 0.03314527504 | R118: 0.05782312925 | S118: 0.0443490701 | T118: 0.05086285195 | U118: 0.05379188713 | V118: 0.06527651859 | W118: 0.04787878788 | X118: 0.04399135686 | Y118: 0.04615083412 | Z118: 0.04308633733
A119: Aged 75 - 79 years | B119: =B86/B$89 -> 0.03059219759 | C119: 0.04581551619 | D119: 0.03200449186 | E119: 0.0362369338 | F119: 0.03330603331 | G119: 0.0405643739 | H119: 0.03255260024 | I119: 0.02585034014 | J119: 0.03879310345 | K119: 0.032 | L119: 0.03496503497 | M119: 0.04871794872 | N119: 0.03229813665 | O119: 0.0362369338 | P119: 0.03200883002 | Q119: 0.02750352609 | R119: 0.04081632653 | S119: 0.02861230329 | T119: 0.03905540418 | U119: 0.0405643739 | V119: 0.05258386219 | W119: 0.03609427609 | X119: 0.03401850518 | Y119: 0.03461043627 | Z119: 0.03249614154
A120: Aged 80 - 84 years | B120: =B87/B$89 -> 0.02245298905 | C120: 0.03390348198 | D120: 0.02245929253 | E120: 0.02717770035 | F120: 0.02347802348 | G120: 0.0291005291 | H120: 0.02342199285 | I120: 0.01836734694 | J120: 0.02801724138 | K120: 0.02285714286 | L120: 0.02272727273 | M120: 0.03846153846 | N120: 0.02360248447 | O120: 0.02717770035 | P120: 0.02317880795 | Q120: 0.02115655853 | R120: 0.03231292517 | S120: 0.02145922747 | T120: 0.02633969119 | U120: 0.0291005291 | V120: 0.03807796917 | W120: 0.02612794613 | X120: 0.02459970081 | Y120: 0.02589274573 | Z120: 0.02434315636
A121: Aged 85 and over | B121: =B88/B$89 -> 0.02076901488 | C121: 0.03298717166 | D121: 0.02302077485 | E121: 0.02578397213 | F121: 0.02129402129 | G121: 0.02557319224 | H121: 0.02183406114 | I121: 0.01632653061 | J121: 0.02658045977 | K121: 0.02285714286 | L121: 0.0201048951 | M121: 0.03846153846 | N121: 0.02111801242 | O121: 0.02578397213 | P121: 0.02317880795 | Q121: 0.01904090268 | R121: 0.0306122449 | S121: 0.02145922747 | T121: 0.02543142598 | U121: 0.02557319224 | V121: 0.03717135086 | W121: 0.02471380471 | X121: 0.02306221951 | Y121: 0.02555496749 | Z121: 0.02403013673
A122: =A89 -> Total | B122: =B89/B$89 -> 1 | C122: 1 | D122: 1 | E122: 1 | F122: 1 | G122: 1 | H122: 1 | I122: 1 | J122: 1 | K122: 1 | L122: 1 | M122: 1 | N122: 1 | O122: 1 | P122: 1 | Q122: 1 | R122: 1 | S122: 1 | T122: 1 | U122: 1 | V122: 1 | W122: 1 | X122: 1 | Y122: 1 | Z122: 1
A124: Age Group, 2016, %
A125: 0-14 | B125: =B92/B$89 -> 0.1975863037 | C125: =C92/C$89 -> 0.1576053757 | D125: 0.1959573273 | E125: 0.156097561 | F125: 0.1769041769 | G125: 0.1604938272 | H125: =H92/H$89 -> 0.1794362842 | I125: 0.2197278912 | J125: 0.1724137931 | K125: 0.1931428571 | L125: 0.1713286713 | M125: 0.1461538462 | N125: 0.1937888199 | O125: 0.156097561 | P125: 0.1997792494 | Q125: 0.1861777151 | R125: 0.1598639456 | S125: 0.1845493562 | T125: 0.1707538601 | U125: 0.1604938272 | V125: 0.1468721668 | W125: 0.1766329966 | X125: 0.1784170868 | Y125: 0.176952767 | Z125: 0.179626222
A126: 15-19 | B126: =B93/B$89 -> 0.0617457199 | C126: 0.05436774588 | D126: 0.05614823133 | E126: 0.06898954704 | F126: 0.05787605788 | G126: 0.06790123457 | H126: =H93/H$89 -> 0.06034140532 | I126: 0.06666666667 | J126: 0.05675287356 | K126: 0.05714285714 | L126: 0.05244755245 | M126: 0.05 | N126: 0.05838509317 | O126: 0.06898954704 | P126: 0.05629139073 | Q126: 0.06488011283 | R126: 0.0612244898 | S126: 0.05436337625 | T126: 0.05449591281 | U126: 0.06790123457 | V126: 0.05349048051 | W126: 0.05966329966 | X126: 0.05823037287 | Y126: 0.05832160791 | Z126: 0.05752685546
A127: 20-24 | B127: =B94/B$89 -> 0.05529048555 | C127: 0.05070250458 | D127: 0.0550252667 | E127: 0.1059233449 | F127: 0.06961506962 | G127: 0.0758377425 | H127: =H94/H$89 -> 0.07820563716 | I127: 0.0612244898 | J127: 0.05818965517 | K127: 0.05828571429 | L127: 0.04982517483 | M127: 0.03974358974 | N127: 0.05838509317 | O127: 0.1059233449 | P127: 0.05187637969 | Q127: 0.1008462623 | R127: 0.0425170068 | S127: 0.05007153076 | T127: 0.04904632153 | U127: 0.0758377425 | V127: 0.04895738894 | W127: 0.06430976431 | X127: 0.06601473766 | Y127: 0.06434567837 | Z127: 0.06441328723
A128: 25-34 | B128: =B95/B$89 -> 0.1243334269 | C128: 0.1062919976 | D128: 0.1347557552 | E128: 0.1198606272 | F128: 0.1302211302 | G128: 0.102292769 | H128: =H95/H$89 -> 0.1333862644 | I128: 0.1353741497 | J128: 0.1199712644 | K128: 0.1314285714 | L128: 0.1232517483 | M128: 0.09487179487 | N128: 0.1304347826 | O128: 0.1198606272 | P128: 0.1368653422 | Q128: 0.1445698166 | R128: 0.09183673469 | S128: 0.1201716738 | T128: 0.118982743 | U128: 0.102292769 | V128: 0.09700815956 | W128: 0.1208080808 | X128: 0.1328605463 | Y128: 0.1263247576 | Z128: 0.1368094796
A129: 35-44 | B129: =B96/B$89 -> 0.1237721022 | C129: 0.1062919976 | D129: 0.1212801797 | E129: 0.1059233449 | F129: 0.1244881245 | G129: 0.1040564374 | H129: =H96/H$89 -> 0.1222707424 | I129: 0.1292517007 | J129: 0.1113505747 | K129: 0.1188571429 | L129: 0.1311188811 | M129: 0.1051282051 | N129: 0.1204968944 | O129: 0.1059233449 | P129: 0.1225165563 | Q129: 0.1220028209 | R129: 0.1105442177 | S129: 0.1273247496 | T129: 0.1226158038 | U129: 0.1040564374 | V129: 0.1015412511 | W129: 0.1166329966 | X129: 0.1209623802 | Y129: 0.1226221058 | Z129: 0.1283253812
A130: 45-54 | B130: =B97/B$89 -> 0.1453831041 | C130: 0.1496640195 | D130: 0.1347557552 | E130: 0.1324041812 | F130: 0.144963145 | G130: 0.1463844797 | H130: =H97/H$89 -> 0.1409289401 | I130: 0.1353741497 | J130: 0.1522988506 | K130: 0.1382857143 | L130: 0.152972028 | M130: 0.1512820513 | N130: 0.1428571429 | O130: 0.1324041812 | P130: 0.1324503311 | Q130: 0.1325811001 | R130: 0.1632653061 | S130: 0.1545064378 | T130: 0.1516802906 | U130: 0.1463844797 | V130: 0.1450589302 | W130: 0.143973064 | X130: 0.1421962436 | Y130: 0.1423358764 | Z130: 0.1403377355
A131: 55-64 | B131: =B98/B$89 -> 0.1184395173 | C131: 0.1337813073 | D131: 0.1195957327 | E131: 0.1156794425 | F131: 0.1165711166 | G131: 0.1278659612 | H131: =H98/H$89 -> 0.113140135 | I131: 0.1081632653 | J131: 0.125 | K131: 0.12 | L131: 0.1232517483 | M131: 0.1435897436 | N131: 0.1142857143 | O131: 0.1156794425 | P131: 0.119205298 | Q131: 0.1036671368 | R131: 0.1394557823 | S131: 0.1273247496 | T131: 0.1253405995 | U131: 0.1278659612 | V131: 0.1378059837 | W131: 0.1218181818 | X131: 0.118219846 | Y131: 0.1184439826 | Z131: 0.1141472205
A132: 65+ | B132: =B99/B$89 -> 0.1737300028 | C132: 0.2412950519 | D132: 0.1830432341 | E132: 0.1958188153 | F132: 0.1793611794 | G132: 0.2151675485 | H132: =H99/H$89 -> 0.1722905915 | I132: 0.1428571429 | J132: 0.2040229885 | K132: 0.1828571429 | L132: 0.1931818182 | M132: 0.2679487179 | N132: 0.1813664596 | O132: 0.1958188153 | P132: 0.1832229581 | Q132: 0.1459802539 | R132: 0.2329931973 | S132: 0.1788268956 | T132: 0.2061762035 | U132: 0.2151675485 | V132: 0.2692656392 | W132: 0.1962962963 | X132: 0.1831126378 | Y132: 0.1906553758 | Z132: 0.1788174372
A135: Population by Gender, 2011, %
A136: 0-14 | B136: 0.4955121836 | C136: 0.4907832131 | D136: 0.4939251025 | E136: 0.4927151487 | F136: 0.4992928714 | G136: 0.4866094655 | H136: 0.4984062337 | I136: 0.4993777584 | J136: 0.4939473401 | K136: 0.4937272914 | L136: 0.5012461631 | M136: 0.4891909219 | N136: 0.4941331314 | O136: 0.4927151487 | P136: 0.4941162185 | Q136: 0.5060048942 | R136: 0.4910073777 | S136: 0.4927596371 | T136: 0.4886212972 | U136: 0.4866094655 | V136: 0.487915038 | W136: 0.4936991449 | X136: 0.4932238151 | Y136: 0.493148509 | Z136: 0.4939727673
A137: 15-19 | B137: 0.5044878164 | C137: 0.5092167869 | D137: 0.5060748975 | E137: 0.5072848513 | F137: 0.5007071286 | G137: 0.5133905345 | H137: 0.5015937663 | I137: 0.5006222416 | J137: 0.5060526599 | K137: 0.5062727086 | L137: 0.4987538369 | M137: 0.5108090781 | N137: 0.5058668686 | O137: 0.5072848513 | P137: 0.5058837815 | Q137: 0.4939951058 | R137: 0.5089926223 | S137: 0.5072403629 | T137: 0.5113787028 | U137: 0.5133905345 | V137: 0.512084962 | W137: 0.5063008551 | X137: 0.5067761849 | Y137: 0.506851491 | Z137: 0.5060272327
A140: Population by Ethnicity, 2011, %
A141: White | B141: 0.828 | C141: 0.974 | D141: 0.836 | E141: 0.956 | F141: 0.904 | G141: 0.981 | H141: 0.876 | I141: 0.692 | J141: 0.967 | K141: 0.874 | L141: 0.969 | M141: 0.975 | N141: 0.877 | O141: 0.956 | P141: 0.799 | Q141: 0.802 | R141: 0.979 | S141: 0.938 | T141: 0.971 | U141: 0.981 | V141: 0.982 | W141: 0.904 | X141: 0.854 | Y141: 0.902 | Z141: 0.901
A142: Mixed/multiple ethnic groups | B142: 0.01 | C142: 0.01 | D142: 0.011 | E142: 0.01 | F142: 0.015 | G142: 0.008 | H142: 0.018 | I142: 0.012 | J142: 0.012 | K142: 0.011 | L142: 0.009 | M142: 0.01 | N142: 0.009 | O142: 0.01 | P142: 0.011 | Q142: 0.024 | R142: 0.006 | S142: 0.009 | T142: 0.011 | U142: 0.008 | V142: 0.006 | W142: 0.011 | X142: 0.023 | Y142: 0.016 | Z142: 0.018
A143: Asian/Asian British | B143: 0.155 | C143: 0.013 | D143: 0.149 | E143: 0.027 | F143: 0.07 | G143: 0.008 | H143: 0.094 | I143: 0.281 | J143: 0.016 | K143: 0.11 | L143: 0.016 | M143: 0.011 | N143: 0.112 | O143: 0.027 | P143: 0.188 | Q143: 0.155 | R143: 0.013 | S143: 0.05 | T143: 0.015 | U143: 0.008 | V143: 0.009 | W143: 0.079 | X143: 0.078 | Y143: 0.062 | Z143: 0.059
A144: Black/African/Caribbean/Black British | B144: 0.004 | C144: 0.002 | D144: 0.002 | E144: 0.005 | F144: 0.007 | G144: 0.002 | H144: 0.008 | I144: 0.006 | J144: 0.002 | K144: 0.002 | L144: 0.004 | M144: 0.002 | N144: 0.001 | O144: 0.005 | P144: 0.001 | Q144: 0.012 | R144: 0.002 | S144: 0.002 | T144: 0.002 | U144: 0.002 | V144: 0.001 | W144: 0.004 | X144: 0.035 | Y144: 0.014 | Z144: 0.017
A145: Other ethnic group | B145: 0.004 | C145: 0.002 | D145: 0.002 | E145: 0.002 | F145: 0.004 | G145: 0.001 | H145: 0.005 | I145: 0.008 | J145: 0.002 | K145: 0.003 | L145: 0.002 | M145: 0.002 | N145: 0.002 | O145: 0.002 | P145: 0.002 | Q145: 0.008 | R145: 0.001 | S145: 0.001 | T145: 0.001 | U145: 0.001 | V145: 0.001 | W145: 0.003 | X145: 0.01 | Y145: 0.006 | Z145: 0.006
A148: Population by Disability, 2011, %
A149: Day-to-day activities not limited | B149: 0.8006152766 | C149: 0.7589005163 | D149: 0.7829313754 | E149: 0.8054056007 | F149: 0.8180234222 | G149: 0.7999909654 | H149: 0.8189794551 | I149: 0.7976730468 | J149: 0.7442649491 | K149: 0.774784916 | L149: 0.8157995427 | M149: 0.7813667384 | N149: 0.7825823073 | O149: 0.8054056007 | P149: 0.7908599025 | Q149: 0.8182265588 | R149: 0.8329132535 | S149: 0.8012709247 | T149: 0.819947367 | U149: 0.7999909654 | V149: 0.7624015072 | W149: 0.7938356882 | X149: 0.7976787877 | Y149: 0.8172236302 | Z149: 0.8235775758
A150: Day-to-day activities limited a little | B150: 0.09860275035 | C150: 0.1190001566 | D150: 0.1073304213 | E150: 0.1024462511 | F150: 0.09371405164 | G150: 0.09871256268 | H150: 0.09343293522 | I150: 0.09680721952 | J150: 0.1202548129 | K150: 0.1093166703 | L150: 0.09436797163 | M150: 0.1150256742 | N150: 0.1040453836 | O150: 0.1024462511 | P150: 0.1053973081 | Q150: 0.0918674484 | R150: 0.09574319121 | S150: 0.09843782178 | T150: 0.09544550098 | U150: 0.09871256268 | V150: 0.1201403261 | W150: 0.103382657 | X150: 0.09965149769 | Y150: 0.09682950026 | Z150: 0.09332131301
A151: Day-to-day activities limited a lot | B151: 0.100781973 | C151: 0.122099327 | D151: 0.1097382033 | E151: 0.09214814815 | F151: 0.08826252616 | G151: 0.101296472 | H151: 0.08758760968 | I151: 0.1055197337 | J151: 0.1354802379 | K151: 0.1158984137 | L151: 0.08983248565 | M151: 0.1036075874 | N151: 0.1133723091 | O151: 0.09214814815 | P151: 0.1037427894 | Q151: 0.08990599278 | R151: 0.07134355528 | S151: 0.1002912536 | T151: 0.08460713205 | U151: 0.101296472 | V151: 0.1174581667 | W151: 0.1027816548 | X151: 0.1026697146 | Y151: 0.08594686956 | Z151: 0.08310111118
A154: Source: Mid-Year Population Estimates and 2011 Census
A155: Description: Population by age group, gender, ethnicity and disability
A156: Years: 2006, 2011 and 2016
A157: http://nomisweb.co.uk/

Sheet LS3. Population Change by Age
A1: LS3. Population Change by Age | C1: Return to Contents | E1: Return to TTWA Summary | I1: Return to LA Summary
B2: Blackburn with Darwen, Hyndburn, Rossendale and Ribble Valley | C2: Blackpool, Fylde and Wyre | D2: Burnley and Pendle | E2: Lancaster and Morecambe | F2: Preston, Chorley and South Ribble | G2: West Lancashire | H2: Preston and South Ribble City Deal | I2: Blackburn with Darwen | J2: Blackpool | K2: Burnley | L2: Chorley | M2: Fylde | N2: Hyndburn | O2: Lancaster | P2: Pendle | Q2: Preston | R2: Ribble Valley | S2: Rossendale | T2: South Ribble | U2: West Lancashire | V2: Wrye | W2: Lancashire | X2: North West | Y2: England Minus London | Z2: England | AA2: =#REF! ->  | AB2: =#REF! -> 
A3: Change 2006-16 | AA3: =#REF! ->  | AB3: =#REF! -> 
A4: Aged under 1 year | B4: -200 | C4: 0 | D4: 100 | E4: 100 | F4: 0 | G4: -200 | H4: =SUM(Q4,T4) -> 100 | I4: -100 | J4: 100 | K4: 0 | L4: 0 | M4: 0 | N4: -100 | O4: 100 | P4: 100 | Q4: 100 | R4: 0 | S4: 0 | T4: 0 | U4: -200 | V4: -100 | W4: -100 | X4: 3800 | Y4: 32700 | Z4: 46300
A5: Aged 1 - 4 years | B5: 800 | C5: 1100 | D5: 1100 | E5: 1200 | F5: 2000 | G5: 0 | H5: =SUM(Q5,T5) -> 1400 | I5: 300 | J5: 800 | K5: 400 | L5: 700 | M5: 300 | N5: 200 | O5: 1200 | P5: 700 | Q5: 1000 | R5: -100 | S5: 400 | T5: 400 | U5: 0 | V5: 100 | W5: 6100 | X5: 44800 | Y5: 314700 | Z5: 419600
A6: Aged 5 - 9 years | B6: 1000 | C6: 300 | D6: 1100 | E6: 300 | F6: 2800 | G6: -300 | H6: 1900 | I6: 500 | J6: 0 | K6: 600 | L6: 1000 | M6: 300 | N6: 0 | O6: 300 | P6: 600 | Q6: 1400 | R6: -100 | S6: 500 | T6: 500 | U6: -300 | V6: -100 | W6: 5400 | X6: 39800 | Y6: 314500 | Z6: 441200
A7: Aged 10 - 14 years | B7: -2200 | C7: -2500 | D7: -1400 | E7: -1000 | F7: -1400 | G7: -1100 | H7: -1200 | I7: -500 | J7: -1100 | K7: -900 | L7: -200 | M7: -400 | N7: -1000 | O7: -1000 | P7: -600 | Q7: -500 | R7: -300 | S7: -500 | T7: -700 | U7: -1100 | V7: -900 | W7: -9700 | X7: -40500 | Y7: -157900 | Z7: -111700
A8: Aged 15 - 19 years | B8: -2400 | C8: -2500 | D8: -2700 | E8: 100 | F8: -2300 | G8: 400 | H8: -2000 | I8: -600 | J8: -1200 | K8: -1400 | L8: -400 | M8: -400 | N8: -900 | O8: 100 | P8: -1100 | Q8: -900 | R8: -100 | S8: -800 | T8: -1100 | U8: 400 | V8: -1000 | W8: -9400 | X8: -48500 | Y8: -126700 | Z8: -111600
A9: Aged 20 - 24 years | B9: 0 | C9: 300 | D9: -900 | E9: 2100 | F9: -900 | G9: 1900 | H9: -1300 | I9: -400 | J9: -100 | K9: -200 | L9: 300 | M9: 0 | N9: -100 | O9: 2100 | P9: -700 | Q9: -1200 | R9: 300 | S9: 200 | T9: -100 | U9: 1900 | V9: 400 | W9: 2600 | X9: 8900 | Y9: 209900 | Z9: 204700
A10: Aged 25 - 29 years | B10: 1900 | C10: 2300 | D10: 1300 | E10: 1300 | F10: 3400 | G10: 1000 | H10: 2200 | I10: 100 | J10: 900 | K10: 600 | L10: 1200 | M10: 400 | N10: 500 | O10: 1300 | P10: 600 | Q10: 1300 | R10: 500 | S10: 700 | T10: 900 | U10: 1000 | V10: 900 | W10: 11000 | X10: 74300 | Y10: 390900 | Z10: 467100
A11: Aged 30 - 34 years | B11: -300 | C11: -300 | D11: 1200 | E11: 300 | F11: -400 | G11: -900 | H11: -400 | I11: 200 | J11: -500 | K11: 400 | L11: 100 | M11: 100 | N11: -100 | O11: 300 | P11: 800 | Q11: 0 | R11: -300 | S11: -100 | T11: -400 | U11: -900 | V11: 0 | W11: -500 | X11: 29700 | Y11: 141600 | Z11: 278700
A12: Aged 35 - 39 years | B12: -5400 | C12: -6600 | D12: -1700 | E12: -1700 | F12: -4500 | G12: -2500 | H12: -3100 | I12: -1500 | J12: -3200 | K12: -1100 | L12: -1400 | M12: -1300 | N12: -1500 | O12: -1700 | P12: -700 | Q12: -1100 | R12: -1500 | S12: -1000 | T12: -2000 | U12: -2500 | V12: -2000 | W12: -22300 | X12: -82200 | Y12: -426600 | Z12: -332400
A13: Aged 40 - 44 years | B13: -3600 | C13: -6300 | D13: -2000 | E13: -1900 | F13: -3000 | G13: -1900 | H13: -2500 | I13: -800 | J13: -3000 | K13: -1200 | L13: -400 | M13: -1400 | N13: -1100 | O13: -1900 | P13: -800 | Q13: -1200 | R13: -1100 | S13: -700 | T13: -1300 | U13: -1900 | V13: -1900 | W13: -18800 | X13: -84000 | Y13: -423100 | Z13: -382500
A14: Aged 45 - 49 years | B14: 2900 | C14: 900 | D14: 100 | E14: 400 | F14: 2800 | G14: 200 | H14: 1500 | I14: 1200 | J14: 500 | K14: 0 | L14: 1300 | M14: 100 | N14: 600 | O14: 400 | P14: 100 | Q14: 800 | R14: 400 | S14: 700 | T14: 700 | U14: 200 | V14: 200 | W14: 7500 | X14: 36000 | Y14: 309400 | Z14: 415200
A15: Aged 50 - 54 years | B15: 3800 | C15: 4700 | D15: 500 | E15: 1800 | F15: 5300 | G15: 1500 | H15: 3400 | I15: 1300 | J15: 2000 | K15: 500 | L15: 1800 | M15: 1300 | N15: 700 | O15: 1800 | P15: 100 | Q15: 1800 | R15: 1000 | S15: 800 | T15: 1600 | U15: 1500 | V15: 1500 | W15: 17700 | X15: 94200 | Y15: 654400 | Z15: 806100
A16: Aged 55 - 59 years | B16: -400 | C16: -100 | D16: -900 | E16: -100 | F16: -500 | G16: -500 | H16: -100 | I16: 200 | J16: -400 | K16: -500 | L16: -500 | M16: 400 | N16: -500 | O16: -100 | P16: -400 | Q16: 400 | R16: 0 | S16: -200 | T16: -500 | U16: -500 | V16: -100 | W16: -2700 | X16: 600 | Y16: 32200 | Z16: 105400
A17: Aged 60 - 64 years | B17: 1600 | C17: -400 | D17: 600 | E17: 200 | F17: 1100 | G17: -200 | H17: 1000 | I17: 1100 | J17: -500 | K17: 200 | L17: 200 | M17: 200 | N17: 0 | O17: 200 | P17: 400 | Q17: 800 | R17: 0 | S17: 500 | T17: 200 | U17: -200 | V17: 0 | W17: 2800 | X17: 25100 | Y17: 163800 | Z17: 228700
A18: Aged 65 - 69 years | B18: 5800 | C18: 4200 | D18: 3300 | E18: 2000 | F18: 5700 | G18: 1700 | H18: 3000 | I18: 1900 | J18: 1000 | K18: 1500 | L18: 2600 | M18: 1700 | N18: 1100 | O18: 2000 | P18: 1800 | Q18: 1100 | R18: 1200 | S18: 1700 | T18: 1900 | U18: 1700 | V18: 1500 | W18: 22600 | X18: 98300 | Y18: 734900 | Z18: 807100
A19: Aged 70 - 74 years | B19: 3000 | C19: 2600 | D19: 1400 | E19: 900 | F19: 3100 | G19: 1300 | H19: 1200 | I19: 500 | J19: 400 | K19: 700 | L19: 1900 | M19: 1100 | N19: 800 | O19: 900 | P19: 700 | Q19: -100 | R19: 800 | S19: 800 | T19: 1300 | U19: 1300 | V19: 1100 | W19: 12300 | X19: 46500 | Y19: 417100 | Z19: 442100
A20: Aged 75 - 79 years | B20: 800 | C20: 700 | D20: 200 | E20: 300 | F20: 1900 | G20: 1100 | H20: 700 | I20: 100 | J20: 0 | K20: 100 | L20: 1100 | M20: 100 | N20: 100 | O20: 300 | P20: 100 | Q20: 0 | R20: 400 | S20: 100 | T20: 700 | U20: 1100 | V20: 600 | W20: 5000 | X20: 22200 | Y20: 152000 | Z20: 162800
A21: Aged 80 - 84 years | B21: 500 | C21: 500 | D21: -200 | E21: 300 | F21: 1000 | G21: 800 | H21: 600 | I21: 0 | J21: -200 | K21: -100 | L21: 400 | M21: 300 | N21: 100 | O21: 300 | P21: 0 | Q21: 200 | R21: 400 | S21: 0 | T21: 400 | U21: 800 | V21: 400 | W21: 2800 | X21: 15600 | Y21: 117300 | Z21: 128300
A22: Aged 85 and over | B22: 1300 | C22: 1800 | D22: 600 | E22: 400 | F22: 1900 | G22: 800 | H22: 1400 | I22: 200 | J22: 100 | K22: 300 | L22: 500 | M22: 600 | N22: 200 | O22: 400 | P22: 400 | Q22: 500 | R22: 600 | S22: 400 | T22: 900 | U22: 800 | V22: 1200 | W22: 6900 | X22: 33500 | Y22: 261600 | Z22: 288200
A23: Total | B23: 8800 | C23: 400 | D23: 1700 | E23: 6800 | F23: 18200 | G23: 3100 | H23: 7600 | I23: 3900 | J23: -4500 | K23: -100 | L23: 10600 | M23: 3200 | N23: -1000 | O23: 6800 | P23: 1800 | Q23: 4000 | R23: 2100 | S23: 3700 | T23: 3600 | U23: 3100 | V23: 1900 | W23: 39000 | X23: 318000 | Y23: 3112800 | Z23: 4302900
A26: % Change 2006-16
A27: Aged under 1 year | B27: -0.04255319149 | C27: 0 | D27: 0.04166666667 | E27: 0.07142857143 | F27: 0 | G27: -0.1666666667 | H27: 0.03333333333 | I27: -0.04347826087 | J27: 0.0625 | K27: 0 | L27: 0 | M27: 0 | N27: -0.09090909091 | O27: 0.07142857143 | P27: 0.08333333333 | Q27: 0.05555555556 | R27: 0 | S27: 0 | T27: 0 | U27: -0.1666666667 | V27: -0.1 | W27: -0.005847953216 | X27: 0.04583835947 | Y27: 0.06443349754 | Z27: 0.07434168272
A28: Aged 1 - 4 years | B28: 0.04444444444 | C28: 0.0873015873 | D28: 0.1264367816 | E28: 0.2352941176 | F28: 0.1282051282 | G28: 0 | H28: 0.128440367 | I28: 0.03529411765 | J28: 0.131147541 | K28: 0.09302325581 | L28: 0.152173913 | M28: 0.12 | N28: 0.04761904762 | O28: 0.2352941176 | P28: 0.1590909091 | Q28: 0.15625 | R28: -0.04545454545 | S28: 0.1333333333 | T28: 0.08888888889 | U28: 0 | V28: 0.025 | W28: 0.09413580247 | X28: 0.1439126245 | Y28: 0.1623336428 | Z28: 0.179293253
A29: Aged 5 - 9 years | B29: 0.04310344828 | C29: 0.01724137931 | D29: 0.1 | E29: 0.04109589041 | F29: 0.1414141414 | G29: -0.04545454545 | H29: 0.1366906475 | I29: 0.04761904762 | J29: 0 | K29: 0.1132075472 | L29: 0.1724137931 | M29: 0.07894736842 | N29: 0 | O29: 0.04109589041 | P29: 0.1052631579 | Q29: 0.1794871795 | R29: -0.02941176471 | S29: 0.125 | T29: 0.08196721311 | U29: -0.04545454545 | V29: -0.01754385965 | W29: 0.06338028169 | X29: 0.09866137828 | Y29: 0.1241071781 | Z29: 0.1477017843
A30: Aged 10 - 14 years | B30: -0.08764940239 | C30: -0.1282051282 | D30: -0.1176470588 | E30: -0.125 | F30: -0.06451612903 | G30: -0.1506849315 | H30: -0.07894736842 | I30: -0.0462962963 | J30: -0.1279069767 | K30: -0.15 | L30: -0.03076923077 | M30: -0.09302325581 | N30: -0.1694915254 | O30: -0.125 | P30: -0.1 | Q30: -0.05952380952 | R30: -0.07894736842 | S30: -0.1063829787 | T30: -0.1029411765 | U30: -0.1506849315 | V30: -0.1384615385 | W30: -0.1037433155 | X30: -0.09150474469 | Y30: -0.05761512078 | Z30: -0.03510370836
A31: Aged 15 - 19 years | B31: -0.09836065574 | C31: -0.1231527094 | D31: -0.2125984252 | E31: 0.01020408163 | F31: -0.09787234043 | G31: 0.05479452055 | H31: -0.1162790698 | I31: -0.05769230769 | J31: -0.1318681319 | K31: -0.21875 | L31: -0.0625 | M31: -0.09302325581 | N31: -0.1607142857 | O31: 0.01020408163 | P31: -0.1774193548 | Q31: -0.08910891089 | R31: -0.02702702703 | S31: -0.1739130435 | T31: -0.1549295775 | U31: 0.05479452055 | V31: -0.1449275362 | W31: -0.09591836735 | X31: -0.1034335679 | Y31: -0.04465198238 | Z31: -0.03391066545
A32: Aged 20 - 24 years | B32: 0 | C32: 0.01840490798 | D32: -0.08411214953 | E32: 0.1603053435 | F32: -0.03409090909 | G32: 0.2835820896 | H32: -0.0619047619 | I32: -0.04255319149 | J32: -0.01219512195 | K32: -0.03773584906 | L32: 0.05555555556 | M32: 0 | N32: -0.02083333333 | O32: 0.1603053435 | P32: -0.1296296296 | Q32: -0.07741935484 | R32: 0.1363636364 | S32: 0.06060606061 | T32: -0.01818181818 | U32: 0.2835820896 | V32: 0.08 | W32: 0.02798708288 | X32: 0.01902929228 | Y32: 0.07547916142 | Z32: 0.06100795756
A33: Aged 25 - 29 years | B33: 0.09452736318 | C33: 0.1483870968 | D33: 0.1238095238 | E33: 0.164556962 | F33: 0.1588785047 | G33: 0.1886792453 | H33: 0.141025641 | I33: 0.01052631579 | J33: 0.1153846154 | K33: 0.1176470588 | L33: 0.2068965517 | M33: 0.125 | N33: 0.1041666667 | O33: 0.164556962 | P33: 0.1111111111 | Q33: 0.1313131313 | R33: 0.2173913043 | S33: 0.2 | T33: 0.1578947368 | U33: 0.1886792453 | V33: 0.1956521739 | W33: 0.136307311 | X33: 0.1777937306 | Y33: 0.150664868 | Z33: 0.1396621319
A34: Aged 30 - 34 years | B34: -0.01327433628 | C34: -0.01734104046 | D34: 0.1090909091 | E34: 0.03896103896 | F34: -0.01716738197 | G34: -0.1451612903 | H34: -0.02469135802 | I34: 0.0198019802 | J34: -0.05882352941 | K34: 0.07407407407 | L34: 0.01428571429 | M34: 0.02702702703 | N34: -0.01886792453 | O34: 0.03896103896 | P34: 0.1428571429 | Q34: 0 | R34: -0.1034482759 | S34: -0.02325581395 | T34: -0.05797101449 | U34: -0.1451612903 | V34: 0 | W34: -0.00566893424 | X34: 0.06791676195 | Y34: 0.05159221745 | Z34: 0.08029617678
A35: Aged 35 - 39 years | B35: -0.2030075188 | C35: -0.2869565217 | D35: -0.1349206349 | E35: -0.1847826087 | F35: -0.1711026616 | G35: -0.3246753247 | H35: -0.1722222222 | I35: -0.1363636364 | J35: -0.3018867925 | K35: -0.1746031746 | L35: -0.1666666667 | M35: -0.2549019608 | N35: -0.2419354839 | O35: -0.1847826087 | P35: -0.1111111111 | Q35: -0.112244898 | R35: -0.3488372093 | S35: -0.1923076923 | T35: -0.243902439 | U35: -0.3246753247 | V35: -0.2739726027 | W35: -0.2115749526 | X35: -0.1602651589 | Y35: -0.1323077877 | Z35: -0.08546305343
A36: Aged 40 - 44 years | B36: -0.1358490566 | C36: -0.2550607287 | D36: -0.157480315 | E36: -0.1979166667 | F36: -0.1119402985 | G36: -0.2235294118 | H36: -0.1358695652 | I36: -0.07766990291 | J36: -0.2702702703 | K36: -0.1875 | L36: -0.04761904762 | M36: -0.2413793103 | N36: -0.1803278689 | O36: -0.1979166667 | P36: -0.126984127 | Q36: -0.1224489796 | R36: -0.2291666667 | S36: -0.1296296296 | T36: -0.1511627907 | U36: -0.2235294118 | V36: -0.2435897436 | W36: -0.1726354454 | X36: -0.1595138625 | Y36: -0.1272519474 | Z36: -0.0976313237
A37: Aged 45 - 49 years | B37: 0.1228813559 | C37: 0.03964757709 | D37: 0.00826446281 | E37: 0.04494382022 | F37: 0.1181434599 | G37: 0.02564102564 | H37: 0.09259259259 | I37: 0.1304347826 | J37: 0.05102040816 | K37: 0 | L37: 0.1733333333 | M37: 0.01818181818 | N37: 0.1132075472 | O37: 0.04494382022 | P37: 0.01666666667 | Q37: 0.09195402299 | R37: 0.09302325581 | S37: 0.1458333333 | T37: 0.09333333333 | U37: 0.02564102564 | V37: 0.02666666667 | W37: 0.07591093117 | X37: 0.07591733446 | Y37: 0.1037976382 | Z37: 0.1197266357
A38: Aged 50 - 54 years | B38: 0.176744186 | C38: 0.2270531401 | D38: 0.04424778761 | E38: 0.2278481013 | F38: 0.2488262911 | G38: 0.2112676056 | H38: 0.2361111111 | I38: 0.1585365854 | J38: 0.2247191011 | K38: 0.09090909091 | L38: 0.2608695652 | M38: 0.2653061224 | N38: 0.1428571429 | O38: 0.2278481013 | P38: 0.01724137931 | Q38: 0.24 | R38: 0.2564102564 | S38: 0.1777777778 | T38: 0.231884058 | U38: 0.2112676056 | V38: 0.2205882353 | W38: 0.1971046771 | X38: 0.2231170062 | Y38: 0.244983528 | Z38: 0.2628301272
A39: Aged 55 - 59 years | B39: -0.01754385965 | C39: -0.004291845494 | D39: -0.0737704918 | E39: -0.01123595506 | F39: -0.02145922747 | G39: -0.06097560976 | H39: -0.006535947712 | I39: 0.02409638554 | J39: -0.04081632653 | K39: -0.08196721311 | L39: -0.0625 | M39: 0.07272727273 | N39: -0.09433962264 | O39: -0.01123595506 | P39: -0.06557377049 | Q39: 0.05263157895 | R39: 0 | S39: -0.04081632653 | T39: -0.06493506494 | U39: -0.06097560976 | V39: -0.0125 | W39: -0.02732793522 | X39: 0.001313772717 | Y39: 0.01111302847 | Z39: 0.03220976072
A40: Aged 60 - 64 years | B40: 0.08791208791 | C40: -0.01904761905 | D40: 0.06382978723 | E40: 0.02631578947 | F40: 0.0585106383 | G40: -0.02857142857 | H40: 0.08130081301 | I40: 0.1746031746 | J40: -0.05882352941 | K40: 0.04255319149 | L40: 0.03125 | M40: 0.03921568627 | N40: 0 | O40: 0.02631578947 | P40: 0.08510638298 | Q40: 0.1355932203 | R40: 0 | S40: 0.1351351351 | T40: 0.03125 | U40: -0.02857142857 | V40: 0 | W40: 0.03414634146 | X40: 0.06763675559 | Y40: 0.06791607928 | Z40: 0.08463161011
A41: Aged 65 - 69 years | B41: 0.397260274 | C41: 0.2234042553 | D41: 0.4342105263 | E41: 0.3076923077 | F41: 0.3701298701 | G41: 0.2931034483 | H41: 0.2857142857 | I41: 0.3653846154 | J41: 0.1315789474 | K41: 0.3947368421 | L41: 0.5306122449 | M41: 0.3953488372 | N41: 0.3055555556 | O41: 0.3076923077 | P41: 0.4864864865 | Q41: 0.2075471698 | R41: 0.4 | S41: 0.6296296296 | T41: 0.3653846154 | U41: 0.2931034483 | V41: 0.2173913043 | W41: 0.3289665211 | X41: 0.3106826802 | Y41: 0.3708432154 | Z41: 0.362741573
A42: Aged 70 - 74 years | B42: 0.2459016393 | C42: 0.1575757576 | D42: 0.2153846154 | E42: 0.1525423729 | F42: 0.2403100775 | G42: 0.2708333333 | H42: 0.1318681319 | I42: 0.1111111111 | J42: 0.0625 | K42: 0.21875 | L42: 0.5 | M42: 0.275 | N42: 0.275862069 | O42: 0.1525423729 | P42: 0.2121212121 | Q42: -0.02083333333 | R42: 0.3076923077 | S42: 0.347826087 | T42: 0.3023255814 | U42: 0.2708333333 | V42: 0.1803278689 | W42: 0.2091836735 | X42: 0.1715234231 | Y42: 0.2413773148 | Z42: 0.2279806106
A43: Aged 75 - 79 years | B43: 0.07920792079 | C43: 0.04895104895 | D43: 0.03636363636 | E43: 0.0612244898 | F43: 0.1844660194 | G43: 0.3142857143 | H43: 0.09333333333 | I43: 0.02702702703 | J43: 0 | K43: 0.03703703704 | L43: 0.3793103448 | M43: 0.02702702703 | N43: 0.04 | O43: 0.0612244898 | P43: 0.03571428571 | Q43: 0 | R43: 0.2 | S43: 0.05263157895 | T43: 0.1944444444 | U43: 0.3142857143 | V43: 0.1153846154 | W43: 0.1028806584 | X43: 0.0993733214 | Y43: 0.1043454383 | Z43: 0.09968160666
A44: Aged 80 - 84 years | B44: 0.06666666667 | C44: 0.04716981132 | D44: -0.04761904762 | E44: 0.08333333333 | F44: 0.1315789474 | G44: 0.32 | H44: 0.1132075472 | I44: 0 | J44: -0.0487804878 | K44: -0.04761904762 | L44: 0.1818181818 | M44: 0.1111111111 | N44: 0.05555555556 | O44: 0.08333333333 | P44: 0 | Q44: 0.07142857143 | R44: 0.2666666667 | S44: 0 | T44: 0.16 | U44: 0.32 | V44: 0.1052631579 | W44: 0.07777777778 | X44: 0.0962962963 | Y44: 0.1079911618 | Z44: 0.1054145099
A45: Aged 85 and over | B45: 0.2131147541 | C45: 0.2 | D45: 0.1714285714 | E45: 0.1212121212 | F45: 0.3220338983 | G45: 0.380952381 | H45: 0.3414634146 | I45: 0.09090909091 | J45: 0.02777777778 | K45: 0.1764705882 | L45: 0.2777777778 | M45: 0.25 | N45: 0.1333333333 | O45: 0.1212121212 | P45: 0.2352941176 | Q45: 0.2272727273 | R45: 0.5 | S45: 0.3636363636 | T45: 0.4736842105 | U45: 0.380952381 | V45: 0.4137931034 | W45: 0.2315436242 | X45: 0.2518796992 | Y45: 0.2824443965 | Z45: 0.2771420329
A46: Total | B46: 0.02532374101 | C46: 0.00122324159 | D46: 0.009637188209 | E46: 0.04974396489 | F46: 0.05228382649 | G46: 0.02810516772 | H46: 0.03110929185 | I46: 0.02725366876 | J46: -0.03131524008 | K46: -0.001141552511 | L46: 0.1021194605 | M46: 0.04278074866 | N46: -0.01226993865 | O46: 0.04974396489 | P46: 0.02027027027 | Q46: 0.0290275762 | R46: 0.03703703704 | S46: 0.05589123867 | T46: 0.0338028169 | U46: 0.02810516772 | V46: 0.01752767528 | W46: 0.02697095436 | X46: 0.04607627217 | Y46: 0.07177741806 | Z46: 0.08442819806
A49: Age Group Change 2006-16
A50: 0-14 | B50: =SUM(B4:B7) -> -600 | C50: =SUM(C4:C7) -> -1100 | D50: 900 | E50: 600 | F50: 3400 | G50: -1600 | H50: =SUM(Q50,T50) -> 2200 | I50: =SUM(I4:I7) -> 200 | J50: -200 | K50: 100 | L50: 1500 | M50: 200 | N50: -900 | O50: 600 | P50: 800 | Q50: 2000 | R50: -500 | S50: 400 | T50: 200 | U50: -1600 | V50: -1000 | W50: 1700 | X50: 47900 | Y50: 504000 | Z50: 795400 | AA50: =IF(SUM(AA4:AA19)=0,"..",SUM(AA4:AA19)) -> .. | AB50: =IF(SUM(AB4:AB19)=0,"..",SUM(AB4:AB19)) -> ..
A51: 15-19 | B51: =B8 -> -2400 | C51: =C8 -> -2500 | D51: -2700 | E51: 100 | F51: -2300 | G51: 400 | H51: -2000 | I51: -600 | J51: -1200 | K51: -1400 | L51: -400 | M51: -400 | N51: -900 | O51: 100 | P51: -1100 | Q51: -900 | R51: -100 | S51: -800 | T51: -1100 | U51: 400 | V51: -1000 | W51: -9400 | X51: -48500 | Y51: -126700 | Z51: -111600 | AA51: =IF(SUM(AA20:AA23)=0,"..",SUM(AA20:AA23)) -> .. | AB51: =IF(SUM(AB20:AB23)=0,"..",SUM(AB20:AB23)) -> ..
A52: 20-24 | B52: =B9 -> 0 | C52: =C9 -> 300 | D52: -900 | E52: 2100 | F52: -900 | G52: 1900 | H52: -1300 | I52: -400 | J52: -100 | K52: -200 | L52: 300 | M52: 0 | N52: -100 | O52: 2100 | P52: -700 | Q52: -1200 | R52: 300 | S52: 200 | T52: -100 | U52: 1900 | V52: 400 | W52: 2600 | X52: 8900 | Y52: 209900 | Z52: 204700 | AA52: =IF(SUM(AA24:AA28)=0,"..",SUM(AA24:AA28)) -> .. | AB52: =IF(SUM(AB24:AB28)=0,"..",SUM(AB24:AB28)) -> ..
A53: 25-34 | B53: =SUM(B10:B11) -> 1600 | C53: =SUM(C10:C11) -> 2000 | D53: 2500 | E53: 1600 | F53: 3000 | G53: 100 | H53: 1800 | I53: 300 | J53: 400 | K53: 1000 | L53: 1300 | M53: 500 | N53: 400 | O53: 1600 | P53: 1400 | Q53: 1300 | R53: 200 | S53: 600 | T53: 500 | U53: 100 | V53: 900 | W53: 10500 | X53: 104000 | Y53: 532500 | Z53: 745800 | AA53: =IF(SUM(AA29:AA38)=0,"..",SUM(AA29:AA38)) -> .. | AB53: =IF(SUM(AB29:AB38)=0,"..",SUM(AB29:AB38)) -> ..
A54: 35-44 | B54: =SUM(B12:B13) -> -9000 | C54: =SUM(C12:C13) -> -12900 | D54: -3700 | E54: -3600 | F54: -7500 | G54: -4400 | H54: -5600 | I54: -2300 | J54: -6200 | K54: -2300 | L54: -1800 | M54: -2700 | N54: -2600 | O54: -3600 | P54: -1500 | Q54: -2300 | R54: -2600 | S54: -1700 | T54: -3300 | U54: -4400 | V54: -3900 | W54: -41100 | X54: -166200 | Y54: -849700 | Z54: -714900 | AA54: =IF(SUM(AA39:AA46)=0,"..",SUM(AA39:AA46)) -> .. | AB54: =IF(SUM(AB39:AB46)=0,"..",SUM(AB39:AB46)) -> ..
A55: 45-54 | B55: =SUM(B14:B15) -> 6700 | C55: =SUM(C14:C15) -> 5600 | D55: 600 | E55: 2200 | F55: 8100 | G55: 1700 | H55: 4900 | I55: 2500 | J55: 2500 | K55: 500 | L55: 3100 | M55: 1400 | N55: 1300 | O55: 2200 | P55: 200 | Q55: 2600 | R55: 1400 | S55: 1500 | T55: 2300 | U55: 1700 | V55: 1700 | W55: 25200 | X55: 130200 | Y55: 963800 | Z55: 1221300 | AA55: =IF(SUM(#REF!)=0,"..",SUM(#REF!)) ->  | AB55: =IF(SUM(#REF!)=0,"..",SUM(#REF!)) -> 
A56: 55-64 | B56: =SUM(B16:B17) -> 1200 | C56: =SUM(C16:C17) -> -500 | D56: -300 | E56: 100 | F56: 600 | G56: -700 | H56: 900 | I56: 1300 | J56: -900 | K56: -300 | L56: -300 | M56: 600 | N56: -500 | O56: 100 | P56: 0 | Q56: 1200 | R56: 0 | S56: 300 | T56: -300 | U56: -700 | V56: -100 | W56: 100 | X56: 25700 | Y56: 196000 | Z56: 334100 | AA56: =IF(SUM(#REF!)=0,"..",SUM(#REF!)) ->  | AB56: =IF(SUM(#REF!)=0,"..",SUM(#REF!)) -> 
A57: 65+ | B57: =SUM(B18:B22) -> 11400 | C57: =SUM(C18:C22) -> 9800 | D57: 5300 | E57: 3900 | F57: 13600 | G57: 5700 | H57: 6900 | I57: 2700 | J57: 1300 | K57: 2500 | L57: 6500 | M57: 3800 | N57: 2300 | O57: 3900 | P57: 3000 | Q57: 1700 | R57: 3400 | S57: 3000 | T57: 5200 | U57: 5700 | V57: 4800 | W57: 49600 | X57: 216100 | Y57: 1682900 | Z57: 1828500 | AA57: =IF(SUM(#REF!)=0,"..",SUM(#REF!)) ->  | AB57: =IF(SUM(#REF!)=0,"..",SUM(#REF!)) -> 
A60: % Age Group Change 2006-2016
A61: 0-15 | B61: -0.008450704225 | C61: -0.02087286528 | D61: 0.02647058824 | E61: 0.02752293578 | F61: 0.05537459283 | G61: -0.08080808081 | H61: 0.0511627907 | I61: 0.006230529595 | J61: -0.00826446281 | K61: 0.005952380952 | L61: 0.08287292818 | M61: 0.01785714286 | N61: -0.05454545455 | O61: 0.02752293578 | P61: 0.04624277457 | Q61: 0.08196721311 | R61: -0.05050505051 | S61: 0.032 | T61: 0.01075268817 | U61: -0.08080808081 | V61: -0.05813953488 | W61: 0.006523407521 | X61: 0.03862280277 | Y61: 0.06527820951 | Z61: 0.08709839907 | AA61: =IFERROR(AA50/SUM(AA$50:AA$57),"..") -> .. | AB61: ..
A62: 16-19 | B62: -0.09836065574 | C62: -0.1231527094 | D62: -0.2125984252 | E62: 0.01020408163 | F62: -0.09787234043 | G62: 0.05479452055 | H62: -0.1162790698 | I62: -0.05769230769 | J62: -0.1318681319 | K62: -0.21875 | L62: -0.0625 | M62: -0.09302325581 | N62: -0.1607142857 | O62: 0.01020408163 | P62: -0.1774193548 | Q62: -0.08910891089 | R62: -0.02702702703 | S62: -0.1739130435 | T62: -0.1549295775 | U62: 0.05479452055 | V62: -0.1449275362 | W62: -0.09591836735 | X62: -0.1034335679 | Y62: -0.04465198238 | Z62: -0.03391066545 | AA62: .. | AB62: ..
A63: 20-24 | B63: 0 | C63: 0.01840490798 | D63: -0.08411214953 | E63: 0.1603053435 | F63: -0.03409090909 | G63: 0.2835820896 | H63: -0.0619047619 | I63: -0.04255319149 | J63: -0.01219512195 | K63: -0.03773584906 | L63: 0.05555555556 | M63: 0 | N63: -0.02083333333 | O63: 0.1603053435 | P63: -0.1296296296 | Q63: -0.07741935484 | R63: 0.1363636364 | S63: 0.06060606061 | T63: -0.01818181818 | U63: 0.2835820896 | V63: 0.08 | W63: 0.02798708288 | X63: 0.01902929228 | Y63: 0.07547916142 | Z63: 0.06100795756 | AA63: .. | AB63: ..
A64: 25-34 | B64: 0.037470726 | C64: 0.06097560976 | D64: 0.1162790698 | E64: 0.1025641026 | F64: 0.06711409396 | G64: 0.008695652174 | H64: 0.05660377358 | I64: 0.01530612245 | J64: 0.0245398773 | K64: 0.09523809524 | L64: 0.1015625 | M64: 0.07246376812 | N64: 0.0396039604 | O64: 0.1025641026 | P64: 0.1272727273 | Q64: 0.06770833333 | R64: 0.03846153846 | S64: 0.07692307692 | T64: 0.03968253968 | U64: 0.008695652174 | V64: 0.09183673469 | W64: 0.0621669627 | X64: 0.1216089804 | Y64: 0.09973591055 | Z64: 0.1094286469 | AA64: .. | AB64: ..
A65: 35-44 | B65: -0.1694915254 | C65: -0.2704402516 | D65: -0.1462450593 | E65: -0.1914893617 | F65: -0.1412429379 | G65: -0.2716049383 | H65: -0.1538461538 | I65: -0.1079812207 | J65: -0.2857142857 | K65: -0.1811023622 | L65: -0.1071428571 | M65: -0.247706422 | N65: -0.2113821138 | O65: -0.1914893617 | P65: -0.119047619 | Q65: -0.1173469388 | R65: -0.2857142857 | S65: -0.1603773585 | T65: -0.1964285714 | U65: -0.2716049383 | V65: -0.2582781457 | W65: -0.1917872142 | X65: -0.1598845599 | Y65: -0.1297410371 | Z65: -0.09156932063 | AA65: .. | AB65: ..
A66: 45-54 | B66: 0.1485587583 | C66: 0.1290322581 | D66: 0.02564102564 | E66: 0.130952381 | F66: 0.18 | G66: 0.1140939597 | H66: 0.160130719 | I66: 0.1436781609 | J66: 0.1336898396 | K66: 0.04310344828 | L66: 0.2152777778 | M66: 0.1346153846 | N66: 0.1274509804 | O66: 0.130952381 | P66: 0.01694915254 | Q66: 0.1604938272 | R66: 0.1707317073 | S66: 0.1612903226 | T66: 0.1597222222 | U66: 0.1140939597 | V66: 0.1188811189 | W66: 0.1336161188 | X66: 0.1452476573 | Y66: 0.1705237084 | Z66: 0.1868888583 | AA66: .. | AB66: ..
A67: 55-64 | B67: 0.02926829268 | C67: -0.01128668172 | D67: -0.01388888889 | E67: 0.006060606061 | F67: 0.01425178147 | G67: -0.04605263158 | H67: 0.03260869565 | I67: 0.08904109589 | J67: -0.04918032787 | K67: -0.02777777778 | L67: -0.02083333333 | M67: 0.05660377358 | N67: -0.05154639175 | O67: 0.006060606061 | P67: 0 | Q67: 0.08888888889 | R67: 0 | S67: 0.03488372093 | T67: -0.02127659574 | U67: -0.04605263158 | V67: -0.006535947712 | W67: 0.0005530973451 | X67: 0.03104614641 | Y67: 0.03691635432 | Z67: 0.05592006159 | AA67: .. | AB67: ..
A68: 65+ | B68: 0.2257425743 | C68: 0.1416184971 | D68: 0.1941391941 | E68: 0.1611570248 | F68: 0.2610364683 | G68: 0.3048128342 | H68: 0.1890410959 | I68: 0.1475409836 | J68: 0.0479704797 | K68: 0.1851851852 | L68: 0.4166666667 | M68: 0.2222222222 | N68: 0.1869918699 | O68: 0.1611570248 | P68: 0.2205882353 | Q68: 0.08947368421 | R68: 0.3300970874 | S68: 0.3157894737 | T68: 0.2971428571 | U68: 0.3048128342 | V68: 0.1927710843 | W68: 0.2050434064 | X68: 0.1954064563 | Y68: 0.2344263665 | Z68: 0.2270187723 | AA68: .. | AB68: ..
A71: Source: Mid-Year Population Estimates
A72: Description: Change in population by age groups between 2006 and 2016
A73: Year: 2006-2016
A74: http://nomisweb.co.uk/

Sheet LS4. Working Age Population
A1: LS4. Working Age Population | B1: Return to Contents | D1: Return to TTWA Summary | I1: Return to LA Summary
B2: Blackburn with Darwen, Hyndburn, Rossendale and Ribble Valley | C2: Blackpool, Fylde and Wyre | D2: Burnley and Pendle | E2: Lancaster and Morecambe | F2: Preston, Chorley and South Ribble | G2: West Lancashire | H2: Preston and South Ribble City Deal | I2: Blackburn with Darwen | J2: Blackpool | K2: Burnley | L2: Chorley | M2: Fylde | N2: Hyndburn | O2: Lancaster | P2: Pendle | Q2: Preston | R2: Ribble Valley | S2: Rossendale | T2: South Ribble | U2: West Lancashire | V2: Wrye | W2: Lancashire | X2: North West | Y2: England Minus London | Z2: England
A3: Year
A4: 2006 | B4: 220800 | C4: 200700 | D4: 112600 | E4: 89000 | F4: 230100 | G4: 70300 | H4: =SUM(Q4,T4) -> 161400 | I4: 90500 | J4: 90400 | K4: 56100 | L4: 68700 | M4: 45400 | N4: 51500 | O4: 89000 | P4: 56500 | Q4: 92500 | R4: 35600 | S4: 43100 | T4: 68900 | U4: 70300 | V4: 64900 | W4: 923500 | X4: 4459200 | Y4: 27886700 | Z4: 33107800
A5: 2007 | B5: 222500 | C5: 201600 | D5: 112900 | E5: 88600 | F5: 231600 | G5: 70500 | H5: =SUM(Q5,T5) -> 162600 | I5: 91400 | J5: 90800 | K5: 56100 | L5: 69000 | M5: 45800 | N5: 51800 | O5: 88600 | P5: 56800 | Q5: 93200 | R5: 35800 | S5: 43500 | T5: 69400 | U5: 70500 | V5: 65000 | W5: 927600 | X5: 4489300 | Y5: 28142300 | Z5: 33440400
A6: 2008 | B6: 223700 | C6: 200700 | D6: 113200 | E6: 88200 | F6: 232400 | G6: 70400 | H6: 162800 | I6: 92200 | J6: 90300 | K6: 56200 | L6: 69500 | M6: 45700 | N6: 51800 | O6: 88200 | P6: 57000 | Q6: 93000 | R6: 35800 | S6: 43900 | T6: 69800 | U6: 70400 | V6: 64700 | W6: 928500 | X6: 4510600 | Y6: 28325800 | Z6: 33713000
A7: 2009 | B7: 224300 | C7: 200200 | D7: 113000 | E7: 88200 | F7: 231900 | G7: 70100 | H7: 162500 | I7: 93100 | J7: 90000 | K7: 55900 | L7: 69400 | M7: 45800 | N7: 51600 | O7: 88200 | P7: 57100 | Q7: 92500 | R7: 35500 | S7: 44200 | T7: 70000 | U7: 70100 | V7: 64400 | W7: 927600 | X7: 4523000 | Y7: 28413600 | Z7: 33892200
A8: 2010 | B8: 224700 | C8: 199700 | D8: 112500 | E8: 89100 | F8: 232400 | G8: 70000 | H8: 162800 | I8: 93700 | J8: 90000 | K8: 55600 | L8: 69500 | M8: 45700 | N8: 51400 | O8: 89100 | P8: 56900 | Q8: 93000 | R8: 35400 | S8: 44300 | T8: 69800 | U8: 70000 | V8: 64100 | W8: 928500 | X8: 4538600 | Y8: 28559600 | Z8: 34118000
A9: 2011 | B9: 224700 | C9: 198600 | D9: 112400 | E9: 89400 | F9: 233200 | G9: 69600 | H9: 163400 | I9: 94200 | J9: 89300 | K9: 55700 | L9: 69800 | M9: 45500 | N9: 51100 | O9: 89400 | P9: 56800 | Q9: 93800 | R9: 35100 | S9: 44300 | T9: 69600 | U9: 69600 | V9: 63700 | W9: 928000 | X9: 4552800 | Y9: 28683000 | Z9: 34347400
A10: 2012 | B10: 222900 | C10: 196500 | D10: 111200 | E10: 90200 | F10: 232300 | G10: 69100 | H10: 162400 | I10: 93600 | J10: 88400 | K10: 55000 | L10: 69900 | M10: 44900 | N10: 50400 | O10: 90200 | P10: 56200 | Q10: 93800 | R10: 34900 | S10: 43900 | T10: 68600 | U10: 69100 | V10: 63200 | W10: 922200 | X10: 4531800 | Y10: 28603200 | Z10: 34307000
A11: 2013 | B11: 221500 | C11: 195500 | D11: 110500 | E11: 90400 | F11: 231500 | G11: 69000 | H11: 161300 | I11: 93000 | J11: 87700 | K11: 54500 | L11: 70200 | M11: 44800 | N11: 49900 | O11: 90400 | P11: 56000 | Q11: 93300 | R11: 34900 | S11: 43700 | T11: 68000 | U11: 69000 | V11: 63000 | W11: 918400 | X11: 4516100 | Y11: 28595200 | Z11: 34351400
A12: 2014 | B12: 220300 | C12: 194400 | D12: 109600 | E12: 90400 | F12: 230700 | G12: 69100 | H12: 160500 | I12: 92200 | J12: 86700 | K12: 54300 | L12: 70300 | M12: 44800 | N12: 49700 | O12: 90400 | P12: 55300 | Q12: 92800 | R12: 34800 | S12: 43700 | T12: 67700 | U12: 69100 | V12: 62900 | W12: 914400 | X12: 4509800 | Y12: 28651900 | Z12: 34475400
A13: 2015 | B13: 219700 | C13: 193600 | D13: 109100 | E13: 91000 | F13: 231300 | G13: 69400 | H13: 160600 | I13: 91800 | J13: 85800 | K13: 53900 | L13: 70700 | M13: 44700 | N13: 49400 | O13: 91000 | P13: 55200 | Q13: 93100 | R13: 34900 | S13: 43600 | T13: 67500 | U13: 69400 | V13: 63100 | W13: 914200 | X13: 4519200 | Y13: 28761900 | Z13: 34669600
A14: 2016 | B14: 219700 | C14: 193300 | D14: 108600 | E14: 91500 | F14: 231700 | G14: 69600 | H14: 160500 | I14: 91700 | J14: 85400 | K14: 53600 | L14: 71200 | M14: 44800 | N14: 49300 | O14: 91500 | P14: 55000 | Q14: 93200 | R14: 35000 | S14: 43600 | T14: 67300 | U14: 69600 | V14: 63200 | W14: 914500 | X14: 4530400 | Y14: 28885000 | Z14: 34856100
A15: Change 2006-16 | B15: =B14-B4 -> -1100 | C15: =C14-C4 -> -7400 | D15: -4000 | E15: 2500 | F15: 1600 | G15: -700 | H15: =H14-H4 -> -900 | I15: 1200 | J15: -5000 | K15: -2500 | L15: 2500 | M15: -600 | N15: -2200 | O15: 2500 | P15: -1500 | Q15: 700 | R15: -600 | S15: 500 | T15: -1600 | U15: -700 | V15: -1700 | W15: -9000 | X15: 71200 | Y15: 998300 | Z15: 1748300
A16: % Change 2006-16 | B16: =B15/B4 -> -0.004981884058 | C16: =C15/C4 -> -0.03687095167 | D16: -0.03552397869 | E16: 0.02808988764 | F16: 0.006953498479 | G16: -0.009957325747 | H16: =H15/H4 -> -0.005576208178 | I16: 0.01325966851 | J16: -0.05530973451 | K16: -0.04456327986 | L16: 0.03639010189 | M16: -0.01321585903 | N16: -0.0427184466 | O16: 0.02808988764 | P16: -0.02654867257 | Q16: 0.007567567568 | R16: -0.01685393258 | S16: 0.01160092807 | T16: -0.02322206096 | U16: -0.009957325747 | V16: -0.02619414484 | W16: -0.009745533297 | X16: 0.01596698959 | Y16: 0.03579842721 | Z16: 0.05280628734
A19: Source: Mid-Year Population Estimates
A20: Description: Total working age population (16-64 years)
A21: Year: 2006-2016
A22: http://nomisweb.co.uk/

Sheet LS5. Population Aged 65+
A1: LS5. Population Aged 65+ | B1: Return to Contents | D1: Return to TTWA Summary | I1: Return to LA Summary
B2: Blackburn with Darwen, Hyndburn, Rossendale and Ribble Valley | C2: Blackpool, Fylde and Wyre | D2: Burnley and Pendle | E2: Lancaster and Morecambe | F2: Preston, Chorley and South Ribble | G2: West Lancashire | H2: Preston and South Ribble City Deal | I2: Blackburn with Darwen | J2: Blackpool | K2: Burnley | L2: Chorley | M2: Fylde | N2: Hyndburn | O2: Lancaster | P2: Pendle | Q2: Preston | R2: Ribble Valley | S2: Rossendale | T2: South Ribble | U2: West Lancashire | V2: Wrye | W2: Lancashire | X2: North West | Y2: England Minus London | Z2: England
A3: Year
A4: 2006 | B4: 50400 | C4: 69300 | D4: 27200 | E4: 24200 | F4: 52100 | G4: 18700 | H4: =SUM(Q4,T4) -> 36500 | I4: 18300 | J4: 27200 | K4: 13500 | L4: 15600 | M4: 17200 | N4: 12300 | O4: 24200 | P4: 13600 | Q4: 19000 | R4: 10200 | S4: 9600 | T4: 17500 | U4: 18700 | V4: 24900 | W4: 241800 | X4: 1105900 | Y4: 7178800 | Z4: 8054500
A5: 2007 | B5: 50800 | C5: 69500 | D5: 27300 | E5: 24300 | F5: 52700 | G5: 19100 | H5: 36800 | I5: 18300 | J5: 26900 | K5: 13600 | L5: 16000 | M5: 17300 | N5: 12400 | O5: 24300 | P5: 13700 | Q5: 19000 | R5: 10400 | S5: 9800 | T5: 17800 | U5: 19100 | V5: 25300 | W5: 243700 | X5: 1112900 | Y5: 7251700 | Z5: 8125200
A6: 2008 | B6: 51500 | C6: 70200 | D6: 27500 | E6: 24600 | F6: 53700 | G6: 19500 | H6: 37300 | I6: 18500 | J6: 26900 | K6: 13700 | L6: 16400 | M6: 17600 | N6: 12400 | O6: 24600 | P6: 13900 | Q6: 19100 | R6: 10700 | S6: 9900 | T6: 18200 | U6: 19500 | V6: 25700 | W6: 247100 | X6: 1126200 | Y6: 7371700 | Z6: 8250000
A7: 2009 | B7: 52300 | C7: 70900 | D7: 27900 | E7: 24800 | F7: 54700 | G7: 20100 | H7: 37700 | I7: 18700 | J7: 27000 | K7: 13800 | L7: 16900 | M7: 17800 | N7: 12500 | O7: 24800 | P7: 14000 | Q7: 19100 | R7: 11000 | S7: 10100 | T7: 18600 | U7: 20100 | V7: 26000 | W7: 250700 | X7: 1142800 | Y7: 7513000 | Z7: 8400300
A8: 2010 | B8: 53300 | C8: 71700 | D8: 28300 | E8: 25200 | F8: 56000 | G8: 20600 | H8: 38500 | I8: 18900 | J8: 27200 | K8: 14000 | L8: 17600 | M8: 18100 | N8: 12700 | O8: 25200 | P8: 14300 | Q8: 19300 | R8: 11300 | S8: 10400 | T8: 19200 | U8: 20600 | V8: 26400 | W8: 255000 | X8: 1160700 | Y8: 7666500 | Z8: 8563600
A9: 2011 | B9: 54300 | C9: 72700 | D9: 28700 | E9: 25500 | F9: 57200 | G9: 21100 | H9: 39000 | I9: 19200 | J9: 27400 | K9: 14200 | L9: 18200 | M9: 18500 | N9: 12900 | O9: 25500 | P9: 14500 | Q9: 19400 | R9: 11700 | S9: 10600 | T9: 19600 | U9: 21100 | V9: 26800 | W9: 259400 | X9: 1179300 | Y9: 7819500 | Z9: 8729700
A10: 2012 | B10: 56500 | C10: 74600 | D10: 29800 | E10: 26400 | F10: 59600 | G10: 22000 | H10: 40300 | I10: 19800 | J10: 27900 | K10: 14800 | L10: 19300 | M10: 19100 | N10: 13400 | O10: 26400 | P10: 15000 | Q10: 19800 | R10: 12100 | S10: 11100 | T10: 20500 | U10: 22000 | V10: 27600 | W10: 268800 | X10: 1221700 | Y10: 8119100 | Z10: 9056500
A11: 2013 | B11: 58200 | C11: 75900 | D11: 30700 | E11: 26900 | F11: 61400 | G11: 22700 | H11: 41300 | I11: 20200 | J11: 28200 | K11: 15100 | L11: 20100 | M11: 19600 | N11: 13800 | O11: 26900 | P11: 15500 | Q11: 20100 | R11: 12600 | S11: 11600 | T11: 21200 | U11: 22700 | V11: 28100 | W11: 275600 | X11: 1252600 | Y11: 8344800 | Z11: 9305200
A12: 2014 | B12: 59700 | C12: 77300 | D12: 31400 | E12: 27400 | F12: 63000 | G12: 23200 | H12: 42000 | I12: 20600 | J12: 28500 | K12: 15600 | L12: 20900 | M12: 20100 | N12: 14100 | O12: 27400 | P12: 15800 | Q12: 20300 | R12: 13000 | S12: 12000 | T12: 21700 | U12: 23200 | V12: 28700 | W12: 282000 | X12: 1280800 | Y12: 8554800 | Z12: 9537700
A13: 2015 | B13: 60800 | C13: 78100 | D13: 32000 | E13: 27700 | F13: 64400 | G13: 23800 | H13: 42800 | I13: 20900 | J13: 28400 | K13: 15800 | L13: 21600 | M13: 20400 | N13: 14300 | O13: 27700 | P13: 16100 | Q13: 20500 | R13: 13300 | S13: 12300 | T13: 22300 | U13: 23800 | V13: 29200 | W13: 286700 | X13: 1301500 | Y13: 8710200 | Z13: 9711600
A14: 2016 | B14: 61900 | C14: 79000 | D14: 32600 | E14: 28100 | F14: 65600 | G14: 24300 | H14: 43400 | I14: 21100 | J14: 28500 | K14: 16000 | L14: 22200 | M14: 20900 | N14: 14600 | O14: 28100 | P14: 16500 | Q14: 20700 | R14: 13600 | S14: 12600 | T14: 22700 | U14: 24300 | V14: 29600 | W14: 291400 | X14: 1322000 | Y14: 8861700 | Z14: 9882800
A15: Change 2006-16 | B15: =B14-B4 -> 11500 | C15: =C14-C4 -> 9700 | D15: 5400 | E15: 3900 | F15: 13500 | G15: 5600 | H15: 6900 | I15: 2800 | J15: 1300 | K15: 2500 | L15: 6600 | M15: 3700 | N15: 2300 | O15: 3900 | P15: 2900 | Q15: 1700 | R15: 3400 | S15: 3000 | T15: 5200 | U15: 5600 | V15: 4700 | W15: 49600 | X15: 216100 | Y15: 1682900 | Z15: 1828300
A16: % Change 2006-16 | B16: =B15/B4 -> 0.2281746032 | C16: =C15/C4 -> 0.13997114 | D16: 0.1985294118 | E16: 0.1611570248 | F16: 0.2591170825 | G16: 0.2994652406 | H16: 0.1890410959 | I16: 0.1530054645 | J16: 0.04779411765 | K16: 0.1851851852 | L16: 0.4230769231 | M16: 0.2151162791 | N16: 0.1869918699 | O16: 0.1611570248 | P16: 0.2132352941 | Q16: 0.08947368421 | R16: 0.3333333333 | S16: 0.3125 | T16: 0.2971428571 | U16: 0.2994652406 | V16: 0.1887550201 | W16: 0.2051282051 | X16: 0.1954064563 | Y16: 0.2344263665 | Z16: 0.226991123
A19: Source: Mid-Year Population Estimates
A20: Description: Total population aged 65 years or above
A21: Year: 2006-2016
A22: http://nomisweb.co.uk/

Sheet LS6. Components of Pop Change
A1: LS6. Components of Population Change | B1: Return to Contents | D1: Return to TTWA Summary | I1: Return to LA Summary
B2: Blackburn with Darwen, Hyndburn, Rossendale and Ribble Valley | C2: Blackpool, Fylde and Wyre | D2: Burnley and Pendle | E2: Lancaster and Morecambe | F2: Preston, Chorley and South Ribble | G2: West Lancashire | H2: Preston and South Ribble City Deal | I2: Blackburn with Darwen | J2: Blackpool | K2: Burnley | L2: Chorley | M2: Fylde | N2: Hyndburn | O2: Lancaster | P2: Pendle | Q2: Preston | R2: Ribble Valley | S2: Rossendale | T2: South Ribble | U2: West Lancashire | V2: Wrye | W2: Lancashire | X2: North West | Y2: England Minus London | Z2: England
A3: Net Change (2016)
A4: Total population | B4: 356298 | C4: 327446 | D4: 178110 | E4: 143517 | F4: 366270 | G4: 113401 | H4: =SUM(Q4,T4) -> 251919 | I4: 147049 | J4: 139195 | K4: 87522 | L4: 114351 | M4: 77990 | N4: 80537 | O4: 143517 | P4: 90588 | Q4: 141801 | R4: 58826 | S4: 69886 | T4: 110118 | U4: 113401 | V4: 110261 | W4: 1198798 | X4: 7219623 | Y4: 46480175 | Z4: 55268067
A5: Population change due to net long-term international migration | B5: 524 | C5: 304 | D5: 585 | E5: 1327 | F5: 867 | G5: 329 | H5: =SUM(Q5,T5) -> 743 | I5: 302 | J5: 60 | K5: 98 | L5: 124 | M5: 67 | N5: 113 | O5: 1327 | P5: 487 | Q5: 689 | R5: 40 | S5: 69 | T5: 54 | U5: 329 | V5: 177 | W5: 3574 | X5: 22976 | Y5: 175538 | Z5: 301617
A6: Population change due to net internal migration | B6: -510 | C6: 1568 | D6: -740 | E6: -122 | F6: 106 | G6: 559 | H6: =SUM(Q6,T6) -> -862 | I6: -1036 | J6: -249 | K6: -270 | L6: 968 | M6: 978 | N6: -48 | O6: -122 | P6: -470 | Q6: -1012 | R6: 424 | S6: 150 | T6: 150 | U6: 559 | V6: 839 | W6: 2146 | X6: 5617 | Y6: 81117 | Z6: -12185
A9: Net Change % (2016)
A10: Population change due to net long-term international migration (% of total) | B10: 0.001470679038 | C10: 0.0009283973541 | D10: 0.003284487115 | E10: 0.00924629138 | F10: 0.002367106233 | G10: 0.002901208984 | H10: 0.002949360707 | I10: 0.00205373719 | J10: 0.0004310499659 | K10: 0.001119718471 | L10: 0.001084380548 | M10: 0.000859084498 | N10: 0.001403081813 | O10: 0.00924629138 | P10: 0.00537598799 | Q10: 0.00485892201 | R10: 0.0006799714412 | S10: 0.0009873222105 | T10: 0.0004903830436 | U10: 0.002901208984 | V10: 0.001605282013 | W10: 0.002981319622 | X10: 0.003182437643 | Y10: 0.003776620893 | Z10: 0.005457346645
A11: Population change due to net internal migration (% of total) | B11: -0.001431386087 | C11: 0.004788575826 | D11: -0.004154735837 | E11: -0.0008500735105 | F11: 0.0002894039916 | G11: 0.004929409794 | H11: -0.003421734764 | I11: -0.007045270624 | J11: -0.001788857358 | K11: -0.003084938644 | L11: 0.008465164275 | M11: 0.01254006924 | N11: -0.0005959993543 | O11: -0.0008500735105 | P11: -0.005188325164 | Q11: -0.007136762082 | R11: 0.007207697277 | S11: 0.002146352631 | T11: 0.001362175121 | U11: 0.004929409794 | V11: 0.007609218128 | W11: 0.001790126443 | X11: 0.0007780184644 | Y11: 0.001745195667 | Z11: -0.0002204708914
A14: Source: ONS, Local Area Migration Indicators
A15: Description: Net change (inflow minus outflow) of long-term international migration and internal migration within the UK, and as a percentage of total population
A16: Year: 2016
A17: https://www.ons.gov.uk/peoplepopulationandcommunity/populationandmigration/migrationwithintheuk/datasets/localareamigrationindicatorsunitedkingdom

Sheet LS7. Population Projections
A1: LS7. Total Projected Population | C1: Return to Contents | E1: Return to TTWA Summary | I1: Return to LA Summary
B2: Blackburn with Darwen, Hyndburn, Rossendale and Ribble Valley | C2: Blackpool, Fylde and Wyre | D2: Burnley and Pendle | E2: Lancaster and Morecambe | F2: Preston, Chorley and South Ribble | G2: West Lancashire | H2: Preston and South Ribble City Deal | I2: Blackburn with Darwen | J2: Blackpool | K2: Burnley | L2: Chorley | M2: Fylde | N2: Hyndburn | O2: Lancaster | P2: Pendle | Q2: Preston | R2: Ribble Valley | S2: Rossendale | T2: South Ribble | U2: West Lancashire | V2: Wrye | W2: Lancashire | X2: North West | Y2: England Minus London | Z2: England
A3: Year
A4: 2018 | B4: 355039 | C4: 327657 | D4: 177747 | E4: 144477 | F4: 367606 | G4: 112785 | H4: =SUM(Q4,T4) -> 251513 | I4: 146245 | J4: 139444 | K4: 87285 | L4: 116093 | M4: 78311 | N4: 79730 | O4: 144477 | P4: 90461 | Q4: 141879 | R4: 58701 | S4: 70364 | T4: 109634 | U4: 112785 | V4: 109903 | W4: 1485312 | X4: 7247840 | Y4: 46980139 | Z4: 56061460
A5: 2019 | B5: 355396 | C5: 328224 | D5: 177952 | E5: 144945 | F5: 369071 | G5: 112944 | H5: 251861 | I5: 146162 | J5: 139300 | K5: 87329 | L5: 117211 | M5: 78666 | N5: 79665 | O5: 144945 | P5: 90623 | Q5: 142007 | R5: 58865 | S5: 70705 | T5: 109854 | U5: 112944 | V5: 110258 | W5: 1488534 | X5: 7275839 | Y5: 47269814 | Z5: 56466327
A6: 2020 | B6: 355772 | C6: 328851 | D6: 178134 | E6: 145364 | F6: 370453 | G6: 113097 | H6: 252155 | I6: 146082 | J6: 139180 | K6: 87369 | L6: 118298 | M6: 79035 | N6: 79604 | O6: 145364 | P6: 90765 | Q6: 142077 | R6: 59043 | S6: 71044 | T6: 110078 | U6: 113097 | V6: 110636 | W6: 1491672 | X6: 7303095 | Y6: 47555883 | Z6: 56862331
A7: 2021 | B7: 356175 | C7: 329537 | D7: 178299 | E7: 145738 | F7: 371798 | G7: 113252 | H7: 252426 | I7: 145989 | J7: 139078 | K7: 87400 | L7: 119371 | M7: 79428 | N7: 79552 | O7: 145738 | P7: 90900 | Q7: 142116 | R7: 59264 | S7: 71370 | T7: 110310 | U7: 113252 | V7: 111030 | W7: 1494798 | X7: 7329671 | Y7: 47837833 | Z7: 57248364
A8: 2022 | B8: 356518 | C8: 330244 | D8: 178465 | E8: 146209 | F8: 373150 | G8: 113429 | H8: 252741 | I8: 145892 | J8: 139005 | K8: 87424 | L8: 120410 | M8: 79818 | N8: 79494 | O8: 146209 | P8: 91041 | Q8: 142195 | R8: 59455 | S8: 71678 | T8: 110546 | U8: 113429 | V8: 111421 | W8: 1498017 | X8: 7356400 | Y8: 48121588 | Z8: 57633848
A9: 2023 | B9: 356836 | C9: 330937 | D9: 178602 | E9: 146807 | F9: 374478 | G9: 113634 | H9: 253097 | I9: 145789 | J9: 138942 | K9: 87442 | L9: 121382 | M9: 80189 | N9: 79434 | O9: 146807 | P9: 91160 | Q9: 142343 | R9: 59633 | S9: 71980 | T9: 110754 | U9: 113634 | V9: 111806 | W9: 1501295 | X9: 7382990 | Y9: 48405637 | Z9: 58017208
A10: 2024 | B10: 357086 | C10: 331553 | D10: 178700 | E10: 147505 | F10: 375818 | G10: 113855 | H10: 253507 | I10: 145675 | J10: 138885 | K10: 87443 | L10: 122311 | M10: 80515 | N10: 79361 | O10: 147505 | P10: 91257 | Q10: 142549 | R10: 59794 | S10: 72257 | T10: 110958 | U10: 113855 | V10: 112154 | W10: 1504519 | X10: 7409125 | Y10: 48688326 | Z10: 58396289
A11: 2025 | B11: 357266 | C11: 332185 | D11: 178767 | E11: 148269 | F11: 377123 | G11: 114093 | H11: 253932 | I11: 145544 | J11: 138852 | K11: 87436 | L11: 123191 | M11: 80841 | N11: 79279 | O11: 148269 | P11: 91331 | Q11: 142807 | R11: 59938 | S11: 72505 | T11: 111125 | U11: 114093 | V11: 112492 | W11: 1507703 | X11: 7434623 | Y11: 48967834 | Z11: 58769461
A12: 2026 | B12: 357400 | C12: 332799 | D12: 178820 | E12: 149023 | F12: 378399 | G12: 114327 | H12: 254365 | I12: 145398 | J12: 138830 | K12: 87419 | L12: 124034 | M12: 81159 | N12: 79193 | O12: 149023 | P12: 91401 | Q12: 143084 | R12: 60069 | S12: 72740 | T12: 111281 | U12: 114327 | V12: 112810 | W12: 1510768 | X12: 7459367 | Y12: 49242497 | Z12: 59135245
A13: 2027 | B13: 357500 | C13: 333391 | D13: 178835 | E13: 149765 | F13: 379612 | G13: 114561 | H13: 254786 | I13: 145241 | J13: 138819 | K13: 87396 | L13: 124826 | M13: 81453 | N13: 79108 | O13: 149765 | P13: 91439 | Q13: 143371 | R13: 60198 | S13: 72953 | T13: 111415 | U13: 114561 | V13: 113119 | W13: 1513664 | X13: 7483297 | Y13: 49511497 | Z13: 59493430
A14: 2028 | B14: 357586 | C14: 333999 | D14: 178839 | E14: 150411 | F14: 380743 | G14: 114786 | H14: 255162 | I14: 145088 | J14: 138827 | K14: 87374 | L14: 125581 | M14: 81742 | N14: 79025 | O14: 150411 | P14: 91465 | Q14: 143621 | R14: 60313 | S14: 73160 | T14: 111541 | U14: 114786 | V14: 113430 | W14: 1516364 | X14: 7506513 | Y14: 49774372 | Z14: 59844386
A15: Change 2018-2028 | B15: =B14-B4 -> 2547 | C15: =C14-C4 -> 6342 | D15: 1092 | E15: 5934 | F15: 13137 | G15: 2001 | H15: =H14-H4 -> 3649 | I15: -1157 | J15: -617 | K15: 89 | L15: 9488 | M15: 3431 | N15: -705 | O15: 5934 | P15: 1004 | Q15: 1742 | R15: 1612 | S15: 2796 | T15: 1907 | U15: 2001 | V15: 3527 | W15: 31052 | X15: 258673 | Y15: 2794233 | Z15: 3782926
A16: % Change 2018-2028 | B16: =B15/B4 -> 0.007173859773 | C16: =C15/C4 -> 0.01935560663 | D16: 0.006143563604 | E16: 0.0410722814 | F16: 0.03573663107 | G16: 0.01774172097 | H16: =H15/H4 -> 0.0145081964 | I16: -0.007911381586 | J16: -0.004424715298 | K16: 0.001019648279 | L16: 0.08172758047 | M16: 0.04381249122 | N16: -0.008842342907 | O16: 0.0410722814 | P16: 0.01109870552 | Q16: 0.01227806793 | R16: 0.02746120168 | S16: 0.03973622875 | T16: 0.01739423901 | U16: 0.01774172097 | V16: 0.03209193562 | W16: 0.02090604533 | X16: 0.03568966754 | Y16: 0.05947689938 | Z16: 0.06747819268
A19: Indexed (2018 = 100)
A20: =A4 -> 2018 | B20: =IF(B4="..","..",100) -> 100 | C20: 100 | D20: 100 | E20: 100 | F20: 100 | G20: 100 | H20: =IF(H4="..","..",100) -> 100 | I20: 100 | J20: 100 | K20: 100 | L20: 100 | M20: 100 | N20: 100 | O20: 100 | P20: 100 | Q20: 100 | R20: 100 | S20: 100 | T20: 100 | U20: 100 | V20: 100 | W20: 100 | X20: 100 | Y20: 100 | Z20: 100
A21: 2019 | B21: =IFERROR(B$20*(B5/B$4),"") -> 100.1005523 | C21: 100.1730468 | D21: 100.1153325 | E21: 100.323927 | F21: 100.3985245 | G21: 100.1409762 | H21: =IFERROR(H$20*(H5/H$4),"") -> 100.1383626 | I21: 99.94324592 | J21: 99.89673274 | K21: 100.0504096 | L21: 100.963021 | M21: 100.4533207 | N21: 99.91847485 | O21: 100.323927 | P21: 100.1790827 | Q21: 100.0902177 | R21: 100.279382 | S21: 100.4846228 | T21: 100.2006677 | U21: 100.1409762 | V21: 100.3230121 | W21: 100.2169241 | X21: 100.3863082 | Y21: =IFERROR(Y$20*(Y5/Y$4),"..") -> 100.6165903 | Z21: 100.7221842
A22: 2020 | B22: =IFERROR(B$20*(B6/B$4),"") -> 100.2064562 | C22: 100.3644055 | D22: 100.2177252 | E22: 100.6139386 | F22: 100.7744705 | G22: 100.2766325 | H22: =IFERROR(H$20*(H6/H$4),"") -> 100.2552552 | I22: 99.8885432 | J22: 99.81067669 | K22: 100.0962365 | L22: 101.8993393 | M22: 100.9245189 | N22: 99.84196664 | O22: 100.6139386 | P22: 100.3360564 | Q22: 100.1395555 | R22: 100.5826136 | S22: 100.9664033 | T22: 100.4049839 | U22: 100.2766325 | V22: 100.6669518 | W22: 100.4281929 | X22: 100.7623651 | Y22: 101.2255051 | Z22: 101.4285589
A23: 2021 | B23: =IFERROR(B$20*(B7/B$4),"") -> 100.3199648 | C23: 100.5737707 | D23: 100.3105538 | E23: 100.8728033 | F23: 101.1403514 | G23: 100.4140622 | H23: =IFERROR(H$20*(H7/H$4),"") -> 100.3630031 | I23: 99.82495128 | J23: 99.73752904 | K23: 100.1317523 | L23: 102.8235983 | M23: 101.4263641 | N23: 99.77674652 | O23: 100.8728033 | P23: 100.485292 | Q23: 100.1670437 | R23: 100.9590978 | S23: 101.4297084 | T23: 100.616597 | U23: 100.4140622 | V23: 101.0254497 | W23: 100.6386537 | X23: 101.1290398 | Y23: 101.8256523 | Z23: 102.1171479
A24: 2022 | B24: =IFERROR(B$20*(B8/B$4),"") -> 100.416574 | C24: 100.7895452 | D24: 100.4039449 | E24: 101.1988067 | F24: 101.5081364 | G24: 100.5709979 | H24: =IFERROR(H$20*(H8/H$4),"") -> 100.4882451 | I24: 99.75862423 | J24: 99.68517828 | K24: 100.1592484 | L24: 103.7185705 | M24: 101.9243784 | N24: 99.704001 | O24: 101.1988067 | P24: 100.6411603 | Q24: 100.222725 | R24: 101.2844756 | S24: 101.8674322 | T24: 100.8318587 | U24: 100.5709979 | V24: 101.381218 | W24: 100.8553758 | X24: 101.4978256 | Y24: 102.4296416 | Z24: 102.8047575
A25: 2023 | B25: =IFERROR(B$20*(B9/B$4),"") -> 100.5061416 | C25: 101.0010468 | D25: 100.4810208 | E25: 101.6127134 | F25: 101.8693928 | G25: 100.7527597 | H25: =IFERROR(H$20*(H9/H$4),"") -> 100.6297885 | I25: 99.68819447 | J25: 99.63999885 | K25: 100.1798705 | L25: 104.5558302 | M25: 102.3981305 | N25: 99.62874702 | O25: 101.6127134 | P25: 100.7727087 | Q25: 100.3270392 | R25: 101.5877072 | S25: 102.296629 | T25: 101.0215809 | U25: 100.7527597 | V25: 101.7315269 | W25: 101.0760702 | X25: 101.8646935 | Y25: 103.0342567 | Z25: 103.4885784
A26: 2024 | B26: =IFERROR(B$20*(B10/B$4),"") -> 100.5765564 | C26: 101.1890483 | D26: 100.5361553 | E26: 102.0958353 | F26: 102.2339135 | G26: 100.9487077 | H26: =IFERROR(H$20*(H10/H$4),"") -> 100.792802 | I26: 99.61024309 | J26: 99.59912223 | K26: 100.1810162 | L26: 105.3560508 | M26: 102.8144194 | N26: 99.53718801 | O26: 102.0958353 | P26: 100.8799372 | Q26: 100.4722334 | R26: 101.8619785 | S26: 102.6902962 | T26: 101.2076546 | U26: 100.9487077 | V26: 102.0481697 | W26: 101.293129 | X26: 102.2252837 | Y26: 103.6359769 | Z26: 104.1647667
A27: 2025 | B27: =IFERROR(B$20*(B11/B$4),"") -> 100.627255 | C27: 101.3819329 | D27: 100.5738493 | E27: 102.6246392 | F27: 102.5889131 | G27: 101.1597287 | H27: =IFERROR(H$20*(H11/H$4),"") -> 100.9617793 | I27: 99.52066737 | J27: 99.57545681 | K27: 100.1729965 | L27: 106.1140637 | M27: 103.2307083 | N27: 99.4343409 | O27: 102.6246392 | P27: 100.9617404 | Q27: 100.6540785 | R27: 102.1072895 | S27: 103.0427491 | T27: 101.3599796 | U27: 101.1597287 | V27: 102.3557137 | W27: 101.5074947 | X27: 102.577085 | Y27: 104.2309262 | Z27: 104.8304147
A28: 2026 | B28: =IFERROR(B$20*(B12/B$4),"") -> 100.6649974 | C28: 101.569324 | D28: 100.603667 | E28: 103.1465216 | F28: 102.9360239 | G28: 101.3672031 | H28: =IFERROR(H$20*(H12/H$4),"") -> 101.1339374 | I28: 99.4208349 | J28: 99.55967987 | K28: 100.1535201 | L28: 106.8402057 | M28: 103.6367816 | N28: 99.32647686 | O28: 103.1465216 | P28: 101.0391218 | Q28: 100.8493153 | R28: 102.3304543 | S28: 103.3767267 | T28: 101.5022712 | U28: 101.3672031 | V28: 102.6450597 | W28: 101.7138487 | X28: 102.9184833 | Y28: 104.8155626 | Z28: 105.4828843
A29: 2027 | B29: =IFERROR(B$20*(B13/B$4),"") -> 100.6931633 | C29: 101.7500008 | D29: 100.612106 | E29: 103.6600981 | F29: 103.2659967 | G29: 101.5746775 | H29: =IFERROR(H$20*(H13/H$4),"") -> 101.3013244 | I29: 99.3134808 | J29: 99.5517914 | K29: 100.1271696 | L29: 107.5224174 | M29: 104.0122077 | N29: 99.21986705 | O29: 103.6600981 | P29: 101.0811289 | Q29: 101.0516003 | R29: 102.5502121 | S29: 103.6794383 | T29: 101.6244961 | U29: 101.5746775 | V29: 102.9262168 | W29: 101.9088245 | X29: 103.2486506 | Y29: 105.388145 | Z29: 106.1217992
A30: 2028 | B30: =IFERROR(B$20*(B14/B$4),"") -> 100.717386 | C30: 101.9355607 | D30: 100.6143564 | E30: 104.1072281 | F30: 103.5736631 | G30: 101.7741721 | H30: =IFERROR(H$20*(H14/H$4),"") -> 101.4508196 | I30: 99.20886184 | J30: 99.55752847 | K30: 100.1019648 | L30: 108.172758 | M30: 104.3812491 | N30: 99.11576571 | O30: 104.1072281 | P30: 101.1098706 | Q30: 101.2278068 | R30: 102.7461202 | S30: 103.9736229 | T30: 101.7394239 | U30: 101.7741721 | V30: 103.2091936 | W30: 102.0906045 | X30: 103.5689668 | Y30: 105.9476899 | Z30: 106.7478193
A33: Source: Mid-Year Population Estimates
A34: Description: Total population projections and index of population projections
A35: Year: 2018-2028
A36: http://nomisweb.co.uk/

Sheet LS8. Pop Projections 16-64
A1: LS8. Population Projections 16-64 | C1: Return to Contents | E1: Return to TTWA Summary | I1: Return to LA Summary
B2: Blackburn with Darwen, Hyndburn, Rossendale and Ribble Valley | C2: Blackpool, Fylde and Wyre | D2: Burnley and Pendle | E2: Lancaster and Morecambe | F2: Preston, Chorley and South Ribble | G2: West Lancashire | H2: Preston and South Ribble City Deal | I2: Blackburn with Darwen | J2: Blackpool | K2: Burnley | L2: Chorley | M2: Fylde | N2: Hyndburn | O2: Lancaster | P2: Pendle | Q2: Preston | R2: Ribble Valley | S2: Rossendale | T2: South Ribble | U2: West Lancashire | V2: Wrye | W2: Lancashire | X2: North West | Y2: England Minus London | Z2: England
A3: Year
A4: 2018 | B4: 216812 | C4: 191968 | D4: 107675 | E4: 91180 | F4: 230377 | G4: 68275 | H4: =SUM(Q4,T4) -> 158950 | I4: 90711 | J4: 85079 | K4: 53133 | L4: 71427 | M4: 44474 | N4: 48372 | O4: 91180 | P4: 54542 | Q4: 92620 | R4: 34452 | S4: 43278 | T4: 66330 | U4: 68275 | V4: 62415 | W4: 906288 | X4: 4506950 | Y4: 28916187 | Z4: 35079439
A5: 2019 | B5: 216220 | C5: 191366 | D5: 107232 | E5: 90966 | F5: 229956 | G5: 68004 | H5: 158316 | I5: 90479 | J5: 84710 | K5: 52899 | L5: 71640 | M5: 44321 | N5: 48132 | O5: 90966 | P5: 54334 | Q5: 92321 | R5: 34375 | S5: 43234 | T5: 65995 | U5: 68004 | V5: 62336 | W5: 903746 | X5: 4502388 | Y5: 28949602 | Z5: 35176905
A6: 2020 | B6: 215514 | C6: 190779 | D6: 106902 | E6: 90651 | F6: 230009 | G6: 67762 | H6: 157942 | I6: 90101 | J6: 84354 | K6: 52706 | L6: 72066 | M6: 44232 | N6: 47930 | O6: 90651 | P6: 54196 | Q6: 92076 | R6: 34293 | S6: 43189 | T6: 65866 | U6: 67762 | V6: 62193 | W6: 901615 | X6: 4500837 | Y6: 29003349 | Z6: 35289700
A7: 2021 | B7: 214933 | C7: 190441 | D7: 106642 | E7: 90405 | F7: 229692 | G7: 67529 | H7: 157266 | I7: 89800 | J7: 83990 | K7: 52547 | L7: 72426 | M7: 44239 | N7: 47681 | O7: 90405 | P7: 54095 | Q7: 91706 | R7: 34232 | S7: 43220 | T7: 65560 | U7: 67529 | V7: 62212 | W7: 899642 | X7: 4498058 | Y7: 29046808 | Z7: 35387554
A8: 2022 | B8: 214305 | C8: 189833 | D8: 106338 | E8: 90267 | F8: 229650 | G8: 67234 | H8: 156878 | I8: 89490 | J8: 83607 | K8: 52375 | L8: 72772 | M8: 44095 | N8: 47452 | O8: 90267 | P8: 53963 | Q8: 91455 | R8: 34108 | S8: 43256 | T8: 65423 | U8: 67234 | V8: 62132 | W8: 897629 | X8: 4496121 | Y8: 29099836 | Z8: 35495817
A9: 2023 | B9: 213795 | C9: 189251 | D9: 105932 | E9: 90284 | F9: 229498 | G9: 66912 | H9: 156511 | I9: 89231 | J9: 83247 | K9: 52166 | L9: 72987 | M9: 44014 | N9: 47266 | O9: 90284 | P9: 53766 | Q9: 91314 | R9: 34012 | S9: 43285 | T9: 65197 | U9: 66912 | V9: 61990 | W9: 895671 | X9: 4493616 | Y9: 29147643 | Z9: 35598018
A10: 2024 | B10: 213249 | C10: 188706 | D10: 105761 | E10: 90434 | F10: 229520 | G10: 66763 | H10: 156269 | I10: 88989 | J10: 82879 | K10: 52044 | L10: 73251 | M10: 43925 | N10: 47064 | O10: 90434 | P10: 53717 | Q10: 91245 | R10: 33899 | S10: 43296 | T10: 65024 | U10: 66763 | V10: 61902 | W10: 894432 | X10: 4492767 | Y10: 29208351 | Z10: 35711733
A11: 2025 | B11: 212516 | C11: 187903 | D11: 105586 | E11: 90508 | F11: 229551 | G11: 66490 | H11: 156092 | I11: 88658 | J11: 82563 | K11: 51920 | L11: 73460 | M11: 43714 | N11: 46819 | O11: 90508 | P11: 53665 | Q11: 91233 | R11: 33790 | S11: 43249 | T11: 64859 | U11: 66490 | V11: 61625 | W11: 892553 | X11: 4489441 | Y11: 29257962 | Z11: 35808812
A12: 2026 | B12: 211718 | C12: 187075 | D12: 105331 | E12: 90625 | F12: 229326 | G12: 66185 | H12: 155727 | I12: 88229 | J12: 82198 | K12: 51738 | L12: 73599 | M12: 43511 | N12: 46614 | O12: 90625 | P12: 53593 | Q12: 91187 | R12: 33657 | S12: 43218 | T12: 64540 | U12: 66185 | V12: 61366 | W12: 890260 | X12: 4483978 | Y12: 29294745 | Z12: 35891570
A13: 2027 | B13: 210638 | C13: 186098 | D13: 105000 | E13: 90789 | F13: 229078 | G13: 65874 | H13: 155313 | I13: 87750 | J13: 81701 | K13: 51573 | L13: 73765 | M13: 43308 | N13: 46311 | O13: 90789 | P13: 53427 | Q13: 91078 | R13: 33422 | S13: 43155 | T13: 64235 | U13: 65874 | V13: 61089 | W13: 887477 | X13: 4477208 | Y13: 29323462 | Z13: 35965576
A14: 2028 | B14: 209760 | C14: 185214 | D14: 104628 | E14: 90945 | F14: 228503 | G14: 65553 | H14: 154690 | I14: 87415 | J14: 81355 | K14: 51360 | L14: 73813 | M14: 43027 | N14: 46061 | O14: 90945 | P14: 53268 | Q14: 90845 | R14: 33194 | S14: 43091 | T14: 63845 | U14: 65553 | V14: 60833 | W14: 884605 | X14: 4472213 | Y14: 29351753 | Z14: 36041895
A15: Change 2018-2028 | B15: =B14-B4 -> -7052 | C15: =C14-C4 -> -6754 | D15: -3047 | E15: -235 | F15: -1874 | G15: -2722 | H15: =H14-H4 -> -4260 | I15: -3296 | J15: -3724 | K15: -1773 | L15: 2386 | M15: -1447 | N15: -2311 | O15: -235 | P15: -1274 | Q15: -1775 | R15: -1258 | S15: -187 | T15: -2485 | U15: -2722 | V15: -1582 | W15: -21683 | X15: -34737 | Y15: 435566 | Z15: 962456
A16: % Change 2018-2028 | B16: =B15/B4 -> -0.03252587495 | C16: =C15/C4 -> -0.03518294716 | D16: -0.02829811934 | E16: -0.002577319588 | F16: -0.008134492593 | G16: -0.03986818015 | H16: =H15/H4 -> -0.02680088078 | I16: -0.03633517434 | J16: -0.04377108335 | K16: -0.03336909265 | L16: 0.0334047349 | M16: -0.03253586365 | N16: -0.04777557265 | O16: -0.002577319588 | P16: -0.02335814602 | Q16: -0.01916432736 | R16: -0.036514571 | S16: -0.004320902075 | T16: -0.03746419418 | U16: -0.03986818015 | V16: -0.0253464712 | W16: -0.02392506576 | X16: -0.007707429636 | Y16: 0.01506305102 | Z16: 0.02743647069
A19: Indexed (2018 = 100)
A20: =A4 -> 2018 | B20: =IF(B4="..","..",100) -> 100 | C20: 100 | D20: 100 | E20: 100 | F20: 100 | G20: 100 | H20: =IF(H4="..","..",100) -> 100 | I20: 100 | J20: 100 | K20: 100 | L20: 100 | M20: 100 | N20: 100 | O20: 100 | P20: 100 | Q20: 100 | R20: 100 | S20: 100 | T20: 100 | U20: 100 | V20: 100 | W20: 100 | X20: 100 | Y20: 100 | Z20: 100
A21: 2019 | B21: =IFERROR(B$20*(B5/B$4),"") -> 99.72695238 | C21: 99.68640607 | D21: 99.58857674 | E21: 99.76529941 | F21: 99.81725606 | G21: 99.6030758 | H21: =IFERROR(H$20*(H5/H$4),"") -> 99.60113243 | I21: 99.7442427 | J21: 99.56628545 | K21: 99.55959573 | L21: 100.2982066 | M21: 99.65597877 | N21: 99.5038452 | O21: 99.76529941 | P21: 99.61864251 | Q21: 99.67717556 | R21: 99.77650064 | S21: 99.89833172 | T21: 99.49494949 | U21: 99.6030758 | V21: 99.87342786 | W21: 99.71951521 | X21: 99.89877855 | Y21: =IFERROR(Y$20*(Y5/Y$4),"..") -> 100.1155581 | Z21: 100.2778437
A22: 2020 | B22: =IFERROR(B$20*(B6/B$4),"") -> 99.40132465 | C22: 99.38062594 | D22: 99.28209891 | E22: 99.41982891 | F22: 99.84026183 | G22: 99.24862688 | H22: =IFERROR(H$20*(H6/H$4),"") -> 99.36583831 | I22: 99.3275347 | J22: 99.14785082 | K22: 99.19635631 | L22: 100.8946197 | M22: 99.45586185 | N22: 99.08624824 | O22: 99.41982891 | P22: 99.36562649 | Q22: 99.41265385 | R22: 99.53848833 | S22: 99.79435279 | T22: 99.30046736 | U22: 99.24862688 | V22: 99.64431627 | W22: 99.48438024 | X22: 99.86436504 | Y22: 100.3014298 | Z22: 100.5993853
A23: 2021 | B23: =IFERROR(B$20*(B7/B$4),"") -> 99.13335055 | C23: 99.20455493 | D23: 99.04063153 | E23: 99.1500329 | F23: 99.70266129 | G23: 98.90735994 | H23: =IFERROR(H$20*(H7/H$4),"") -> 98.94054734 | I23: 98.99571166 | J23: 98.72001316 | K23: 98.89710726 | L23: 101.3986308 | M23: 99.47160139 | N23: 98.57148764 | O23: 99.1500329 | P23: 99.1804481 | Q23: 99.0131721 | R23: 99.3614304 | S23: 99.86598272 | T23: 98.83913765 | U23: 98.90735994 | V23: 99.67475767 | W23: 99.26667902 | X23: 99.80270471 | Y23: 100.4517228 | Z23: 100.878335
A24: 2022 | B24: =IFERROR(B$20*(B8/B$4),"") -> 98.84369869 | C24: 98.88783547 | D24: 98.75830044 | E24: 98.99868392 | F24: 99.6844303 | G24: 98.47528378 | H24: =IFERROR(H$20*(H8/H$4),"") -> 98.69644542 | I24: 98.65396699 | J24: 98.26984332 | K24: 98.5733913 | L24: 101.8830414 | M24: 99.1478167 | N24: 98.09807327 | O24: 98.99868392 | P24: 98.93843277 | Q24: 98.74217232 | R24: 99.00150935 | S24: 99.94916586 | T24: 98.6325946 | U24: 98.47528378 | V24: 99.54658335 | W24: 99.0445642 | X24: 99.75972664 | Y24: 100.6351079 | Z24: 101.1869574
A25: 2023 | B25: =IFERROR(B$20*(B9/B$4),"") -> 98.60847186 | C25: 98.58465994 | D25: 98.38123984 | E25: 99.01732836 | F25: 99.61845149 | G25: 98.00366166 | H25: =IFERROR(H$20*(H9/H$4),"") -> 98.46555521 | I25: 98.36844484 | J25: 97.84670718 | K25: 98.18003877 | L25: 102.184048 | M25: 98.96568782 | N25: 97.7135533 | O25: 99.01732836 | P25: 98.57724323 | Q25: 98.58993738 | R25: 98.72286079 | S25: 100.0161745 | T25: 98.29187396 | U25: 98.00366166 | V25: 99.31907394 | W25: 98.82851809 | X25: 99.70414582 | Y25: 100.8004375 | Z25: 101.478299
A26: 2024 | B26: =IFERROR(B$20*(B10/B$4),"") -> 98.35664078 | C26: 98.30075846 | D26: 98.2224286 | E26: 99.18183812 | F26: 99.62800106 | G26: 97.78542658 | H26: =IFERROR(H$20*(H10/H$4),"") -> 98.31330607 | I26: 98.10166352 | J26: 97.41416801 | K26: 97.95042629 | L26: 102.5536562 | M26: 98.7655709 | N26: 97.29595634 | O26: 99.18183812 | P26: 98.4874042 | Q26: 98.51543943 | R26: 98.39486822 | S26: 100.0415916 | T26: 98.03105684 | U26: 97.78542658 | V26: 99.17808219 | W26: 98.69180658 | X26: 99.68530825 | Y26: 101.0103822 | Z26: 101.8024633
A27: 2025 | B27: =IFERROR(B$20*(B11/B$4),"") -> 98.01855986 | C27: 97.88245958 | D27: 98.05990248 | E27: 99.26299627 | F27: 99.64145726 | G27: 97.38557305 | H27: =IFERROR(H$20*(H11/H$4),"") -> 98.2019503 | I27: 97.73676842 | J27: 97.0427485 | K27: 97.71704967 | L27: 102.8462626 | M27: 98.29113639 | N27: 96.78946498 | O27: 99.26299627 | P27: 98.39206483 | Q27: 98.50248326 | R27: 98.07848601 | S27: 99.93299136 | T27: 97.78230062 | U27: 97.38557305 | V27: 98.73427862 | W27: 98.48447734 | X27: 99.61151111 | Y27: 101.1819504 | Z27: 102.0792037
A28: 2026 | B28: =IFERROR(B$20*(B12/B$4),"") -> 97.65049905 | C28: 97.45113769 | D28: 97.82307871 | E28: 99.39131388 | F28: 99.54379126 | G28: 96.93885024 | H28: =IFERROR(H$20*(H12/H$4),"") -> 97.97231834 | I28: 97.2638379 | J28: 96.61373547 | K28: 97.37451301 | L28: 103.0408669 | M28: 97.83468993 | N28: 96.36566609 | O28: 99.39131388 | P28: 98.26005647 | Q28: 98.45281797 | R28: 97.69244166 | S28: 99.86136143 | T28: 97.30137193 | U28: 96.93885024 | V28: 98.31931427 | W28: 98.23146726 | X28: 99.49029832 | Y28: 101.309156 | Z28: 102.3151197
A29: 2027 | B29: =IFERROR(B$20*(B13/B$4),"") -> 97.15237164 | C29: 96.9421987 | D29: 97.51567216 | E29: 99.57117789 | F29: 99.43614163 | G29: 96.48333944 | H29: =IFERROR(H$20*(H13/H$4),"") -> 97.71185908 | I29: 96.73578728 | J29: 96.02957251 | K29: 97.06397154 | L29: 103.273272 | M29: 97.37824347 | N29: 95.73927065 | O29: 99.57117789 | P29: 97.95570386 | Q29: 98.3351328 | R29: 97.01033322 | S29: 99.71579093 | T29: 96.84154983 | U29: 96.48333944 | V29: 97.87551069 | W29: 97.92439048 | X29: 99.34008587 | Y29: 101.4084672 | Z29: 102.5260866
A30: 2028 | B30: =IFERROR(B$20*(B14/B$4),"") -> 96.7474125 | C30: 96.48170528 | D30: 97.17018807 | E30: 99.74226804 | F30: 99.18655074 | G30: 96.01318198 | H30: =IFERROR(H$20*(H14/H$4),"") -> 97.31991192 | I30: 96.36648257 | J30: 95.62289167 | K30: 96.66309073 | L30: 103.3404735 | M30: 96.74641363 | N30: 95.22244274 | O30: 99.74226804 | P30: 97.6641854 | Q30: 98.08356726 | R30: 96.3485429 | S30: 99.56790979 | T30: 96.25358058 | U30: 96.01318198 | V30: 97.46535288 | W30: 97.60749342 | X30: 99.22925704 | Y30: 101.5063051 | Z30: 102.7436471
A33: Source: Mid-Year Population Estimates
A34: Description: Working age population projections and index of population projections
A35: Year: 2018-2028
A36: http://nomisweb.co.uk/

Sheet LS9. Pop Projections 65+
A1: LS9. Population Projections 65+ | C1: Return to Contents | E1: Return to TTWA Summary | I1: Return to LA Summary
B2: Blackburn with Darwen, Hyndburn, Rossendale and Ribble Valley | C2: Blackpool, Fylde and Wyre | D2: Burnley and Pendle | E2: Lancaster and Morecambe | F2: Preston, Chorley and South Ribble | G2: West Lancashire | H2: Preston and South Ribble City Deal | I2: Blackburn with Darwen | J2: Blackpool | K2: Burnley | L2: Chorley | M2: Fylde | N2: Hyndburn | O2: Lancaster | P2: Pendle | Q2: Preston | R2: Ribble Valley | S2: Rossendale | T2: South Ribble | U2: West Lancashire | V2: Wrye | W2: Lancashire | X2: North West | Y2: England Minus London | Z2: England
A3: Year
A4: 2018 | B4: 63806 | C4: 80120 | D4: 33361 | E4: 28809 | F4: 67869 | G4: 24883 | H4: =SUM(Q4,T4) -> 44737 | I4: 21786 | J4: 28728 | K4: 16332 | L4: 23133 | M4: 21419 | N4: 14945 | O4: 28809 | P4: 17029 | Q4: 21282 | R4: 14036 | S4: 13040 | T4: 23455 | U4: 24883 | V4: 29973 | W4: 298848 | X4: 1361963 | Y4: 9187643 | Z4: 10245961
A5: 2019 | B5: 64779 | C5: 80873 | D5: 33802 | E5: 29162 | F5: 69114 | G5: 25204 | H5: 45385 | I5: 22041 | J5: 28792 | K5: 16535 | L5: 23729 | M5: 21800 | N5: 15138 | O5: 29162 | P5: 17268 | Q5: 21502 | R5: 14262 | S5: 13339 | T5: 23883 | U5: 25204 | V5: 30280 | W5: 302934 | X5: 1382456 | Y5: 9351043 | Z5: 10430675
A6: 2020 | B6: 65823 | C6: 81798 | D6: 34250 | E6: 29571 | F6: 70149 | G6: 25549 | H6: 45948 | I6: 22442 | J6: 28963 | K6: 16732 | L6: 24201 | M6: 22154 | N6: 15277 | O6: 29571 | P6: 17519 | Q6: 21729 | R6: 14506 | S6: 13598 | T6: 24219 | U6: 25549 | V6: 30681 | W6: 307140 | X6: 1401881 | Y6: 9506582 | Z6: 10608821
A7: 2021 | B7: 66917 | C7: 82843 | D7: 34732 | E7: 29957 | F7: 71427 | G7: 25890 | H7: 46717 | I7: 22794 | J7: 29255 | K7: 16957 | L7: 24709 | M7: 22551 | N7: 15530 | O7: 29957 | P7: 17775 | Q7: 22057 | R7: 14769 | S7: 13824 | T7: 24660 | U7: 25890 | V7: 31037 | W7: 311766 | X7: 1423979 | Y7: 9675754 | Z7: 10803369
A8: 2022 | B8: 68150 | C8: 84047 | D8: 35315 | E8: 30388 | F8: 72767 | G8: 26323 | H8: 47482 | I8: 23174 | J8: 29519 | K8: 17195 | L8: 25285 | M8: 23055 | N8: 15778 | O8: 30388 | P8: 18120 | Q8: 22430 | R8: 15099 | S8: 14099 | T8: 25052 | U8: 26323 | V8: 31473 | W8: 316991 | X8: 1448868 | Y8: 9859904 | Z8: 11014326
A9: 2023 | B9: 69308 | C9: 85311 | D9: 35950 | E9: 30862 | F9: 74160 | G9: 26804 | H9: 48259 | I9: 23542 | J9: 29832 | K9: 17513 | L9: 25901 | M9: 23490 | N9: 16003 | O9: 30862 | P9: 18437 | Q9: 22761 | R9: 15401 | S9: 14362 | T9: 25498 | U9: 26804 | V9: 31989 | W9: 322395 | X9: 1475464 | Y9: 10059887 | Z9: 11243507
A10: 2024 | B10: 70545 | C10: 86588 | D10: 36508 | E10: 31413 | F10: 75570 | G10: 27212 | H10: 49088 | I10: 23967 | J10: 30210 | K10: 17765 | L10: 26482 | M10: 23928 | N10: 16215 | O10: 31413 | P10: 18744 | Q10: 23141 | R10: 15692 | S10: 14670 | T10: 25947 | U10: 27212 | V10: 32450 | W10: 327835 | X10: 1503051 | Y10: 10266089 | Z10: 11481052
A11: 2025 | B11: 71921 | C11: 88090 | D11: 37054 | E11: 32023 | F11: 77016 | G11: 27677 | H11: 49945 | I11: 24433 | J11: 30581 | K11: 18007 | L11: 27072 | M11: 24468 | N11: 16502 | O11: 32023 | P11: 19047 | Q11: 23567 | R11: 15990 | S11: 14996 | T11: 26378 | U11: 27677 | V11: 33041 | W11: 333782 | X11: 1531731 | Y11: 10478396 | Z11: 11727225
A12: 2026 | B12: 73338 | C12: 89685 | D12: 37702 | E12: 32607 | F12: 78668 | G12: 28169 | H12: 50936 | I12: 24955 | J12: 31010 | K12: 18338 | L12: 27731 | M12: 25031 | N12: 16753 | O12: 32607 | P12: 19364 | Q12: 24045 | R12: 16314 | S12: 15315 | T12: 26891 | U12: 28169 | V12: 33644 | W12: 340168 | X12: 1563318 | Y12: 10709927 | Z12: 11994067
A13: 2027 | B13: 74959 | C13: 91490 | D13: 38333 | E13: 33299 | F13: 80480 | G13: 28718 | H13: 52067 | I13: 25487 | J13: 31580 | K13: 18588 | L13: 28413 | M13: 25627 | N13: 17083 | O13: 33299 | P13: 19745 | Q13: 24620 | R13: 16717 | S13: 15671 | T13: 27447 | U13: 28718 | V13: 34283 | W13: 347279 | X13: 1597733 | Y13: 10956838 | Z13: 12278010
A14: 2028 | B14: 76490 | C14: 93260 | D14: 39023 | E14: 33931 | F14: 82361 | G14: 29254 | H14: 53213 | I14: 26002 | J14: 32114 | K14: 18927 | L14: 29147 | M14: 26234 | N14: 17377 | O14: 33931 | P14: 20096 | Q14: 25181 | R14: 17085 | S14: 16026 | T14: 28032 | U14: 29254 | V14: 34912 | W14: 354319 | X14: 1631666 | Y14: 11209083 | Z14: 12569772
A15: Change 2018-2028 | B15: =B14-B4 -> 12684 | C15: =C14-C4 -> 13140 | D15: 5662 | E15: 5122 | F15: 14492 | G15: 4371 | H15: =H14-H4 -> 8476 | I15: 4216 | J15: 3386 | K15: 2595 | L15: 6014 | M15: 4815 | N15: 2432 | O15: 5122 | P15: 3067 | Q15: 3899 | R15: 3049 | S15: 2986 | T15: 4577 | U15: 4371 | V15: 4939 | W15: 55471 | X15: 269703 | Y15: 2021440 | Z15: 2323811
A16: % Change 2018-2028 | B16: =B15/B4 -> 0.1987900824 | C16: =C15/C4 -> 0.164003994 | D16: 0.1697191331 | E16: 0.1777916623 | F16: 0.2135290044 | G16: 0.1756620986 | H16: =H15/H4 -> 0.1894628607 | I16: 0.1935187735 | J16: 0.1178641047 | K16: 0.1588905217 | L16: 0.2599749276 | M16: 0.2248004109 | N16: 0.16273001 | O16: 0.1777916623 | P16: 0.1801045276 | Q16: 0.1832064656 | R16: 0.2172271302 | S16: 0.2289877301 | T16: 0.1951396291 | U16: 0.1756620986 | V16: 0.1647816368 | W16: 0.1856160992 | X16: 0.1980252033 | Y16: 0.2200172558 | Z16: 0.2268026396
A19: Indexed (2018 = 100)
A20: =A4 -> 2018 | B20: =IF(B4="..","..",100) -> 100 | C20: 100 | D20: 100 | E20: 100 | F20: 100 | G20: 100 | H20: =IF(H4="..","..",100) -> 100 | I20: 100 | J20: 100 | K20: 100 | L20: 100 | M20: 100 | N20: 100 | O20: 100 | P20: 100 | Q20: 100 | R20: 100 | S20: 100 | T20: 100 | U20: 100 | V20: 100 | W20: 100 | X20: 100 | Y20: 100 | Z20: 100
A21: 2019 | B21: =IFERROR(B$20*(B5/B$4),"") -> 101.524935 | C21: 100.9398402 | D21: 101.3219028 | E21: 101.2253115 | F21: 101.8344163 | G21: 101.2900374 | H21: =IFERROR(H$20*(H5/H$4),"") -> 101.4484655 | I21: 101.1704765 | J21: 100.2227792 | K21: 101.2429586 | L21: 102.576406 | M21: 101.7787945 | N21: 101.2914018 | O21: 101.2253115 | P21: 101.4034882 | Q21: 101.0337374 | R21: 101.6101453 | S21: 102.2929448 | T21: 101.8247708 | U21: 101.2900374 | V21: 101.0242552 | W21: 101.3672502 | X21: 101.5046664 | Y21: =IFERROR(Y$20*(Y5/Y$4),"..") -> 101.7784757 | Z21: 101.8027982
A22: 2020 | B22: =IFERROR(B$20*(B6/B$4),"") -> 103.1611447 | C22: 102.0943585 | D22: 102.6647882 | E22: 102.6450068 | F22: 103.359413 | G22: 102.6765261 | H22: =IFERROR(H$20*(H6/H$4),"") -> 102.7069316 | I22: 103.0111081 | J22: 100.8180173 | K22: 102.4491795 | L22: 104.6167812 | M22: 103.4315328 | N22: 102.2214788 | O22: 102.6450068 | P22: 102.8774444 | Q22: 102.1003665 | R22: 103.3485323 | S22: 104.2791411 | T22: 103.2573012 | U22: 102.6765261 | V22: 102.3621259 | W22: 102.7746547 | X22: 102.9309166 | Y22: 103.4713909 | Z22: 103.5414931
A23: 2021 | B23: =IFERROR(B$20*(B7/B$4),"") -> 104.875717 | C23: 103.398652 | D23: 104.109589 | E23: 103.9848658 | F23: 105.2424524 | G23: 104.0469397 | H23: =IFERROR(H$20*(H7/H$4),"") -> 104.4258667 | I23: 104.6268246 | J23: 101.8344472 | K23: 103.826843 | L23: 106.8127783 | M23: 105.2850273 | N23: 103.9143526 | O23: 103.9848658 | P23: 104.3807622 | Q23: 103.641575 | R23: 105.2222856 | S23: 106.0122699 | T23: 105.1374973 | U23: 104.0469397 | V23: 103.5498615 | W23: 104.3225988 | X23: 104.5534277 | Y23: 105.3126901 | Z23: 105.4402706
A24: 2022 | B24: =IFERROR(B$20*(B8/B$4),"") -> 106.8081372 | C24: 104.9013979 | D24: 105.8571386 | E24: 105.4809261 | F24: 107.2168442 | G24: 105.7870836 | H24: =IFERROR(H$20*(H8/H$4),"") -> 106.1358607 | I24: 106.371064 | J24: 102.7534113 | K24: 105.2841048 | L24: 109.3027277 | M24: 107.6380783 | N24: 105.5737705 | O24: 105.4809261 | P24: 106.406718 | Q24: 105.3942299 | R24: 107.5733827 | S24: 108.1211656 | T24: 106.8087828 | U24: 105.7870836 | V24: 105.0045041 | W24: 106.0709792 | X24: 106.3808635 | Y24: 107.3170126 | Z24: 107.499199
A25: 2023 | B25: =IFERROR(B$20*(B9/B$4),"") -> 108.6230135 | C25: 106.4790315 | D25: 107.7605587 | E25: 107.1262453 | F25: 109.2693277 | G25: 107.7201302 | H25: =IFERROR(H$20*(H9/H$4),"") -> 107.8726781 | I25: 108.0602222 | J25: 103.8429407 | K25: 107.2312025 | L25: 111.9655903 | M25: 109.6689855 | N25: 107.0792907 | O25: 107.1262453 | P25: 108.2682483 | Q25: 106.9495348 | R25: 109.7249929 | S25: 110.1380368 | T25: 108.7102963 | U25: 107.7201302 | V25: 106.7260534 | W25: 107.8792563 | X25: 108.3336331 | Y25: 109.4936645 | Z25: 109.7359926
A26: 2024 | B26: =IFERROR(B$20*(B10/B$4),"") -> 110.5617027 | C26: 108.0728907 | D26: 109.4331705 | E26: 109.038842 | F26: 111.3468594 | G26: 109.3598039 | H26: =IFERROR(H$20*(H10/H$4),"") -> 109.7257304 | I26: 110.0110162 | J26: 105.1587302 | K26: 108.7741856 | L26: 114.4771538 | M26: 111.7138989 | N26: 108.4978254 | O26: 109.038842 | P26: 110.0710553 | Q26: 108.7350813 | R26: 111.7982331 | S26: 112.5 | T26: 110.6246003 | U26: 109.3598039 | V26: 108.2641044 | W26: 109.6995797 | X26: 110.3591654 | Y26: 111.7380051 | Z26: 112.0544183
A27: 2025 | B27: =IFERROR(B$20*(B11/B$4),"") -> 112.7182397 | C27: 109.9475786 | D27: 111.0698121 | E27: 111.1562359 | F27: 113.4774345 | G27: 111.2285496 | H27: =IFERROR(H$20*(H11/H$4),"") -> 111.6413707 | I27: 112.1500046 | J27: 106.4501532 | K27: 110.2559393 | L27: 117.0276229 | M27: 114.235025 | N27: 110.4182001 | O27: 111.1562359 | P27: 111.8503729 | Q27: 110.7367729 | R27: 113.9213451 | S27: 115 | T27: 112.4621616 | U27: 111.2285496 | V27: 110.235879 | W27: 111.6895546 | X27: 112.4649495 | Y27: 114.0487936 | Z27: 114.4570529
A28: 2026 | B28: =IFERROR(B$20*(B12/B$4),"") -> 114.9390339 | C28: 111.9383425 | D28: 113.0121999 | E28: 113.1833802 | F28: 115.9115355 | G28: 113.2058032 | H28: =IFERROR(H$20*(H12/H$4),"") -> 113.8565393 | I28: 114.5460387 | J28: 107.9434698 | K28: 112.2826353 | L28: 119.8763671 | M28: 116.8635324 | N28: 112.0976915 | O28: 113.1833802 | P28: 113.7119032 | Q28: 112.9828024 | R28: 116.2296951 | S28: 117.446319 | T28: 114.6493285 | U28: 113.2058032 | V28: 112.2476896 | W28: 113.8264268 | X28: 114.7841755 | Y28: 116.5688197 | Z28: 117.0614157
A29: 2027 | B29: =IFERROR(B$20*(B13/B$4),"") -> 117.4795474 | C29: 114.1912132 | D29: 114.90363 | E29: 115.5854073 | F29: 118.5813847 | G29: 115.4121288 | H29: =IFERROR(H$20*(H13/H$4),"") -> 116.3846481 | I29: 116.9879739 | J29: 109.9275968 | K29: 113.8133725 | L29: 122.8245364 | M29: 119.6461086 | N29: 114.3057879 | O29: 115.5854073 | P29: 115.949263 | Q29: 115.6846161 | R29: 119.1008834 | S29: 120.1763804 | T29: 117.0198252 | U29: 115.4121288 | V29: 114.3796083 | W29: 116.2058973 | X29: 117.311043 | Y29: 119.2562445 | Z29: 119.8326833
A30: 2028 | B30: =IFERROR(B$20*(B14/B$4),"") -> 119.8790082 | C30: 116.4003994 | D30: 116.9719133 | E30: 117.7791662 | F30: 121.3529004 | G30: 117.5662099 | H30: =IFERROR(H$20*(H14/H$4),"") -> 118.9462861 | I30: 119.3518774 | J30: 111.7864105 | K30: 115.8890522 | L30: 125.9974928 | M30: 122.4800411 | N30: 116.273001 | O30: 117.7791662 | P30: 118.0104528 | Q30: 118.3206466 | R30: 121.722713 | S30: 122.898773 | T30: 119.5139629 | U30: 117.5662099 | V30: 116.4781637 | W30: 118.5616099 | X30: 119.8025203 | Y30: 122.0017256 | Z30: 122.680264
A33: Source: Mid-Year Population Estimates
A34: Description: Total population projections and index of population projections
A35: Year: 2018-2028
A36: http://nomisweb.co.uk/

Sheet LS10. Resident Employment
A1: LS10. Resident Employment | B1: Return to Contents | D1: Return to TTWA Summary | I1: Return to LA Summary
B2: Blackburn with Darwen, Hyndburn, Rossendale and Ribble Valley | C2: Blackpool, Fylde and Wyre | D2: Burnley and Pendle | E2: Lancaster and Morecambe | F2: Preston, Chorley and South Ribble | G2: West Lancashire | H2: Preston and South Ribble City Deal | I2: Blackburn with Darwen | J2: Blackpool | K2: Burnley | L2: Chorley | M2: Fylde | N2: Hyndburn | O2: Lancaster | P2: Pendle | Q2: Preston | R2: Ribble Valley | S2: Rossendale | T2: South Ribble | U2: West Lancashire | V2: Wrye | W2: Lancashire | X2: North West | Y2: England Minus London | Z2: England
A3: Number
A4: Jul 2006-Jun 2007 | B4: 152600 | C4: 140700 | D4: 73300 | E4: 65900 | F4: 164900 | G4: 49800 | H4: =SUM(Q4,T4) -> 113400 | I4: 60800 | J4: 58400 | K4: 36500 | L4: 51500 | M4: 34300 | N4: 35100 | O4: 65900 | P4: 36800 | Q4: 60300 | R4: 28200 | S4: 28500 | T4: 53100 | U4: 49800 | V4: 48100 | W4: 647100 | X4: 3137100 | Y4: 20395600 | Z4: 23971000
A5: Jul 2007-Jun 2008 | B5: 151300 | C5: 140700 | D5: 77100 | E5: 60600 | F5: 172200 | G5: 53900 | H5: 121400 | I5: 60600 | J5: 58600 | K5: 37000 | L5: 50800 | M5: 35600 | N5: 32300 | O5: 60600 | P5: 40100 | Q5: 63600 | R5: 28000 | S5: 30300 | T5: 57800 | U5: 53900 | V5: 46400 | W5: 655700 | X5: 3133800 | Y5: 20506500 | Z5: 24185000
A6: Jul 2008-Jun 2009 | B6: 147300 | C6: 138600 | D6: 73800 | E6: 62900 | F6: 164100 | G6: 48500 | H6: 112900 | I6: 58400 | J6: 61900 | K6: 34400 | L6: 51200 | M6: 33300 | N6: 33200 | O6: 62900 | P6: 39400 | Q6: 59400 | R6: 26000 | S6: 29600 | T6: 53500 | U6: 48500 | V6: 43400 | W6: 635200 | X6: 3089900 | Y6: 20295700 | Z6: 23962700
A7: Jul 2009-Jun 2010 | B7: 149400 | C7: 139500 | D7: 77400 | E7: 63800 | F7: 159500 | G7: 50100 | H7: 111700 | I7: 60400 | J7: 59200 | K7: 37100 | L7: 47800 | M7: 33200 | N7: 35300 | O7: 63800 | P7: 40300 | Q7: 58900 | R7: 26800 | S7: 27000 | T7: 52800 | U7: 50100 | V7: 47000 | W7: 639800 | X7: 3068100 | Y7: 20029600 | Z7: 23738100
A8: Jul 2010-Jun 2011 | B8: 147200 | C8: 137800 | D8: 78300 | E8: 63200 | F8: 166800 | G8: 53000 | H8: 115100 | I8: 57500 | J8: 58000 | K8: 40100 | L8: 51700 | M8: 34600 | N8: 34100 | O8: 63200 | P8: 38300 | Q8: 60000 | R8: 27400 | S8: 28200 | T8: 55100 | U8: 53000 | V8: 45300 | W8: 646500 | X8: 3088200 | Y8: 20058000 | Z8: 23811500
A9: Jul 2011-Jun 2012 | B9: 156300 | C9: 135100 | D9: 76700 | E9: 62300 | F9: 171300 | G9: 48700 | H9: 118400 | I9: 57100 | J9: 58700 | K9: 40500 | L9: 53000 | M9: 32800 | N9: 38300 | O9: 62300 | P9: 36200 | Q9: 63500 | R9: 29400 | S9: 31500 | T9: 54900 | U9: 48700 | V9: 43600 | W9: 650400 | X9: 3090700 | Y9: 20092400 | Z9: 23895500
A10: Jul 2012-Jun 2013 | B10: 153700 | C10: 134700 | D10: 70500 | E10: 58100 | F10: 168400 | G10: 49100 | H10: 116000 | I10: 59600 | J10: 57700 | K10: 35400 | L10: 52400 | M10: 33900 | N10: 34700 | O10: 58100 | P10: 35100 | Q10: 63700 | R10: 28000 | S10: 31300 | T10: 52300 | U10: 49100 | V10: 43100 | W10: 634400 | X10: 3103400 | Y10: 20284700 | Z10: 24201800
A11: Jul 2013-Jun 2014 | B11: 141500 | C11: 132300 | D11: 67500 | E11: 60400 | F11: 167400 | G11: 46800 | H11: 113700 | I11: 57200 | J11: 55400 | K11: 33200 | L11: 53800 | M11: 31500 | N11: 32800 | O11: 60400 | P11: 34300 | Q11: 64900 | R11: 23300 | S11: 28200 | T11: 48800 | U11: 46800 | V11: 45300 | W11: 615900 | X11: 3076600 | Y11: 20484700 | Z11: 24556000
A12: Jul 2014-Jun 2015 | B12: 155400 | C12: 134700 | D12: 73200 | E12: 60700 | F12: 164800 | G12: 48500 | H12: 110600 | I12: 59700 | J12: 55700 | K12: 35000 | L12: 54200 | M12: 31700 | N12: 35200 | O12: 60700 | P12: 38200 | Q12: 62300 | R12: 25900 | S12: 34600 | T12: 48300 | U12: 48500 | V12: 47300 | W12: 637300 | X12: 3143700 | Y12: 20881900 | Z12: 25095000
A13: Jul 2015-Jun 2016 | B13: 157900 | C13: 138300 | D13: 79600 | E13: 67000 | F13: 177400 | G13: 50000 | H13: 123700 | I13: 59300 | J13: 59400 | K13: 40200 | L13: 53600 | M13: 34400 | N13: 36600 | O13: 67000 | P13: 39400 | Q13: 64400 | R13: 29900 | S13: 32100 | T13: 59300 | U13: 50000 | V13: 44600 | W13: 670100 | X13: 3212200 | Y13: 21157500 | Z13: 25494700
A14: Jul 2016-Jun 2017 | B14: 153600 | C14: 136900 | D14: 83000 | E14: 71100 | F14: 176600 | G14: 48500 | H14: 123700 | I14: 58900 | J14: 58800 | K14: 43500 | L14: 53000 | M14: 34100 | N14: 34500 | O14: 71100 | P14: 39500 | Q14: 66800 | R14: 28800 | S14: 31300 | T14: 56900 | U14: 48500 | V14: 43900 | W14: 669700 | X14: 3241800 | Y14: 21373000 | Z14: 25811100
A17: Rate
A18: =A4 -> Jul 2006-Jun 2007 | B18: 69.5 | C18: 71.9 | D18: 65.7 | E18: 75.1 | F18: 71.5 | G18: 70.2 | H18: 69.9 | I18: 65.9 | J18: 66.6 | K18: 66.2 | L18: 75.4 | M18: 76.4 | N18: 70.8 | O18: 75.1 | P18: 65.3 | Q18: 66.4 | R18: 82.6 | S18: 65.5 | T18: 74.4 | U18: 70.2 | V18: 76.1 | W18: 70.7 | X18: 70.6 | Y18: 73.5 | Z18: 72.7
A19: =A5 -> Jul 2007-Jun 2008 | B19: 67.7 | C19: 71.7 | D19: 69.3 | E19: 69.4 | F19: 74.9 | G19: 76.9 | H19: 75.4 | I19: 66.2 | J19: 67 | K19: 67.1 | L19: 73.8 | M19: 80.2 | N19: 61.1 | O19: 69.4 | P19: 71.4 | Q19: 69.7 | R19: 82.4 | S19: 67.3 | T19: 82.8 | U19: 76.9 | V19: 72.2 | W19: 71.4 | X19: 70.1 | Y19: 73.3 | Z19: 72.7
A20: Jul 2008-Jun 2009 | B20: 65.5 | C20: 70.8 | D20: 66.3 | E20: 72 | F20: 71.6 | G20: 69.2 | H20: 69.9 | I20: 63.1 | J20: 71 | K20: 63.3 | L20: 75.8 | M20: 74.4 | N20: 63.9 | O20: 72 | P20: 69 | Q20: 65.1 | R20: 76.1 | S20: 64.3 | T20: 76 | U20: 69.2 | V20: 68.2 | W20: 69.2 | X20: 68.9 | Y20: 72.2 | Z20: 71.5
A21: Jul 2009-Jun 2010 | B21: 67 | C21: 71.2 | D21: 68.9 | E21: 72.2 | F21: 69.6 | G21: 72 | H21: 69.1 | I21: 65.1 | J21: 67.7 | K21: 67.7 | L21: 71 | M21: 73.4 | N21: 69.8 | O21: 72.2 | P21: 70.1 | Q21: 63.8 | R21: 76.4 | S21: 60.2 | T21: 76.1 | U21: 72 | V21: 74.6 | W21: 69.7 | X21: 68.2 | Y21: 71 | Z21: 70.4
A22: Jul 2010-Jun 2011 | B22: 65.8 | C22: 70.1 | D22: 71.5 | E22: 72.7 | F22: 71.8 | G22: 76 | H22: 70 | I22: 61.3 | J22: 66.7 | K22: 75.1 | L22: 76.4 | M22: 75.8 | N22: 67.9 | O22: 72.7 | P22: 68.1 | Q22: 65.1 | R22: 78.9 | S22: 63.1 | T22: 76.1 | U22: 76 | V22: 70.7 | W22: 70.4 | X22: 68.4 | Y22: 70.8 | Z22: 70.2
A23: Jul 2011-Jun 2012 | B23: 70.9 | C23: 69 | D23: 68.6 | E23: 71.2 | F23: 74.1 | G23: 70.9 | H23: 71.8 | I23: 61 | J23: 68.1 | K23: 73.8 | L23: 79.9 | M23: 73.9 | N23: 77.2 | O23: 71.2 | P23: 63.6 | Q23: 67.4 | R23: 84.7 | S23: 74 | T23: 77.5 | U23: 70.9 | V23: 67 | W23: 71 | X23: 68.5 | Y23: 70.8 | Z23: 70.2
A24: Jul 2012-Jun 2013 | B24: 69.6 | C24: 69.6 | D24: 63.9 | E24: 65.5 | F24: 73.1 | G24: 73 | H24: 71.2 | I24: 64.6 | J24: 67.5 | K24: 64.3 | L24: 77.8 | M24: 78.2 | N24: 70.1 | O24: 65.5 | P24: 63.4 | Q24: 68.3 | R24: 77.4 | S24: 73.5 | T24: 75.1 | U24: 73 | V24: 66.5 | W24: 69.7 | X24: 69.1 | Y24: 71.6 | Z24: 71.1
A25: Jul 2013-Jun 2014 | B25: 64.6 | C25: 69.4 | D25: 61.9 | E25: 67.4 | F25: 72.9 | G25: 67.9 | H25: 71 | I25: 62.5 | J25: 66 | K25: 61.6 | L25: 77.3 | M25: 74.2 | N25: 65 | O25: 67.4 | P25: 62.3 | Q25: 70.7 | R25: 69.6 | S25: 65.1 | T25: 71.3 | U25: 67.9 | V25: 70.7 | W25: 67.9 | X25: 68.7 | Y25: 72.3 | Z25: 72
A26: Jul 2014-Jun 2015 | B26: 70.9 | C26: 70.6 | D26: 67 | E26: 67.1 | F26: 72.7 | G26: 70.7 | H26: 69.8 | I26: 65.6 | J26: 66.6 | K26: 64.3 | L26: 79.5 | M26: 72.9 | N26: 71.1 | O26: 67.1 | P26: 69.6 | Q26: 68.6 | R26: 75.9 | S26: 77.5 | T26: 71.4 | U26: 70.7 | V26: 74.5 | W26: 70.4 | X26: 70.1 | Y26: 73.4 | Z26: 73.2
A27: Jul 2015-Jun 2016 | B27: 72.5 | C27: 73.3 | D27: 74 | E27: 76 | F27: 76.7 | G27: 71.5 | H27: 76 | I27: 65.3 | J27: 71.8 | K27: 74.5 | L27: 78.2 | M27: 81.5 | N27: 74.2 | O27: 76 | P27: 73.4 | Q27: 69.2 | R27: 86.4 | S27: 74.3 | T27: 85.2 | U27: 71.5 | V27: 69.9 | W27: 74.2 | X27: 71.6 | Y27: 74.2 | Z27: 74
A28: Jul 2016-Jun 2017 | B28: 70.8 | C28: 72.9 | D28: 76.9 | E28: 78.4 | F28: 77.1 | G28: 71 | H28: 76.5 | I28: 64.5 | J28: 71 | K28: 80.7 | L28: 78.7 | M28: 79.8 | N28: 70.4 | O28: 78.4 | P28: 73.1 | Q28: 72.3 | R28: 84.3 | S28: 73.9 | T28: 82.1 | U28: 71 | V28: 70.8 | W28: 74.4 | X28: 72.4 | Y28: 74.8 | Z28: 74.6
A31: Source: Annual Population Survey
A32: Description: Resident employment, 16-64 working age population
A33: Years: July-June 2007 to July-June 2017
A34: http://nomisweb.co.uk/

Sheet LS11. Resident Employment Split
A1: LS11. Resident Employment by Age, Gender and Ethnicity | E1: Return to Contents | G1: Return to TTWA Summary | I1: Return to LA Summary
B2: Blackburn with Darwen, Hyndburn, Rossendale and Ribble Valley | C2: Blackpool, Fylde and Wyre | D2: Burnley and Pendle | E2: Lancaster and Morecambe | F2: Preston, Chorley and South Ribble | G2: West Lancashire | H2: Preston and South Ribble City Deal | I2: Blackburn with Darwen | J2: Blackpool | K2: Burnley | L2: Chorley | M2: Fylde | N2: Hyndburn | O2: Lancaster | P2: Pendle | Q2: Preston | R2: Ribble Valley | S2: Rossendale | T2: South Ribble | U2: West Lancashire | V2: Wrye | W2: Lancashire | X2: North West | Y2: England Minus London | Z2: England
A3: Number (2007)
A4: Aged 16-19 | B4: 6100 | C4: 8400 | D4: 6300 | E4: 1400 | F4: 9000 | G4: 3900 | H4: =SUM(Q4,T4) -> 6800 | I4: 2800 | J4: 2800 | K4: 2800 | L4: 2300 | M4: 2400 | N4: 1300 | O4: 1400 | P4: 3500 | Q4: 4000 | R4: .. | S4: 1300 | T4: 2800 | U4: 3900 | V4: 3300 | W4: 35100 | X4: 154200 | Y4: 1045400 | Z4: 1139600
A5: Aged 20-24 | B5: 14300 | C5: 13000 | D5: 8400 | E5: 6200 | F5: 15300 | G5: 2200 | H5: 13100 | I5: 5700 | J5: 6700 | K5: 1500 | L5: 2200 | M5: 2700 | N5: 4100 | O5: 6200 | P5: 6900 | Q5: 8300 | R5: 2600 | S5: 1900 | T5: 4800 | U5: 2200 | V5: 3700 | W5: 59400 | X5: 318900 | Y5: 1922000 | Z5: 2272800
A6: Aged 25-34 | B6: 35100 | C6: 26500 | D6: 16900 | E6: 13700 | F6: 33900 | G6: 9300 | H6: 24800 | I6: 15900 | J6: 12000 | K6: 10100 | L6: 9100 | M6: 3700 | N6: 10900 | O6: 13700 | P6: 6800 | Q6: 15900 | R6: 3300 | S6: 4900 | T6: 8900 | U6: 9300 | V6: 10800 | W6: 135400 | X6: 677400 | Y6: 4255300 | Z6: 5383800
A7: Aged 35-49 | B7: 61000 | C7: 55300 | D7: 29800 | E7: 23300 | F7: 64800 | G7: 22400 | H7: 41000 | I7: 21800 | J7: 21000 | K7: 16000 | L7: 23700 | M7: 16600 | N7: 11300 | O7: 23300 | P7: 13900 | Q7: 21800 | R7: 14600 | S7: 13300 | T7: 19200 | U7: 22400 | V7: 17800 | W7: 256500 | X7: 1219900 | Y7: 7920900 | Z7: 9243900
A8: Aged 50-64 | B8: 36200 | C8: 37500 | D8: 11900 | E8: 21400 | F8: 41900 | G8: 12000 | H8: 27600 | I8: 14500 | J8: 15800 | K8: 6100 | L8: 14200 | M8: 9000 | N8: 7500 | O8: 21400 | P8: 5800 | Q8: 10200 | R8: 7000 | S8: 7200 | T8: 17400 | U8: 12000 | V8: 12600 | W8: 160700 | X8: 766800 | Y8: 5252000 | Z8: 5930800
A9: Aged 65+ | B9: 3000 | C9: 2300 | D9: 900 | E9: 900 | F9: 6100 | G9: .. | H9: 5100 | I9: 700 | J9: 600 | K9: .. | L9: 1000 | M9: .. | N9: .. | O9: 900 | P9: 700 | Q9: 2800 | R9: 1600 | S9: .. | T9: 2300 | U9: .. | V9: 1300 | W9: 14100 | X9: 57000 | Y9: 467500 | Z9: 542700
A10: Male (aged 16-64) | B10: 81500 | C10: 73800 | D10: 40500 | E10: 37100 | F10: 87900 | G10: 25900 | H10: =SUM(Q10,T10) -> 60500 | I10: 33600 | J10: 30800 | K10: 20000 | L10: 27500 | M10: 17600 | N10: 17900 | O10: 37100 | P10: 20500 | Q10: 33900 | R10: 14700 | S10: 15200 | T10: 26600 | U10: 25900 | V10: 25400 | W10: 346700 | X10: 1664300 | Y10: 10958200 | Z10: 12927900
A11: Female (aged 16-64) | B11: 71100 | C11: 66900 | D11: 32800 | E11: 28800 | F11: 76900 | G11: 23900 | H11: 53000 | I11: 27200 | J11: 27600 | K11: 16500 | L11: 24000 | M11: 16700 | N11: 17200 | O11: 28800 | P11: 16300 | Q11: 26400 | R11: 13400 | S11: 13300 | T11: 26600 | U11: 23900 | V11: 22600 | W11: 300400 | X11: 1472800 | Y11: 9437300 | Z11: 11043000
A12: White (aged 16-64) | B12: 138500 | C12: 137400 | D12: 66800 | E12: 63400 | F12: 146900 | G12: 47800 | H12: 96100 | I12: 49800 | J12: 56600 | K12: 34600 | L12: 50800 | M12: 33200 | N12: 31900 | O12: 63400 | P12: 32200 | Q12: 46000 | R12: 28200 | S12: 28500 | T12: 50100 | U12: 47800 | V12: 47600 | W12: 600800 | X12: 2954600 | Y12: 19144500 | Z12: 21652800
A13: Ethnic minority (aged 16-64) | B13: 13500 | C13: 3300 | D13: 6400 | E13: 2500 | F13: 18000 | G13: 2000 | H13: 17300 | I13: 10900 | J13: 1700 | K13: 1900 | L13: 700 | M13: .. | N13: 2600 | O13: 2500 | P13: 4600 | Q13: 14200 | R13: .. | S13: .. | T13: 3000 | U13: 2000 | V13: .. | W13: 45700 | X13: 181800 | Y13: 1241800 | Z13: 2302200
A14: Mixed ethnic group (aged 16-64) | B14: .. | C14: 500 | D14: .. | E14: .. | F14: .. | G14: .. | H14: .. | I14: .. | J14: .. | K14: .. | L14: .. | M14: .. | N14: .. | O14: .. | P14: .. | Q14: .. | R14: .. | S14: .. | T14: .. | U14: .. | V14: .. | W14: 1400 | X14: 11700 | Y14: 110000 | Z14: 171900
A15: Indians (aged 16-64) | B15: 5600 | C15: .. | D15: .. | E15: .. | F15: 8400 | G15: .. | H15: 8400 | I15: 5600 | J15: .. | K15: .. | L15: .. | M15: .. | N15: .. | O15: .. | P15: .. | Q15: 5800 | R15: .. | S15: .. | T15: .. | U15: .. | V15: .. | W15: 14700 | X15: 42000 | Y15: 342200 | Z15: 562800
A16: Pakistanis/Bangladeshis (aged 16-64) | B16: 6300 | C16: .. | D16: 6200 | E16: .. | F16: 2800 | G16: .. | H16: 2800 | I16: 3700 | J16: .. | K16: 1900 | L16: .. | M16: .. | N16: 2600 | O16: .. | P16: 4400 | Q16: 2800 | R16: .. | S16: .. | T16: .. | U16: .. | V16: .. | W16: 15500 | X16: 47300 | Y16: 220700 | Z16: 333800
A17: Black or black British (aged 16-64) | B17: .. | C17: .. | D17: .. | E17: .. | F17: 1200 | G17: .. | H17: 1200 | I17: .. | J17: .. | K17: .. | L17: .. | M17: .. | N17: .. | O17: .. | P17: .. | Q17: 1200 | R17: .. | S17: .. | T17: .. | U17: .. | V17: .. | W17: 2900 | X17: 30200 | Y17: 243500 | Z17: 593000
A18: All other ethnic group (aged 16-64) | B18: 1400 | C18: 2400 | D18: .. | E18: .. | F18: 5300 | G18: .. | H18: 4800 | I18: 1400 | J18: 1000 | K18: .. | L18: .. | M18: .. | N18: .. | O18: .. | P18: .. | Q18: 4300 | R18: .. | S18: .. | T18: .. | U18: .. | V18: .. | W18: 11200 | X18: 50600 | Y18: 325400 | Z18: 640700
A20: Number (2012)
A21: Aged 16-19 | B21: 7600 | C21: 5600 | D21: .. | E21: 4000 | F21: 6600 | G21: 2800 | H21: =SUM(Q21,T21) -> 4000 | I21: 2800 | J21: 2800 | K21: .. | L21: 2500 | M21: 1600 | N21: 2900 | O21: 4000 | P21: .. | Q21: 2800 | R21: 1200 | S21: .. | T21: 1200 | U21: 2800 | V21: 1100 | W21: 28000 | X21: 117700 | Y21: 794700 | Z21: 860900
A22: Aged 20-24 | B22: 14000 | C22: 11600 | D22: 7000 | E22: 5800 | F22: 17600 | G22: 4400 | H22: 12700 | I22: 5000 | J22: 5400 | K22: 4300 | L22: 5000 | M22: .. | N22: 5600 | O22: 5800 | P22: 2600 | Q22: 6300 | R22: 1600 | S22: 1800 | T22: 6400 | U22: 4400 | V22: 5100 | W22: 60500 | X22: 288000 | Y22: 1833400 | Z22: 2157200
A23: Aged 25-34 | B23: 30400 | C23: 28200 | D23: 17100 | E23: 12100 | F23: 37700 | G23: 7900 | H23: 26600 | I23: 14100 | J23: 11400 | K23: 9200 | L23: 11100 | M23: 8000 | N23: 7800 | O23: 12100 | P23: 7900 | Q23: 17900 | R23: 4500 | S23: 4000 | T23: 8700 | U23: 7900 | V23: 8800 | W23: 133500 | X23: 693900 | Y23: 4304200 | Z23: 5538300
A24: Aged 35-49 | B24: 61600 | C24: 52600 | D24: 30500 | E24: 24600 | F24: 64500 | G24: 18300 | H24: 43400 | I24: 21100 | J24: 24000 | K24: 17100 | L24: 21000 | M24: 13700 | N24: 11500 | O24: 24600 | P24: 13400 | Q24: 23200 | R24: 13600 | S24: 15400 | T24: 20200 | U24: 18300 | V24: 14900 | W24: 252100 | X24: 1173300 | Y24: 7683100 | Z24: 9102100
A25: Aged 50-64 | B25: 42600 | C25: 37200 | D25: 20700 | E25: 15900 | F25: 44900 | G25: 15200 | H25: 31500 | I25: 14100 | J25: 15100 | K25: 9900 | L25: 13400 | M25: 8300 | N25: 10500 | O25: 15900 | P25: 10800 | Q25: 13200 | R25: 8600 | S25: 9500 | T25: 18300 | U25: 15200 | V25: 13800 | W25: 176500 | X25: 817800 | Y25: 5476900 | Z25: 6237000
A26: Aged 65+ | B26: 4900 | C26: 6800 | D26: 1400 | E26: 900 | F26: 6400 | G26: 2300 | H26: 4600 | I26: 1000 | J26: 1700 | K26: .. | L26: 1800 | M26: 1500 | N26: .. | O26: 900 | P26: .. | Q26: 1800 | R26: 1300 | S26: .. | T26: 2800 | U26: 2300 | V26: 3600 | W26: 22600 | X26: 82900 | Y26: 663900 | Z26: 758900
A27: Male (aged 16-64) | B27: 82100 | C27: 70600 | D27: 40400 | E27: 32500 | F27: 88500 | G27: 23700 | H27: 60700 | I27: 31600 | J27: 31900 | K27: 21100 | L27: 27800 | M27: 16900 | N27: 20600 | O27: 32500 | P27: 19300 | Q27: 32900 | R27: 14800 | S27: 15000 | T27: 27800 | U27: 23700 | V27: 21700 | W27: 337700 | X27: 1625300 | Y27: 10677100 | Z27: 12769500
A28: Female (aged 16-64) | B28: 74200 | C28: 64500 | D28: 36300 | E28: 29900 | F28: 82900 | G28: 25000 | H28: 57600 | I28: 25400 | J28: 26700 | K28: 19400 | L28: 25200 | M28: 15800 | N28: 17700 | O28: 29900 | P28: 16900 | Q28: 30500 | R28: 14600 | S28: 16500 | T28: 27100 | U28: 25000 | V28: 21900 | W28: 312800 | X28: 1465400 | Y28: 9415300 | Z28: 11126000
A29: White (aged 16-64) | B29: 141800 | C29: 131400 | D29: 69800 | E29: 60600 | F29: 154600 | G29: 48700 | H29: 102700 | I29: 45600 | J29: 56000 | K29: 36500 | L29: 51900 | M29: 32000 | N29: 36200 | O29: 60600 | P29: 33300 | Q29: 49100 | R29: 29000 | S29: 31000 | T29: 53600 | U29: 48700 | V29: 43300 | W29: 606900 | X29: 2857500 | Y29: 18506600 | Z29: 21028700
A30: Ethnic minority (aged 16-64) | B30: 14400 | C30: 3700 | D30: 6900 | E30: 1800 | F30: 16700 | G30: .. | H30: 15600 | I30: 11500 | J30: 2600 | K30: 4000 | L30: 1100 | M30: .. | N30: 2200 | O30: 1800 | P30: 2900 | Q30: 14400 | R30: .. | S30: .. | T30: 1300 | U30: .. | V30: .. | W30: 43500 | X30: 232200 | Y30: 1576000 | Z30: 2849200
A31: Mixed ethnic group (aged 16-64) | B31: 1000 | C31: 600 | D31: .. | E31: .. | F31: 1000 | G31: .. | H31: .. | I31: 500 | J31: 600 | K31: .. | L31: .. | M31: .. | N31: .. | O31: .. | P31: .. | Q31: .. | R31: .. | S31: .. | T31: .. | U31: .. | V31: .. | W31: 2600 | X31: 21800 | Y31: 152200 | Z31: 234600
A32: Indians (aged 16-64) | B32: 5400 | C32: .. | D32: .. | E32: .. | F32: 6300 | G32: .. | H32: 6300 | I32: 5000 | J32: .. | K32: .. | L32: .. | M32: .. | N32: .. | O32: .. | P32: .. | Q32: 5800 | R32: .. | S32: .. | T32: .. | U32: .. | V32: .. | W32: 12400 | X32: 45200 | Y32: 425200 | Z32: 717900
A33: Pakistanis/Bangladeshis (aged 16-64) | B33: 6300 | C33: .. | D33: 5400 | E33: .. | F33: .. | G33: .. | H33: .. | I33: 4600 | J33: .. | K33: 2500 | L33: .. | M33: .. | N33: 1800 | O33: .. | P33: 2900 | Q33: .. | R33: .. | S33: .. | T33: .. | U33: .. | V33: .. | W33: 13100 | X33: 65200 | Y33: 309800 | Z33: 472900
A34: Black or black British (aged 16-64) | B34: .. | C34: .. | D34: .. | E34: .. | F34: 2000 | G34: .. | H34: 1700 | I34: .. | J34: .. | K34: .. | L34: .. | M34: .. | N34: .. | O34: .. | P34: .. | Q34: 1300 | R34: .. | S34: .. | T34: .. | U34: .. | V34: .. | W34: 5100 | X34: 46900 | Y34: 299800 | Z34: 643600
A35: All other ethnic group (aged 16-64) | B35: 1400 | C35: 2300 | D35: .. | E35: .. | F35: 6300 | G35: .. | H35: 5800 | I35: 1000 | J35: 1200 | K35: .. | L35: .. | M35: .. | N35: .. | O35: .. | P35: .. | Q35: 5800 | R35: .. | S35: .. | T35: .. | U35: .. | V35: .. | W35: 10400 | X35: 53200 | Y35: 389100 | Z35: 780200
A37: Number (2017)
A38: Aged 16-19 | B38: 4900 | C38: 4600 | D38: 3400 | E38: 1900 | F38: 9500 | G38: 3100 | H38: =SUM(Q38,T38) -> 8200 | I38: 2000 | J38: 2200 | K38: .. | L38: .. | M38: .. | N38: .. | O38: 1900 | P38: 2300 | Q38: 3900 | R38: .. | S38: .. | T38: 4300 | U38: 3100 | V38: .. | W38: 27400 | X38: 110200 | Y38: 781800 | Z38: 858200
A39: Aged 20-24 | B39: 14500 | C39: 8500 | D39: 10900 | E39: 7100 | F39: 22200 | G39: 3400 | H39: 18700 | I39: 4700 | J39: 5500 | K39: 6000 | L39: 3500 | M39: .. | N39: 3800 | O39: 7100 | P39: 4900 | Q39: 10700 | R39: 3600 | S39: 2400 | T39: 8000 | U39: 3400 | V39: 1800 | W39: 66500 | X39: 317700 | Y39: 1983300 | Z39: 2359100
A40: Aged 25-34 | B40: 35200 | C40: 29500 | D40: 16500 | E40: 18400 | F40: 39600 | G40: 7600 | H40: 23500 | I40: 14600 | J40: 14700 | K40: 8200 | L40: 16100 | M40: 7600 | N40: 9100 | O40: 18400 | P40: 8300 | Q40: 11800 | R40: 4200 | S40: 7300 | T40: 11700 | U40: 7600 | V40: 7200 | W40: 146800 | X40: 763900 | Y40: 4817700 | Z40: 6202700
A41: Aged 35-49 | B41: 55500 | C41: 44900 | D41: 29600 | E41: 25400 | F41: 59200 | G41: 19600 | H41: 43400 | I41: 19900 | J41: 18100 | K41: 15300 | L41: 15800 | M41: 10900 | N41: 11700 | O41: 25400 | P41: 14300 | Q41: 23900 | R41: 11600 | S41: 12400 | T41: 19500 | U41: 19600 | V41: 16000 | W41: 234300 | X41: 1135200 | Y41: 7512300 | Z41: 9156800
A42: Aged 50-64 | B42: 43500 | C42: 49400 | D42: 22600 | E42: 18300 | F42: 46100 | G42: 14700 | H42: 29900 | I42: 17900 | J42: 18400 | K42: 12900 | L42: 16200 | M42: 13300 | N42: 8700 | O42: 18300 | P42: 9600 | Q42: 16500 | R42: 8800 | S42: 8200 | T42: 13400 | U42: 14700 | V42: 17700 | W42: 194600 | X42: 914800 | Y42: 6277900 | Z42: 7234400
A43: Aged 65+ | B43: 7500 | C43: 5100 | D43: 4000 | E43: 3600 | F43: 3200 | G43: 4300 | H43: 1800 | I43: 1600 | J43: 1300 | K43: 1700 | L43: .. | M43: 1600 | N43: 3100 | O43: 3600 | P43: 2300 | Q43: .. | R43: 1800 | S43: .. | T43: 1800 | U43: 4300 | V43: 2300 | W43: 27700 | X43: 111600 | Y43: 872700 | Z43: 1007100
A44: Male (aged 16-64) | B44: 80600 | C44: 71600 | D44: 44100 | E44: 37600 | F44: 93500 | G44: 25900 | H44: 68700 | I44: 31600 | J44: 31100 | K44: 23500 | L44: 24800 | M44: 18000 | N44: 18700 | O44: 37600 | P44: 20600 | Q44: 37900 | R44: 14600 | S44: 15700 | T44: 30800 | U44: 25900 | V44: 22500 | W44: 353200 | X44: 1704200 | Y44: 11289500 | Z44: 13718400
A45: Female (aged 16-64) | B45: 73000 | C45: 65300 | D45: 38900 | E45: 33500 | F45: 83100 | G45: 22600 | H45: 55000 | I45: 27300 | J45: 27700 | K45: 20000 | L45: 28200 | M45: 16100 | N45: 15800 | O45: 33500 | P45: 19000 | Q45: 28900 | R45: 14200 | S45: 15600 | T45: 26100 | U45: 22600 | V45: 21500 | W45: 316400 | X45: 1537600 | Y45: 10083400 | Z45: 12092800
A46: White (aged 16-64) | B46: 132600 | C46: 133300 | D46: 75700 | E46: 69400 | F46: 159000 | G46: 46800 | H46: 107000 | I46: 42300 | J46: 57900 | K46: 41100 | L46: 52000 | M46: 33600 | N46: 30200 | O46: 69400 | P46: 34600 | Q46: 51400 | R46: 28800 | S46: 31300 | T46: 55600 | U46: 46800 | V46: 41800 | W46: 616900 | X46: 2938800 | Y46: 19404600 | Z46: 22270300
A47: Ethnic minority (aged 16-64) | B47: 20900 | C47: 3500 | D47: 7300 | E47: .. | F47: 17700 | G47: 1700 | H47: 16700 | I47: 16500 | J47: 900 | K47: 2300 | L47: .. | M47: .. | N47: 4300 | O47: .. | P47: 4900 | Q47: 15400 | R47: .. | S47: .. | T47: 1300 | U47: 1700 | V47: 2100 | W47: 52700 | X47: 302400 | Y47: 1960700 | Z47: 3529600
A48: Mixed ethnic group (aged 16-64) | B48: .. | C48: 2300 | D48: .. | E48: .. | F48: 2400 | G48: .. | H48: 2400 | I48: .. | J48: .. | K48: .. | L48: .. | M48: .. | N48: .. | O48: .. | P48: .. | Q48: .. | R48: .. | S48: .. | T48: .. | U48: .. | V48: 1700 | W48: 6200 | X48: 28100 | Y48: 205000 | Z48: 332100
A49: Indians (aged 16-64) | B49: 8400 | C49: .. | D49: .. | E49: .. | F49: 6500 | G49: .. | H49: 6500 | I49: 8400 | J49: .. | K49: .. | L49: .. | M49: .. | N49: .. | O49: .. | P49: .. | Q49: 6200 | R49: .. | S49: .. | T49: .. | U49: .. | V49: .. | W49: 15000 | X49: 55000 | Y49: 475200 | Z49: 787900
A50: Pakistanis/Bangladeshis (aged 16-64) | B50: 8700 | C50: .. | D50: 6000 | E50: .. | F50: 1100 | G50: .. | H50: 1100 | I50: 5400 | J50: .. | K50: .. | L50: .. | M50: .. | N50: 3400 | O50: .. | P50: 4900 | Q50: 1100 | R50: .. | S50: .. | T50: .. | U50: .. | V50: .. | W50: 16000 | X50: 93100 | Y50: 411500 | Z50: 600900
A51: Black or black British (aged 16-64) | B51: 600 | C51: 700 | D51: .. | E51: .. | F51: 4200 | G51: .. | H51: 3700 | I51: 600 | J51: .. | K51: .. | L51: .. | M51: .. | N51: .. | O51: .. | P51: .. | Q51: 3700 | R51: .. | S51: .. | T51: .. | U51: .. | V51: .. | W51: 6100 | X51: 58200 | Y51: 404900 | Z51: 878200
A52: All other ethnic group (aged 16-64) | B52: 2800 | C52: .. | D52: .. | E52: .. | F52: 3400 | G52: .. | H52: 2900 | I52: 1800 | J52: .. | K52: .. | L52: .. | M52: .. | N52: .. | O52: .. | P52: .. | Q52: 2200 | R52: .. | S52: .. | T52: .. | U52: .. | V52: .. | W52: 9400 | X52: 68000 | Y52: 464100 | Z52: 930500
A55: Rate (2007)
A56: =A4 -> Aged 16-19 | B56: 38.3 | C56: 51 | D56: 44.8 | E56: 23.2 | F56: 54.6 | G56: 47.6 | H56: 51.5 | I56: 40.9 | J56: 40.3 | K56: 54.2 | L56: 66.3 | M56: 42 | N56: 27.4 | O56: 23.2 | P56: 39.3 | Q56: 51.3 | R56: .. | S56: 39 | T56: 51.8 | U56: 47.6 | V56: 82.3 | W56: 45.5 | X56: 41.6 | Y56: 46.9 | Z56: 44
A57: Aged 20-24 | B57: 64.8 | C57: 68 | D57: 63.8 | E57: 62.7 | F57: 60.9 | G57: 81.2 | H57: 58.8 | I57: 64.6 | J57: 64.3 | K57: 40.1 | L57: 77 | M57: 73.3 | N57: 70.7 | O57: 62.7 | P57: 73.5 | Q57: 51.6 | R57: 82.4 | S57: 44.3 | T57: 77.6 | U57: 81.2 | V57: 71.7 | W57: 64.5 | X57: 68.5 | Y57: 69.9 | Z57: 68.4
A58: Aged 25-34 | B58: 80.9 | C58: 82.7 | D58: 73.4 | E58: 86.3 | F58: 83.6 | G58: 80.7 | H58: 84.4 | I58: 73.8 | J58: 76.1 | K58: 72.5 | L58: 81.6 | M58: 100 | N58: 87.6 | O58: 86.3 | P58: 74.9 | Q58: 80.7 | R58: 82.7 | S58: 92.8 | T58: 92 | U58: 80.7 | V58: 85.9 | W58: 81.4 | X58: 79.9 | Y58: 80.6 | Z58: 79.7
A59: Aged 35-49 | B59: 78.2 | C59: 84.8 | D59: 80.6 | E59: 90.5 | F59: 82.8 | G59: 83.3 | H59: 79.9 | I59: 74.9 | J59: 74.8 | K59: 84.3 | L59: 88.4 | M59: 94.4 | N59: 77.6 | O59: 90.5 | P59: 76.6 | Q59: 77.9 | R59: 92.1 | S59: 71.8 | T59: 82.2 | U59: 83.3 | V59: 90.4 | W59: 82.5 | X59: 80.9 | Y59: 83.3 | Z59: 82.1
A60: Aged 50-64 | B60: 60.1 | C60: 59.6 | D60: 49 | E60: 70.3 | F60: 59.8 | G60: 55.5 | H60: 60.1 | I60: 56.4 | J60: 59.9 | K60: 46 | L60: 59.3 | M60: 62.6 | N60: 62 | O60: 70.3 | P60: 52.6 | Q60: 53.2 | R60: 69.3 | S60: 58.6 | T60: 65 | U60: 55.5 | V60: 57.4 | W60: 59.7 | X60: 61.4 | Y60: 65.8 | Z60: 65.6
A61: Aged 65+ | B61: 6 | C61: 3.6 | D61: 3.1 | E61: 3.1 | F61: 12.9 | G61: 8.1 | H61: 14.1 | I61: 4.2 | J61: 2.4 | K61: .. | L61: 8.9 | M61: .. | N61: .. | O61: 3.1 | P61: 4.4 | Q61: 14.2 | R61: 17.9 | S61: .. | T61: 14 | U61: 8.1 | V61: 5 | W61: 6.1 | X61: 5.4 | Y61: 6.8 | Z61: 7
A62: Male (aged 16-64) | B62: 74.2 | C62: 75.3 | D62: 72.4 | E62: 86.7 | F62: 77.6 | G62: 76.2 | H62: 75.5 | I62: 73.9 | J62: 69.8 | K62: 72.4 | L62: 82.4 | M62: 79.1 | N62: 70.4 | O62: 86.7 | P62: 72.3 | Q62: 73.8 | R62: 84.2 | S62: 71.5 | T62: 77.9 | U62: 76.2 | V62: 80.3 | W62: 76.4 | X62: 75.6 | Y62: 79.6 | Z62: 79.1
A63: Female (aged 16-64) | B63: 64.8 | C63: 68.4 | D63: 59.1 | E63: 64.1 | F63: 65.7 | G63: 64.7 | H63: 64.4 | I63: 58.2 | J63: 63.3 | K63: 60 | L63: 68.8 | M63: 73.7 | N63: 71.3 | O63: 64.1 | P63: 58.2 | Q63: 58.8 | R63: 80.8 | S63: 59.8 | T63: 71.1 | U63: 64.7 | V63: 71.8 | W63: 65 | X63: 65.7 | Y63: 67.5 | Z63: 66.5
A64: White (aged 16-64) | B64: 74.1 | C64: 72 | D64: 69.6 | E64: 75.1 | F64: 74 | G64: 70 | H64: 72.9 | I64: 71.3 | J64: 66.4 | K64: 69.4 | L64: 76 | M64: 76.4 | N64: 75.1 | O64: 75.1 | P64: 69.7 | Q64: 71.4 | R64: 82.6 | S64: 70.6 | T64: 74.4 | U64: 70 | V64: 76.7 | W64: 72.8 | X64: 72 | Y64: 74.6 | Z64: 74.5
A65: Ethnic minority (aged 16-64) | B65: 42.8 | C65: 66.4 | D65: 41.9 | E65: 74.1 | F65: 56.4 | G65: 74.6 | H65: 56.8 | I65: 49 | J65: 71.2 | K65: 35.8 | L65: 48.7 | M65: 76.6 | N65: 42.4 | O65: 74.1 | P65: 45 | Q65: 54.1 | R65: .. | S65: .. | T65: 74 | U65: 74.6 | V65: .. | W65: 50.9 | X65: 53.7 | Y65: 60 | Z65: 59.3
A66: Mixed ethnic group (aged 16-64) | B66: 57.5 | C66: 60.1 | D66: .. | E66: .. | F66: .. | G66: .. | H66: .. | I66: 57.5 | J66: 100 | K66: .. | L66: .. | M66: .. | N66: .. | O66: .. | P66: .. | Q66: .. | R66: .. | S66: .. | T66: .. | U66: .. | V66: .. | W66: 54.2 | X66: 53.8 | Y66: 65.5 | Z66: 64.2
A67: Indians (aged 16-64) | B67: 53.2 | C67: 42 | D67: .. | E67: .. | F67: 80.1 | G67: .. | H67: 80.1 | I67: 53.2 | J67: 80 | K67: .. | L67: .. | M67: .. | N67: .. | O67: .. | P67: .. | Q67: 78.6 | R67: .. | S67: .. | T67: 83.8 | U67: .. | V67: .. | W67: 63.4 | X67: 67.3 | Y67: 68.3 | Z67: 67.8
A68: Pakistanis/Bangladeshis (aged 16-64) | B68: 35.5 | C68: .. | D68: 45 | E68: .. | F68: 34.6 | G68: .. | H68: 34.6 | I68: 43.7 | J68: .. | K68: 43 | L68: .. | M68: .. | N68: 42.4 | O68: .. | P68: 45.9 | Q68: 36.2 | R68: .. | S68: .. | T68: .. | U68: .. | V68: .. | W68: 38.3 | X68: 41.5 | Y68: 44 | Z68: 44.2
A69: Black or black British (aged 16-64) | B69: .. | C69: .. | D69: .. | E69: .. | F69: 56.9 | G69: .. | H69: 62.5 | I69: .. | J69: .. | K69: .. | L69: .. | M69: .. | N69: .. | O69: .. | P69: .. | Q69: 62.5 | R69: .. | S69: .. | T69: .. | U69: .. | V69: .. | W69: 71.2 | X69: 58.3 | Y69: 67.3 | Z69: 63.8
A70: All other ethnic group (aged 16-64) | B70: 47.6 | C70: 87.2 | D70: .. | E70: .. | F70: 49.3 | G70: .. | H70: 49.5 | I70: 47.6 | J70: 74.3 | K70: .. | L70: .. | M70: .. | N70: .. | O70: .. | P70: .. | Q70: 47.7 | R70: .. | S70: .. | T70: .. | U70: .. | V70: .. | W70: 57.5 | X70: 57 | Y70: 60.4 | Z70: 58.4
A72: Rate (2012)
